Workbook

Sheet CB_DATA_ (hidden)
A1: Crystal Ball Data
P2: =_xll.CB.RecalcCounterFN() -> 
A3: Workbook Variables | B3: Last Var Column | C3: 0
A4: Name:
A5: Value:
A7: Worksheet Data | B7: Last Data Column Used
B8: 5
A10: Sheet Ref
A11: =CB_DATA_!#REF! ->  | B11: ='Risk Register'!#REF! ->  | C11: =BaseUncertainty!#REF! ->  | D11: =YOE!#REF! ->  | E11: =Inflation!#REF! -> 
A13: Sheet Guid
A14: dba1d862-2d72-46de-882c-86a723b72000 | B14: 1a7e5721-4723-4f17-8bab-22b109129df2 | C14: 5eb71ec8-02dd-4e54-b9c8-97a51d7d357d | D14: 4e899777-0266-47fb-92c6-db5319e3fb78 | E14: 961edc1e-cbb6-4eea-8007-76670d613c0b
A16: Deleted sheet count
A19: Last row used
A20: 31 | B20: 31 | C20: 26 | D20: 34 | E20: 26
A25: Data blocks
A26: CB_Block_0 | B26: CB_Block_7.0.0.0:1 | D26: CB_Block_7.0.0.0:2
A27: 㜸〱敤㕣㙢㙣ㅣ搷㜵摥㔹敥㉥㜷㤶㕣㤱ㄶ㘵搹㔲ㅣ㥢㠹攳㈷㔵㕡㤴慤挸㜲㈲搳㝣㠸ㄲ㘳㑡愴戵㤴散挴㌶㔶挳摤ㄹ㜲慣㥤㕤㝡㘶㤶ㄲㄳ㈷㜱搱戴㜵ㄳ㈴㘹搵昴攱搸愹㔲晦慡㡢愲㐰㕦㡡〳昴㑦㠱〰㉤ち愵慦㈴㈸〲昴㠷㥢ㄶ敤㡦ㄶ㠵㠱愲㘸㝥〴㐸扦敦摣㤹摤搹㈵㜷㐸慦敤㤶㉥㌸搲㥥扤㜳敥扤㌳昷摥昳扣攷摣㘵㐲㑢㈴ㄲ㍦挵挵㙦㕥㈹ㄶ㙥㉢慣㝢扥改㡣㑥搵㉡ㄵ戳攴摢戵慡㌷㍡攱扡挶晡㥣敤昹㍤㘸㤰㈹摡愸昷搲㐵捦晥戴㤹㉤慥㤹慥㠷㐶改㐴㈲㥢搵㤳愸攷㐳昸ㄹっ㙦㜴昶敡㑦〱㉣㑥㑤捥㉦㍤㠷愷ㄶ晣㥡㙢ㅥㅡ扥愰晡㥥ㄸㅢㅢㅤㅢ㍤㝡昸搸㤱搱挳㠷㠶愷敡ㄵ扦敥㥡㈷慡㘶摤㜷㡤捡愱攱㠵晡㔲挵㉥㍤㙥慥㉦搶㉥㤹搵ㄳ收搲攱〷㤷㡣㠷ㅥㅥ㝢攸攸㔱敢昸昱㠷晢昱敡挴搹愹挹〵搷戴扣㜷改㤹㘹づ昹愱㘹戳㘴㜳㙥愶改摡搵攵搱愹㐹晣㡦㡣ㅦ㜷挷㐶ぢ㉢愶改昳搵愶㙢㔶㑢愶愷愳㘳㥦㌳攱㜹㜵㘷㤵㡢愷㍢㌳㤸㙡挹昰晣戴㌳㘵㔶㉡扡ㄳ㍥㌵敢捣㘳敤㉡挶㝡扦㔳㌰慢㥥敤摢㙢戶扦㥥㜱ㄶ昱愰㜲摥㌹敦㤹攷㡣敡戲㜹搶㜰捣戴㜳慡㙥㤷㔳敡㑡昴摣ㄳ㍥㈲㍡㌰㤹晥攸㠴攷㑣慤ㄸ慥㡣挸攳挲挴戴㥤㜱㑢慤㙤敦散晣㕣づ㕤摥挰㘷摥搵戹ㅤ㙡㉥ㄸ㙥愳攵㐸攷㤶挱攴㕢㐷昰㐰攷昶㤱㌵㙡敤㜳㕦攷㍥戲㤴慤慤戵扥㠰扦㘵㐵㌱ㄹ㍤㐳搰㑢㤰㈵㈰〱昵ㅣ㐱ㅦ㐱㍦㠰㤶晡㑦㐸㐹戴㈳慢㤲㐵㈳㔹㕣㑡ㄶ㑢挹㘲㌹㔹㌴㤳㐵㉢㔹㕣㑥ㄶ㔷㤲㐵㍢㔹㝣㉥㔹扣㠴㌶攱㤵敤敤㑤〶搷户晥㈹㍢昷㕦㠵敦捤㝣挹㝡昴戳晦㝤晥搴㜷晡昷愰搱ㄳ挱愰愶㕤攳㌲㔸慤挹挵㤰〸晥摢㕡㉡㈰ㄴ搶㔱敢㤸㌵㌶㔶㍥㝡搸㜸搰㐸㜳㕡㌱挴㙦㘱㤴㐱戴敤户㥥戴慢攵摡㘵愱摤㙤㤳㠶㘷㌶ㄷ㙥㈴愸㥢慣搵慢㘵敦〳㥢㔷ㄶ㝣挳㌷て戶搷㌵ㅦ戲愱㕢〱㘲㘵㝡昲扥摢摢扢㕤㌰㉡㜵㜳攲㡡慤慡㍦搸㔶敤㉣戸戵愵捥戵㌳慥昹㝣愳㜶挳㠸㈶愰搴搶攴搹ㅢ㘶愹慡搴戸㠶愷㔶㙡㥥㔹㤵攱㡤㌸ぢ㜶改㤲改ㄶ㑣慡㐴戳㉣㔳扤㤹㔵㠱搴㡦捣㔷㌱㔱㐸㙢昹挳㔱慣㜵昲㡡て㘱㌶换ㄸ敦慡改晡敢㡢挶㔲挵摣摦搲㐴扤ㄳㄵ〷㕡搰㌳戵㔲摤㥢慡㔵㝤户㔶㘹慤㤹㈸慦ㄹ搰㌴攵㌳戵戲㤹㑡㈵㐴㈹㐰攱昶昴㘸㕡攲晥捥戲㈰㠴㠸㤰㤸㠲㝣㙢㉢摢㡤㥥挳散㌰㡢㡡㐹㥥㑣㝥㘴㡢㠷㜱扣愲㘳㘲㈴㌰㌲㈷摡て扥昴摥㉤ㅥ摢愰摣㝢摢㌸㤹ㅣち㘶㝦㜲捤慣晡愷㡤㙡戹㘲扡戱搶㑦攳㠸昴〱㠰昴㕢㔰〸ㅤ㔷㡦愶㑥扢愲慤愷㉦摢㘵㝦㈵戳㘲摡换㉢㍥㜰戰㤰搹㉣㤷㜶挳愵摦〴㤴扥㤷㘰〸㈰㤷㑢㘴昶戱㔱㈶㠷㉢㤱愶㜶㡡㤱攵ㄶ㐵捥㝥㉤戲摣㙦捤搸ㄵ摦㔴㑡㜹挰〲㐵㤴㔵ㄳ昲攵挹愲慥㔱㔲〶㘳㥦㌵〵㉥㌵散慡扦摥㤴摢つ㔲愲㤸㘸㔷ㄷ散㌸㕤㐰㔵搰慡て㘲㘴つ㑣搳愶つ攲ㅢ㐷㤸㠸㘲㄰㘳搹昱攴㔶㈶㘳晢ㄸㅤ㠱昶㔱㈶㘴敢挳㥤㜵〴㤹㝤㈳㤳戲㔳㐷㜹摣搵㘶㥢昹昲㑡㥢摤㡣㠵搳昷ㄳ摣㐲㜰㉢挱〱〰敤㕦愰攱愸攵㔰㙥扤昴て攰㕥扦㡤攰㠳〰搰㑦㍡㜵㑥愰慡攸㐳㙤挷㡦㘴扢㍣晣㘴㜱㡡㤵㉡愲㘷摣昰㌳昳㡥㄰㍡昰㍡㜷㠶慤㑤㠹㡤扤扢㌳㙦㐶愷㐳㡥㡣㘹ㅡ㥤敢ㄶ㑤愳ぢ挱愶㕤摡慤㍢搰㔵ㅦ㈶昸㄰㐰㑥晦㌰㈱㡣ぢㅤ摥敤㜹昴㜴㈹摦ㄷ㙥㤱㜲㠶扡㌴昰〱㈳㜳ぢ㄰愳攴㌶㙣㕦㜶㝤㘸扡㠳㈳搶晢摥㠷㍥搴㔹扥〳愲户搹捤㕤扢挳㜸搱摢昴愲敦㠴㜸㘹晦搰搱挶摣㠵㙡晤㙥㠲㝢〰摡㙣っ㜷摦㙦㌷㔲㈰㙥戱ㄳ愱摣㕥㐶㕤挴换㕤㕣㕦㌵挵〲昵㕢㡢㠶扢㙣晡㠸㘰捣㑥挳ㄷ慥戹慥㔹挱愶戶㉣〸敥㕦㙥㘹㐵㝡㌳㙥捤㈱㝥搷㐷昶摥ㄷ㠶㈱㤵㑡昶㈴摡㝣攴ㄸ㕦㌳ㄲ㜳㡡㜰づ㙤昰㠳㥤㤵㐴愴㔳㉢㝢戱㕦晣晥㜲㔷㤳㜴愱㐹敥挳戲敡昷〳㐰㑢㘸㍦攸愸㔱づ戱搹捦㐸戳㔶㡦㤵ㄱ扥㤸摤㐹㕢っ㜱㠳ㅥ改㔳〱摢㐹挴て扣扣㔳戰㥤㠶戲攸㜳ㄶ㑣户㠴搸㠲㕤㌱㜳㉡㉣㑢㔵戳慢㉢摥㈷扡愲愷㘷挳㝥㍡㈶扥㈶㝣搲愶㈵㘲愵㍤戶㌲㘶㉦摥㘴㉡㠶㈱愹㔴㘲㐲㐳つつ㐴捥㘳摢㕤ㄵ搳㠵㡡㜹〰ぢ愷ㅦ㈶ㄸ㈳㌸〲㤰晥㉥㌴捤㜶ㄷ㥥改戰摥㌵㠶戴㡢挵㐴㤶㘴㤰㄰攱㡤㡥捡敡㈸㕦昳㔱㠲㘳〰㙤敥て〳㤰㌱㡣㈸㈴㡦㌰愲愴㌱慣ぢ戶㜹㤹㍣戰挷㐲㘲㘹慡敥昹㌵㠷㤹愵扣㌵㕤㍢㕢昳愷㙤㙦ㄵ㤹愸㈱㉢㈸㍣戹㘲㔶挱㕤㉥㝣㥦㌶㕣㙤㜵搵㉣敢㔶愱㔶㠷㙡㥢㥤摥〹ㅢ㜳㉣〷㝣㐹搹㥢㈷㌵㕣摤敤㡦昱〸つ㉢㉤昱㔶㐶㘳户ㄵ晤收愶㙦愰戹愲㡢戶㕦㌱晢㉣㈵㜴㉣㘷㉤慣㈲㌲〷攵㕥㙢㜱挵㌵捤改扣㜵捡戵换ㄵ扢㙡㤲ㄸ昰㌱㤹慣㥢㌳㤷㤱㈵㔸愸㌱〷㔸慢收慤㐵搷愸㝡慢〶ㄳ㡡敢㝢㕢敥㈴㉤㤲戶㈶敤慡㠷搷〸ㄵ㔹ㅥ戰ち㉢戵换挸搸搶㥤敡㈹㘳搵摢ㄱ㔴㈱搳慢㑢㐸愳㈵戵㘴㔲换㈶戳摤搲㠷ㅢ昲㐴㠲戲㤷㈲㄰㕡㈵搲㡣㤹挷㔸㙦晡昵㐱㡥㠶㝥㍡挷搴㡦散㔱〳搹ㄳ慢㠵㈹愹晡㜱昶㜹〴攰ㄳ愷捥捦㌶㌳㜳敦㈸㘷㥤㘶㤴㍦㐶挷ぢ㕢㌴ㄲ㈱㡣搱敤㔱慣㐲ㅣ㌹〷ㄲ〸㡡昳慥㥤晤㜲㤶戴㈱昷敤㘹ㄶ㘷㤰㐹敡户收㡣㈵戳㠲㝣戴㘳昸㝢搴つ摤㔸挷愸㜸㐱摤㔴捤㜱っ戲ㄶ搹戲㔰㌲挸挱ㄳ㜵扦㜶挶慥敡ㄶ㠰昰㕦㠰㌲慥〰㘵㕣ㄱ㔴扦㜵㡥愹㐱㈹昳㔹戵㘵挳戵晤ㄵ挷㉥㘵㜹挳昴摤㡥攰㐹〸㌹㌵㙦㜸㠵㍡㘳戸捤㥢㍦て㤷捤ㅢ〵戹㐷愱㐷戹㜴㈴㍦㌸㌷愹㘵昰㑦敢㌲戰〴〵㈳㤱㔲晤攳㜸㕡㕡㑥㐷㐰攵挸昵㔶㜸〶攳慤捦〳愳㤴㄰愹ㅥ挳㈲㠸ち㐶㤴㍣㐳摣ㄹ敢㝣搵昶㐱㍤㔲㙣挶昶愷㍤㤰ㅣ〰㐵搹摥ㅥㄴ慡㐶㍡㡤㌴慣挲ㅤㅢ慢㕡捣挴敤ㅢ敢愳㜶攳㈳㥢㔴㉢㡢ㄲ㌱㈴㕢㌵ㄲ换戲挹ㄸ㜷㤲愹搱挴㜰㠷搶㐶㡢ぢ㥢㌶搷㥤㕡攴ㅤㄸ㈶攱㤹㠴晥愸㌰㡡搸㈸㝤ㅣ㘵㠶㙥ㄹ户㡦㘷㤱㐸搶㠶㝥㐰㡥戶㑡攱昲㐱㕡㜰ㄶ㐷㑦捡㘶㉥戸㠳㡣敦〹㡡昳㜵扦愵挶戸㌲ㄴ搴㑣㔴㉡昳㔵㜸ち㈵挳㉤敦㄰戱挶摣㤴㤵ㄱ〹敤搶〳挰㔳㜰㐵㠴ㄱ㘱昲挷㠰攱㕡㌳㍤ㄲㄳて㠶㌸㐲挸㈲㤹㔵㝡㘹㜹㉥㜷〳㥤攵摤ㄹ搳愸ちㄵち㝥㜹摡㕣ㄳ㜷慣改搱て㐹㠷挶慥㔱昴愹㙥㑤㉣㜹㌰敤㍥昵㜹㔰ㄲ㐱搷慤㜳っ㑦攱㌰〳搴㙦㔰㕡㈸昹㐸昱㌶ㅥ挰ㅤ挲捥愱㄰㔶㐴愵㔰攸愵㔱㤳㘶㘲㤸户㜵ㄲ㤴愱㉥愹ち㠵㙡挹昵ㅦ攳摡搷㕦收昵晡㜸㈲㉣〴づㅦ搳㕥㌱㕥〴㠸ㅢ捤㔰㔲㤲㠶挲挴戹搲㜰愲扣晡㐳ㅣ㕤㡤㍣㕤㍦搷挷㘹ㅥ收戴〶㈸㍡ㄵ㥣㜷昳㙤㔸搵捡晡ㅥ㙢戶㕡慡搴换愶㤸攴㔰㘷㡢㘵摥ㄱ昴㤲愳㠰㑡愲㘲搶㈵㔸㤴㔹㙣愹㌸㘵ㄲ愹㝢晦㕢㥦㐰㜷㔱㜶㜸㐶㑥㥦挲ㅤ攵㡥挹挸㤸㄰㥤㈴挷㌶㥣㔹愰慦戸户㜹㤸㐱づ搲㐱戵㙤㐰㔱愷捤攱㙣㕥㈳愳㉣ㄲㄷ㘹㌶㔷㥢慢搱㝦㡦愰㑥摢ち戵㈳攸㠴㜹㉡挵㤷挹挰㌱改㔲㐲昸㄰㘸㍤昹㑡扣昵昹攰ㅢ㐶㐶ㅣㄱ㡤昹㕥敥㠸ㄲ㔸㔵〸ㄳ㥤敦㘴搳〳搷㤸〹愶ㄷ慥㑦〳㘸㑣〹搳戹㐵㑢攵散捣愰扣戵戳㜳〷㕡挵㘴㑢愳㠹㔵收㉢㠷㄰扣〷搱㈰㔱摣㔴㉦搶㘰㡣晣㝤㜲㐸㉣㍣愷㌸攲㘰㍢㔴㜳昷户㈱ㄷっㅦ㐷㘱慡〷摡搰ㄳ攵㌲㕤㕦挴敡㜶〴㔵㜱㡣㐳戹愶晢摡づ㘸挹㥣攸敢摤搹㔶ㄱㅣㅣ㍣㌲㍤㝡摡昰㑢㉢〵㝦㕤ㅤ攲敡㤶㈵搲摦㐶㙣㘲搳户搳㝦㑥㔵㜹㈸㜵㡤㙢㥦扢㔴慤㕤慥捡戸搲ㅥ㑦〰㠲㐳㜰㥣戲㤷㠳捣㈵㝥㡡㝦㜲㈵ㄳ改㌷昰挴敤っ㥢て㘸〶㑢昸ㅣ戹㜲晡㉣扥愹ㄱ㠶昱ㅤ挳㉢昰攵ㅢ愷〸挸㉢晢摡㜸㐵㤴挱㉥戳㔴㤷摦㌵㘶搱慥㠳戴㘴ㄸ㄰㍣㍣㌰㤲㑣㘸㝦㠲ㅢㄲㅤ㌴〰攱昴㌹㐲㤰敦㐳昸㡥㈱㥦㈸昴攰搸〷て㠹晣晦愱㔴㈸搵㥢㡡搵晦㠲㔰㙢㝦〴㘲〸㤹㐰㤳㠶㕣㙡㝦搸㑡愶㜹㐵㈶㡤挷㐳㐴㤶ㄷ㠲〲㙦搲㑣摢扥慤〴㌹攷戵扢㌱㝤捦て〲晦ㅦ㙥㑣捦㠱挲扣㌴攵㑢㙢㜷愱摣㜰ㄷ㤲ㅢ摣〵㈶昵挵㕤㈸戰て戳晢捡㕤〸㘲㈳攷㠱搸摡㕤㘰捥㉦挶㈹㡣愴㘰㈳攱づ敥挸昶㍢㡣㥢㥤挶㠱㕣搳㐳㥥ㅦ〶捣㥢㐲愴敡㤶㡤攸〵挳㌵㥣〳㠲㍦攵㥡㌰㙣敥㈲㑥㜸㑢ㄷ昶㌸戸㘹㡤㜴摡㈴㠶ㄱ㐶摦㜷攳㉣摢㍢搷づ㑡愹㑢㠵昵戵慣㤶㜹〷ㄱㄴ㡤㝢㠸挴㘷昶晤晥愹㝦晣昴ㄷ挶㌳㔰㙢攰㔵晤〲㜰戴㐷㑣ㅤ㜷㤳捥愷㙦㠱㠴㙦攴㄰挹捤晣搱捥ㄹ晣㝣挹㕥慤㤸㤳㠶㉢㕥㤱愷㍢㘱㔱㌱㕦㠴㌹ㄵ〳敥〴㤷ㄳ㘷㈲㤴换㌹摡ㄶち㤵ㅦ㍤㐹昸㜰㌴㌲㜰㠹昷㠵㈹㐵慤愳㐱敢搲晢㑣扦づ㤳昴㌶〷搲敡㌵㜲㈷捡㑢搳㝥㈷戴㜹ち㤱㐸ㅣ㔵攴〷攵㌵ㅥ〹〸㌵ㄵ㜲ㄳ攴㤲攸挶㠶㠷〵㐴㔳㝤ㄲ㠵昴〳〰㌱㔹户昶昴㉦㘳〴扢㡡挰㙣ㅣ〸散昲〷㉥㔸㐵㔰㌱㡣搳㜷扢挳㘵㌸㈰㌴㑦㑣攳㡡㕦昳㈹ㄴ㘴㌳㐳挴㔸㠸㝤ㅡ㠵昰㑡ㅦ㐱㘹摢㈱㉡扥㈴敦愸愴㥣ㄲ散戴挳昸㕢捥㌹㔹慤攳㔴〸㙣㑤㐶㡣㐶㜵㉦搱搸愰㑡晥㑥㌵捤㈹ㄴ攱㠰㉡㌶㍡昵〵㔵戰㕢搵〳搸愵㈲㌱挸㕦ㄱ戱㝥愴昹攸㥢摢㙢㘸攷慡扤㤸㈰㍦昰挱㙥㡦ㄱ㙣扣㤵ㄲ〳㉤扢慤㔶㔹㜵㜴晣ㄹ㜴攱愴ㄳ㥡摥㉣捡扤挶晣㜵㈸㔹㍤ㅢ㝤〰㘶戶㐵戲㥥㘵㙦愶戸㕢㝣㠰㈲㄰㕢晡〰摡㜱昶挵㐷扦ㄸㄴ挴㐱㘵㙥㘵换㜴づ㔷〴ㄱ㙦㈴㜶㘴愳慣㑢㤱改㜰㔵㉡攰㠷慤慡㕡㌴㌸㘲㘱愹昶㘳ㄳ㡤扥昴㙦晢㍡㉡㐰收㡤搲搷愰㠲㍡昶㙦搵㕢攱㙥㌷戳㠴㡥晢捥搸㈵户收搵㉣㝦戸㠰㠴昰㌰㝦㤷㘶挱敦㤹搰扥搱慥搴敥挴㑡昴㤷搱攷散㍣ㄴ昶㔹搳㝦户昲㤴捣㍡㙣㉦换挱摦㈸つ㐶㔲㑦戴づ摥㑤搶ㄳ㜵愳㠲㥦戵捥㈳晥改ㄳ戵㈳㡣㥤㡡㐲户㥦摥攰搲攱晣搶攳㠸て㤹㤵㔱㈴捥㘴ち㑦㍦换㜵㙤㕦㠳搶戶挱摣㍣戶散㉥〶㤷㑢扦〲㥡㙥敦㉤慤㉣挳㜷昲搷捡㌹ㅤ扣㐱㠷㐶ㅢ挷户〸挶㌲ち㈴ぢ㍦摡㘳〴昸攸㉢〰攱㤵㥥㐰㘹晢〱㕥昶ㅦ㠲㑣〴㍦っ㘷㄰㙤愴㠲搰摢㌶戲攸㌶扡㙡㡣改㙥ㄸ㠳㌶ㅤ㘲㉦〵〵㌶搱ㄸ㌷愴㌰㙢㕦挳挲㕣挳〷攵㐴挶〱攸㉣ㄷ㔷搱㑣挵㈱搸ㄸㄷ攵㐲㥢㐵㐱摥㕡㐳㈱ㄳ㝣㌴㠶㈳〴扢ㅡ挵㜲昷㉢搸攷㈳搸㐱㙥㠱㔳昸攸㉥㐰扥㐷㍢㠷㉦㑡㐶㑥晢㌲摥㐸捡㈹ち昸挴㠱〲戲戵㐱㔹慦〳㠴㤷挶慤㡤捣攸㡢攸㜰つㅦ搶㘴㉥〳㜴㥥搱㑢㘸戶㜱㐶㜴㕤㘵㤴敢㐱㠱㌷ㅡ摤ㄴ挱㐶摦㍡ㄸ㥡㌹晤㌳愸搶㕦㈰昸㉣挱攷〰〶㐳㙢㌷昰っ敥㌸挳㡣㑡㡣㝣㥢㍣㠴敢㙦㠲敦㌷挷扦㝢㠳搷扦㡦㙢愲戲㔱搵㍡户㈲㌰㌲户ㄷ愳㜳晢㔹㘰㍢捦敤㜳㥢捤㙤昰㈲晡挸㕡晦ㅣち㔸㙢㜲戵捣敡ぢ㐱㠱㌷㠳㘴㙤㐶㠷昴㥦㈷昸〵㠲㕦㈴㜸㠹攰㤷〸扥㐸昰㈵㠰摣㘰挸昱㥡㌰㈱昱㈱〶攵挴㈰搹㑥摥昸㘵ㄴ昲㍤㠳㘴ㄳ㜹昶㔷㔰搰扦㑡昰换〴扦㐲㜰㤵攰㔷〱昲挹㐱㜲㡥㌴晣ㅡ㤱扦㐶昰敢〴扦㐱昰㥢〴㉦〳愰㈱㤹㐹ㅡ㝥㥤挸㔷〸㕥㈵昸〶挱㙦ㄱ㕣〳挸㈷搳攴慦㡦㜵㌶搴昴挳挳㕦ㅣ㈳昷搲昲搳攲㤳昸愹昰㍡てㄵ昴攰㉦㈵愴挵慢㐸㈵ㅦ改敥㔹愱㘷㑦愷㈰㝤ㄱ㘴㝡〷捦㈱戹㥡攱㕣㍥昱㈰㍥㔹挸㈵愵㐵㈸晢摢㐱㐱㈸ㅢ㌲敦㈰㜹㕢挸昲ㅡち昹㥥㌴昹㌷收㤷㘵攲㠰昳ㄴ㉥ㄷ㍡愳愲晦ㄹ攵㜶㘵㥤㈰散扦㈳㡣㑦㤰戰改攸㌳㘴扡㍣㕥愲㍤ㅢ捡搳改搳㑡户㘰㍢ㄳ㈴㍡㈱捦㉡㤷㐳昹攷㐲㙡捦㠴㡤晦攰㝡㌳ㄶ㠸ち㕣㄰㝡搵㤸㝡㐲ㅡ㍦ㅤ㌶㍥㠲㥦〴㑡ㅢ㍣㔹㕤㙦㠶㡤愹㑦愴昱愷挲挶晦㜶攴㐰愳㜱愸㍥搴㤳搳㤴敤㤸捤㤴㙣㉦㈳㝦ㅥ㘰〰捤搳ㄶㅤ戴㍥㑢愱挹愱㜲㘶愱㈲㉥㕡㍦㑥㈲戹昸㠱晥ㅣづ搶攱晣ㄱ慣戸晡㍢ㅤ戳㌸㜰㌷㙤昸〶㝥㝦扦㠶㔳づ慥㉥㜷散㥣戱收㕤㈰㝡慤㔹て㥢昶昲㡥㘲ㄱ昸㥢㈹戵扥㕢㘴㠱㘲昶㈶捤昵〸㌳戳㐹ㅥ㘰敡捥㍢㤱㑣㕥㑡㝢㉡愴㙣攲挵㈶捦攸慦㠳㌸戰㜹㠰㉣攸扦ぢ愸㌲㝦㍣㉡㥦ㄸ愴摡ㄶ㌱晥㍤ㄴ愰捦愹戰愹收戴〲㥥㐶摤㈲愶㔳愳ちㄷ昴戹〰捤敤㐳㑥愳㔲ㄷ昴ㄳ〱㝡扦愰㕦ち搱ぢ〱㥡愷㌳㜲ㅡㄵ扦戴㥥て搰昷ち㥡愶㐰搰㘷〳昴㝤㠲愶㜱㄰昴㤹〰㑤〳ち㤳づ㐸晥捣晣㌱挰㐰昸搷㕢㠶搷㈴㔸㤸搴ㅥ㐷㘳戱挸㔱昶搶慦戳挳户〰㝡㤰扦搰〲攱挸改㙦〰ㄳ㔹っ㡤ㄶ㐵㕥㌹ㄳ扣㔲㑤㥥㌶㐶搰㈷〳戴㥡㍣慤㡥愰愷〳戴㥡㍣敤㤰愰愷〲戴㥡晣搵㄰㍤ㄹ愰搵攴㘹慢愴昵㐴㠰㔶㤳愷挹ㄲ昴㘳〱㕡㡤㠴㐶㑣搰攳〱㕡㡤㠴㘶㑤搰㡦〶㘸㌵ㄲㅡ㍡㐱㥦〸搰㙡㈴㌴㝤㠲晥㜸㠰㔶㈳愱㌱ㄴ昴挷〲戴ㅡ〹㙤愲愰ㅦ〹搰㙡㈴慦㠴攸攳〱㕡㡤㠴㜶㔳㕡㍦ㅣ愰搵㐸㘸㐹〵㝤㉣㐰慢㤱搰戶ち晡愳〱㕡㡤㠴搶㔶搰㐷〳戴㡣㘴㤰㜶㐸㔸昵〶ち㘰㔵ㅡㅥ㘹昶㘰搰散㈹㈰戲㐹㉤晤㍡扥户㉤㝢㤴㡣㉥㥤收扦㐲㔷㡤〲挵㘷攸㝦ㅤㄴ㜸愳㔱㥡㘴㙣㠷㠳戱㡤戳挹摦戲敡㍡〰㐷愸晦ㅤ敦挸㠲搲晤㝢㐱㐱扡㜳㠶搲晤㔰戴晢て搸㐴㕥㡡㐲㡢㠳㌷挸㤷换摡晣㍤ち昹㥥〱扥改㐹㝣㤲㔷戴搲挵昲挵㡢㍦ㅥ㐸つㅦ㑣㍤昵㔸晦换㙦晥攵㡦慥㝥晦㤹ㄳ晦晡㤳㔷㕦晤晥㍦㕦扤昱㤳㍦㕤㍡昱攷慦扤昶㥤㑦㕣扢昱愳扤搶㌷㤳搷㝦㍣昷捤ㄷ挶㉥扤昰扣㜵晥晥㔳㉦㝣昲戹㈷挶ㄶ㙥ㅡ改改改敤扤㘷攸㉦㙥扤㜷昰挵攷摦搰晥散㠷户㔴㌵ㄹ㍣㕥搰㍡っ㑥㐲㠶昱㐳ㄴ㌰っ㡥昸㍤ㅤ〶愷㉢ぢ㜵㜷戰㔰㤳㐰搰㝢攱〰愴攲慥搶㡡扥晦〱晣㑢㡢㜸 | B27: 㜸〱捤㕡晦㜳㈴㐷㜵摦㕥敤㡣㜶㔶搲㘹㝤㜷挶挴㌶㈰㥢扢㑡戰慥㔴扢摡㤵㜶搷㉥〵昴攵㜴㤶㝤摦㉣改敥挰〴㤶搹㥤ㅥ㘹㑥㍢㍢昲捣攸㑥㈲㤴ㅤ㉡ㄵ㐲㑣㐸〲㔵㔴㐲〲愴愸㐰㔱㠴㑡㔱㔴㝥愲㔲㝣㐹愵ㄲ㈷挵て㈹ち㈸㈰愹㐰㠰㈴㄰㠷ㅦ㑣晥〱攷昳改㤹搹㙦摡㤳敦づ愷捡㙤敢㙤昷敢搷慦扢摦㝢晤晡昵㥢㑢㠹㔴㉡昵㌲ち㝦㔹㌲慣㍣戸㜱㄰㠴搲㥤㔹昶㕡㉤搹っㅤ慦ㅤ捣㉣晡扥㜹㜰摥〹挲ㄱ㄰攸㜵〷晤㠱㔶て㥣昷捡㙣晤㠶昴〳㄰㘹愹㔴㌶㙢愴搱㥦晣攵㤳㡡挱㔱㐶〶㘰ㅣ㔴愹捤攵愵㑢㡤敢㘰扤ㄱ㝡扥㍣㌳㜵㌵㘲戰㔰㉣捥ㄴ㘷收ち㤵搹㤹挲㤹愹攵扤㔶戸攷换㠵戶摣ぢ㝤戳㜵㘶敡昲㕥愳攵㌴㥦㤴〷㥢摥㡥㙣㉦挸㐶愱搴㌰换搵㘲㜹㙥捥慥搵慡攳㍡㌸㕦㕣㕥扡散㑢㍢㜸戵㜸㡥㤲攷愵攵愵㤹㡢㌲㝣戵㜸㘶挱ㄳ㉣㔷㍣搷㜴摡慦ㄲ㔳㡤〲㥥㕢㤱㑤㠷㥡㤰搲㜷摡㕢㌳㔸㜶㥦愰搱慡捣㉣〶挱㥥扢㑢愵㉥换㔶㙢㕤摡㕣㡥攱慥〴攱㘵搳㜷㠳㜱㤷昲㤳扥㙣㌷㘵㜰捣㍤扢摦㤴慤㤸㌰挸扡㔷㑤晦愲改捡っ㉢㤳㙥愴挳㌵㑢戶㐳㈷㍣㤸㜰慦〴㜲摤㙣㙦㐹㤲㘸敥戹㍤挷ㄲ㤹っ晥㑦㡤晣敡戰㤵㈹㐵㘱㍤敥昲戶改㠷慡㐵ㄵㄶ㠷搱昶㤸㡢摡㐵摦扡㘸㔲㔳〳愳愸戳つ挷㝤㔲晡㙤搹攲㈴搴攴昴〰㤱ㄲ㔰愴㠷㡥愴㤲敤㔰㉣㘲㉣㍥〹摣ぢ㘷搱つ㠰㠷㌷㝤〷摢摣㙢㤹晥㤹ぢ㑥㝢愱㜸收扣戳㈳㕢㡥っ挲㠵搹㌳ㄷ捣晤㠵㤲㤱〳㥤㌱挶ㄱ攳〰㈳ぢㄷ㡡挶〴㔱挷〰㐴收ㄷ㌸㜱扤慣㐹㤸慥㥢改㝡㈳㕤㙦愶敢㔶扡㉥搳㜵㍢㕤摦㑡搷户搳㜵㈷㕤扦㥥慥敦㠰㈶㈹搹搱搱㜴㕣扥晦戵㜷㍥晣昴㠹ㄷㄶ扦晣攳㐷㝦昶昱ㅦ㝥攳戸攰㈱㔳㘷㌴㡦捡敤㉣昵ㅥ搰ㄹ挷〱昴ㄳㅣ扡㜰愵㘸㥣㈴敡㕥〰㈱㕥挴㔲戹摣摡㍦㝦昰愵ㄷ晦攱敢㘷㍦㉣㍦昶搱攵㐷㍥愳㡦摦㠷敥愷㘲昱慣昸收㑤ㄸ㕣搷㤶㜱㠰昹摦㉢ㅦ㘲㥣㘱㝢捥慥搸挵愲㌵㔷㌰㑢愶㐶挱摤慥戵㜰㠷攳昶㌵愷㙤㜹㌷㤵昹㍣戸㘴〶戲㙢㑤搳㜱摦㤲户搷戶㠲〷㠶㜷㙥㠴㘶㈸敦ㅦ散敢㌲㌹㌴㙣〳㠷㑢〶㙡扥㌷づづ扢㙡戶昶攴攲扥ㄳ㜵扦㘱愰ㅢ㐷换㙢摣扡㜷搵㤷捦㜴㝡て慤㘸ㄱ㡥昸㠶攲㝤㘸㤷㔱㔷戴慥愹攵㙤㉦㤰㙤戵扣㘹昷戲搳摣㤱晥㠶愴ㅢ㤷㤶摡敡扤散㡡捦昷昴愵㌶㌶㡡ㄳ㙢㍤摣㡢戵捦敥㠷戲㙤㐹ぢ敢摤㤵㝥㜸戰㘹㌶㕡昲㜵㝤㈴搱㥣攸昸㤵㍥昴慡搷摣ぢ㤶扤㜶攸㝢慤晥㥥㐵敢㠶〹㥦㘲㕤昰㉣〹㤷㤰㘱㐹㠹搴挸㠸㄰愹㐷㠶㥤㑢昲つ㘶㤴㈲㝡㔴㑣て昱晡㝥戳㥢㔹挷敥戰㡢㤶愴㑤愶㑦扤〲㌳挵㤷㙣摥㜲㙢挲㥥㍤昱捥㈳昵慦摤㥡㕡慤戱愳戹晦㕦攲㜴晡㐴扣晢戳㌷攰㜷ㅦ㌷摢㔶㑢晡㐷摥搸㠲㉢㌲㕥て愰晤ㄴ㈷昹㤶搲愳攷㄰晢攲㐰扢改㔸攱戶扥㉤㥤慤敤㄰㌸摣敡搹㉣㐵㝢愸ㄸ昷〳㘵㍣㐰昰㈰㐰㉥㤷搲摦㐰愲㑣捥㜸㘳搴搶攸摡敥摣愳㌳㙥㌰搴つ㠲敢㍥搰摣㔵捦て㐶㐶㠶敤昲㜱㌳搸づ㘹㥥㐷㜶搲㜷ㅢ㙦㈲㤸〲搰攸㡡㕦昱挲㤸〴㔱㠶昷攲㠴扢㈲㙤ㄳ搱㠸㍡摤挲搴摣攸㠲㕢㤱㐱搳攰㑤戸㠶戳戲慦愳㠶挳㍦敥搲晡攵㝥戸㘲㠶收愸㡢㍢ㄵ㕡㌲㐰㌴慤㐶㐵㌵㡥㥣㔰戸㘴㜴㉥㙥㠱㐳㕥㔵㝢戸㡣㈹㐴挴〹〷〷攷㈵㌵ㄲ挳愳㌷㠱戵昳搶搳〷つ扤晦㙥挴㤵㙤㥤㤳敤捤㠳㕤ㄹ㤰㍣慢ㅦ㈹捡挱攳㐵㘶㤷㥡㡤㉢愱搳ち㘶戰搲㜳扥户户晢㙡昲㈱㉦攳㈱㠰愴㘸㍦㠰ㄵ摦晥㥥ㄸ搱㡥摥愰㙥敡昵㔴㤶摣㠸㌱㜸㉦ㅢ戴㔶㌰㝢ㄹ㍦慡ㄸ愷昱㤳㍢慡㑦攳つ㝥㈷㜱〴㑤㙦摣㠵㠴㌶㝤愹㈲愳慣㙡㐰摡ㄳ敥㌵捦摦㘹㜸摥づ敤改㤸㙡〵摢㔲㠶㡣㌶挶攲攸㑡㐵㔱㐲㡣㡣昴挵ぢ㍤㘱〹攳ㄴ晤㉤〰ㄳ㡢慤搶㔴挲㌱搰ㅦ〱㙡〴㜱㡦㍥㡤捡㥢㤶㌷搶ㄷ愷㙥㔴㡡㌳愵㤹搹晡捡晡攲敡收搴搹㝤搳摤㙤挹㤹晤㔶攰㡡㙦㐳〸扣收ㅦ扡昶散晤㙦㍥㜷摦愵て㝤攱攱㉦ㄹ挷㍦昹扦攲㕢㜱挷愱㌸㠳㘱㠳㡡㜲㘶㔰ㄱ摦〴ㄹ㥤ぢ敡晤挵㈸愰㙤ㄴ〹㘶〱攰㈲㤴搰攱㈱捡㔱㔳㌰昴愰㤷㌰收〸收〱〴攳てㄵ㉥㔵㔰㐹㡡昸㐷昰愷敡㤵晡ㄸ慢ㅣ㔶摦㘳挰收㡣㈳晡〴愳ㅡ慡搰愰挸っち挹愰㠰挴㔷挱㜸愸〰扥ㄲ㜷っ〶㐰ㅡㅤ敡ㅤ㕣㕣㙡㡢昶㔵㐷摥攴㐹㍢㘶㈳㔸㕥摥ぢ㐲㑦戹㠵〹㝢挵扢攸㠵㉢㑥戰摢㌲て㑥搸㜱攵摡戶㙣攳搲昶㜱㜷て攰扣摤㕤㘹ㄹ昶㠶户攷㌷攵摡捡㙢攱㔲㠷㌸㈰㐷㜵㥦愷〵捡摤摤㔳〸㌹〵慣〴㈵愵昱㜶ㄹ㜴㌷㉡㘴敦〹つ㔴㤵㠱攰㘴㔷愲㥢㑥搸㤲㘳戶扡㤶㔵㍤㙢㐳㡡㠸㠴慣㔱㝢㜳ㅢ挷㜰㘵挲㍥攷㍢㔶换㘹㑢㉡攳㘴㐴㝡㕥㙥㈱敡戹散〵づ㕦㐷ㄳ昶愶㙦戶㠳㕤㍡昰收挱昱扥㤶昲昴㥡扤攴戴〳㑣愳戴挸晡愴扤戱敤摤挴慢㜹捦㙤㥦㌳㜷㠳搷㠴㔶㜸㕡愲愲㔴㈳搲㈲㥤ㄶ搹㜴昶㙥昵愳慦㠰摢㝤摤㈷搰ㄴ㙣㌵昴㥤挶ㅥ㠵愶㈶攲㌹捦㄰㈸㍤愶㌴挶〷㠳敥扡㐷㡤〳戱ㄶ搷摢昷〸ㅤ㝡敤㜷搲ㄱ㉡戶㌹换㌱慢〰㑦㥣扢戲搶㝤㠵晣㔲改〴㡤ㄱ捤㙤〷㝤捡慤㐴㘶挴㐰㤰㔶㠵搳〹㙢㘰㙢搰㌴㜳戶愲愱㤵ㅥ敢㔶㔷ㄱ㌷㡣摢攷捤㠶㙣㈱摣㜱捤昰㔸搴㘰摣改㥡慤㈰敥㕢昶㕣搷愴搹昱搱扣搱㌴㕢㌲㙢㉦敥㠵ㅥ㕥愲㠶つ愰㙣㌳㐶㤹晢㐰㤹晢㔱㘰㘲慦昳ㄹ愴敡攴攵㙤㤹扥ㄳ㙥扢㑥㌳换〶㥦㉡慦〹㝢㠵て㘱㈰㥡㤴挴㥦っ㐶㍡㔱扣〱㜵捦攰㜱㐰搱㔱晤戰敡戴搰昱㥦戸换㈸ㄹ摥㐷㕤㉡挶攳攰愶㌱ち愵㍢㔲攵愵㈴㐷昶搲㜳挰㈸〷㈵ㄸ攴戲摢㔸㡢㉢㙣㘴ㄸ㘷ㅥㄹ㐲㌱〶挹㥤昷㑣㙢搵㙣㈲〱㌶ㅡ愷扦戲㔰㉤摤㡤㥦㘷㔰扢㡣㜷ㄲ摥㕦㌷ㅣ㑢晡㔹㈲㌶㤰㙢换㌰ㅣ搶㈳ㅤ攲㝡ㅦ㐹㘹摡㔸㜶搸㕣㙢〹慦㔳㜱愸搰㥢换㕢㍢挴晦攷㑦㔵摦捡㐰㈵㤷㔳搱搶ㄳ愸ㅡ㑦〲㠸㈹〰敥㘷㠰攰㍣㔰挶〵〰敤㈱㠰㐱摤昴挷㤷㠸㐲㤹㌵挹愸挴ㄱ㈳摦㉣愲㐴ㄵ㌲㙢㙡㈳㘳㍤愱慥ㅥ㐵戹搹㈴ㅢ愵㙦挰捡愵㤵㡢㝣㉣㐳㙡慡㈳㥤捥㐰搵晡㘰㥡攰搰戴㘰收㙥㐸ㄵ〳ぢ敥㑢扦〸㤰攳㘱〱晦晡㝡昱㔰晣㤰换ㄹ㤷㐱㤲捡〹挶㠱挹扥㥦㠰㡦挹攵㔴㥡攴㈹愰㡤㜵〰挱愸㠷ㄱ㐰捦㝤㈵ㄸ敡昰捥㑡改ㅢ〰㜷攲㈳〵〳㈴昵㡥摡㐴㐵搰㜹搲晤㜴捣昱㉡敡慦㙣㡥㡣愸㤴㌹㕥㡢㉢㙣〸㠶㔵挹㔶㝡㜴晣㜶愰㡤㜷㤰㠰㈱搷㄰㠲愷㐹昰㑥ㄲ㌰ち愳㥥昵摦〰ㄸ㑢攴户㜰㜵愸〰摦つㅡ〸㤰㤱㔸挲㜴戴㉢挰㍡搰挶㝢〰〴㝤戶㕡慣ㄹ㔷搸搰㜸敥〶捤改搰㔱愷㝦挸搹㍣昴ㅢ攱㐱ぢ㡥㤶㔵㥡㔷㔴攳㐱㠹扡㘱昴㥥㡦㤴㜶㘶昰捤摢ㄹ换㘷敤搸挹㠱㝣㠲ㅡ挶ㅥ晡ㄴ敤㔳〸〰㙦㌹㥥㡢敥㍥㉥㌸㠶㐵㙦〲㥣扣攰㌴㝤㉦昰散㜰㙡〳㠱挴ㄴ昳㌳㜶㉡㔵㔸搴㍥〱㡥㐳攷攴挶㌲㙤㘶㑦㙦昰扤㤲摢㘹㝢㌷摢㙡㌵㕡挰㌴㤵㤲搷攸㈸愷㘱攸慤捡㥢㈱挵㍣晤て〷ㅢㄲ㘰㘲㈴捦〳捣戶㡥〹㔳愷㤷㤷㤶搷敢㔵㔹㥥戳散㐲戳摡戴捡攵㤲㕤㘸捣㑢㔹㉣㤴ぢ搵敡散㥣㘵ㄶㅢ晡㔶㠷戴㌸㙢㥢つ慢搶㌰㉢戵㔲㜹扥㈸ㅢ㔵㙢㑥㔶ぢ搵搹㡡搹㉣挹㑡㐱摦敥㤰㌶收慣㌹㙢戶㙡㤷㙤㤰㕡〵搹㘰㈲慦㔸㉤㤵ㅡ㔵㌹㍢搷戴㜵愷㐳㍡㕦戱㑢攵㠲慣捣捥㈳㙢摦㈸㤷慢搵㘲慤㘲捥ㄶ收捤搹㜲戳㙡㔹㜹㍡ㅣ戵㠹敢愸ㄸ㍢〴㉤〲ㄷ㈰㑦㡦愳㍡ㄹ㘳ㄸㅥ挱㉥挱㌳〰㜹㝡㈲搵愹攸搵㐸づ㌲挸㐸攳㠹扥㕤㔷㐱㈶愲㈱㥡挲ㄲ㌲㌳㍡㉡㑥て㈴㝤づ戹㤸捥慢㔹搷改㘱戴攷愱摡摢ㅢ搴㙦㌹ㅣ慣㤲ㅥ㌷㔱㌱昶〱㜲㜹㍡ㅢ㉥㐸㍦〰㌸扥扣㔴挷㙢㉥㜹摦搱摡昵昷〲㝦て昰晤㜹㜸晤㌷㠱ㅥ〷㕡㜹㔷㈴昸〳晤㝤挰ㅣ〳愶㈷搴捡搳㡢㈹㤹㑤愳㘲㍣㑢㌰㐶㐰挳ㄲ捡ぢ戱昵㝥戶㤲㍦㝡㈱ㅥ㔰昱㉣㜶挹㘳㠱㝡㑡晦㙤㠰㕢摡扡㜸ㅦ挸㘸敦㘴慢㡡戲搷㙢愸慡挹㝦〷ㄵ搸㉢㥤㤱摡敡〷㔰㠹散戵㘶㥡戵㙡愱㕣慢㤵㘵戵㕣㙡㑡戳㙡㔶㉢つ扢㍣搷㈸捥ㄷ攷攷㑢晡敦㜶㐸㘷㉢戰愴㘶戳㔱戵㥢挵㜲㘹捥慡ㄵ愴㉣捤㔷ㅢ㐸㉢搷㑡㡤捡扣晥挱づ㘹愵㙡㤶㡡挵昲㝣愵㕣㤹㉦捦㕡㠵㕡愵㕡慢搹㡤㑡㜹戶㌶㍦㕦㥥慢改扦搷㈱戵㉢ㄵ搳㉣搹昳挵㠶㔹㉣搷慡㔶愳㕡戳㜱㕡散㐶ㄱ〷愸搰㉣收改㍣搵㈶㥥㐷挵昸㄰挱敦ㄳ㝣ㄸ㈰㑦敦愹㍡晦㠰愸㍦㈴昸㈳㠲㡦〰攴改㔵㔵㈷㐹㡤晥攱㠲づ㤴㌶㉢慥㐳㙣戴㈷㘵ㄷ㝦㑣捡㍦〱挸攵改㐳㤵戰㍥㡥捡㌰扢昸㔳攰㠷搸挵㥦〱摤㙦ㄷ㥦〰㘶搰㉥摥〳㥣㕡㥢戲㡢㑦愱愵㍥づㄸ昷愰㤶㌷㤳捥㑦愳㌲㌱愲搱摤㍣㌶㜰㐶㠶㠷昶搳㠳㌹攵戳挸ㄱㅦ㜰㙢㈳㠸㘹愲㐸㈰㤳㝥昴敥㜸昱ㄴ敡㘰挵㍦敤摤㄰搹㉦挱㠷搶摥昵攸攴挸㙢捣昸ぢ戲扥づ㔰ㄸ戶挴愳㍥㑦㤱挵扤敥㕡㠰㤳㠸捦㥣㥢摥㘲攷ㅢ搹㍤挹〹㥤㑥㔲㥤愷扢㤸挵㐶㠰㠷㘴㈸㤳㘱㤷晣捥㌸愴づ㜱㍢愰㘳㥡㠹搱㝢扢慤㥥㐸敡㠱㉥㜶慤ㅤ㈰㠹㉦慤㠴㘳㠰戰㈲㤳ㅥㄱ㐳㤳ㄷ昱搷㌰戸㥡㠴挱搹昶㥥㥢挵ㅥㅥㄸㄲ㐹㉥㌹愱㝡㠹㘹攸ㄷ㠶つ愸㝦ㄶ㐰㕢㌸㜵攱㔴㔱㝢ㅡ㥡戸㠳㐹晡㈵捦㈹㔹㜲挶攷〰挵づ〰挵㉦㡣㉤㐰晤昳〰㤸攵㈹捣㜲ㄵ戳っ㝤愷挵㕢㘱ㄴ㐸挱攰㡢挴㥡㜵㜸づ㝥㉢换ㄹ㕦㈰㙢摥ㅥ搱ㅣ摢愸改㝦〵㠰㌹搶㑦ㄵ挵㍡收攰㍣㍣ㄸ㌹攳㡢㠰㠲ㄷ㑣㐴捣㉢㑥晦ㄲ〰㠸㉦㠳昸㘲㑣㑣攳捥ㄹ㝦つ㈸㜸㘹㈵攳〵㉦㉦㌶㌸戳攰㈵挶〶㠹挵㌳〰ㄴㅡ㝥㔲㤳扣〹㘸㍢晣敢㈹㉦扤㌵㙥扣㉤晡捤挶扦昹昸昷攴摢㈶㜹㝤愸㤱敦ㄲて㝤㜴㔱晢昷攷晥晣ㄷ㝦昹搸改㑦㝥昱攵昸昷戹㘸攴㘱㑥㠲搷挰㌱晣つ㘶挷搶戰愸愱搹戱挷攳㡥挱昴㘰晥晤攰愲摣挸㤷㔱㤹ㄸㄱ㜴昴昴ㄶ㘲ㄵ㈳㜸㐴搵愹晡ㅢ㘲㥥〷㠸㈴昹〱搴昴慦〰㐰㤲㙦㠷㈴㤷㐰㤷㐸㉡㘷㝣㡤挴㜴戳ㄱ㌱晤扦晥户ㄱ昱㌵㄰晦㝡㑣ㅣ㠹晤敦㐸㑣㜷ㅣㄱ昳〶搰晦㍥㈲扥〲攲㐷㐱㥣㐸㍡㘷扣㐰㘲晡攲㠸㤸㜷㠰晥㑦ㄱ昱㍢㐰㍣ㅦ㜳㡥戴晦つㄲ搳慢㜳㘵㐴〹㝡昷㘴㤹㠲㕥㥥つ愵㔰㝡晢㘴㥡㐹扡昰扢㔳㈸晤晥摤㈹㤴晥㝢㤸㐲㡢㔸攱㔰㠵ㄶ攲㡥㐳改捥㑦㠳搳搰挳摣㤳㡣敢昹㌴㍡〹㜲捤㘶㤸㌲㘶㐷㘸㍡㘹㠴攵㑥慢愵㈲摡㜱㘴㈶㝣㝣㥣㍣㡦㈴ㅣ昲ㄱ昸㔶ㅦ㠷㌱㐸捥昱愱㤷扣㝤つ搵㔲ㅥ摥扥攴攳㌱㍣㙡慦〵㐸㥥㕡㔹㝣㕣〹㐳㝣摦㝦㉤愴㉤昰挶挸㔰攳㝣㤴攳㠹㥡ㅥㅡ摥摦㠷敥愱㥥㉡ㄲ㘱㔷ㅥ挹㌷挷㌴ㄳㅡ㜷㤷㐷搵扦㠹挹㝡㥦愰㔶㑦㥡㉥㈳㘶愰收㈸㉣晢慤搴换㕣㌶挳㑦攳㕢昸搱扦つ挰て〷㉡敥〳挸ㄹ摦〱㈶㑡㡢愸慦㝢ㅡ敦挲挱つ昲搱戵㑡〹っ㝣㍤ㅣㅢ攳慥㤳㤲愱㉦㍦敡㈲愱㑦ㅣ㜵敢㈶晦戵㔱搶慤户㘴㝢㉢摣敥晣ぢ愳㔱昵㉤搲昸㉥㠸㌸㤵㍡㘲昴摣攴㙡㝣慦ㄷ㑢ㄷ慤戰摦敦挵搲ㄷ㉢散扦昴㘲改愱㘸摤晡扦〲摣㕡㘴愷㠶㡡散摦㌸昰〷〰晤㈲晢㈱㌰㍤㈲ㄳ㜴㜴ㄴ㕢㔲〴㥤㤹㕡捡㡦㔰改㙣㠶㕥㑢㘱㝦摣㡢㝤㈱挱晥愴ㄷ㑢㍦愴㘸晦愳〷慢㔱㠵户㙤㘳〲挴㈷㜰ㅡ攳㝦攵戵㠴ㅣ攰㜴㡢晦挶㙢㔸㑡愹㍦攵晡㥦ㄸ㉡㘸ㄸ攴㘱晣㔷㕣㘱㘳㤲敡㘱㈵㑢㘵㑥㔲㉤摤ㄶ搵搱㙤㔱つ㥤㤶愰㈸戹㝣攳愷㐴㔳㠲散㌳㝥ㄶ㔷搸㤸晣㔱摣㠸㜸㔳㑡㥤昱㤳㤴㑥户㐵愹㜴㕡㐲㉤ㄷㄸ攳扦〱㤲㤲攷戲改挱㡤ㄷ〱㜰㐹愹㠹搹晥ㅦ㠰愴攴戹〰㐵昵㜳㔴昰㔸㐹㔸〸㡥㔲㜷摡〹㤸〶敦戴㈵㈰戲㜸㡥㈷挳〵㐷㈸㡡攳晤ㄴ㘳晦〷㌴㄰挷㔲 | D27: 㜸〱攵㕢㝦㜰ㅣ搷㕤扦㜷扡㕤摤㥥㝥㥤敤㌸㠹㥤㕦㈲戱㘹ㅡ㌹挲㤲散摡㈶㜵㙤改㘴搹㙡ㄴ摢㤱㘴愷挵㑤㉥慢扢户搶搹㜷户昲敥㥥㉤㜵〲㈹㘵㈸㤴づ㤴㠶づ㙤㡡㑢㍤ㄹ㘰㑡㠷ㄲ捡㌰愱挳攴ㅦ〶㘸㈱ㄳ㘶攸㌴っㄴ㑡〹㘹㑢㈸愴㈱㑤㠱〶ㅡ㈶㝣㍥摦摤晢愹搳搹㔱摤ㄹ捦戰ㅥ㝤敦扤敦晢戱敦㝤㝦扦敦㕢挷㔴㉣ㄶ㝢〳て㝦昹㈴㔸戸㜹㙥挵て㜴㘹㌸攳ㄶ㡢㍡ㄷㄴ摣戲㍦㍣敥㜹昶捡㑣挱て扡搰挱捣ㄶ搰敥ㅢ㔹扦昰㕥㥤捣㥥搷㥥㡦㑥㐶㉣㤶㑣㕡㜱戴㔷晦搲搵㠲挵㔱㔶〲愰ㄷ扤㘲昳㤹㠹㘳ぢ㘷㌰昵㕣攰㝡㝡挷攰挹㜰㠲晤㈳㈳挳㈳挳扢㜷敥ㄹㅤ摥戹㘳㌰㔳㈹〶ㄵ㑦敦㉦敢㑡攰搹挵ㅤ㠳挷㉢ぢ挵㐲敥㕥扤㌲敦㥥搵攵晤㝡㘱攷搸㠲扤㙢敦挸慥摤扢㥤㝤晢昶昶㥡㤸昹㘸㘶攲戸愷ㅤ晦㙡捤搹捤㌹㡦㘵㈶㠶㡦敡攰㙡捤㤹挴㥣㤸㜲搲㉤搹㠵昲㔵㥡搴㈰㠱挷㈶㜵慥㐰㑥㘸敤ㄵ捡愷㠷戱散㈶㐲愳戶㘷㜸ちㄴ捦搹㝥㤰搱挵攲慣㜶戸挱摥ㄲ㘹愶㍤㕤捥㘹扦扦㜴㘸㌹愷㡢㔱戳㥦㉣㥤戴扤愳㜶㐹㈷㔸ㄸ㈸㠵㝣㥢捥敢㜲㔰〸㔶晡㑡㈷㝣㍤㙢㤷㑦㙢㜶㌱㑡㠷㉢㠵㝣㈲愱ㄲ㠹㔸搷㕢摡㉤㐶㜸㌳㍣攵攵㌲㡢戶ㄷ㐸㡤㕣ㅢ㘹搷户㐱㐲㘴攱㑤换愲ㄴつ戶㡣㈲㥢收ち愵㝢戵㔷搶㐵扥㠴㝢ㅢ㙡改㈴㌴〹㐹㕦㈳㑥㜵㌷㘴㡣敡㠹㠴㥦㕢攱㕢㉣㡢㈰〵㘰昶〰㈴昶㑦㡣㡣㔹扤挴昵〱愸挴慢搰㥥挶㌱散ㄴ捦摡昱散㐲㍣㥢㡢㘷昳昱慣㡥㘷㥤㜸昶㜴㍣扢ㄸ捦ㄶ攲搹㌳昱散㔹昴愹㍥挹敥敥㜸昴㉣㙤ㅢ晢昲攷扦㜶昱挸㘷摥昶㘳ㅦ晤散敢㡦㝣㕣㔱㘱㐴㜳〶㔰戰搲〰收〶㠰㕢收摤挰㉥づㅥ昷㕣敡搰㘰挶㉤㉤ㄵ㌵搵㜴㜰搲づ戴戵㤱㥤㌷〱㈸昵ㄲㄶ挷〵㥥晥㜴戹晢摣愷㝦㜵敡挹㡦晣攸挵㌷㕥敥㍥搷扢ㄹ捤昷㐷㍢㥤昴散ぢ㄰㤷扡㈴㐲晤昸敦昲㉡〸つ㜴㜶㍢㝢㥣㤱㤱晣敥㥤昶㤸㙤㤰㔶㔷捡昸敢搰户搷㜹愰㔰捥扢ㄷ㐴ㄲ㝡㥤愹㐲㌱搰㥥㔴〶ㅣ晣㠴搲㉣昵㍥攷搰㌲捣㐰㉥ㄴ㥡敢㥣㡣昶〲愸㑦戰㔲㤷愴㥢㈷㙣㕦搷慢㐳搱摣ㄳ㙥愵㥣昷㙦㙡摦㌸ㄷ㠰㘲㕢㕢摢敡㤳慣ㅡ㌶〷搵搲扥㉣改搶搶㘱㈷敤㘲㐵㡦㉦ㄷ挲收㕢㕡㥡愱㘴敥挲摡慤㔳㥥㍥㔷㙢㕤戵愲㜱㤸攱昳㌲昷慡㕤㠶㑤攱扡〶㌳㡢慥慦换戲扣愱搲昱㐲敥慣昶收㌴㡤戸捥换㔶㌷戳㈹搲昴愱㘳㘵㙣ㄴ扡㥢扦扤ㄱ㑢㐲敢㜲㕥攷戱摥㈵㔰㜹㘵摥㕥㈸敡敢㥢扡㠴敦㐴挳㤶㈶昴㤴㥢慢昸ㄹ户ㅣ㜸㙥戱戹㘵㍣㝦摥㠶㜵挹摦攷收㜵㐲㥥㔸〸㔵慣慢㑢愹搸㥤敤搴㤴㜳晢㔴攴〶㈱愱戹攸摣戹㐱㠸搸戹慤〱愸捤㡣㐲㠳㤰戱晦㕢㍢慥愴㔱〸搹㝢㘷挷摥㙤㠴㤴㠳㙥㙣㔶扣攱㔹昰〷㝣㈸㙡㙡㘵㝣摢摡㔳搶攵昲㌲㉢㙤攰ち㝤㌶㝢㜷㈰㥡㑣㕢㤳扤ㅦ㙥攷㜸㝣㔳戴晢㐳攷攱㐳㡥搸攵㝣㔱㝢ㅤ㈳づ挵ㄵ㔹搷ㄳ摣㐰㜰㈳挱ㄶ㠲慤〰挶㌷㘱摦搶愴㈸㉤愸㕡㔶㉢挶㠵㐲㍥㔸㌴ㄷ㜵攱昴㘲〰ㅣ㈲㤵㘴㤲攴晥ㅥ㙣㝣ㅦ㙣散晢昱㥢ㄱ㕢㝢㌳戰搶㉤〴户〲愴㔲㌱昳㌶晣挶ㄲ㈹㙢㄰㍦收㡦㄰㠴〲㤹㔲〶晤挲㥢昷㕥っ㡢㉣㜱㤶㠸㘶㝣愳〴㥦散㜷㜵戵㈳挲ㄱ摢㕦っ愸㝦ㅤㅢ挵㑦摤捥㐹敦〰攸摤〶㜰昴㠸㉥㐲㝢慦㔶㈰㘴搰攳㕤搶攱搲昳㕣㕦㥡㕢㈹攷ㄶ㍤户㡣搸㄰晥挸ㅥ捦㈱慡昰㤵㙤㤶㘶摣㑣㈵㌰㑢㐷ち昸改㉤捤敡㈵㙤〷ㄹ㔸攷愰慦㌴㠳㠸㐴捣攷㜴㝥搹㈸㠵挱挴愴昶㜳ㄶ愳㡥㘹㔸愳㘵ㄳ㈵㤸搷摥ㄲ敤㡢㕥づ㌸㜵㜷改戸㡤愸㈵戰搰㘹㐸㐶㠵㈵㡥散ㄳ㕣㜵㜴㉡慡㘱㠶戴ㄴㅢ㘶改ㄱ㐴㌸㔳㡣〲〳挷〹扦㥢㠸㘰慢攲㥣〸ち㐵㝦㌸㈲敦昰愴㡢愸㔴㑢㜴㑣戲㥢㈶攴捡散挸慣㔶晤㘶搸㜲㉣户㄰㑥㡢愵ㅣ昶摣捡ㄲ㐳㤷慢㌵て攷㡡㔹摢〱㍥昵㥤捦摣戳晤㤳㑦扥ㄱ晤㍥ち捤㤱挷㘲搰㘲㔱捣㔹挵㡦㍣搶㥤昸㐹㜵㙡㌳ㄸ〲戵㌵戰㙢㐴㔸ㄴ搴摥ㄲ㜶㍢敦㘹〹ㄹ㤳㔲㔹㔹搲㝤愵〷㕣敦散㠲敢㥥㈵昳晢愵收㉦㙡ㅤ㌰づ敢㠹挲㑥㤶㤵㔲㕤㕤㑤〱㔷㐳挰挶〸捥摣〱搰㌷㕥㉣づ㔶㘷昴捤扢㠱敡㠲㈳㌱㠷㔱戸㉤㌳㌷㍢㍥㜸㝥捦挸昰搸昰㘸㜶㜲㜶㝣㙡㝥昰搰戲捤㈰㙡㜸戹攸㤷搴㤷㐰〴㐶㑤ㄷ㍥昶挱愳㑥晣晢㠷ㅦ晢挲摦捦㙤昹晡昷㤷搵㕦㐵つ慢〲㌵㠹捦㌰戵㌵㐲㌰㑡㌰㐶戰㡢㘰㌷㠰㝡〶㐳㘹愹㍥〷㔲ㅦ㠴㜸㙤㠶慤昹㌶て㕢搶ㅥ㠲扤〴晢〰㘰㙦㠴ㄱ㌰㌷昷愰㙡扥ㅤ挰ㄸ愴㜱㑥㈹挵〸㤰ㄶ挷摡㑦昰づ〰㐵㤵愳㙥挶慣〳〰㙢㌲㤸㘱攳㙡〶㑦〰㥢戲㍡戴㈹㠶㤱㘴戲㐵愲㕡㈴愳㐵ㄲ慡㍦㡣㈸戱㡡㐴㑦㐵つ慤ㄱ愷㐱晢摤慡㑡ㄲ㡣搷㝣㜱㠳㤷敦㐷㘷搳㌹㔱㉥〴㝥㡦㌳㕥〹摣愹㐲㌰改〷扤づ〰㡡㌲㘴慢戸慤㠶㐱㐳捥挹㠲扥㌰て㘱扡㙤㜵ㄳ捥㈹㤹㡡ㅦ戸㘲㈵㙥㕤摤㍥改ㅥ㜵㠳挹㠲扦㔴戴㔷戶戵㘹づ㕢ㅥ㔸搴㘵挴㔱ㅥ挲愹换㜵㜲㤷㤶㜴扥捤ㅡ攷摣㡡㤷搳搳㤳搷㐲㈴愶㐲㜳ㄷ㠳㐶挱搸愹敤㙢㐷ㅥつ㜴愷㌷㡥㐳ぢ搵㍡ㅤ戹㜸㔳㙢〶戳挰捥㉡〸扣㜵ㅦ㡡㤰㝢㠳摥扤戳㠸㌴挴㜶㌴㔹㈹〷㙣つ㜱㝤搱攱㘱扡散ㄷ昲㍡ㄵ搵敥㉢㤴晢愳攲戱㑡搰搴㘲㉦㙦㡡㕡㘰㉡㡥㤵挱晡㥣敤攵慦〵慥㘰㘳㜸㐲㤶㈸ㄳ晦搶㐷攸㜰㥡㔸散㤵㙡㜲攷㤵㐷愱散㐷㠱㈶慤ㄹ㐴戵戵摣㌵㜵㐴愱㈱㌴愶㠵敢㈳戹㙢攸㈴㙢昷㘹扢㉣㕣㤸ぢ昲㤳晡㝣扦昴搰㄰㜰愴〷㡡㝡㔳㜳㔵ㅣ戸攵㡣㉦昸㙥戱ㄲ攸晥㕡㐹ㄴ摤㜲㘶㜵搱收㌱愷户㔶㍡㥥ぢ㜰㄰慣捤挷㈳捣戵挳㈱㔰㈴ㄱ㜱㐹〹㥦捣づ挲摢扣〹敡搰㍡戹ち㥦攱挸昳昲〱昵㠹挷昹晣昶㠱㔸戵㤰攲ㄳ㌳ㄸㅣ㕦昹㌹㠶㥡戴愹㝡扣づ㉤㥣ㄸ慦摥㉡㡥㐷㠸㍥㐷散ㅥ昲〴捣っつ㔰㜵㡡㐸摢〵㠵㥣㕤㉣慥昴㍢搳攵㕣戱㤲搷㌳昶㠲㉥㔶㙤戶敢㤵慥ㄱ㝥㐹㕡㌳攴㔵〷扡㐴㠷扢㘹攴㌶慢愷愶㜵㥢戹㤸㜵っ㘴ㄵ㤷㡢㌹㔲搶晤愸㤱㌵㍣戲扣改㐳㈳㝤晥挶㝡捡㐳ㄲ㙥㌰㙤慢㔰戴㘹㡣愴㙢攷㑥搱戸㠶㙥㌳敥㡣㡢㥣㐰扥〱㜵愴㄰愲慥ㄹ扤ㄲ㌶㤹愶戹㕥〷昳换捦扦扡攷敥搱㔷てっㄸㅦ晡昰㕤ㄷ戶ㅥっ㜵攳㕢〸㡦㐲攵攰昹慥㌵〶㙦〸㐴挴昷㡢ㄱ㘴戴㌵㐰ぢㄶ〶づ昳㠵愰愸㝢ㅣ㘹㤷㜲㤲㉡㐱㙡㜶㍢昳㡢㠸㘷㈷晢㥣挳㕥㈱㕦㉣㤴㌵㠳㄰攴愸㤸攴㥣搱愷㤱㑤㌹敥晡〵㘶攸晡㥣㜹捦㉥晢㑢㍣戶攴㔶㌶㌶搵㠴㔹㠶㌳㔱㈸㐳㠱挲㜷戲㍣攰捣㉤扡ㄷ㤰㡢慦㤴捡㠷敤㈵晦㥡㘰ㄴ㈳搷昰〹戵㉡慥攲㜱㤵㡣㈷搷敢慢捣㔹捣㜶㝢㜳㕥㜳㉥户愸昳㤵愲ㅥ㥣㉤昸㘷㜷っ㥥㉡戹晥㠳㠸ㄹ㘲㌱挶搷㜱㠲㠸愳㍣慣㜷㔰㙢㌲㌳㑡㜹㔱慤戹昴愶㡣㜷摢㠳㜷敤扥㐳㤲て㜳ㅣ㌳て昰捥挳㈷愶敢㠹搲ㅦ攸扥挲㘰㝡愱㠳挷㄰改愹㘵㘵㤸慢攸て㈵㡡㌸ち㤸㈵㠲挱㕡慢㤴愶ㅣ改㐳㠱㠵㤳㘵㜷ㄶ愷㜰㜰敥㠵㝤㠰㠵㐶挲〱愶戹㍦慣㌰敡㉢搹㐵㍦㙡㐳㍡戹㘴㔳〲㈹扤㜳㌰敦㍡㈹㈱㌸っ㡥攵〰㠸㤸㐶㈸㝢ㄹ㈸㝢㔹㔰昰摡捣戴㑡㤹㜳戹愷㙤慦㄰㉣㤶ち戹㈴㉢捣㠶㕥ㄳ愲ぢㄱ㤲㐳㍥〸捡㐷攴ㄷ昱㙣㙢㜲㈳㍣㡦㠳摤挳㌸㘲㤰㜴㘴㍦〴㍣㉥慥㕥慤㌳㡤〵昱ㄵ㥦㘰㥤挴㙣〶昳㐰㡣㠱攵㘹㠸搳㠰ㄱ㕢愵〶搱挲㘶敢㠱愸挰㑡㠲㤹㥥㡥㈹〶㥥昸㔳㌳慥㥤㥦㐲挲摣昵扡愳晢戵㈴㙦ち㘰㜹扣㌴搳㑡ㄹ愴㘲㤱攲㍤㡦㜰搹㑢ㄲ㌱㠷㠴㑤㠲〹㈹㌳攴㈱㘹ㄳ㌳㡣㥥㘴扢㜷㑤㔷攷摡ㄶㅤ扦ㅢ㉦ぢ愷㔷捤晦搲晤㝢て㜰敤愹㤴攴搸摥㠵愲昵㙥〰挵㠴ㄵ昷搳搲攱㈷搸攱ㄴ㠰挱扣㐵慢㤶慣㤹㠲攱攴㐶㠹愹愱㘴㠹摢㐱㔴㘲㈲㘱㠴ㄴㄳ㐸㘲昶㈴㤹愲戱摥〳昰㤷捦㍥换㌳㜴㑣㌱挷㔱㝤晦换攰㐷㉡㐵攲㔹㌰㌴㌱敢㈱㜶攰㠹㕥㜲㡦攱戹攵㘱㔴慢攷ㄶㅢ㐵昸㜴㐵㔳挴戳㑢昵㘹攰㈴㈲敥〵愰搹㡢〹〱㐶摤㘴攸攵㈲㌸挵挴〱愳戸㤸㤵㈳攰扢㈵㡣搰㈸㜰㌲收ㄴㄸ㑡㠴捦㉢㙦㑣摤昸㌷㡦㥦晡敡㡢〷挳㠹晦ㄹ戴づ〵㠸挹〵㍡扣㤸㥣昲攵摤㉤搶㔳㌱昵㐰ぢ㙡㥤〶㔰捣㐱搰㌰搵〴戵㠰戲〹挲㜴ㄶ㔴收㉡挸㕦敢㑣㔴㘰㐵㤱挴㔵攲愲㠸㌵〹昷捦愲㘸ㄵ〱ㄴ㔳ㄸ㙤㍡㤴搸愱捣づ昰摡㌱㑡㠰攵〲搴㤸㌶㠱㑡㜵搸扦挶㌹慦㌰㙤㠹ㅤ捦〱ㄸ㍣㕤㕥搹㘹㤶〳搳つ㈹〶ㅡ㔶㝦㠳㜳㝦挵㉥攲㝥昳ㄸ攲摣㠰愸㙢挱㜲㈵挲搳㐶敢晤㕡昳戵㈷づ敡戲㠵㔳て㜲㘷慤㌴㘸敥ㅢ敤捤㘷捦昵㥤㐶㔲挶㉦㈱摦㜳㘵㙦愱㐴㜴㥦㘷づ㌷㥢㡤㈵昹㑥ち㐳捡昲〹㈱搲捣〲㠸〸〵㈸搰敢㌲㤹愷㜸㕥ㄵ㙣〵㠵敡㘳㌰戶敥攰昱㕢〲㜹㡥摦㔴户㑦昴㐴㐳㐵㝥捡搰捥戰㌵㍢晥昳ㄸ慡ㄸ扢慦㕡㠳㘲㑣㈰搸攵愸㈰挶㠷㜶晤戲慥㠴晥〷㈹ち㌸㤵戹㘰愵〸㐷捥㈲昳㥥㘱㠹㤶㉢㙣挶愲㕤て㠷㤷㐴敢〵㐷㙤㉣攳㠲㥥敢㕡㉥㤴㘴ㄸ㕢攸戳㡣㥦〳㡢搶ㅣ捦ㅤ搴戹挲㌱㝣捣昷〲㕣㜷㕦㈱攷戹扥敢〴㠳㜳㠸㔹〷㜹挵攸攰昴㌲㙥晣㉣㘶㙣晢㑥㙥㉣㔱收愷〰挲攸搴搹戲㝢愱㉣慢㌱㝣摥戴ち扤扡扢昹ㅡ㥥㘹攴戹〳㔴㑣搳扦㜱戰昵〸㐰㕦㔷㥡づ㠲㥤捤㥦〴搸㥥㤹挸捣㘶㜷㡤敤戳㥤扤㝢㐶摦㌶攲㡣敤ㅡ搵扢昷㡤敥㜳㐶㐷戵摥扢㜳捦扥㥤㡥搶㘹昱㈷攸㙥晤ㄴ㐰㥡ㅥ㐴㕥昷㈸㙢㜴㈵㔲㘳摢〰㍤〰摦㑦㈹扢慡㑦㥡㝥㠳㜲㘰晥㌴㐰㝦㘶㈲摢㄰㝣㥡敦〷慥ㄷ㌸㜱慦戳戸摢㌴㝦〶㤸つ挰㌴㝦㔵㤱㝥〸㘸捥㔲晦昶挰晡〰慡敡㘱〰㥡戶㤴㕡〱〷愸㝡散㤵戲㝥㥥㄰㉡㘴攳㔷㜶昹㐱ㄴ㙡㉡戴㔰挵晥〲ち搵㐷攵㔰㤲㈳敡㠷㔰㔰昴㉢㌲戲愹捦改㉡昶ㄷ愳㠲挱㕦㝡〴㡡戹昲戰〰ちㄷ捡㌱昳挳〰㙢㑡㡣㕡㐲㌷㑡㑤㌳搷捦㘰㡣㜰晤㈳㈸㠰敢㜴っ㝣搲㜴づ㝣搲昴〴㝣搲昴〶㝣〶攸〸㌸换搵攷ㅤ摤〷改㘹㍥〶搰捡扢㕦〱慥㤹㜷ㅦ〵愶つ敦攸㝦㠴㜷〳㈸挸㌷ㅢ搶挷㔰㔲㌴㜳㐲攱㡦㐷〵㔶搲戴㜵戴㜳搶攳〴㥦㈰昸㌵㠲㡢〴㥦㈴昸㜵㠰扥㜸扡㠲ㅦ㍥㑡㉣ㄲち㔶ㄵ㐳㙣㥡㌶㐸㈸㜹〹㠵扥㉥㠳㙡㜴捦摡改摣〶愹ㅣ㠲戱㙣扡敥㍦㠴敢晢ㄵ㌸搵㔸ㄷ㘲㐱㐳㘴㌵ㄱ晦昱昵捤㐵㔷㐴㐶昱捦挸㠲晦㍦挰㍣愴㔷摤㔲㜱㐶㐶㐵搶ㄳ㥣㥡㕡摤㌶慢搲改㈳㈲㑥戱戹㌴敤㐳ㄳ㜱㔱㍡敦㡥搷㍥㘴摡㔰搵搰愱敡㈵敤昶㍡愶㥡扥慣づ㍢收搵挶攱捥ㄱ敥つつ㐳扣搲摤㕣慦㌵摣㌶摥㔴挷㈲㔷㡤っ㥡捥㔷㘷昴ㄱ㘳㈵攲㕤敡慥㜶挴㡥㙥搴㜰㠹㔵㥤攰㔰戹㔲愲散摣搴㈶〲㥦㈸〴攲挸㐴㘱㉤ㅡ㔱昳㌷〸昶㙦㥢搸㌶㌲㘶㥣〲㉢摥挴㕢㥡㐹捦㜷昲㐹㔹扦〵愸㘸㕦㌹ㅦ㔱敡〳〰㝤昸㙢扤㉦㍡㠹づ㙤慦搴㑥㐴つ慢慥搴㘸搳㐴㕦㝥㈷㉡㠸扥搰戰㠹扥㝣㤶㉦昹㕤㠲㈷〹㝥㡦攰㜳〴扦て〰㝤愹摡㌱㈵收㡤つ㔵っ捡戱㌴つ㥡攸换ㅦ愰搰搷愵㘸㠰愸㌳敡㕥慣㈷㡢㍦㤱慤愷㠸愱昶戶摢搲㔴戴昲㔵㔷㘰㠷愲㠶搶㉢戰㌴㌵㕦㕥晡㌴愷散㔲搴㜹㜹㘹〶㈳戲昸ㄳ㙢慥㘸〵〴㍤ㄱ愱㌷〰㤱㠴㕣搰㌲㐸挳㜸搴㜰㍤㄰㈹㜵戱㡡㍥ㄸ愱㙦㄰㌴慤㠷昴㍥㄰愱敦〴㈲㠹㙢ㅥ㕡ㄴ㘹㜸㐷搴㐰挷㤹㌲㉥〱戶㤵〹ㅡぢ㝦㌸㑣〷搴扦㝥愲㜹㌳ㅣ〶㉤㍤㑥昸昱ㄱ㤵㕤㉥㕥㡡攲昱㝢㤱ㄹ昰昰晤搱っ昲㘱挸〷攰换扣挸换㈱㑦挶ㄳ㕡昵散㘹㐹㑤㉣㠵㜳捣挳㘱戴摢㤹昶㤱㜵换㈷㜱扢ㅦ攰㝢戰昲戵㄰㝣㈳〶㑢搰㈸挲㉣昲慥㉣摥㌶晣㘱㕣搳㝡㔶㙤㐸㉤搶改㔱㑤㉦挷㤹㔰㔸㕦攸㙤晥〹㕥㌶㔰晤㥡㜳昰㍣㉤㡦ㅦ㔷㙦〷㑦挵搱晥摢攸ㄶ㔱㐹㈴㉤㘲搶㥦愱慦昹〵㉥ㅥ昶㐳挹㍥㜰㐲戴扥〸㑣㤸㡥愰戸挷っ摡搲搶㡤㌱ㄸ㥤攲㠸㤶㑦㘸㝡㝡戸摢搸㜷㝢挶㘳㉦晥收㜸㠲愶愰㤳㈱愲㘸㜷㤷戲㌶㍦㈳㑥㤶戲㐵㕤㍥ㅤ㉣搶㍥ㅤ挶㘹〰摦㑤㔸㝦㠱㑥㝣ㄵ晦搲搴㝢搱㤶㘷㔰㠰戶㔰攳㐵㙣㜷㐷㘲ㅢ㙡ぢ㙤㠰愰㜷㐵㘸㙡㑢㑡搱㉡〸㝡㉣㐲㠷扡㐲㍢㈱攸搱〸ㅤ敡ち㉤㠷愰㐷㈲㌴㜵㈵愵㘸㑢〴扤㌳㐲㡢愶㈸摡㡣㑢昸㌳扦〴戰㥡〵挳攸扣㥡〵㕦收㠰攷〰㥡㔹昰搷挰㌴戰㐰搱攴㤰つ㜳㡦晦搱挱晦ㅤ㝢㜰㕣㍤㡤㡡慣攱慤搱ㅡづ㜰挴摦〲ㄸ攴敡ㄵ㡢ㅢ捤攷㍡て㐱㕦挱㔰㐵㔹ㄱ㝢晣㜷㈸㔴㤹㌴㐰㡥ㄱ㥢㈴㌳ㄴ㌹㈵㙢摤摥戸搶慦戲㠹摢攷㝡慤㝦㘰㡤扢㤶挹扥㠶㐲㙤㌲㙥敡〱㈲㤶㔵敥攱晣挳て扦㌶㤰ㄸ摣㥡㜸搷挱摥挷㥦㝦收㠵挷㥥㝢捦晥ㄷ㕦扦㜸昱戹㙦㍣昶散敢㑦㉦散晦攲ㄳ㑦晣改㍢㍦昵散ぢㅢ㥤㑢昱愷㕥㥢戹昴挸挸搹㐷捥㌹㈷敥㍡晣挸扢捦摣㍦㜲㝣挳㔰㔷㔷㜷昷㕢㌶晤昹㡤㜷愶摦㜷敥昳敡㡦扦㜲㐳㔹挹㐶昰〲敢ㅦ〱昸晥㠷敥㠰愰㜱㐳㈲㘸捦愳㘰晤ㄳ㐰㕦㝣㠰㡢晥愱慥㐵攸挰ㄷ扥〰挰戵㙣〲㐸㤳ㅥ戲㤶慦戳改ㅢ〰昰㘵㕣慤㈰扦挹㝡㤷㝡ㅥ㍦㐲收慤ㄱ㤹㈷㠰㐸㈲㍦挴戵㑢挳㤶愸㈱つ㠴昵㉦〰㘹扥㐵收昸ㄶち㤸㠳昳㑢搷敢㥢收㠸㈹扥㔳ㅡ㌶㌷捥昱ㄲ戰〶㕦摦攱收愴㙥摥挴㐳㤷㜸㕢㑢㐳㤷㉡㌱㔲㤱愸挵㉣昱㉥愳扣㈱㍡愰て搵晡㙣慣㘱㙡㝤晢㙢㈸ㄹ戳㈵㑣㌸昲㕢㌸㜶ㄹ慡㑦扡戹戵㐵晡㘳戳摣㙦散昶㜶挱㔴攸搲慡ぢ㌴搱㉤愹慥戸㘳㌲晣㈰昱摢ㅣ㠵㍦㘵搵㑡㔲㔵愴户㠸晡换㙣㈵扤㐹㌸敢摦〱戸㈲㔵㉦㐹㔵㤱戶搲晦ㄵㄴっ㑥㜶〵㑢ㄱ㠹㠱㥦㡤晥㠳挶㥢挹㘹㝣㠷㡢㤰戵愱㘰扤ち挰㐷ㄴ㤸㙢攴〲慣敦〲㈸慥㠷敦戱晥〳㠰㑦ㅣ㝦㑡㠶愳㘰晤㈷㙢搱㕦扡㍡㡤㤲㤱㙣晥慦挶收敡っ㘹づ攲戶慤敦〱攰挸挷㕥㔲㝦㑤敡〶搱㜷慦捤戲摡捤愶挴摣㍥㌹㤸攲挰㔲㜸㕦㈶㐲㠶て㉡〵㕦㤷㤰㐸散㌶ㄲ㍤搴搴㌵ㄵ愲〸〷挲㘲㑤晥㝡愲㈶ち散㥢ㄵ扥㙥㙣㠹㝦㌰昹户慥扤ㄹ扥㈰㤴扤㉢敢ㄵ〹摥㝦㘳㕡㙥ㅡ㤲㔴㉦㑡摤㈰ㄱ㍢㜸㠴收㡦㄰晥摦ㄱ敥㝦㐰㥤ㄴ〹慥慣㝡㔱敡〳㈴㈴愵摢㙣扤㍤ㅥ㘰㑦㑡戹㔹㑤慤昷晣ㅦ㘶戹㕡㙣
A28: Decisioneering:7.0.0.0 | B28: Decisioneering:7.0.0.0 | D28: Decisioneering:7.0.0.0
A29: CB_Block_7.0.0.0:1 | B29: CB_Block_0 | D29: CB_Block_0
A30: 㜸〱捤㔹ぢ㜴㔴攵ㄱ摥㝦㌷扢搹扢㐹㜰㐵ㅥ㑡㔵㔶攴搰㙡攲㐲㠰〰㔲㔳㑤㌶て㐰㐸㘲ㄲ㐰㐵摣㜳㤳晤㤷㉣搹摤ㅢ敥摤扣㔴㙡㔵㝣戴愸㐵㑢㉤㉡㔸愹㔵㔱搴搶户昶㠸愷㐴攵搴搳㠷敦㐷㝤㥤㐳挵摡㔲㤴晡㌸昵㠱㑡攷㥢㝢㌷搹摤摣㡤㐸改㌹㕥搸挹晣晦捣㍦㌳晦摣㝦收㥦晦扦づ攱㜰㌸昶搳㠳扦㜸ち㠰ㅣ摤搲㙦愴㘴㈲ㄸ搲攲㜱搹㥥㡡㘹㐹㈳㔸愵敢㙡晦挲㤸㤱㜲ㄱ㠳㈷ㅣ㈳扡攱づㅢ戱昳愴㌷摣㈳㜵㠳㤸摣づ㠷搷慢㌸㐱户㝥晥㜴㐳挱㈸愵〰㠰戸ㅣちㄸ㤴㐲〰㉦㠱㘲㠵㐰㙢愸扡戱㙤㈵愹㙢㐹㘹扡㉣ぢ㉣㌱㠵㔶㤶㤷〷换㠳ㄵ搳㘶㑦て㑥㉢ぢ㠴扡攳愹㙥㕤㔶㈶㘵㜷㑡㔷攳㘵㠱愶敥戶㜸慣晤㜴搹摦慡㜵捡㘴愵㙣㥢㌶愳㑤㥤㌹愷㝣㘶㐵㐵昴攴㤳攷ㄴ晢㐸㜲㔳愸㝡㥥㡣㜷㤱扣㐳㈵戵㠸愴㌶㠴慡㥢㜴ㄹ㍤㔴㌲摤昰㔰㜹㡤㙣㡦挱㤵㔲敡戱攴㡡㘰愸㥡晥㘷㜸㠵㕡戳㠳㡤㉤㉤㌲㘹挴㔲戱㥥㔸慡㥦扤㤹㘸㙣㙦㕢愲挶扢愵㈷挱㈶㜹ㄳ㑢㔴扤㐱㑤挸㤲挴㘲㐳㌶慢挹ㄵㄲ㉤㜷愲扥㍢ㄶ㈹愰㔷散㍡挱㑥㤱攵愴㘰㘳愸㍡搴愱敡㈹ㄶ〹〷㑥戵攳㘶㑤挱っ㔳㜸っ昷挲㍤愲挸㕡㐴搰㠹昷慢ㄴ〳㤴㄰昰㡣㈲㜰㐴挶挸〰てつ㤴㡢㠲て㘸㈹㘶づ㠴㈴㘷㔸㜵㠶摢㥣攱㜶㘷㌸攲っ㑢㘷㌸敡っ慦㜰㠶㍢㥣攱㤸㌳扣搲ㄹ敥㈴㥥昴攳㉤㉣㜴㕡捦㤹晥愵ㄷ敥摤扢慢晥㤶扦扤慢㙦㤹昹㑣愱挰敡攳㘵攸㈷㐴㌹㥣㠰㘷㌴〱ㅢ㐳㘶〸昱ㅥㄹ〲㘳㕡ㄶ敤戸昵搱㈹㍦㥣㝦㡤㙢敡㈹㕢㑢捥扦㐴挰攱㉣㘵っ愴㡣㠵㤴㜱昶㔲㉡㠴昸愷㈵攵搲㈳扢㤶㌹㡥㕥㔳㝦㕤愳㍢搹㕦㝥㥣㈲戰晥㔹捡㤱㤰㜲ㄴ愴㑣戰㤷㌲㑢㠸㜷㉣㈹愱㕢搶㥣摤扣攷ㅦ戵て搴ㄵ㉥晤晣捡㔷晢〴〲㠸愵ㅣつ㈹挷㐰捡戱昶㔲愶ぢ戱搳㤲昲挲㘳捡㘱扦慤〸搶㍤㍥昷挹愶㌹挵换㙦㄰㠸㐰㤶ㄲ㈰㐴㌹㡥㠰㘷ㄲ〱ㅢ扦捣ㄴ攲㑤㑢捡㠲㙢㔷㐷㔷扦晥㤷㥡㥢换收戶㥤改ㄶ愳㡢㈷搳㤰〶㕡㌹挱〶㤹㍡㐴㘱收挶㡡㌹昰㤵ち㙥㜷挲㕣攸㌵搲㘸㔷㄰〵昳㤳ㄱ搹攷㈱㡣愲愳㌸ㄱ搲㤲㈹搹㤷慡㔱㔳㙡㘱愲㐹搵㘵㌲愵㄰㔳㈹㡦㌲㌱㡣㉣攱扥昴㘸㥦搵㈲〹㝥㐶㌳愴ㄴ㜱㠷㈹㐹㔰敡㜴ㄵ㤸搰敢戱换愱昳㔴愳㈳愵戶挵攵攴㥣㠰㠲摦㈸㠶ㄷ愷㘲㜱㈳㐸㈲敢㜵慤扢ぢㅥ㍤㔴㜲㄰挵ち挲捥㌳㠵〰㘷㝣晣㈵〵愷㈹摦愵㍦㍥㈶㉡㈰搲ぢ摥て捡㄰慤戸㤴ㅡ㘴㘲㡤㤶㔰㘳挹㐳昴㜲㡢换㐸攸ㄹ㔶㡥愸搱搵㕥捡㜷㐳愲㈹搹攳摦搷㈷㝣捡昷搱㡡攸散㘸㜹㜹愴㘲㥡㍡㐳㜵㈳挱㝣搳㝣㠵㔰㉥㑥㉣㡤㈵㈳㕡㉦㈷戰搱〹捡㑥㥣㤴㕡晢扢㈴㜷ㄵ㐷㕢㔵㝤㠵愴愴愸捦慦ㄹㄳつ㘹扡㉥攳㙡㑡㐶戸〳ㅢ攳昸散㑥愳㑥搷ㄲ攸㍦扡㕡㌵攴㔰㜲㉣㡤㥡㡡慡戵敥㘴挴昸㡥㍤戱㈵㐵愲㈷攴搲㠶㠴っㅢ搶㐲ㅢ㠶㌴搸搲㘳㜳㠷昱攲慦敡㡢㤹攴㘳㜲挸戴㘵㘸㙤昹愹㜵扡㕣㌵㐸ㅤ㘶㔱ㄵ㔵〷㍤ㄲ昴㘱戳㌴㐹愶㕤㤴攰㌵㐳㈶搹扣搲㐴㔳慣扤㔳敡㉤ㄲ戵㠵㡣昰㔴挷㠲㈴㈹ㅥ摢愵㔱摡〸搷搳㥥ㄵ㤹㤴搹ㅢ慤敤㑢㐹㡡收〸搹㑢㝢㜹慡扦ㄵ㤱㌴㉥㡢挵搴㐹㠴愳戲扡敢戴昶㙥〳㔱慢㙢昱㙣㑡㔵愴㐷㈵㥤㤱㐵㕡㐴ㄶㄴ㌸㕤㡥〲㐷〱ㅥ〷敤㤱㉥ち攵㘹㌹㠱捡ㅢ㌲㘴ㅢ㤹㍢㕦挶捡挱㠶㌵攳㠰〶㘵㉦㉦㡣戳㑢ㄹ㠳㘵㤷㌸㌲㍢㔶㠲捤攴㍤昲㔲㕣㈲㤰㥣戹ㄹ㈵挳搰愱㔵〳㈵戶昹搴㥣㔱㠶捦戰㙥挱晤扤晣㔳㘱戱㠳㉢攳晦换散㜴ㅥ㘱捤扥戶㠷㜲昶㍣㌵ㄹ㠹㑢㝤㘴㝦挱㈲攵㈴㠰㈰挰㔴〲㍥㠷晢㔹捡㙥㜹㍤㠹ち㐱昴㠹㝥㜷㙦㉣㤲敡昰㜴挸搸㡡㡥ㄴ昵㔱㔹敢昵挲捤㥦㔰㍤㍢㡡㝥ㄷ搳晥㝤㈳敦㤹攵搴慢㑣㈷攰昳昹ㅣ㥣㍦㍤㍥㘵㈶戵㍤ㄵ〴㐶㘷ㄶ㌹收㉡昱〹㠱晡〳㥢㤵㠲昲㘳㜸捥㥤㐳扤扥㤱㘸〲戵ぢ昲㥣㜲ち㐰㈵挰て〸昸ㅣ㘲㍢㑤て㔳散愰㡡敢ㄹ摡㡦慥愵㈹㍤㡦㈲㕣㌹つ愰ち㕣ㄹ㠶㠶戸敤㄰㥣〰挱㠰㔲㘶戸㐵㜵㘰ㅢ㠹㈶㔰〷戱㐵ぢ㈰攰㜴㠰㠵ㄸ攴㄰昷㕢ㄶㄵ搳慣摤㘴捤㉣晡挵搸愲〶㜰㌵㠲㉢挳愲㌳愸敤㘹㈶攰つ改㜴挶搰㘳㉡㌹っ㐵ㄲ㍢っ㌵搲㜰昳ㄶ㔳慦㑦ㄹ㠱㈶㔰㘰戱㜹㘷㐱挰搹〰换〰捥㈱㈰挴㉤㤶㠹ㅢ愹戶ㅢ㈰搳扥愴摦㝢㙣攲戹㘰ちㄳ挸㌴㔱愵戶愷㡤㠰晤摢㐵㉤挶挶愲ㄴㅢ㙥慣愴㕥㥦㌲〲㑤愰㡥㘳㘳㘳㄰戰ㄲ愰ㄳ㠳ㅣ㘲扤㘵攸〵昴㘶昱㜳㤳挱扢搹搰〴戸㤲攰捡昰㘵ㄷ户ㅤ㈲㐰㝦搹愲㐹㠴っ户挸愰㕥㥦㌲〲㑤ㅣ㐷ㅣ㙣㔱㉦〴昴〱昴〳㥣㐷㐰㠸㑢㉤慢戶ㅥ㐶㙥愳㥥㘲戲㙡㍢㕢㜵〱㤸㔶ㄳ挸戴敡㐲㙡㝢㝥㐴挰搶㝤〵愸㐶散〲㝢戰㜶㐲搱敢㕢愸愹㤱㍡戵㥤㑥㡡㠵搶㌹搱ㅢ搲ㄲ㕤㔴搱改㝥㜰㠶㈸㥦搳㍥搱ㄳ㡢㐸摤㡢㡥ㄶ㍡愸ㄶ搰㌱搱昰昰㙥㐸㜳㜶戹挸㝦㐵㕥㍢㕤昳搳戲㈶㕢㔹㈷昳㈰㍣㝦㤸晣㍤㘷捣㌹ㄵ昳昵昹㌸㈵㕣㐴愸㜲㌱〱昷㐹〴扥昱づ㐲㕥㜴㡣㑢戴㜴㘸扤昳㈸晤㐸挳㍣㠶ㄹ〸㠷昱挳扢愹昴㔴ㄳ㐷㜱㝦扤㉥愹㘸搰㕢㘹敦攴㌹㘲挴〴㕢ちて㥡挰〹㍣㘳敢㉡㡤㉥㠹挹㕥ㄴ㍣ㄳ㠷㤳攸ㅣㄹ敡㌶㔲ㅡ㔷捡挷づ愷搷㘸つ㕡慡㈶㘶㜴挵搵晥挹㌶㘴㤳戲戴㐳㈶㘹扦搷㘹摢晦㍡㈶慤慢㑢㐶㙣㙣㙣搱扡昵㜶㌹扦收摢㔰㌱搰㥢㌲ㅦ挱挵㠲昰ち㡦㔳搰㜳㜰㥢ㄵ㘷㈹挷昹㘳敥愹摦㜹摥㥡㔳㍤㔴㠲〸㥦㑦戹㠴㌴㔰㑣扢戱㠹ㅤ㑣㘱㠱愳㜷㐹㔶㌹㍢ㄶ㤷〲㡢攸㈲㈵搶ㄵ㤷搵慡㑥㡢㕢搳つ㈵㤱㐶捤挵㤷戱㜳㤹ㄱ昳㙤㜰㌸㔵㘷㘶㕤ㄶ捣㕦㤷㘴ㄸ捥敢㄰ぢㅡ戵㠰ㄸ㤳㔳㐰昱扣换㐰㌹戸昷攵扥㠰ㄲ摦㌷㌴㠴㤲戶愳戰〷㠷搱㜰搸攱㠵㔹㜸㠴晢㝣ㄲ㘵㙢ㅦ㑡㤲㠲㈴㉥㙦㜸㤴慦㌳愹昵㈶搹㜲户㠱㌳〲〴㉡㠵㠵㤸〶捥㜸晣㔴㤸㑢〷慢〶㔵㑦愹㥤慦捣戳摣攰敤搲晣〸㤵㔵搶㜵㔲㌱慥㤳㕡㜵挹㜷㐶㕥㙥㤰ぢ㑢ㄲ㑢㌵扤戳㑤搳㍡㜱挲ㅥ挵㉤愳㐳捡ㄴ敥㜷㡡ㄲ收㈵ㄵ㜰㕡晦㉥㔷搶ㅤ㡥攵㜷㄰㑢挹ㅥ摥㠱㍣㤷ㄳ收慡搳摢戹㈵㝡㘹晥戸㙥改晤挵㡦ㅢ愲捥㝤昵搷敥㜸扤攵愸户昷昵㠹ㅥ㡢戰晣敡扦换摡挸㜳愱〷ち㉢㕦㙥摤搱晦愵ㅢ㠵搷〱ㄵ扤愸戶づ㡢づ收慦搶㔸㉡㉥㡢愲收搲〰敥㡤㔲㐶愲〳㐹愴㌰摡摡㐱戳慥㈹㠹搶敢戱㐸㍣㤶㤴㔸㍡㜴搴挳㕤搸㐲戹㠲づㅦ㑤ㅡ敥摤戴㘴㐹戴㔵㔷㤳〶昶㥢㘴㝢晦攸慣ㄶ㐷㡢㍢㕡ㅤ㑢ㅡ愴㠶㜳㈶昰挳愲㐸改昴收扡ㄳ挹㝡戵换昸㌶㠴ㄳ慤㤳昴㘳㈶㌰愷㜰㍡㠵搷改㍤挸㠸㜰㜸搶㤲扣㤲㡣〸㥣ㅢ愰戳㠹㤳㌳㥢ㄳ㔵㌲㉡〱㕡㤶㐰て晣㈰〲㉢㡢昹㘶搳㍡㈱扡散㌶敤挱㤳ㄲ愲㑡戹㤲㠰㐰ㅤ捥〱㜲㤵㠵愰㈱㔰㕦愳捡挸搹戶慦愶㉥攵愷㘰㐰㔵㡤慤摢㍥㈱慦㈳ち捤㐱愰散㐶㔲ㄶㅡ㉤㔱愴〲挲愹ㅡ㑡ㄲ㠶㘸戶㠹㐶㠱㈲ㅤㄱ㘹㐶挰㝡挲㠶㈲㘰㈵㡤戱㡤㠰㤸㐵㜸㙤攲㌵㥦㙣ㅣ扤㘶攱挳ㅢㄷ㍥戳捦扤慢㕥㥣㐶攳ㄱ〵づ捦〶〲㕦敦㜵㔱㐵㙣昰扣㜲㍤〱㠱摡㥦㥤㜳㠳㠵戰㜳㔰敡摢㌸攷㐶敡㔶㌶㠲ㄱ〵㝥㝥攷㙣㈲㉡㥣㜳㍡晤㘵攷戴㤱昵㐳捥㔱愹㤵捦㌹ぢ㘹挸㤰㜳㌶㔳㙢挸㌹换昳㌹攷ㅣ㡢戰㘲㑢戲㜰搵㤶敢敡㝥㜳捤㤴㡤晢摦㉦㕣㈵ㅡ㘸扣改㥣㕢〹㍢㌱㙢㐹戶㙡㈹㌵ㅥ愰昲㄰㕦ㅢ〲愸昵攲ㄲ㔱ㅤ愰㝢㐱㉡捦㠷慦㔷搱㐸㌲搸㜳户ㄱ㈲㜰㐶㘱捦摤㙥㈱散㌹㥣㐲㙣㍣户㠵扡㤵㍢挰㠸戳㐷㝥捦摤㐹㔴㜸づ㠷ㄳ昶摣攲㉣捦戵㡥攰㌹ㅣ㘵㠶㍣㜷て戵㠶㍣搷㤴捦㜳㡤ㄶ愱㙢昲㡣ㄷㅥ㜹㙢攳扣㍢㘷㑤㕤㝦昷ㄷㄷ㙣㄰攷搰㜸㥥摤㝤㠴愴ㅦ㠱㤳㤰改捦晢〹㥢㍡㠲㍦㕢摡㍢㘴愴㍢㉥〳捤㌱愳戳㉣戰㉣愱ㄹ换㙤㥤㡡㜳ㄵ㍢昵〱㐲㠴ち㐰㍦攵㐱ぢ㘱愷搲敢戰㜳敡㐳㘰㝣ㄸ㡣㌸㈳攵㜷敡㈳㐴㠵㔳㔷搲㕦㜶㙡㝤㤶㔳敢㐶㜰㙡㈷つㄹ㜴慡㜲㌹戵捣㥤慡㍡㥦㐳慢㉣挲扡挴㡢愷㝣㜱㕢戰攱挶搴㉥㙦昲㤵换扥ㄲ〹ㅡ㙢扡敥昷㠴ㅤ㐰㥣㈶㠹㡤ㅤ戳㥤㄰㠱㔳ㅣ㍢㘶挰㐲搸㌱㌸戴搹慣戶㈷愸㕢㜹ㄲ㡣㌸慡攵㜷捣㔳㐴㠵㘳㜰㤶㘳挷捣捤㜲捣挹㈳㌸〶㈷扦㐱挷㜸㥥愶搶搰㙡慢挸攷㥣㤹ㄶ㘱改搸攲晢㍢昷敤㥦㜷㘳换晢攳㉥ㅡ㔸㕤㈶昸〸㐹㌲㤴㍦ㄳㄸ㘵晤〴づ㡥愶换晥㐲搸〹㈳慣戶㤰㘶愴攸ㄳ摣㔹㡤戵㠱㘵㤳敤搷搹㙡ㄲ挱敥㝣㠶㄰㠱攳㈷扢昳㔹ぢ㐱挳㝦ㄱ〱ㅣ攱㍣捦ㄱ㌸㍣㔴ㅤ㌶敢㤹㜴㔹攴㜹㥥扡㐷㔱㜷挶ㄵ㤹ㅦ㐷㍣㡣㔱㕥〰㈸㈱㈰㔰慣戳昰㤷㉣〴つ挱㝢ㄱ㈱捡换〴搲㡦晦㉡挲㔰摤㈹慦㄰㈸㜱昹慦愶㍦㉣づ㈶㈸㔰攸晦㘹扡敢㌵㜴ㅤ㑥㐰㘰昷㘱つ㙦㔸〸㙢攰㠴づ㥥㌷〹愴ㅦ㍦ㄲ㍢㙢㜸㡢㄰搲㠰㈴㥥愳〱㈹㥤扢㜶ㄲ挲㕦戳挴㈶挲㔸挳摢ㄶ挲ㅡ㌸昱㠱㘷ㄷ㠱昴攳㐷〲㘴つ敦㄰㐲ㅡ㤰散㜲㌴㈰昵㜱搷㍦〸攱㉦㕤〲愹㡥㌵散戶㄰㌴晣昷ㄱ挰㈳㌸ㅤ㄰愲愴㝢搰敢㐷㕡㘰㔵㝢〸㈱㔵㐸〱㌹慡㤰㄰戸㙢㉦㈱晣㌹㑣㈰〱戰慡て㉣㠴㈷戳㍤摤㥢昵㐲〶愸㤷㌵㝣㐴〸㘹㐰㉣攵㘸㜸㌲摤昵ㅦ㐲昸㔳㤹㐰㈴戱㠶㑦㉤〴つ㍦㔶戳㥦㝥捡㘷〰㥦〳散〳昸〲攰㑢㠰慦〰㔰㌳㈸ㄸ慥攰戳㤱攲〴㜰〱攰㌳扣攲〶昰㄰㈸㜱ち㕥扢攰㉥愴㜶晡昱㘳つ戳挹㕥㜰戹〴㔶攲㔴晡㜹ㄴ戴慢攲昱㐰扡㘸㌷㍣㍥㜴㘵㝤摡昵ㄴ㔱搷挴㔰㑢㜳㔵愰㘷㜶㜹㜰㐶㜰㝡戸愶戹慡慥㌵㔰摢愷㘲㑦っ昶挵㡤㠴昸昸㉢戳㌰㘹㝢㜵昳敢晡㐹㙦搵㕤㔱㜶搹敤挷㍦ㅣ㜰㠸㡦㉣㐲敥㠷㔶㍦ㄶ㍦㕢㌵㡡慤昲愷扤散挶㑡晦扥摤㘹㘴搸晤㜳㘹敥㘵㝦㉤㕤摥昷攳㙤戸攸ㄲ挷捤㌵㜶㠱㜳敥挱挹㑡㥦〸㔱㈸扡㍦愰㔹晣て㜲㘸㠶㌹〷扡㠹搴愳昸愹㕦㈰㙡昱㌶ㄴ扣つ〵晥㔷攰㜱戱㈷㥦㐷晦㘵ㄱ㜲㍦㍡晢ㄱ散散搱㜱㌴㥥㤶㘶㍡捣〵㈲ㅢ㕥ㄵ晦挴㔰晡戱昶㈳愱㘵㈷㜵摢㘹摦㤵㑦晢摢ㄶ㈱昷㘳戵ㅦ㠹㠰戵ㅦ㙢㙡摦㐵㙤㍣〲㔱捦摡㜷㘶㙡て㐰㍢愲摤㑥晢ㅢ昹戴扦㙥ㄱ㜲㍦㜲晢㤱㈴㔸晢ㄴ搶㉥㄰晦慣昴慦㤹㑡扦〷愵㝢昳㈸㝤㌱㥦搲ㄷ㉣㐲敥㌷㜱㍦搲〵㉢つ㥡㑡㤱ㄲ㔸改㜳㤹㑡愷㐱㈹㔲㠱摤㑣晦㤴㑦改ㅦ㉤㐲敥㈷㜴㍦㌲〸㉢㥤㘵㉡㐵敥㘰挹㔳〸昱捣愱㑥㔷㤵㤱㌰换㤰ㅤ㤶㤰攳㤶晥㜰挲昱昵攳ㅢ搷㙥㥤㜴慦㌲㝡搳㠷攲㈹㡢㔰㔹敦摡摤㕣㔶摤㜸㘷挵攳敢㌶㕣㌵晤㑣㠱㈴㌴㈸㑤㠱㌴㔳搲㐰㍥㐹摢㉤挲愶愲㜷㕢㈷㉤㍢敦昴㙤㑦敤摤戲晥戱摤㌷〹㘴㌲㍢㐹㡦攷㤳戴捤㈲っ扣扡攴愱㘳挶㥦搸戰㜶挲㡢ㄳㄷ㑤㐹㕣㈸㤰づ敤㈴晤㉥㥦愴㐷㉤挲㡥挷晥㌰昰挹㥣摡㐵㥢㤵搰㘳㠵户挷㥦ㄷ挸愹㜶㤲ㅥ捡㈷改㐱㡢攰㉤愸扣㘵昱㘵㙦捤㕦㔷戹晢攳㥤ㅢ捥晤㑣㈰㌱摢㐹扡㉦㥦愴㝢㉤挲搳扦㜶㡣㝢攲挳敢ㅢ㙦摢ㅥ改昹攵㑢㑤㕢〴戲扢㥤愴㝢昲㐹扡摢㈲㔴㥣搴㍥㝢㝦攵换搵㡦㔴搵㥥戶昳㥣ㄹㅡ摤〴摡㑢扡㌳㥦愴㍢㉣挲扢摢㤶ㄹて㙣㕥㕥扢㜵搷㤲㌱换〷㐶户搲攵㡣扤愴摢昲㐹扡搵㈲㙣摢㔶㌵㙥挱捦戶搴㕦㕥昵㔱㜰昹搳㘳ㄷ〸㙣㔶㜶戳晢㔵㍥㐹㥢㉤挲戸㌷㍦散㕤㝥㤳㘷挱愶收㑦㌷㥣扡扥㘱㤴挰㡥㘷㈷改愶㝣㤲㌶㔹㠴扢㜶ㅣ昱昱㐰昹㥥㠵㔷捡㌷㍦㤸戲㝢昳㍤〲摢愶㥤愴ㅢ昲㐹扡摥㈲㜴㑤㜹慦㝦敢㠴㤷ㄶ㕣扡㜴捤㉢㥥㥡㉢敡〵昶㕥㍢㐹搷攵㤳昴㜳㡢㜰㘱㘸敡愴㔵㌷ㅢ戵㜷敤晡挳戹づ㐷摤扦〵㌶㜰㍢㐹搷收㤳㜴㡤㐵ㄸ㍦晤愶㥤昱慤㜷捦晢搵摡㉦㘶戹㡥㔹晤㤰㍦扤昵搳㍤戳㤵㡤搶㠱㤵㝥㥣昵㔷㔱慦挰㤶换㠹敡㙡㡢㜴㈶㉤㐲慦㔳戸戱㈳攵摥㌰攲愳㐸ㅤ㌶搵㥣て㥥㐵㐵㘵搴改昸愸愸捡昱敥慤㔵〲㥢づ换扣㉡㕢愶挰㍥〳戹㠳㥣搸㈰㤸昳捡ㅣ㑥散〹㔹㥣㐸收捣戹㌶㠷ㄳ㠹㍣㡢ㄳㄹ㤸㌹㝦㤲挳㌹㉤㤷ㄳ㘹㤳㌹㝦㥣挳〹捦㘴捡㉣晡㉦戳愶摥敥 | B30: 㜸〱敤㕣㕤㙣ㅣ搷㜵摥㔹敥㉥㜷㤶㕣㤱ㄶ㈵搹㔲ㅣ㥢㠹攳㕦慡戴㈸㕢㤱攵㐴愱昹㈳㑡㡣㈵㤱ㄶ㈹搹㠹㙤慣㠶扢㌳攴㔸㍢戳昴捣㤰ㄲㄳ㌷㜱搰㌴㜱ㄲ愴㍦㙡㥡搴戱㔳愵㝥慡㡢愰㐰㥢㔶㜵㠰扣ㄴ㈸搰愲㤰晢㥢愰〸搰〷㌷㈸摡㠷ㄶ㠵搱扣攴㈱㠰晢㝤攷捥散捥㉥戹㐳㝡㙤户㜴挱㤱昶散㥤㜳敦㥤戹昷㥥摦㝢捥㕤愶戴㔴㉡昵ㄶ㉥㝥昳捡戰㜰敢摣㥡ㅦ㤸捥昰㐴慤㕡㌵换㠱㕤㜳晤攱㌱捦㌳搶㑥摢㝥搰㠵〶戹㤲㡤㝡㍦㕢昲敤捦㤸昹搲慡改昹㘸㤴㑤愵昲㜹㍤㡤㝡㍥㠴㥦晥攸㐶㘷慦摥っ挰晣挴昸捣挲㌳㜸敡㕣㔰昳捣㠳㠳ㄷ㔴摦攳㈳㈳挳㈳挳㐷づㅤ㍤㍣㝣攸攰攰挴㑡㌵㔸昱捣攳慥戹ㄲ㜸㐶昵攰攰散捡㐲搵㉥㍦㙡慥捤搷㉥㤹敥㜱㜳攱搰〳ぢ挶㠳て㡤㍣㜸攴㠸㜵散搸㐳扤㜸㜵敡散挴昸慣㘷㕡晥扢昴捣㉣㠷晣攰愴㔹戶㌹㌷搳昴㙣㜷㜱㜸㘲ㅣ晦㘳攳挷摤搱攱戹㈵搳っ昸㙡搳㌳摤戲改敢攸搸攳㡣昹晥㡡戳捣挵搳㥤㈹㑣戵㙣昸㐱搶㤹㌰慢㔵摤㠹㥥㥡㜷㘶戰㜶㔵㘳慤搷㤹㌳㕤摦づ散㔵㍢㔸换㌹昳㜸㔰愵攸㥣昷捤㜳㠶扢㘸㥥㌵ㅣ㌳敢㥣㕣戱㉢ㄹ㜵愵扡敥㡥ㅥㄱㅦ㤸㑣㝦㜸捣㜷㈶㤶っ㑦㐶攴㜳㘱ㄲ摡㑥㜹攵收戶㜷戴㝦㉥㠷㉥㙦攰㌳敦㙣摦づ㌵ㄷっ慦摥㜲愸㝤换㜰昲捤㈳戸扦㝤晢搸ㅡ㌵昷戹户㝤ㅦ㔹捡收搶㕡㑦挸摦戲愲㤸㡣㥥㈳攸㈶挸ㄳ㤰㠰㝡㠱愰㠷愰ㄷ㐰换晣っ㔲ㄲ敦挸慡㜴挹㐸㤷ㄶ搲愵㜲扡㔴㐹㤷捣㜴挹㑡㤷ㄶ搳愵愵㜴挹㑥㤷㥥㐹㤷㉥愱㑤㜴攵扢扢搳攱㤵㜹敢㘷挵扤昷㝦㙦晣晢㔷㔷㕦晦敦攰㠷㜶敦㉥㌴㝡㉣ㅣ搴愴㘷㕣〶慢㌵戸ㄸㄲ挱㝦㥢㑢〵㠴挲㍡㘲ㅤ戵㐶㐶㉡㐷づㄹてㄸ㔹㑥㉢㠱昸㑤㡣搲㡦戶扤搶攳戶㕢愹㕤ㄶ摡摤㍡㙥昸㘶㘳攱㠶挲扡昱摡㡡㕢昱㍦戰㜱攵㕣㘰〴收㠱搶扡挶㐳搶㜵㥢㠳㔸㤹扥扣敦戶搶㙥ㄷ㡣敡㡡㌹㜶挵㔶搵ㅦ㙣愹㜶㘶扤摡㐲晢摡㈹捦㝣戶㕥扢㙥㐴㘳㔰㙡慢昲散㜵戳㔴㔵㙡㕣㠳ㄳ㑢㌵摦㜴㘵㜸㐳捥慣㕤扥㘴㝡㜳㈶㔵愲㔹㤱愹敥㘵㔵㈸昵㐳㌳㉥㈶ち㘹慤㝣㌸㡥戵㑥㕣〹㈰捣㘶〵攳㕤㌶扤㘰㙤摥㔸愸㥡晢㥡㥡愸㜷愲㘲㝦ㄳ㝡慡㔶㕥昱㈷㙡㙥攰搵慡捤㌵㘳㤵㔵〳㥡愶㜲愶㔶㌱㌳㤹㤴㈸〵㈸摣慥㉥㑤㑢摤搷㕥ㄶ㠴㄰㌱ㄲ㔳㤰㙦㘹㘶扢攱㜳㤸ㅤ㘶㔱㌵挹㤳改㡦㙣昲㌰㡥㔷㜴㑣㠲〴挶收㐴晢挱㤷摥戳挹㘳敢㤴㝢㙦ㅢ愷搳〳攱散㑦慣㥡㙥㜰捡㜰㉢㔵搳㑢戴㝥ㅡ㐷愴昷〱㘴摦㠴㐲㘸扢㝡㌴㜵摡ㄵ㙤㉤㝢搹慥〴㑢戹㈵搳㕥㕣ち㠰㠳㠵捣攷戹戴敢㉥晤㈶愰昴摤〴〳〰㠵㐲㉡户㠷㡤㜲〵㕣愹㉣戵㔳㠲㉣㌷㈹㜲昶㙢㤲攵㕥㙢捡慥〶愶㔲捡㝤ㄶ㈸愲慣㥡㤰慦㐸ㄶ昵㡣戲㌲ㄸ㝢慣〹㜰愹㘱扢挱㕡㐳㙥搷㐹㠹㘲愲ㅤ㕤戰敤㜴〱㔵㐱戳㍥㐸㤰㌵㌰㑤㡢㌶㐸㙥ㅣ㘳㈲㡡㐱㠲㘵挷㤳㥢㤹㡣敤ㄳ㜴〴摡挷㤹㤰慤て戵搷ㄱ㘴昶昵㑣捡㑥㙤攵㜱㐷㥢㙤攴换㉢㙤戶ㄷぢ愷敦㈳戸㤹攰ㄶ㠲晤〰摡扦㐱挳㔱换愱摣㝣改ㅦ挰扤㝥㉢挱〷〱愰㥦㜴敡㥣㔰㔵搱㠷摡㡡ㅦ挹㜶㐵昸挹攲ㄴ㉢㔵㐴捦戸敥㘷ㄶㅤ㈱㜴攸㜵㙥て㕢㥢ㄱㅢ㝢㔷㝢摥㡣㑦㠷ㅣ㤹搰㌴㍥搷㑤㥡挶ㄷ㠲㑤㍢戴㕢户愳慢㍥㐸昰㈱㠰㠲晥㘱㐲ㄸㄷ㍡扣㕢昳攸改㔲扥㉦摣㈲攵っ㜵㘸攰㐳㐶收ㄶ㈰㐱挹慤摢扥散昸搰㜴〷㠷慣昷扤て㝤戰扤㝣㠷㐴㙦戱㥢㍢㜶㠷昱愲户改㐵摦〱昱搲晥戹慤㡤戹ㄳ搵晡㕤〴㜷〳戴搸ㄸ敥扥摦㙥愴㐰摣㘲㈷㐶戹摤㡣扡㠸㤷㍢扦戶㙣㡡〵敡戵收つ㙦搱っ㄰挱㤸㥥㠴㉦㕣昳㍣戳㡡㑤㙤㐵㄰摣扦摣摣㡣昴愷扣㥡㐳晣㡥㡦散扦㉦っ㐳㈶㤳敥㑡戵昸挸〹扥㘶㉣收ㄴ攳ㅣ摡攰〷摡㉢㠹㔸愷㘶昶㘲扦攴晤攵㡥㈶改㐰㤳摣㡢㘵搵敦〳㠰㤶搰㝥摣㔶愳ㅣ㘴戳㕦㤲㘶捤ㅥ㉢㈳㝣〹扢㤳㤶ㄸ攲㍡㍤搲愳〲戶攳㠸ㅦ昸㐵㘷捥㜶敡捡愲挷㤹㌵扤㌲㘲ぢ㜶搵㉣愸戰㉣㔵捤㡥慥㜸㥦攸㡡慥慥㜵晢改㠴昸㥡昰㐹㡢㤶㐸㤴昶挴捡㠴扤㜸㠳愹ㄸ㠶愴㔲㐹〸つ搵㌵㄰㌹㡦㙤㜷㔴㑣〷㉡收㝥㉣㥣㝥㠸㘰㠴攰㌰㐰昶㜵㘸㥡慤㉥㍣搳㘱摤慢っ㘹㤷㑡愹㍣挹㈰㈱挲ㅢ㙤㤵搵ㄱ扥收愳〴㐷〱㕡摣ㅦ〶㈰ㄳㄸ㔱㐸ㅥ㘳㐴㐹㘳㔸ㄷ㙣昳㌲㜹㘰㤷㠵挴搲挴㡡ㅦ搴ㅣ㘶㤶㡡搶㘴敤㙣㉤㤸戴晤㘵㘴愲〶慣戰昰昸㤲改㠲扢㍣昸㍥㉤戸摡昲戲㔹搱慤戹摡ち㔴摢昴攴㜶搸㤸㘳㌹攰㑢捡摥㍣慤攱敡㙣㝦㡣㐷㘸㔸㘹㠹户㌲ㅡ扢愵攸㌷㌷㝤㝤㡤ㄵ㥤户㠳慡搹㘳㈹愱㘳㌹㙦㘱ㄵ㤱㌹愸㜴㕢昳㑢㥥㘹㑥ㄶ慤㤳㥥㕤愹摡慥㐹㘲挰挷㘴戲敥戴戹㠸㉣挱㙣㡤㌹挰㥡㕢戴收㍤挳昵㤷つ㈶ㄴ搷㜶㌷摤㐹㕡㈴㙢㡤摢慥㡦搷〸ㄵ㔹敥戳收㤶㙡㤷㤱戱㕤㜱摣㤳挶戲扦㉤愸㐲愶㔷㤷㤰㐶㑢㙢改戴㤶㑦攷㍢愵て㌷攴愹ㄴ㘵㉦㐳㈰戴㑡㘵ㄹ㌳㑦戰摥昴敢挳ㅣつ晤㜴㡥愹ㄷ搹愳㍡戲㉢㔱ぢ㔳㔲昵㘳散昳㌰挰㈷㑦㥥㥦㙥㘴收摥㔱捥㍡换㈸㝦㠲㡥ㄷ戶愸㈷㐲ㄸ愳摢愵㔸㠵㌸㜲づ㈴㄰ㄴ攷㕤㉢晢ㄵ㉣㘹㐳敥摢搵㈸㑥㈱㤳搴㙢㥤㌶ㄶ捣㉡昲搱㡥ㄱ散㔲㌷㜴㘳ㅤ愳敡㠷㜵ㄳ㌵挷㌱挸㕡㘴换戹戲㐱づㅥ㕢〹㙡㘷㙣㔷户〰㠴晦㐲㤴㜱〵㈸攳㡡愰㝡慤㜳㑣つ㑡㤹捦慡㉤ㅡ㥥ㅤ㉣㌹㜶㌹捦ㅢ愶敦戶〵㑦㐲挸愹㜹愳㉢搲ㄹ㠳㉤摥晣㜹戸㙣晥㌰挸㍤っ㍤捡愵㈳昹挱戹㘹㉤㠷㝦㕡㠷㠱㈵㈸ㄸ㠹㤴敡ㅦ挷搳戲㜲㍡〲㉡㐷慥㌷愳㌳ㄸ㙦㝥ㅥㄸ愵㠴㐸昵〴ㄶ㐱㔴㌰愶攴ㄹ攲捥㔹攷㕤㍢〰昵㐸戱㈹㍢㤸昴㐱㜲〰ㄴ㘵㝢㝢㐰愸ㅡ敢㌴㔴户ち户慦慦㙡㌲ㄳ户慤慦㡦摢㡤㡦㙣㔰慤㉣㑡捣㤰㙣搶㐸㉣换〶㘳摣㑥愶㐶ㄳ挳ㅤ㔹ㅢ㉤㈹㙣摡㔸㜷㙡㤱㜷㘰㤸㠴㘷㔲晡㈷㠴㔱挴㐶改愳㈸㌳㜴换戸㝤㌲㡢挴戲㌶昴〳ち戴㔵ち㔷っ搳㠲搳㌸㝡㔲㌱ぢ攱ㅤ㘴㝣㔷㔸㥣㔹〹㥡㙡㡣㉢〳㘱捤㔸戵㍡攳挲㔳㈸ㅢ㕥㘵㥢㠸㌵收愶慣㡣㐸㘸愷ㅥ〰㥥㠲㉢㈶㡣〸㤳㍦〲っ搷㥡改㤱㠴㜸㌰挴ㄱ㐲ㄶ换慣搲㑢㉢㜲戹敢攸㍣敦捥㤸㠶㉢㔴㤸ぢ㉡㤳收慡戸㘳つ㡦㝥㐰㍡搴㜷㡤愲㑦㜵㙢㙣挱㠷㘹て愸捦挳㤲〸扡㙥㥤㘳㜸ち㠷ㄹ愰㝥挳搲㙣㌹㐰㡡户晥〰敥㄰戶て㠵戰㈲㉡㠵㐲㉦㡤㥡㌴㤷挰扣捤㤳愰っ㜵㐸㔵㈸㔴㑢慥晦ㅡ搵扥晤㈲慦㔷㐷㔳㔱㈱㜴昸㤸昶㑡昰㈲㐰摣㜸㠶㤲㤲㌴㄰㈵捥㤵㠶ㄳ攵搵ㅢ攱攸㙡ㄴ改晡㜹〱㑥昳㌰愷搵㐷搱愹攲扣㕢㘰挳慡㔶搷㜶㔹搳㙥戹扡㔲㌱挵㈴㐷㍡㕢㉣昳戶愰㤷ㅣ〵㔴ㄲ㤵戰㉥攱愲㑣㘳㑢挵㈹㤳㐸㥤晢摦晡ㄸ扡㡢戲挳㌳ち晡〴敥㈸㜷㑣㐶㈶㠴攸㈴㌹戶敥捣〲㝤挵摤㡤挳っ㜲㤰づ慡㙤ㅤ㡡㍡敤㌴捥收搵㌳捡㈲㜱戱㘶愷㙢愷㙢昴摦㘳愸㔳戶㐲㙤ぢ㍡㘱㥥㑡昱攵㜲㜰㑣㍡㤴㄰㍥〴㕡㑦扥㔲㙦㝥㍥晣㠶㤱ㄱ㐷㐴㘳扥㤷㍢愲ㄴ㔶ㄵ挲㐴攷㍢摤昰挰㌵㘶㠲改㠵敢㤳〰ㅡ㔳挲㜴㙥搱㔲㌹㍢㔳㈸㙦敥散摣㡥㔶〹搹搲㜸㘲㤵昹捡〱〴敦㐱㌴㐸ㄴ㌷搵昳㌵ㄸ愳㘰㡦ㅣㄲ㡢捥㈹づ㌹搸づ搵扣㝤㉤挸㔹㈳挰㔱ㄸ㜷㝦ぢ㝡慣㔲愱敢㡢㔸摤戶愰㉡㡥㜱㈸搷㜴㑦换〱㉤㤹ㄳ㝤扤㍢㕡㉡挲㠳㠳㠷㈷㠷㑦ㄹ㐱㜹㘹㉥㔸㔳㠷戸㍡㘵㠹散て㄰㥢搸昰敤昴㥦㌳㉥て愵慥㜲敤ぢ㤷摣摡㘵㔷挶㤵昵㜹〲㄰ㅣ㠲攳㤴摤ㅣ㘴㈱昵ㄶ晥挹㤵㑥㘵㕦挳ㄳ户㌲㙣㍥愰ㄱ㉣攱㜳攴㉡攸搳昸愶㐶ㄸ挴㜷〲慦挰㤷慦㥦㈲㈰慦散㘹攱ㄵ㔱〶㍢捣攲㉥扥㙢捣愲㕤〷㘹挹㌰㈰㜸㜴㘰㈴㥤搲晥ㄴ㌷㈴㍡㘸〰挲改愷〹㐱扥て攱㍢㠱㝣愲搰挳㘳ㅦ㍣㈴昲晦㠷㔲㤱㔴㙦㈸㔶晦ぢ㐲慤㝤ㅦ挴㄰㌲㠱㈶㜵戹搴晥戸㤹㑣㌳㡡㑣ㅡ㡦㠷㠸㉣捦㠶〵摥㘴㤹戶㝤㕢〹㜲捥㙢㘷㘳晡㥥ㅦ〴晥㍦摣㤸㥥〳㠵㜹㘹捡㤷搶敥㐴戹敥㉥愴搷戹ぢ㑣敡㡢扢㌰挷㍥捣敥㉢㜷㈱㡣㡤㥣〷㘲㜳㜷㠱㌹扦〴愷㌰㤶㠲㡤㠵㍢戸㈳摢攷㌰㙥㜶ち〷㜲㑤ㅦ㜹㝥ㄸ㌰㝦〲㤱慡㥢搷愳㘷つ捦㜰昶ぢ晥愴㘷挲戰㜹昳㌸攱㉤㕤搸攳挰㠶㌵搲㘹㠳ㄸ㐶ㄴ㝤摦㠹戳㙣敤㕣㍢㈸愵㉥ㄵ搶搷昲㕡敥ㅤ㐴㔰㌴敥㈱㔲㥦摤昳㠷㈷晦攵㌳㕦ㅣ捤㐱慤㠱㔷昵ぢ挰搱ㅥ㌱㜵摣㐹㍡㥦扥〵ㄲ扥戱㐳㈴㝢昹愳㥤㌳昸昹㤲扤㕣㌵挷つ㑦扣㈲㕦㜷愲愲㘲扥ㄸ㜳㉡〶摣づ㉥㈷捥㐴㈸㤷㜳戸㈵ㄴ㉡㍦㝡㤲昰攱㜰㙣攰ㄲ敦㡢㔲㡡㕡㕢㠳搶愱昷㤹㝤ㄵ㈶改㙤づ愴搹㙢攴㑥㤴㤷愶晤㝥㘴昳ㄴ㈲㤵㍡愲挸て捡㙢㍣ㄲ㄰㘹㉡攴㈶挸㈵昱㡤つてぢ㠸愶晡ㄴち搹晢〱ㄲ戲㙥慤改㕦挶〸㜶ㄴ㠱㔹㍦㄰搸攱て㕣戰㡡愰㘲ㄴ愷敦㜴㠷换㜰㐰㘴㥥㤸挶ㄵ扦收搳㈸挸㘶㠶㠸㤱〸晢㈴ち搱㤵㍤㡣搲㤶㐳㔴㝣㐹搱㔱㐹㌹㈵搸㔹㠷昱户㠲㜳挲㕤挱愹㄰搸㥡㥣ㄸつ㜷㌷搱搸愰㑡晥㑥㌵㉤㈸ㄴ㘱㥦㉡搶㍢昵㠴㔵戰㕢敥㝥散㔲㤱ㄸ攴慦㠸㔸㍦搴㜸昴摥搶ㅡ摡㌹户ㅢㄳ攴〷㍥搸㙤〹㠲㡤户㔲㘲愰㘵户搴㉡慦㡥㡥㍦㠵㉥㥣㜴㑡搳ㅢ㐵戹搷㤸扦㡥㈴慢㙢扤て挰捣戶㐸搶搳散捤ㄴ㜷㤳て㔰〲㘲㔳ㅦ㐰㍢挶扥昸攸ㄷ挳㠲㌸愸捣慤㙣㥡捥攱㡡㈰攲㡤挴㡥㙣㤴㜵㈹㌲ㅤ慥㑡㜳昸㘱慢慡ㄶつ㡥㔸㔸愶昵搸㐴扤㉦晤摢㥥戶ち㤰㜹愳散㌵愸愰戶晤㥢昵㔶戴摢捤㉤愰攳㥥㌳㜶搹慢昹㌵㉢ㄸ㥣㐳㐲㜸㤰扦㑢戳攰昷㡣㘹摦㘹㔵㙡㜷㘰㈵㝡㉢攸㜳㜶〶ち晢慣ㄹ扣㕢㜹㑡㘶ㅤ戶㤶攵攰㙦㤴晡㘳愹㈷㕡〷晦㈶敢戱ㄵ愳㡡㥦戵捥㈰晥ㄹ㄰戵㉤㡣㥤㡡㐲户㥥摥攰搲攱晣搶愳㠸て㤹搵㘱㈴捥㘴ち㑦㍥捤㜵㙤㕤㠳收戶攱摣㝣戶散㉣〶㔷挸扥〴㥡㙥敤㉤捤㉣挳㜷昲搷捡〵ㅤ扣㐱㠷㐶ㅢ挵户〸挶㈲ち㈴ぢ㍦摡㈳〴昸攸㑢〰搱㤵ㅤ㐳㘹敢〱㕥昶ㅦ㠰㑣㠴㍦っ㘷㄰㙤愸㡡搰摢ㄶ戲攸㌶扡㙡㡣改慥ㅢ㠳㌶ㄹ㘱㉦㠵〵㌶搱ㄸ㌷愴㌰㙢摦挰挲㕣挳〷攵㔴捥〱㘸㉦ㄷ㔷搱㑣挵㈱搸ㄸㄷ攵㐲㥢㐶㐱摥㕡㐳㈱ㄷ㝥㌴㠶㈳〴扢ㅣ挷㜲昷㉢搸㘷㘳搸㝥㙥㠱㌳昸攸ㅥ㐰戱㑢㍢㠷㉦㑡㐶㐱晢㍡摥㐸捡㈹ち〴挴㠱〲戲戵㐱㔹㡦㕢ㄳ㡤㕢ㅢ㤹搱㔷搱攱ㅡ㍥戸㑦攵㉥〳戴㥦搱ぢ㘸戶㝥㐶㜴㕤㘵㤴㙢㘱㠱㌷ㅡ摤ㄴ挱挶摦摡ㅦ㤹㌹晤戳愸搶㥦㈳昸㘵㠲捦〱昴㐷㉤晢㥥挲ㅤ㘷㤸㔳㠹㤱ㅦ㤰㠷㜰晤㕤昸晤挶攸敢㌷㜸晤攷愸㈶㉡ㅢ㔵捤㜳㉢〱㈳㜳㝢㍥㍥户㉦〰摢㝥㙥㥦摢㘸㙥晤ㄷ搱㐷搶晡㔷㔰挰㕡㤳慢㘵㔶㕦っぢ扣改㈷㙢㌳㍡愴晦㉡挱㤷〸扥㑣昰〲挱㔷〸扥㑡昰㌵㠰㐲㝦挴昱㥡㌰㈱昱ㄱ〶攵㔴㍦搹㑥摥昸㜵ㄴ㡡㕤晤㘴ㄳ㜹昶慦愱愰晦㍡挱㙦㄰晣㈶挱㔵㠲摦〲㈸愶晢挹㌹搲昰ㅢ㐴晥㌶挱㌷〹扥㐵昰㍢〴㉦〲愰㈱㤹㐹ㅡ㝥㥢挸㤷〸㕥㈶昸づ挱敦ㄲ㕣〳㈸愶戳攴慦㡦戵㌷搴昴挳愳㕦ㅣ㈳昷搲昴搳攲ㄳ昸愹昰ㅡてㄵ㜴攱㉦㈵㘴挵慢挸愴ㅦ敥散㔹㤱㘷㑦愷㈰㝢ㄱ㘴㝡〷捦㈱戹ㅡ攱㕣㍥昱〰㍥㜹挸㈵愵㐵㈸晢㝢㘱㐱㈸㑢㤶ㄶ㙡扣㠲㐲戱㉢㑢戶㑤昸㐱㤹昸摤㍣㝣换昵捤愹愰㝦㑥㜹㕢㜹㈷㡣昶㙦ぢ㥢ㄳ收㘹摡扡ち戹づ㑦㤵㘸㑦㐷㘲㜴敡㤴㔲㈹搸挵㠴昹㑤㠸戱㑡攱㔰散戹㤰摡㔳㔱攳㍦扡摥〸〱愲〲ㄷ㘴㕤㌵愶㝡㤰挶㑦㐶㡤て攳㤷㠰搲〶㑦㔶搷ㅢ㔱㘳慡ㄱ㘹晣改愸昱㝦ㅣ摥㕦㙦ㅣ㘹つ昵攴㉣㐵㍡㘱て㈵扢捡搸㕦〵攸㐳昳慣㐵扦慣挷㔲㘸㌲愶ㅣ㔵愸㡡㘷搶㡢〳㐸ㅥ㝥㤷㝦ㅡ攷改㜰散〸挶㕢晤㜹㡥㘹㥣戳㥢㌴〲〳㍦扢㕦挵攱〶㑦㤷㍢㜶捥㔹㌳ㅥ㄰摤搶戴㡦扤㝡㘵㕢戱〸摣捣㡣㕡摦㑤㤲㍦〹㕢㤲挶㝡㐴〹搹㌴捦㉤㜵收㤴㐸〲㉦愳㍤ㄱ㔱㌶昵㝣㠳㘷昴㔷㐱ㅣ㤸㍡㐰ㄶ昴㍦〰㔴〹㍦㥥㤰㑦昵㔳㕢㡢ㄸ㝦て〵愸㜱敡㘹㙡㌷㙤づ㑦愳㑡ㄱ㡢愹㔱㜳ぢ晡㕣㠸收慥愱愰㔱㤷ぢ晡戱㄰扤㑦搰㉦㐴攸搹㄰捤㐳ㄹ〵㡤晡㕥㕡捦㠴攸㝢〴㑤ぢ㈰攸戳㈱晡㕥㐱搳㈶〸晡㑣㠸愶摤㠴㈵〷㈴㝦收晥〴愰㉦晡愳㉤㠳慢ㄲ㈳㑣㙢㡦愲戱ㄸ攲㌸㝢敢搷搹攱捦〰扡㤰戶搰㐲攱㈸攸慦〱ㄳ㕢っ㡤㠶㐴㕥㌹ㄵ扥㔲㑤㥥愶㐵搰㈷㐲戴㥡㍣㡤㡤愰㈷㐳戴㥡㍣捤㡦愰㈷㐲戴㥡晣搵〸㍤ㅥ愲搵攴㘹愲愴昵㔸㠸㔶㤳愷愵ㄲ昴㈳㈱㕡㡤㠴戶㑢搰愳㈱㕡㡤㠴搶㑣搰㥦〸搱㙡㈴戴㙦㠲㍥ㅥ愲搵㐸㘸昱〴晤昱㄰慤㐶㐲ㅢ㈸攸㡦㠵㘸㌵ㄲ㥡㐲㐱㍦ㅣ愲搵㐸㕥㡡搰挷㐲戴ㅡ〹捤愵戴㝥㈸㐴慢㤱搰㠰ち晡㘸㠸㔶㈳愱㐹ㄵ昴㐷㐳戴ㅡ〹㡤慣愰㡦㠴㘸ㄹ㐹㍦捤㡦戰敡つㄴ挰慡㌴㍣搲散㠱戰搹ㄳ㐰攴搳㕡昶㔵㝣㙦㔹昶㈸ㄹㅤ晡捡㝦㠳慥ㅡ〵㡡捦搰晦㌶㉣昰㐶愳㌴挹搸づ㠵㘳ㅢ㘵㤳扦㘷搵㜵〰㡥㔰晦〷摥㤱〵愵晢㍦㠶〵改捥ㄹ㑡昷㠳昱敥㍦㘶ㄳ㜹㈹ち㑤㝥㕤㍦㕦㉥㙢昳㑦㈸ㄴ扢晡昸愶挷昱㐹㕦搱捡ㄷ㉢ㄷ㉦晥扣㉦㌳㜸㈰昳挴㈳扤㉦扥昱搷㍦扤晡愳愷㡥晦晢㉦㕥㝥昹㐷晦㝡昵挶㉦㝥戸㜰晣㉦㕦㜹攵㉦㍥㜹敤挶㑦㜷㕢摦㑤㕦晦昹改敦㍥㌷㜲改戹㘷慤昳昷㥤㝣敥㔳捦㍣㌶㌲㝢搳㔰㔷㔷㜷昷摤〳㝦㜵换㍤晤捦㍦晢㥡昶攷㍦戹搹搵㘴昰㜸㐱昳㌰㌸〹ㄹ挶㑦㔰挰㌰㌸攲昷㜴ㄸ㥣慥㉣搴㕤攱㐲㡤〳㐱愷㠵〳㤰㡡㍢㥢㉢㝡晥〷㙦㜱㡡㘷 | D30: 㜸〱敤㕣㕢㙣ㅣ搷㜹摥㔹敥㉥㜷㤶㕣㤱ㄶ㘵搹㔲ㅣ㥢㠹攳㉢㔵㕡㤴慤挸㜲愲搰扣㠸ㄲ㘳㑡愴㐵㑡㜶㘲ㅢ慢攱敥っ㌹搶捥㉣㍤㌳愴挴挴㑤ㅣ㌴㙤㥤〴㙥ㄳ㌵扤㌸㜶慡挴㑦㜱㔱〴㐸㉦㡡〳昴愵㐰㠱ㄶ㠵搲㙢㠲㈲㐰ㅦ摣愰㘸ㅦ㕡ㄴ〶晡㤲㠷〰改昷晤㘷㘶㜷㜶挹ㅤ搲㙢扢愵ぢ㡥戴晦㥥昹捦㌹㌳攷㥣晦㝡晥晦㉣㔳㕡㉡㤵晡〵㉥㝥昳捡戰㜰摢晣扡ㅦ㤸捥昰㐴慤㕡㌵换㠱㕤㜳晤攱㌱捦㌳搶㘷㙣㍦攸㐲㠳㕣挹㐶扤㥦㉤昹昶㘷捣㝣㘹捤昴㝣㌴捡愶㔲昹扣㥥㐶㍤ㅦ挲㑦㝦㜴愳戳㔷㙦〶㘰㘱㘲㝣㜶昱㔹㍣㜵㍥愸㜹收愱挱ぢ慡敦㠹㤱㤱攱㤱攱愳㠷㡦ㅤㄹ㍥㝣㘸㜰㘲戵ㅡ慣㝡收〹搷㕣つ㍣愳㝡㘸㜰㙥㜵戱㙡㤷ㅦ㌳搷ㄷ㙡㤷㑣昷㠴戹㜸昸挱㐵攳愱㠷㐷ㅥ㍡㝡搴㍡㝥晣攱㕥扣㍡㜵㜶㘲㝣捥㌳㉤晦㕤㝡㘶㤶㐳㝥㘸搲㉣摢㥣㥢㘹㝡戶扢㌴㍣㌱㡥晦戱昱攳敥搸昰晣戲㘹〶㝣戵改㤹㙥搹昴㜵㜴散㜱挶㝣㝦搵㔹攱攲改捥ㄴ愶㕡㌶晣㈰敢㑣㤸搵慡敥㐴㑦捤㍢戳㔸扢慡戱摥敢捣㥢慥㙦〷昶㥡ㅤ慣攷㥣〵㍣愸㔲㜴捥晢收㌹挳㕤㌲捦ㅡ㡥㤹㜵㑥慤摡㤵㡣扡㔲㕤昷㐴㡦㠸て㑣愶㍦㍣收㍢ㄳ换㠶㈷㈳昲戹㌰〹㙤愷扣㜲㜳摢㍢摢㍦㤷㐳㤷㌷昰㤹㜷戵㙦㠷㥡ぢ㠶㔷㙦㌹搴扥㘵㌸昹收ㄱ㍣搰扥㝤㙣㡤㥡晢摣搷扥㡦㉣㘵㜳㙢慤㈷攴㙦㔹㔱㑣㐶捦ㄱ㜴ㄳ攴〹㐸㐰扤㐰搰㐳搰ぢ愰㘵晥ㅢ㔲ㄲ敦挸慡㜴挹㐸㤷ㄶ搳愵㜲扡㔴㐹㤷捣㜴挹㑡㤷㤶搲愵攵㜴挹㑥㤷㥥㑤㤷㉥愱㑤㜴攵扢扢搳攱㜵㉡搰昷㍥昳摤㡢㘷㕥晡晥挸ㄳ㉢摦扢昵㔲敦ㅥ㌴㝡㍣ㅣ搴愴㘷㕣〶慢㌵戸ㄸㄲ挱㝦㕢㑢〵㠴挲㍡㙡ㅤ戳㐶㐶㉡㐷てㅢてㅡ㔹㑥㉢㠱昸㑤㡣搲㡦戶扤搶ㄳ戶㕢愹㕤ㄶ摡摤㌶㙥昸㘶㘳攱㠶挲扡昱摡慡㕢昱㍦戰㜹攵㝣㘰〴收挱搶扡挶㐳㌶㜴㥢㠷㔸㤹扥扣敦昶搶㙥ㄷ㡣敡慡㌹㜶挵㔶搵ㅦ㙣愹㜶收扣摡㘲晢摡㈹捦㝣慥㕥扢㘱㐴㘳㔰㙡㙢昲散つ戳㔴㔵㙡㕣㠳ㄳ换㌵摦㜴㘵㜸㐳捥㥣㕤扥㘴㝡昳㈶㔵愲㔹㤱愹摥捣慡㔰敡㠷㘶㕤㑣ㄴ搲㕡昹㜰ㅣ㙢㥤扣ㄲ㐰㤸捤ち挶扢㘲㝡挱晡㠲戱㔸㌵昷㌷㌵㔱敦㐴挵㠱㈶昴㔴慤扣敡㑦搴摣挰慢㔵㥢㙢挶㉡㙢〶㌴㑤攵㑣慤㘲㘶㌲㈹㔱ち㔰戸㕤㕤㥡㤶扡扦扤㉣〸㈱㘲㈴愶㈰摦摡捣㜶挳攷㌰㍢捣愲㙡㤲㈷搳ㅦ搹攲㘱ㅣ慦攸㤸〴〹㡣捤㠹昶㠳㉦扤㜷㡢挷搶㈹昷摥㌶㑥愷〷挲搹㥦㕣㌳摤攰戴攱㔶慡愶㤷㘸晤㌴㡥㐸敦〳挸扥〵㠵搰㜶昵㘸敡戴㉢摡㝡昶戲㕤〹㤶㜳换愶扤戴ㅣ〰〷ぢ㤹捦㜳㘹㌷㕣晡㑤㐰改㝢〹〶〰ち㠵㔴㙥ㅦㅢ攵ち戸㔲㔹㙡愷〴㔹㙥㔲攴散搷㈴换扤搶㤴㕤つ㑣愵㤴晢㉣㔰㐴㔹㌵㈱㕦㤱㉣敡ㄹ㘵㘵㌰昶㔹ㄳ攰㔲挳㜶㠳昵㠶摣㙥㤰ㄲ挵㐴扢扡㘰挷改〲慡㠲㘶㝤㤰㈰㙢㘰㥡ㄶ㙤㤰摣㌸挶㐴ㄴ㠳〴换㡥㈷㌷㌳ㄹ摢㈷攸〸戴㡦㌳㈱㕢ㅦ㙥慦㈳挸散ㅢ㤹㤴㥤摡捡攳慥㌶摢捣㤷㔷摡散㘶㉣㥣扥㥦攰ㄶ㠲㕢〹づ〰㘸晦〶つ㐷㉤㠷㜲昳愵㝦〰昷晡㙤〴ㅦ〴㠰㝥搲愹㜳㐲㔵㐵ㅦ㙡㍢㝥㈴摢ㄵ攱㈷㡢㔳慣㔴ㄱ㍤攳扡㥦㔹㜴㠴搰愱搷戹㌳㙣㙤㐶㙣散摤敤㜹㌳㍥ㅤ㜲㘴㐲搳昸㕣户㘸ㅡ㕦〸㌶敤搰㙥摤㠱慥晡㈰挱㠷〰ち晡㠷〹㘱㕣攸昰㙥捦愳愷㑢昹扥㜰㡢㤴㌳搴愱㠱てㄹ㤹㕢㠰〴㈵户㘱晢戲敢㐳搳ㅤㅣ戲摥昷㍥昴愱昶昲ㅤㄲ扤挵㙥敥摡ㅤ挶㡢摥愶ㄷ㝤㈷挴㑢晢攷戶㌶收㉥㔴敢㜷ㄳ摣〳搰㘲㘳戸晢㝥扢㤱〲㜱㡢㥤ㄸ攵昶㌲敡㈲㕥敥挲晡㡡㈹ㄶ愸搷㕡㌰扣㈵㌳㐰〴㘳㝡ㄲ扥㜰捤昳捣㉡㌶戵ㄵ㐱㜰晦㜲㑢㌳搲㥦昲㙡づ昱扢㍥戲晦扥㌰っ㤹㑣扡㉢搵攲㈳㈷昸㥡戱㤸㔳㡣㜳㘸㠳ㅦ㙣慦㈴㘲㥤㥡搹㡢晤㤲昷㤷扢㥡愴〳㑤㜲ㅦ㤶㔵扦ㅦ〰㕡㐲晢㜱㕢㡤㜲㠸捤㝥㐹㥡㌵㝢慣㡣昰㈵散㑥㕡㘲㠸ㅢ昴㐸㡦ち搸㡥㈳㝥攰ㄷ㥤㜹摢愹㉢㡢ㅥ㘷捥昴捡㠸㉤搸㔵戳愰挲戲㔴㌵扢扡攲㝤愲㉢扡扡㌶散愷ㄳ攲㙢挲㈷㉤㕡㈲㔱摡ㄳ㉢ㄳ昶攲つ愶㘲ㄸ㤲㑡㈵㈱㌴㔴搷㐰攴㍣戶摤㔵㌱ㅤ愸㤸〷戰㜰晡㘱㠲ㄱ㠲㈳〰搹ㅦ㐲搳㙣㜷攱㤹づ敢㕥㘳㐸扢㔴㑡攵㐹〶〹ㄱ摥㘸慢慣㡥昲㌵ㅦ㈵㌸〶搰攲晥㌰〰㤹挰㠸㐲昲ㄸ㈳㑡ㅡ挳扡㘰㥢㤷挹〳㝢㉣㈴㤶㈶㔶晤愰收㌰戳㔴戴㈶㙢㘷㙢挱愴敤慦㈰ㄳ㌵㘰㠵㠵㈷㤶㑤ㄷ摣攵挱昷㘹挱搵㔶㔶捣㡡㙥捤搷㔶愱摡愶㈷㜷挲挶ㅣ换〱㕦㔲昶收㘹つ㔷㘷晢㘳㍣㐲挳㑡㑢扣㤵搱搸㙤㐵扦戹改敢㙢慣攸㠲ㅤ㔴捤ㅥ㑢〹ㅤ换㜹ぢ慢㠸捣㐱愵摢㕡㔸昶㑣㜳戲㘸㥤昲散㑡搵㜶㑤ㄲ〳㍥㈶㤳㜵㌳收ㄲ戲〴㜳㌵收〰㙢㙥搱㕡昰っ搷㕦㌱㤸㔰㕣摦摢㜴㈷㘹㤱慣㌵㙥扢㍥㕥㈳㔴㘴戹捦㥡㕦慥㕤㐶挶㜶搵㜱㑦ㄹ㉢晥㡥愰ち㤹㕥㕤㐲ㅡ㉤慤愵搳㕡㍥㥤敦㤴㍥摣㤰愷㔲㤴扤っ㠱搰㉡㤵㘵捣㍣挱㝡搳慦て㜳㌴昴搳㌹愶㕥㘴㡦敡挸慥㐴㉤㑣㐹搵㡦戳捦㈳〰㥦㍣㜵㝥扡㤱㤹㝢㐷㌹敢㉣愳晣〹㍡㕥搸愲㥥〸㘱㡣㙥㡦㘲ㄵ攲挸㌹㤰㐰㔰㥣㜷慤散㔷戰愴つ戹㙦㑦愳㌸㠵㑣㔲慦㌵㘳㉣㥡㔵攴愳ㅤ㈳搸愳㙥攸挶㍡㐶搵て敢㈶㙡㡥㘳㤰戵挸㤶昳㘵㠳ㅣ㍣戶ㅡ搴捥搸慥㙥〱〸晦㠵㈸攳ち㔰挶ㄵ㐱昵㕡攷㤸ㅡ㤴㌲㥦㔵㕢㌲㍣㍢㔸㜶散㜲㥥㌷㑣摦敤〸㥥㠴㤰㔳昳㐶㔷愴㌳〶㕢扣昹昳㜰搹晣㘱㤰㝢ㄸ㝡㤴㑢㐷昲㠳㜳搳㕡づ晦戴づ〳㑢㔰㌰ㄲ㈹搵㍦㡥愷㘵攵㜴〴㔴㡥㕣㙦㐵㘷㌰摥晡㍣㌰㑡〹㤱敡〹㉣㠲愸㘰㑣挹㌳挴㥤戳捥扢㜶〰敡㤱㘲㔳㜶㌰改㠳攴〰㈸捡昶昶愰㔰㌵搶㘹愸㙥ㄵ敥搸㔸搵㘴㈶㙥摦㔸ㅦ户ㅢㅦ搹愴㕡㔹㤴㤸㈱搹慡㤱㔸㤶㑤挶戸㤳㑣㡤㈶㠶㍢戲㌶㕡㔲搸戴戱敥搴㈲敦挰㌰〹捦愴昴㑦〸愳㠸㡤搲㐷㔱㘶攸㤶㜱晢㘴ㄶ㠹㘵㙤攸〷ㄴ㘸慢ㄴ慥ㄸ愶〵愷㜱昴愴㘲ㄶ挲㍢挸昸㥥戰㌸扢ㅡ㌴搵ㄸ㔷〶挲㥡戱㙡㜵搶㠵愷㔰㌶扣捡づㄱ㙢捣㑤㔹ㄹ㤱搰㑥㍤〰㍣〵㔷㑣ㄸㄱ㈶㝦ㄴㄸ慥㌵搳㈳〹昱㘰㠸㈳㠴㉣㤶㔹愵㤷㔶攴㜲搷搱㜹摥㥤㌱つ㔷愸㌰ㅦ㔴㈶捤㌵㜱挷ㅡㅥ晤㠰㜴愸敦ㅡ㐵㥦敡搶搸愲て搳ㅥ㔰㥦㠷㈵ㄱ㜴摤㍡挷昰ㄴづ㌳㐰晤㠶愵戹㜲㠰ㄴ㙦晤〱摣㈱散ㅣち㘱㐵㔴ち㠵㕥ㅡ㌵㘹㉥㠱㜹㥢㈷㐱ㄹ敡㤰慡㔰愸㤶㕣晦㌵慡㝤攳㘵㕥慦㡦愶愲㐲攸昰㌱敤㤵攰㐵㠰戸昱っ㈵㈵㘹㈰㑡㥣㉢つ㈷捡慢㌷挲搱搵㈸搲昵昳〲㥣收㘱㑥慢㡦愲㔳挵㜹户挰㠶㔵慤慥敦戱愶摤㜲㜵戵㘲㡡㐹㡥㜴戶㔸收ㅤ㐱㉦㌹ち愸㈴㉡㘱㕤挲㐵㤹挶㤶㡡㔳㈶㤱㍡昷扦昵㌱㜴ㄷ㘵㠷㘷ㄴ昴〹摣㔱敥㤸㡣㑣〸搱㐹㜲㙣挳㤹〵晡㡡㝢ㅢ㠷ㄹ攴㈰ㅤ㔴摢〶ㄴ㜵摡っ捥收搵㌳捡㈲㜱戱㘶㌳戵㤹ㅡ晤昷ㄸ敡戴慤㔰㍢㠲㑥㤸愷㔲㝣戹ㅣㅣ㤳づ㈵㠴て㠱搶㤳慦搴㕢㥦て扦㘱㘴挴ㄱ搱㤸敦攵㡥㈸㠵㔵㠵㌰搱昹㑥㌷㍣㜰㡤㤹㘰㝡攱晡㈴㠰挶㤴㌰㥤㕢戴㔴捥捥ㄴ捡㕢㍢㍢㜷愰㔵㐲戶㌴㥥㔸㘵扥㜲〰挱㝢㄰つㄲ挵㑤昵㐲つ挶㈸搸㈷㠷挴愲㜳㡡㐳づ戶㐳㌵㙦㝦ぢ㜲捥〸㜰ㄴ挶㍤搰㠲ㅥ慢㔴攸晡㈲㔶户㈳愸㡡㘳ㅣ捡㌵摤搷㜲㐰㑢收㐴㕦敦捥㤶㡡昰攰攰㤱挹攱搳㐶㔰㕥㥥て搶搵㈱慥㑥㔹㈲晢〳挴㈶㌶㝤㍢晤攷㡣换㐳愹㙢㕣晢挲㈵户㜶搹㤵㜱㘵㝤㥥〰〴㠷攰㌸㘵㌷〷㔹㐸晤〲晦攴㑡愷戲㙦攰㠹摢ㄹ㌶ㅦ搰〸㤶昰㌹㜲ㄵ昴㘹㝣㔳㈳っ攲㍢㠱㔷攰换搷㑦ㄱ㤰㔷昶戵昰㡡㈸㠳㕤㘶㜱㤷摥㌵㘶搱慥㠳戴㘴ㄸ㄰㍣㍡㌰㤲㑥㘹㝦㡡ㅢㄲㅤ㌴〰攱昴ㄹ㐲㤰敦㐳昸㑥㈰㥦㈸昴昰搸〷て㠹晣晦愱㔴㈴搵㥢㡡搵晦㠲㔰㙢㝦っ㘲〸㤹㐰㤳扡㕣㙡㝦搴㑣愶㔹㐵㈶㡤挷㐳㐴㤶攷挲〲㙦戲㑣摢扥慤〴㌹攷戵扢㌱㝤捦て〲晦ㅦ㙥㑣捦㠱挲扣㌴攵㑢㙢㜷愱㕣㜷ㄷ搲ㅢ摣〵㈶昵挵㕤㤸㘷ㅦ㘶昷㤵扢㄰挶㐶捥〳戱戵扢挰㥣㕦㠲㔳ㄸ㑢挱挶挲ㅤ摣㤱敤㜷ㄸ㌷㍢㡤〳戹愶㡦㍣㍦っ㤸㍦㠱㐸搵㉤ㅢ搱㜳㠶㘷㌸〷〴㝦捡㌳㘱搸扣〵㥣昰㤶㉥散㜱㜰搳ㅡ改戴㐹っ㈳㡡扥敦挶㔹戶㜷慥ㅤ㤴㔲㤷ち敢㙢㜹㉤昷づ㈲㈸ㅡ昷㄰愹捦敥晢敥愹㝦昹捣ㄷ㐷㜳㔰㙢攰㔵晤〲㜰戴㐷㑣ㅤ㜷㤲捥愷㙦㠱㠴㙦散㄰挹捤晣搱捥ㄹ晣㝣挹㕥愹㥡攳㠶㈷㕥㤱慦㍢㔱㔱㌱㕦㡣㌹ㄵ〳敥〴㤷ㄳ㘷㈲㤴换㌹摣ㄲち㤵ㅦ㍤㐹昸㜰㌸㌶㜰㠹昷㐵㈹㐵慤慤㐱敢搰晢捣扥づ㤳昴㌶〷搲散㌵㜲㈷捡㑢搳扥ㄳ搹㍣㠵㐸愵㡥㉡昲㠳昲ㅡ㡦〴㐴㥡ち戹〹㜲㐹㝣㘳挳挳〲愲愹㍥㠵㐲昶〱㠰㠴慣㕢㙢晡㤷㌱㠲㕤㐵㘰搶て〴㜶昸〳ㄷ慣㈲愸ㄸ挵改㍢摤攱㌲ㅣ㄰㤹㈷愶㜱挵慦昹㌴ち戲㤹㈱㘲㈴挲㍥㠵㐲㜴㘵㡦愰戴敤㄰ㄵ㕦㔲㜴㔴㔲㑥〹㜶搶㘱晣慤攰㥣㜴㔷㜱㉡〴戶㈶㈷㐶挳摤㑢㌴㌶愸㤲扦㔳㑤ぢち㐵搸愷㡡昵㑥㍤㘱ㄵ散㤶㝢〰扢㔴㈴〶昹㉢㈲搶て㌵ㅥ㝤㜳㙢つ敤㥣摢㡤〹昲〳ㅦ散昶〴挱挶㕢㈹㌱搰戲摢㙡㤵㔷㐷挷㥦㐶ㄷ㑥㍡愵改㡤愲摣㙢捣㕦㐷㤲搵戵搱〷㘰㘶㕢㈴敢ㄹ昶㘶㡡扢挹〷㈸〱戱愵て愰ㅤ㘷㕦㝣昴㡢㘱㐱ㅣ㔴收㔶戶㑣攷㜰㐵㄰昱㐶㘲㐷㌶捡扡ㄴ㤹づ㔷愵㜹晣戰㔵㔵㡢〶㐷㉣㉣搳㝡㙣愲摥㤷晥㙤㑦㕢〵挸扣㔱昶ㅡ㔴㔰摢晥捤㝡㉢摡敤收ㄶ搱㜱摦ㄹ扢散搵晣㥡ㄵっ捥㈳㈱㍣挸摦愵㔹昰㝢挶戴㙦戶㉡戵㍢戱ㄲ扤ㄵ昴㌹㍢ぢ㠵㝤搶っ摥慤㍣㈵戳づ摢换㜲昰㌷㑡晤戱搴ㄳ慤㠳㝦㤳昵昸慡㔱挵捦㕡㘷ㄱ晦っ㠸摡ㄱ挶㑥㐵愱㕢㑦㙦㜰改㜰㝥敢㌱挴㠷捣敡㌰ㄲ㘷㌲㠵愷㥥攱扡戶慥㐱㜳摢㜰㙥㍥㕢㜶ㄶ㠳㉢㘴㕦〱㑤户昷㤶㘶㤶攱㍢昹㙢攵㠲づ摥愰㐳愳㡤攲㕢〴㘳〹〵㤲㠵ㅦ敤㔱〲㝣昴㘵㠰攸捡㡥愱戴晤〰㉦晢て㐰㈶挲ㅦ㠶㌳㠸㌶㔴㐵攸㙤ㅢ㔹㜴ㅢ㕤㌵挶㜴㌷㡣㐱㥢㡣戰㤷挲〲㥢㘸㡣ㅢ㔲㤸戵慦㘳㘱慥攱㠳㜲㉡攷〰戴㤷㡢慢㘸愶攲㄰㙣㡣㡢㜲愱㑤愳㈰㙦慤愱㤰ぢ㍦ㅡ挳ㄱ㠲㕤㠹㘳戹晢ㄵ散㜳㌱㙣㍦户挰ㄹ㝣㜴て愰搸愵㥤挳ㄷ㈵愳愰扤㠴㌷㤲㜲㡡〲〱㜱愰㠰㙣㙤㔰搶攳搶㐴攳搶㐶㘶昴㘵㜴戸㠶て敥㔳戹换〰敤㘷昴㈲㥡㙤㥣ㄱ㕤㔷ㄹ攵㝡㔸攰㡤㐶㌷㐵戰昱户昶㐷㘶㑥晦㉣慡昵攷〹㝥㤹攰㜳〰晤㔱换扥愷㜱挷ㄹ收㔴㘲攴〷攴㈱㕣㝦ㄷ㝥扦㌹晡挳ㅢ扣晥㜳㔴ㄳ㤵㡤慡收戹㤵㠰㤱戹扤㄰㥦摢ㄷ㠰㙤㍦户捦㙤㌶户晥㡢攸㈳㙢晤㉢㈸㘰慤挹搵㌲慢㉦㠶〵摥昴㤳戵ㄹㅤ搲㝦㤵攰搷〸㝥㥤攰㐵㠲㉦ㄱ㝣㤹攰㉢〰㠵晥㠸攳㌵㘱㐲攲㈳っ捡愹㝥戲㥤扣昱㈵ㄴ㡡㕤晤㘴ㄳ㜹昶㙦愰愰晦㈶挱㔷〹扥㐶㜰㤵攰户〰㡡改㝥㜲㡥㌴晣㍡㤱扦㑤昰㍢〴扦㑢昰㝢〴㉦〳愰㈱㤹㐹ㅡ㝥㠳挸㔷〸㕥㈵昸㈶挱敦ㄳ㕣〳㈸愶戳攴慦㡦戵㌷搴昴挳愳㕦ㅣ㈳昷搲昴搳攲㤳昸愹昰㍡てㄵ㜴攱㉦㈵㘴挵慢挸愴ㅦ改散㔹㤱㘷㑦愷㈰㝢ㄱ㘴㝡〷捦㈱戹ㅡ攱㕣㍥昱㈰㍥㜹挸㈵愵㐵㈸晢敤戰㈰㤴㈵㑢ぢ㌵㕥㐳愱搸㤵㈵摢㈶晣愰㑣晣㙥ㅥ扥攵晡收㔴搰㍦愷扣慤扣ㄳ㐶晢㜷㠴捤〹昳㌴㙤㕤㠵㕣㠷愷㑡戴㘷㈲㌱㍡㝤㕡愹ㄴ散㘲挲晣㈶挴㔸愵㜰㈸昶㕣㐸敤改愸昱昷慥㌷㐲㠰愸挰〵㔹㔷㡤愹ㅥ愴昱㔳㔱攳㈳昸㈵愰戴挱㤳搵昵㘶搴㤸㙡㐴ㅡ㝦㍡㙡晣ㅦ㐷づ搴ㅢ㐷㕡㐳㍤㌹㑢㤱㑥搸㐳挹慥㌲昶㔷〱晡搰㍣㙢搱㉦敢戱ㄴ㥡㡣㈹㐷ㄵ慡攲㤹昵攲〰㤲㠷摦攵捦攰㍣ㅤ㡥ㅤ挱㜸慢㍦捦㌱㡤㜳㜶㤳㐶㘰攰㘷昷㙢㌸摣攰改㜲挷捥㌹㙢搶〳愲摢㥡昶戱㔷慦散㈸ㄶ㠱㥢㤹㔱敢扢㐵昲㈷㘱㑢搲㔸㡦㈸㈱㥢收戹愵捥㥣ㄲ㐹攰㘵戴㈷㈳捡愶㕥㘸昰㡣晥㍡㠸〳㔳〷挸㠲晥〷㠰㉡攱挷ㄳ昲愹㝥㙡㙢ㄱ攳㍦㐴〱㙡㥣㝡㥡摡㑤㥢挷搳愸㔲挴㘲㙡搴摣㠲㍥ㄷ愲戹㙢㈸㘸搴攵㠲㝥㍣㐴敦ㄷ昴㡢ㄱ㝡㉥㐴昳㔰㐶㐱愳扥㤷搶戳㈱晡㕥㐱搳〲〸晡㙣㠸扥㑦搰戴〹㠲㍥ㄳ愲㘹㌷㘱挹〱挹㥦戹㍦〱攸㡢晥㘸换攰㥡挴〸搳摡㘳㘸㉣㠶㌸捥摥晡㜵㜶昸㍥㐰ㄷ搲ㄶ㕡㈸ㅣ〵晤つ㘰㘲㡢愱搱㤰挸㉢愷挲㔷慡挹搳戴〸晡㘴㠸㔶㤳愷戱ㄱ昴㘴㠸㔶㤳愷昹ㄱ昴㐴㠸㔶㤳扦ㅡ愱挷㐳戴㥡㍣㑤㤴戴ㅥぢ搱㙡昲戴㔴㠲㝥㌴㐴慢㤱搰㜶〹㝡㌴㐴慢㤱搰㥡〹晡ㄳ㈱㕡㡤㠴昶㑤搰㈷㐲戴ㅡ〹㉤㥥愰㍦ㅥ愲搵㐸㘸〳〵晤戱㄰慤㐶㐲㔳㈸攸㐷㐲戴ㅡ挹㉢ㄱ晡㜸㠸㔶㈳愱戹㤴搶て㠷㘸㌵ㄲㅡ㔰㐱ㅦぢ搱㙡㈴㌴愹㠲晥㘸㠸㔶㈳愱㤱ㄵ昴搱㄰㉤㈳改愷昹ㄱ㔶扤㠱〲㔸㤵㠶㐷㥡㍤ㄸ㌶㝢ㄲ㠸㝣㕡换扥㡥敦㙤换ㅥ㈵愳㐳㕦昹㙦搰㔵愳㐰昱ㄹ晡摦㠶〵摥㘸㤴㈶ㄹ摢攱㜰㙣愳㙣昲昷慣扡づ挰ㄱ敡晦挰㍢戲愰㜴晦挷戰㈰摤㌹㐳改㝥㈸摥晤挷㙣㈲㉦㐵愱挹慦敢攷换㘵㙤晥〹㠵㘲㔷ㅦ摦昴〴㍥改㉢㕡昹㘲攵攲挵㥦昵㘵〶て㘶㥥㝣戴昷攵㌷晦晡愷㔷㝦昴昴㠹㝦晦昹慢慦晥攸㕦慦摥昸昹㥦㉤㥥昸换搷㕥晢㡢㑦㕥扢昱搳扤搶户搲搷㝦㌶昳慤攷㐷㉥㍤晦㥣㜵晥晥㔳捦㝦敡搹挷㐷收㙥ㅡ敡敡敡敥扥㘷攰慦㙥扤户晦㠵攷摥搰晥晣㈷户戸㥡っㅥ㉦㘸ㅥ〶㈷㈱挳昸〹ちㄸ〶㐷晣㥥づ㠳搳㤵㠵扡㍢㕣愸㜱㈰攸戴㜰〰㔲㜱㔷㜳㐵捦晦〰〵ㄵ㠸ㅤ
A31: Decisioneering:7.0.0.0 | B31: Decisioneering:7.0.0.0 | D31: Decisioneering:7.0.0.0
D32: CB_Block_7.0.0.0:1
D34: Decisioneering:7.0.0.0

Sheet Instructions (hidden)
A1: FHWA COST ESTIMATE REVIEW (CER) TEMPLATE
B2: At a very basic level this template takes estimate's current year (CY) costs and inflates it to the year of expenditure (YOE).
B3: Large Major Projects are often broken into several project segments, sometimes spanning many years.
B4: Costs that occur at different points in time should be inflated separately to account for the varying durations.
B5: Project segments are further divided into Project Phases to include Preliminary Engineering(PE), Environmental Mitigation(EM), Utilities(UT), Right of Way(ROW), and Construction (CN) because these costs usually occur at different points in time, have different durations, and therefore need to be separated to compute their year of expenditure. Construction Engineering(CE) and Change Orders (CO) are often associated with CN. Phases that occur at approximately the same time are grouped together. For example, PE+FD+EM, UT+ROW, and CN+CE+CO
B6: The estimate must include all prior costs paid to date by the project account
B7: The project sponsor's estimate should be examined to identify the costs for PE, ROW, and CN for each project segment.
B8: Large Major Projects occuring over many years are often broken into discrete project segments based on the avaibility of project funds to support PE, ROW and CN phases
B9: Contingency should be identified and removed from the base. However, that portion of contingency that includes allowances or construction change orders should remain in the base estimate.
B10: Contingency should be discussed with the project sponsor to understand what it represents.
A12: General Use
B13: This spreadsheet should only be used by an advanced Excel user who is proficient at using Oracle Crystal Ball, familiar with establishing Project Segments/Phases and expert at solving spreadsheet problems. New users should shadow more experienced users before attempting to conduct a cost estimate review using this template.
B14: The FHWA CER guidance should be referenced for details about process and terminology.
B15: The spreadsheet formulas must be adjusted to reflect the specific details of the each project.
B16: In general, entries should be made in yellow shaded cells.
B17: Lime Green shaded cells are reserved for Crystal Ball except for column headings.
B18: Formulas and cell references will need to be established to represent your specific major project.
A20: Names
B21: The Names sheet is where Excel Named Ranges are defined.
B22: The named ranges are used as Data Validation inputs.
B23: The breakout for Project Phase assignment should remain somewhat consistent (PE, ROW, and CN)
B24: It is most likely that the naming convention will need to be updated for the Segment under review.
B25: Other costs can be included where appropriate i.e. Final Design (FD), Environmental Mitigation(EM) etc.
B26: Main purpose is to identify how to break the base cost into Project Phases, start dates, and durations.
B27: This information is used to identify where costs occur (base and risks) and how to apply inflation.
B28: This template recognizes a variety of Project Phases of costs. They can be changed on the Names tab if necessary.
C29: Phases that occur at approximately the same time and share similar inflation rates can be grouped together.
C30: It is important to group as many phases as possible to minimize the cancelling effect of uncorrelated distributions.
C31: 1) Preliminary Engineering (PE), Final Design(FD), or Environmental Mitigation (EM)
C32: 2) Right of Way (ROW) and Utility (UT)
C33: 3) Construction Costs (CN), Construction Engineering (CE), and Construction Change Orders (CO)
D35: Project Phase
D36: PE+FD+EM
D37: UT+ROW
D38: CN+CE+CO
D39: Total Segment
A41: BaseCost&Schedule
C42: The sequence of the segments and phases is represented by using start-finish, finish-start, or finish-finish, and nil logical relationships. This is for visulization purposes only and currently is not used by the model formulas.
D43: Logical Relationship
D44: Start - Start
D45: Start - Finish
D46: Finish - Start
D47: Finish - Finish
D48: Nil
C50: Breaking the base cost into too many segments should be avoided to prevent loss of variation in the base due to the canceling affect of uncorrelated distributions.
C51: For segments that occur more than say 7 to 10 years and further out consider retaining the contingency within the base estimate and not breaking into Phases.
D52: A benefit of this technique is that we are not forced to identify risks that occur too far out into the future.
D53: A benefit of this technique is that we limit the number of distribution curves that must be modeled.
D54: The cost and schedule risk in this case is modeled within the risk register using AASHTO estimates of contingency and discussions with the Project sponsor.
B55: Schedule: Projectwide Duration Analysis
C56: The purpose of this section is to identify where projectwide risks occur and how to apply inflation.
B57: Base Costs: Prior and Fixed Costs:
C58: Enter all prior expended and fixed costs charged to the project account.
B59: Base Cost and Schedule Estimate and Variability:
C60: Some segment on Major Projects may occur far into the future and identifying these risks may create additional uncertainty.
D61: For segment that occur greater than 7 years into the future the CER team may choose to model risk using the Project Sponsor's estimate of contingency.
C62: For segment that retain contingency:
D63: Do not model variation or market condition around the cost or schedule for these segments
D64: This will be accounted for in the risk register.
C65: Base variability is a measure of uncertainty and variability associated with the estimating process
C66: Base variability is a function of the projects current level of design and the process used to develop the estimate
C67: Base variability usually does not exceed +/- 5 to 15% of the total construction and right-of-way costs depending on the level of design.
D68: At the 89-90% level of design base variability would be around 5 to 2%
D69: At the 20-30% level of design base variability would be around 15 to 10%
B70: Market Conditions: Probability (i.e. likelihood)
C71: This section is used to determine the probability (likeliehood) of the better than planned, worse than planned market condition scenarios.
C72: Market conditions is a function of the anticipated level of competition at the time of project letting.
C73: Enter the probability estimates into the yellow shaded cells and copy and paste into the CB cells.
C74: Pcalcs are probability calculations used for 3 mutually exclusive events
B75: Market Conditions: Impact (i.e. offset from base)
C76: This section is used to determine the impact for the better than planned and worse than planned distribution curves.
C77: Impact is defined by the percentage offset from the as-planned distribution curve.
C78: Enter the percent offset into the yellow shaded cells.
B79: Market Condition "Values" Carry Forward to YOE Sheet
C80: This section is used to compute the market condition cost estimate in current year dollars
C81: Crystal ball assumption curves must utilize a hardcoded value to function properly. Copy and paste the appropriate cells using the guidance provided in the columns
A82: Risk Identification
B83: Use this sheet to identify risks for inclusion in the risk register
B84: The Project phases in the Risk identification tab were classified as listed below
D85: Structures and Geo Tech/Soils
D86: Pavement
D87: Traffic
D88: R/W, Utilities and Railroads
D89: Design
D90: Maintenance
D91: Public/Local Gov't Involvement & Project Management
D92: Scheduling and Funding
D93: Environmental & Drainage
D94: Inflation, Delivery and Contingencies
D95: Construction
A96: Risk Register
B97: The purpose of the risk register is to provide an area to quantify the effects of both cost and schedule risks. | K97: Help Me (Click Me)
B98: Where necessary, establish appropriate linkages to basecost to model segments were cost and schedule contingency was retained | K98: (Video: Show Me)
B99: The risk register accounts for the relationship of a prior risks so the order of risks is important.
B100: The relationships that can be modeled include independent, mutually inclusive, and mutually exclusive.
B101: Independent- the risk is independent of the previous risk. Mutually Inclusive(MI)- the risk may occur only when the previous risk occurs. Mutually Exclusive (ME)- the risk may occur when the above risk doesn't occur.
B102: The Project Phase assignment and Segment is used to identify how to inflate risk register costs.
B103: Ensure that all risks are correctly categorized by the Project Phase and project Segment
B104: Projectwide, minor aggregate, and unidentified risk may also be defined in the Risk register. There is no requirement that projectwide or minor aggreagate risks be defined. How risks are defined depends on each cost estimate review.
A106: Correlation
B107: The correlation between two variables (X and Y) measures the strength of the linear relationship between them. The correlation coefficient is always between −1 and 1. Positive values of the correlation coefficient indicate that greater values of one variable are associated with greater values of the other. Negative values of the correlation coefficient indicate that greater values of one variable are associated with lesser values of the other. Values of the correlation coefficient close to 1 or to −1 indicate a strong linear relationship. Values close to 0 indicate a weak linear relationship. The correlation coefficient equal to 1 (or to −1) means that the variables move entirely together (perfect linear relationship); and the correlation coefficient of 0 means that there is no relationship between the two variables—they are uncorrelated.
B108: A highway construction project is often divided by several segments and includes variety of risks and uncertainties. These segments are generally correlated. Similarly, the risk factors within the segments or between segments are not always uncorrelated. As a result, it is necessary to estimate a correlation between segments or risk factors in the probabilistic estimating process. There are two types of correlation: subjective and objective correlation. The subjective correlation involves assigning measures of correlation between variables by using experienced personnel or experts due to lack of data. The objective correlation between two variables is determined based on statistical analysis methods and sampling procedures and simulations which often require a high volume of data available.
B109: Estimating correlations between project segments or risk variables is a challenging task. For example, it is difficult for the estimator to estimate the correlation coefficient between Design Phase (PE+ FD+EM) and Construction Phase (CN+CE+CO) or between geotechnical risk and foundation risk. However, although the estimators may not know the correlation coefficients between these items, they may know that these costs associated with these items are highly positively correlated. This means that if there is a tendency for cost of geotechnical risk to go up, that will cause the cost of foundation structure to increase. The researchers show that most of the correlation values in cost estimating are positive correlations, i.e., values between 0 and 1 (Touran, 1992).
B110: Correlations between project segments/phases or risk variables can be qualitatively assessed by experienced personnel. Based on the previous experience and specific conditions, the experts can estimate the correlation as low, moderate, or high.
B112: Correlations Between Segments and Phases:
B114: The template includes the option to model correlations between segments and phases. Some segment/phases might be related (e.g., because of a common underlying factor), such that if one segment/phase is on the high end of its range in market values, the related segment/phase would also tend to be on the high end of its range (positive correlation) or on the low end of its range (negative correlation).
B115: Segment/phase correlations should be input by the FHWA modeler after gaining a solid understanding of the questions that follow. Inclusion of correlations will not change the mean output, but it will increase the dispersion (std. dev. and 70-80% confidence interval) of the results. When the FHWA modeler believes that correlations exist, they should be included. However, the correlation function should not be “abused” by simply adding correlations to drive a wider dispersion in the model.
B116: Reasons for segment correlations include, but are not limited to, the following questions:
C117: To maintain transparency correlation assumptions must be documented. If they are not defensible they should not be established.
C118: Consider the following questions when deciding to correlate segments and phases.
C119: If constructed within approximately the same timeframe then possibly correlate and consider the additional questions.
D120: built with similar construction processes and materials?
D121: create a strain on contractor pool for other reasons?
D122: likely to experience similar third party contexts (e.g., in the same town, county, etc.)?
D123: likely to experience similar internal department contexts (e.g., changes in leadership, competing resources, etc.)?
D124: financed by the same sources of funding?
D125: of other reasons?
C126: If not constructed within the same timeframe - definetely do not correlate.
D127: ROW and Construction should not be correlated regardless of timeframe because they are NOT related in any tangible way.
B129: Correlations Between Risks in Risk Register:
B131: The template includes the option to model correlations between risks in the risk register. Some risks might be related (e.g., because of a common underlying factor), such that if one risk is on the high end of its range, the related risk would also tend to be on the high end of its range (positive correlation) or on the low end of its range (negative correlation).
B132: Similar to the segment/phase correlations, risk correlations should be input by the FHWA modeler after gaining a solid understanding of the questions that follow. It is not suggested to ask the workshop participants about the correlations directly as they generally do not have experience or training to make these judgements.
B133: As previously stated, FHWA modelers should include these correlations when they believe that there is a basis for the correlation, but they should not include correlations simply with the goal of increasing the dispersion of the output.
B134: Reasons for segment correlations include, but are not limited to, the following questions:
C135: Are two risks related (positively or negatively) because:
C136: their impact stems from the same construction materials and/or processes?
C137: the estimates of their impact could be affected by similar external conditions (e.g., escalation, public involvement)?
C138: the estimates of their impact could be affected by similar internal project factors (e.g., influence of management, organizational priorties)?
C139: their probability of occurrence is affected by similar external conditions?
C140: their probability of occurrence is affected by similar internal project factors?
C141: the occurrence of one risk does not trigger the other risk, but it increases (positive correlation) or decreases (negative correlation) the likelihood?
C142: risks may occur at the same timeframe but are not directly modeled as such in the schedule?
C143: of other reasons?
B146: Correlation can be modeled in Crystal Ball using a correlation matrix tool. When using the correlation matrix tool, Crystal Ball automatically refers the correlation coefficients to a matrix that it creates in the spreadsheet. It is noted that when assigning subjective correlation in Crystal Ball, inconsistent issues may arise in correlation matrix. Crystal Ball provides an option to adjust inconsistent to consistent coefficients before running simulation. This adjustment is not a matter with regard to the correlation evaluation.
D149: Correlation Assessments
D150: High Positive | F150: Suggestion of Correlation Coefficients (Risk Assessors Handbook, 2010)
D151: Moderate Positive
D152: Low Positive | F152: High | G152: 0.75
D153: High Negative | F153: Moderate | G153: 0.5
D154: Moderate Negative | F154: Low | G154: 0.25
D155: Low Negative
D156: Nil
A158: AggMinRisks | B158: This sheet should be used to document any minor or less significant risks that are identified during the review.
B159: The review team may determine a threshold for cost and/or schedule that would trigger a risk to be categorized a minor risk.
B160: The aggregate minor risk table can also be a good tool where the risk facilitator can acknowledge risks in order to move the discussion along.
A162: Adjustments | B162: This sheet is used to document changes made during the review to the total project costs as submitted by the project sponsor.
B163: All changes should be shown in current year dollars.
B164: Costs are not shown in year of expenditure dollars to avoid comparing the Project Sponsor's estimate that included contingency to the post review estimate that includes a risk register. The two are not comparable.
A166: Inflation | B166: Use this sheet to determine the appropriate end of year inflation factor.
A169: Year of Expenditure (YOE) | B169: The YOE sheet inflates the base costs and risk costs to their appropriate YOE based on their phase assignment
B170: All forecast curves are defined on this sheet. This forecast curves include the total project costs (YOE), total project cost (CY), and project completion date.
B171: In addition to the total project forecast curves, if the project is not fully funded, apply a forecast curve to each funded phase.
A174: Report | B174: This sheet is provided to document the final results of the crystal bll simulation used in the final report. On the crystal ball ribbon under Create Report users should set report Preferences/Options to current workbook and ensure the sheet name is identified as report as shown in the image below. This will prevent users from including non related reports in the final spreadsheet
A190: TeachMe | B190: CER concept videos
B191: For an instructional video that explains the CER template in detail, please click the following link.
B192: (Show Me)
A194: Resources
B195: This Sheet details the useful links and basic conceptual ideas of techniques and methods adapted in this template
A197: Best Practices | B197: Base Estimate should clearly separate out contingency and allowances – prevents double counting.
B198: Project risks should be evaluated separately from the base estimate.
B199: Review risk register with team prior to the CER. Risk should be identified & quantified.
B200: Limit the number of variables modeled in Crystal Ball.
B201: Limit the number of phases evaluated.
B202: Clearly define (prior to the review) inflation and escalation. These were used interchangeably.
B203: Incorporate market condition impacts into our model.

Sheet Disclaimer
A1: Updates
A2: This excel template is regularly updated by FHWA. Please contact Ian.Cavanaugh@dot.gov to ensure you have the latest version before use.
A4: Add-ins
A5: This template uses Oracle Crystal Ball add-in. Please ensure you have installed the right add-in (32/64 bit) for your version of Excel.
A7: Limited Warranty and Limitations of Remedies
A8: This software product is provided “as‐is,” without warranty of any kind, either expressed or implied (but not limited to the implied
A9: warranties of merchantability and fitness for a particular purpose). The Federal Highway Administration (FHWA) and distributor do
A10: not warrant that the functions contained in the software will meet the end‐user's requirements or that the operation of the
A11: software will be uninterrupted and error‐free. Under no circumstances will the FHWA or the distributor be liable to the end user for
A12: any damages or claimed lost profits, lost savings, or other incidental or consequential damages rising out of the use or inability to
A13: use the software (even if these organizations have been advised of the possibility of such damages), or for any claim by any other
A14: party.
A16: Notice
A17: The use and testing of the software is being done strictly on a voluntary basis. In exchange for the provision of
A18: software, the user agrees that the Federal Highway Administration, U.S. Department of Transportation, any other agency of the
A19: Federal Government or distributor shall not be responsible for any errors, damage or other liability that may result from any and all
A20: use of the software, including installation and testing of the software. The user further agrees to hold the FHWA, the Federal
A21: Government, and distributor harmless from any resulting liability. The user agrees that this hold harmless provision shall flow to any
A22: person to whom or any entity to which the user provides the software. It is the user's full responsibility to inform any person
A23: to whom or any entity to which it provides the software of this hold harmless provision.
A24: The origin of this software must not be misrepresented; there shall be no claim that this software is the product of or written
A25: by any individual, company or organization other than the Federal Government. Altered versions of this software shall be
A26: plainly marked as ‘altered’ and must not be misrepresented as being the original software. This notice may not be removed
A27: or altered from any distribution, recording, copy, or use of this software.

Sheet InputSource (hidden)
A1: Reference:
A2: SLIDING SCALE CONTINGENCIES FOR THE HIGHWAY CONSTRUCTION
A3: Thesis by Adeniyi O. Olumide, Jr.
A4: Texas A&M University
A5: 2009-12-01
A6: Advisor: Stuart D. Anderson
A7: Source: | B7: https://design.transportation.org/wp-content/uploads/sites/21/2019/09/Sliding-Scale-Contingencies-for-the-Highway-Construction-Project-Development-Process.pdf
A9: Project Complexity
A10: Non-complex
A11: Moderately complex
A12: Most complex
A15: =ProjectComplexity -> Moderately complex | C15: Defintion | D15: Defintion | E15: Defintion | F15: Defintion | G15: Contingency | H15: Contingency | I15: Contingency | J15: Contingency
A16: Project Complexity | B16: Project Type | C16: Phase Description | D16: LowLevelDefinition | E16: MidLevelDefintion | F16: HighLevelDefinition | G16: RangeDefinition | H16: Low | I16: MLE | J16: High | K16: ContingencyRange | N16: Highlighted values show very minor changes from Olumide paper for project defintion. Changes were made so there would not be any gaps in level of definition.
A17: Non-complex | B17: =CONCATENATE(SlidingScaleContingencies[[#This Row],[Project Complexity]],", ",SlidingScaleContingencies[[#This Row],[RangeDefinition]],"%") -> Non-complex, 1-5% | C17: 10 to 20 yrs from letting | D17: 1 | E17: =AVERAGE(SlidingScaleContingencies[[#This Row],[LowLevelDefinition]],SlidingScaleContingencies[[#This Row],[HighLevelDefinition]]) -> 3 | F17: 5 | G17: =CONCATENATE(SlidingScaleContingencies[[#This Row],[LowLevelDefinition]],"-",SlidingScaleContingencies[[#This Row],[HighLevelDefinition]]) -> 1-5 | H17: 23 | I17: 35 | J17: 55 | K17: =CONCATENATE(SlidingScaleContingencies[[#This Row],[Low]],"-",SlidingScaleContingencies[[#This Row],[High]]) -> 23-55
A18: Non-complex | B18: =CONCATENATE(SlidingScaleContingencies[[#This Row],[Project Complexity]],", ",SlidingScaleContingencies[[#This Row],[RangeDefinition]],"%") -> Non-complex, 5-15% | C18: 5 to 10 yrs from letting | D18: 5 | E18: =AVERAGE(SlidingScaleContingencies[[#This Row],[LowLevelDefinition]],SlidingScaleContingencies[[#This Row],[HighLevelDefinition]]) -> 10 | F18: 15 | G18: =CONCATENATE(SlidingScaleContingencies[[#This Row],[LowLevelDefinition]],"-",SlidingScaleContingencies[[#This Row],[HighLevelDefinition]]) -> 5-15 | H18: 20 | I18: 30 | J18: 45 | K18: =CONCATENATE(SlidingScaleContingencies[[#This Row],[Low]],"-",SlidingScaleContingencies[[#This Row],[High]]) -> 20-45
A19: Non-complex | B19: =CONCATENATE(SlidingScaleContingencies[[#This Row],[Project Complexity]],", ",SlidingScaleContingencies[[#This Row],[RangeDefinition]],"%") -> Non-complex, 15-40% | C19: 4 yrs or less from letting | D19: 15 | E19: =AVERAGE(SlidingScaleContingencies[[#This Row],[LowLevelDefinition]],SlidingScaleContingencies[[#This Row],[HighLevelDefinition]]) -> 27.5 | F19: 40 | G19: =CONCATENATE(SlidingScaleContingencies[[#This Row],[LowLevelDefinition]],"-",SlidingScaleContingencies[[#This Row],[HighLevelDefinition]]) -> 15-40 | H19: 15 | I19: 20 | J19: 30 | K19: =CONCATENATE(SlidingScaleContingencies[[#This Row],[Low]],"-",SlidingScaleContingencies[[#This Row],[High]]) -> 15-30
A20: Non-complex | B20: =CONCATENATE(SlidingScaleContingencies[[#This Row],[Project Complexity]],", ",SlidingScaleContingencies[[#This Row],[RangeDefinition]],"%") -> Non-complex, 40-70% | C20: less than 4 yrs from letting | D20: 40 | E20: =AVERAGE(SlidingScaleContingencies[[#This Row],[LowLevelDefinition]],SlidingScaleContingencies[[#This Row],[HighLevelDefinition]]) -> 55 | F20: 70 | G20: =CONCATENATE(SlidingScaleContingencies[[#This Row],[LowLevelDefinition]],"-",SlidingScaleContingencies[[#This Row],[HighLevelDefinition]]) -> 40-70 | H20: 10 | I20: 15 | J20: 22 | K20: =CONCATENATE(SlidingScaleContingencies[[#This Row],[Low]],"-",SlidingScaleContingencies[[#This Row],[High]]) -> 10-22
A21: Non-complex | B21: =CONCATENATE(SlidingScaleContingencies[[#This Row],[Project Complexity]],", ",SlidingScaleContingencies[[#This Row],[RangeDefinition]],"%") -> Non-complex, 70-100% | C21: less than 4 yrs from letting | D21: 70 | E21: =AVERAGE(SlidingScaleContingencies[[#This Row],[LowLevelDefinition]],SlidingScaleContingencies[[#This Row],[HighLevelDefinition]]) -> 85 | F21: 100 | G21: =CONCATENATE(SlidingScaleContingencies[[#This Row],[LowLevelDefinition]],"-",SlidingScaleContingencies[[#This Row],[HighLevelDefinition]]) -> 70-100 | H21: 5 | I21: 9 | J21: 15 | K21: =CONCATENATE(SlidingScaleContingencies[[#This Row],[Low]],"-",SlidingScaleContingencies[[#This Row],[High]]) -> 5-15
A22: Moderately complex | B22: =CONCATENATE(SlidingScaleContingencies[[#This Row],[Project Complexity]],", ",SlidingScaleContingencies[[#This Row],[RangeDefinition]],"%") -> Moderately complex, 1-10% | C22: 10 to 20 yrs from letting | D22: 1 | E22: =AVERAGE(SlidingScaleContingencies[[#This Row],[LowLevelDefinition]],SlidingScaleContingencies[[#This Row],[HighLevelDefinition]]) -> 5.5 | F22: 10 | G22: =CONCATENATE(SlidingScaleContingencies[[#This Row],[LowLevelDefinition]],"-",SlidingScaleContingencies[[#This Row],[HighLevelDefinition]]) -> 1-10 | H22: 30 | I22: 50 | J22: 75 | K22: =CONCATENATE(SlidingScaleContingencies[[#This Row],[Low]],"-",SlidingScaleContingencies[[#This Row],[High]]) -> 30-75
A23: Moderately complex | B23: =CONCATENATE(SlidingScaleContingencies[[#This Row],[Project Complexity]],", ",SlidingScaleContingencies[[#This Row],[RangeDefinition]],"%") -> Moderately complex, 10-25% | C23: 5 to 10 yrs from letting | D23: 10 | E23: =AVERAGE(SlidingScaleContingencies[[#This Row],[LowLevelDefinition]],SlidingScaleContingencies[[#This Row],[HighLevelDefinition]]) -> 17.5 | F23: 25 | G23: =CONCATENATE(SlidingScaleContingencies[[#This Row],[LowLevelDefinition]],"-",SlidingScaleContingencies[[#This Row],[HighLevelDefinition]]) -> 10-25 | H23: 25 | I23: 40 | J23: 60 | K23: =CONCATENATE(SlidingScaleContingencies[[#This Row],[Low]],"-",SlidingScaleContingencies[[#This Row],[High]]) -> 25-60
A24: Moderately complex | B24: =CONCATENATE(SlidingScaleContingencies[[#This Row],[Project Complexity]],", ",SlidingScaleContingencies[[#This Row],[RangeDefinition]],"%") -> Moderately complex, 25-35% | C24: 4 yrs or less from letting | D24: 25 | E24: =AVERAGE(SlidingScaleContingencies[[#This Row],[LowLevelDefinition]],SlidingScaleContingencies[[#This Row],[HighLevelDefinition]]) -> 30 | F24: 35 | G24: =CONCATENATE(SlidingScaleContingencies[[#This Row],[LowLevelDefinition]],"-",SlidingScaleContingencies[[#This Row],[HighLevelDefinition]]) -> 25-35 | H24: 20 | I24: 30 | J24: 40 | K24: =CONCATENATE(SlidingScaleContingencies[[#This Row],[Low]],"-",SlidingScaleContingencies[[#This Row],[High]]) -> 20-40
A25: Moderately complex | B25: =CONCATENATE(SlidingScaleContingencies[[#This Row],[Project Complexity]],", ",SlidingScaleContingencies[[#This Row],[RangeDefinition]],"%") -> Moderately complex, 35-70% | C25: less than 4 yrs from letting | D25: 35 | E25: =AVERAGE(SlidingScaleContingencies[[#This Row],[LowLevelDefinition]],SlidingScaleContingencies[[#This Row],[HighLevelDefinition]]) -> 52.5 | F25: 70 | G25: =CONCATENATE(SlidingScaleContingencies[[#This Row],[LowLevelDefinition]],"-",SlidingScaleContingencies[[#This Row],[HighLevelDefinition]]) -> 35-70 | H25: 14 | I25: 20 | J25: 30 | K25: =CONCATENATE(SlidingScaleContingencies[[#This Row],[Low]],"-",SlidingScaleContingencies[[#This Row],[High]]) -> 14-30
A26: Moderately complex | B26: =CONCATENATE(SlidingScaleContingencies[[#This Row],[Project Complexity]],", ",SlidingScaleContingencies[[#This Row],[RangeDefinition]],"%") -> Moderately complex, 70-100% | C26: less than 4 yrs from letting | D26: 70 | E26: =AVERAGE(SlidingScaleContingencies[[#This Row],[LowLevelDefinition]],SlidingScaleContingencies[[#This Row],[HighLevelDefinition]]) -> 85 | F26: 100 | G26: =CONCATENATE(SlidingScaleContingencies[[#This Row],[LowLevelDefinition]],"-",SlidingScaleContingencies[[#This Row],[HighLevelDefinition]]) -> 70-100 | H26: 7 | I26: 10 | J26: 20 | K26: =CONCATENATE(SlidingScaleContingencies[[#This Row],[Low]],"-",SlidingScaleContingencies[[#This Row],[High]]) -> 7-20
A27: Most complex | B27: =CONCATENATE(SlidingScaleContingencies[[#This Row],[Project Complexity]],", ",SlidingScaleContingencies[[#This Row],[RangeDefinition]],"%") -> Most complex, 1-15% | C27: 10 to 20 yrs from letting | D27: 1 | E27: =AVERAGE(SlidingScaleContingencies[[#This Row],[LowLevelDefinition]],SlidingScaleContingencies[[#This Row],[HighLevelDefinition]]) -> 8 | F27: 15 | G27: =CONCATENATE(SlidingScaleContingencies[[#This Row],[LowLevelDefinition]],"-",SlidingScaleContingencies[[#This Row],[HighLevelDefinition]]) -> 1-15 | H27: 40 | I27: 60 | J27: 100 | K27: =CONCATENATE(SlidingScaleContingencies[[#This Row],[Low]],"-",SlidingScaleContingencies[[#This Row],[High]]) -> 40-100
A28: Most complex | B28: =CONCATENATE(SlidingScaleContingencies[[#This Row],[Project Complexity]],", ",SlidingScaleContingencies[[#This Row],[RangeDefinition]],"%") -> Most complex, 15-35% | C28: 5 to 10 yrs from letting | D28: 15 | E28: =AVERAGE(SlidingScaleContingencies[[#This Row],[LowLevelDefinition]],SlidingScaleContingencies[[#This Row],[HighLevelDefinition]]) -> 25 | F28: 35 | G28: =CONCATENATE(SlidingScaleContingencies[[#This Row],[LowLevelDefinition]],"-",SlidingScaleContingencies[[#This Row],[HighLevelDefinition]]) -> 15-35 | H28: 35 | I28: 50 | J28: 80 | K28: =CONCATENATE(SlidingScaleContingencies[[#This Row],[Low]],"-",SlidingScaleContingencies[[#This Row],[High]]) -> 35-80
A29: Most complex | B29: =CONCATENATE(SlidingScaleContingencies[[#This Row],[Project Complexity]],", ",SlidingScaleContingencies[[#This Row],[RangeDefinition]],"%") -> Most complex, 35-75% | C29: 4 yrs or less from letting | D29: 35 | E29: =AVERAGE(SlidingScaleContingencies[[#This Row],[LowLevelDefinition]],SlidingScaleContingencies[[#This Row],[HighLevelDefinition]]) -> 55 | F29: 75 | G29: =CONCATENATE(SlidingScaleContingencies[[#This Row],[LowLevelDefinition]],"-",SlidingScaleContingencies[[#This Row],[HighLevelDefinition]]) -> 35-75 | H29: 20 | I29: 30 | J29: 49 | K29: =CONCATENATE(SlidingScaleContingencies[[#This Row],[Low]],"-",SlidingScaleContingencies[[#This Row],[High]]) -> 20-49
A30: Most complex | B30: =CONCATENATE(SlidingScaleContingencies[[#This Row],[Project Complexity]],", ",SlidingScaleContingencies[[#This Row],[RangeDefinition]],"%") -> Most complex, 75-100% | C30: less than 4 yrs from letting | D30: 75 | E30: =AVERAGE(SlidingScaleContingencies[[#This Row],[LowLevelDefinition]],SlidingScaleContingencies[[#This Row],[HighLevelDefinition]]) -> 87.5 | F30: 100 | G30: =CONCATENATE(SlidingScaleContingencies[[#This Row],[LowLevelDefinition]],"-",SlidingScaleContingencies[[#This Row],[HighLevelDefinition]]) -> 75-100 | H30: 10 | I30: 20 | J30: 30 | K30: =CONCATENATE(SlidingScaleContingencies[[#This Row],[Low]],"-",SlidingScaleContingencies[[#This Row],[High]]) -> 10-30
A33: Definition Range | D33: Contingency Range
A34: Non-complex | B34: Moderately complex | C34: Most Complex (Major Project) | D34: =A34 -> Non-complex | E34: =B34 -> Moderately complex | F34: Most Complex (Major Project)
A35: =G17 -> 1-5 | B35: =G22 -> 1-10 | C35: =G27 -> 1-15 | D35: =K17 -> 23-55 | E35: =K22 -> 30-75 | F35: =K27 -> 40-100
A36: =G18 -> 5-15 | B36: =G23 -> 10-25 | C36: =G28 -> 15-35 | D36: =K18 -> 20-45 | E36: =K23 -> 25-60 | F36: =K28 -> 35-80
A37: =G19 -> 15-40 | B37: =G24 -> 25-35 | C37: =G29 -> 35-75 | D37: =K19 -> 15-30 | E37: =K24 -> 20-40 | F37: =K29 -> 20-49
A38: =G20 -> 40-70 | B38: =G25 -> 35-70 | C38: =G30 -> 75-100 | D38: =K20 -> 10-22 | E38: =K25 -> 14-30 | F38: =K30 -> 10-30
A39: =G21 -> 70-100 | B39: =G26 -> 70-100 | D39: =K21 -> 5-15 | E39: =K26 -> 7-20
A41: Cell Linkage | B41: Project Complexity | C41: Position | D41: DefRange | E41: ContRange
A42: =IFERROR(VLOOKUP(ProjectComplexity,InputSource!B42:C44,2,FALSE),"") -> 2 | B42: Non-complex | C42: 1 | D42: =IFERROR(IF(INDEX(A35:C39,,A42)=0,"",INDEX(A35:C39,,A42)),"") -> 1-10 | E42: =IFERROR(IF(INDEX(D35:F39,,A42)=0,"",INDEX(D35:F39,,A42)),"") -> 30-75
B43: Moderately complex | C43: 2 | D43: 10-25 | E43: 25-60
B44: Most complex | C44: 3 | D44: 25-35 | E44: 20-40
D45: 35-70 | E45: 14-30
D46: 70-100 | E46: 7-20
A48: Confirm Project Design Completion | B48: =IFERROR(VLOOKUP(ProjectDesignCompletion,HOME!H14:H18,1,FALSE),"") -> 25-35
A49: VlookupReffor Low and High | B49: =CONCATENATE(ProjectComplexity,", ",B48,"%") -> Moderately complex, 25-35%
A50: ContingencyTraditionalLow | B50: =IFERROR(VLOOKUP($B$49,SlidingScaleContingencies[[Project Type]:[ContingencyRange]],7,FALSE),"") -> 20
A51: ContingencyTraditionalMLE | B51: =IFERROR(VLOOKUP($B$49,SlidingScaleContingencies[[Project Type]:[ContingencyRange]],8,FALSE),"") -> 30
A52: ContingencyTraditionalHigh | B52: =IFERROR(VLOOKUP($B$49,SlidingScaleContingencies[[Project Type]:[ContingencyRange]],9,FALSE),"") -> 40
A54: Project Complexity Table:
A55: Non-complex | B55: Moderately complex | C55: Most complex
A56: =C85 -> Roadway: Maintenance betterment projects | B56: =C104 -> Roadway: 3R and 4R projects which do not add capacity. | C56: =C132 -> Roadway: New highways; major relocations
A57: =C86 -> Roadway: Overlay projects, simple widening without right-of-way (or very minimum right-of-way take) little or no utility coordination | B57: =C105 -> Roadway: Minor roadway relocations. | C57: =C133 -> Roadway: New interchanges
A58: Roadway: Non-complex enhancement projects without new bridges (e.g. bike trails) | B58: Roadway: Certain complex (non-trail enhancements) projects. | C58: Roadway: Capacity adding/major widening
A59: Traffic Control: Single traffic control/management projects | B59: Roadway: Slides, subsidence. | C59: Roadway: Major reconstruction (4R; 3R with multi-phase traffic control)
A60: Traffic Control: Non-ITS but minor safety improvements | B60: Traffic Control: Non-ITS but major safety improvements. | C60: Roadway: Congestion Management Studies are required
A61: Structures: Bridge resurfacing or repairs which do not require re-analysis of bridge capacity | B61: Traffic Control: Interconnected traffic control/management projects. | C61: Traffic Control: Multi-phased traffic control for highway or bridge construction that would mandate CPM during construction
A62: Structures: Pipes, box culverts or minor culvert replacements where design can be picked directly from design manual or standards or using simple software where detailed interpretation is not necessary | B62: Structures: Non-complex (straight geometry with minimal skew; designs using AASHTO description factors | C62: Traffic Control: Major ITS (Electronic surveillance, linkages) corridor project
A63: Structures: Sign structures for which the design can be picked up directly from either the standards or using design computer software | B63: Structures: minimal seismic analysis; | C63: Structures: Unusual (non conventional like segmental, cable stayed, major arches or trusses, steel box girders, movable bridges, etc.)
A64: Structures: Noise walls or retaining walls for which the design can be picked up directly from either the standards or using design computer software | B64: Structures: footings on rock or conventional piles and abutments) bridge replacements with minor (<610m [2,000 ft]) roadway approach work. | C64: Structures: Complex (sharp skewed (less than 70 degree) superstructure, non- conventional piers or abutments, horizontally curved girders,
A65: Right-of- Way: Involve minor right-of-way acquisitions with no displacements, maintain existing access control | B65: Structures: Bridge rehabilitation which requires re-analysis of bridge capacity. | C65: Structures: three dimensional structural analysis, non-conventional piles or caisson foundations, complex seismic analysis, etc.)
A66: Utilities: Minimal, if any | B66: Structures: Bridge mounted signs. | C66: Structures: Major (bridge cost of $5 Million or more-Federal definition)
A67: Environment: Categorical Exclusion (level 1A or 1B) | B67: Structures: Tie back walls. | C67: Structures: Unusual formations (caissons, uncommon piles, mines, Karst situation)
A68: Environment: Minimum interaction with environmental and permitting agencies | B68: Structures: Noise walls. | C68: Right-of-Way: Right-of-Way plans are needed and numerous relocations of residences or displacement of commercial and/or industrial properties are required.
A69: Environment: Minor environmental impacts as appropriate have a Statewide Wetland Finding | B69: Structures: Proprietary/non-proprietary walls. | C69: Right-of-Way: A few to over 20 property owners are involved. Major involvement of environmental clean-up. Before and after analysis
A70: Environment: Do not involve cultural resources, hazardous waste, Section 4(f) evaluations or substantial flood plain encroachments | B70: Right-of- Way: Right-of-Way plans needed with less than 20 moderate to significant claims and very few relocations or displacements. | C70: Utilities: Major utility (transmission lines, substations) relocations or heavy multi- utility coordination is involved
A71: Stakeholders: No public controversy | B71: Utilities: Some utility relocations, most of it prior to construction, but no major utility relocations. | C71: Environment: Environmental Impact Studies are required or complex Environmental Assessment without mitigated finding of no significant impact
B72: Environment: Categorical Exclusion level 2 or mitigated Environmental Assessment projects. | C72: Environment: Studies of multiple alternatives
B73: Environment: Cultural resources (historical, archeological, etc.). Coordination with Museum Commission, FHWA, and/or Advisory Council | C73: Environment: Continued public and elected officials involvement in analyzing and selecting alternates
B74: Environment: Wetland mitigation | C74: Environment: Other agencies (such as FHWA, COE, PHMC, Game Commission, Fish & Boat Commission, DEP, DCNR, EPA, Agricultural Board, etc.) are heavily involved.
B75: Environment: Parkland involvement | C75: Environment: Other agency involvement to protect air; water; games; fish, threatened and endangered species; cultural resources (historical, archaeological, parks, wetlands, etc), etc.
B76: Environment: Water and air pollution mitigation | C76: Stakeholders: Controversial (lack of consensus) and high profile projects. (Fast track design/construction, high public impact, high interaction of elected officials, etc.)
B77: Environment: Major coordination with Game or Fish and Boat commissions | C77: Stakeholders: Major coordination among numerous stakeholders is required.
B78: Environment: Endangered species
B79: Stakeholders: Involvement of public and public officials is moderate due to non- controversial project type
B80: Stakeholders: General communication about project progress is required
A84: Non-complex | B84: Characteristics | C84: Merge
A85: Roadway | B85: Maintenance betterment projects | C85: =CONCATENATE(A85,": ",B85) -> Roadway: Maintenance betterment projects
A86: Roadway | B86: Overlay projects, simple widening without right-of-way (or very minimum right-of-way take) little or no utility coordination | C86: Roadway: Overlay projects, simple widening without right-of-way (or very minimum right-of-way take) little or no utility coordination
A87: Roadway | B87: Non-complex enhancement projects without new bridges (e.g. bike trails) | C87: Roadway: Non-complex enhancement projects without new bridges (e.g. bike trails)
A88: Traffic Control | B88: Single traffic control/management projects | C88: Traffic Control: Single traffic control/management projects
A89: Traffic Control | B89: Non-ITS but minor safety improvements | C89: Traffic Control: Non-ITS but minor safety improvements
A90: Structures | B90: Bridge resurfacing or repairs which do not require re-analysis of bridge capacity | C90: Structures: Bridge resurfacing or repairs which do not require re-analysis of bridge capacity
A91: Structures | B91: Pipes, box culverts or minor culvert replacements where design can be picked directly from design manual or standards or using simple software where detailed interpretation is not necessary | C91: Structures: Pipes, box culverts or minor culvert replacements where design can be picked directly from design manual or standards or using simple software where detailed interpretation is not necessary
A92: Structures | B92: Sign structures for which the design can be picked up directly from either the standards or using design computer software | C92: Structures: Sign structures for which the design can be picked up directly from either the standards or using design computer software
A93: Structures | B93: Noise walls or retaining walls for which the design can be picked up directly from either the standards or using design computer software | C93: Structures: Noise walls or retaining walls for which the design can be picked up directly from either the standards or using design computer software
A94: Right-of- Way | B94: Involve minor right-of-way acquisitions with no displacements, maintain existing access control | C94: Right-of- Way: Involve minor right-of-way acquisitions with no displacements, maintain existing access control
A95: Utilities | B95: Minimal, if any | C95: Utilities: Minimal, if any
A96: Environment | B96: Categorical Exclusion (level 1A or 1B) | C96: Environment: Categorical Exclusion (level 1A or 1B)
A97: Environment | B97: Minimum interaction with environmental and permitting agencies | C97: Environment: Minimum interaction with environmental and permitting agencies
A98: Environment | B98: Minor environmental impacts as appropriate have a Statewide Wetland Finding | C98: Environment: Minor environmental impacts as appropriate have a Statewide Wetland Finding
A99: Environment | B99: Do not involve cultural resources, hazardous waste, Section 4(f) evaluations or substantial flood plain encroachments | C99: Environment: Do not involve cultural resources, hazardous waste, Section 4(f) evaluations or substantial flood plain encroachments
A100: Stakeholders | B100: No public controversy | C100: Stakeholders: No public controversy
A103: Moderately complex | B103: Characteristics | C103: Merge
A104: Roadway | B104: 3R and 4R projects which do not add capacity. | C104: =CONCATENATE(A104,": ",B104) -> Roadway: 3R and 4R projects which do not add capacity.
A105: Roadway | B105: Minor roadway relocations. | C105: Roadway: Minor roadway relocations.
A106: Roadway | B106: Certain complex (non-trail enhancements) projects. | C106: Roadway: Certain complex (non-trail enhancements) projects.
A107: Roadway | B107: Slides, subsidence. | C107: Roadway: Slides, subsidence.
A108: Traffic Control | B108: Non-ITS but major safety improvements. | C108: Traffic Control: Non-ITS but major safety improvements.
A109: Traffic Control | B109: Interconnected traffic control/management projects. | C109: Traffic Control: Interconnected traffic control/management projects.
A110: Structures | B110: Non-complex (straight geometry with minimal skew; designs using AASHTO description factors | C110: Structures: Non-complex (straight geometry with minimal skew; designs using AASHTO description factors
A111: Structures | B111: minimal seismic analysis; | C111: Structures: minimal seismic analysis;
A112: Structures | B112: footings on rock or conventional piles and abutments) bridge replacements with minor (<610m [2,000 ft]) roadway approach work. | C112: Structures: footings on rock or conventional piles and abutments) bridge replacements with minor (<610m [2,000 ft]) roadway approach work.
A113: Structures | B113: Bridge rehabilitation which requires re-analysis of bridge capacity. | C113: Structures: Bridge rehabilitation which requires re-analysis of bridge capacity.
A114: Structures | B114: Bridge mounted signs. | C114: Structures: Bridge mounted signs.
A115: Structures | B115: Tie back walls. | C115: Structures: Tie back walls.
A116: Structures | B116: Noise walls. | C116: Structures: Noise walls.
A117: Structures | B117: Proprietary/non-proprietary walls. | C117: Structures: Proprietary/non-proprietary walls.
A118: Right-of- Way | B118: Right-of-Way plans needed with less than 20 moderate to significant claims and very few relocations or displacements. | C118: Right-of- Way: Right-of-Way plans needed with less than 20 moderate to significant claims and very few relocations or displacements.
A119: Utilities | B119: Some utility relocations, most of it prior to construction, but no major utility relocations. | C119: Utilities: Some utility relocations, most of it prior to construction, but no major utility relocations.
A120: Environment | B120: Categorical Exclusion level 2 or mitigated Environmental Assessment projects. | C120: Environment: Categorical Exclusion level 2 or mitigated Environmental Assessment projects.
A121: Environment | B121: Cultural resources (historical, archeological, etc.). Coordination with Museum Commission, FHWA, and/or Advisory Council | C121: Environment: Cultural resources (historical, archeological, etc.). Coordination with Museum Commission, FHWA, and/or Advisory Council
A122: Environment | B122: Wetland mitigation | C122: Environment: Wetland mitigation
A123: Environment | B123: Parkland involvement | C123: Environment: Parkland involvement
A124: Environment | B124: Water and air pollution mitigation | C124: Environment: Water and air pollution mitigation
A125: Environment | B125: Major coordination with Game or Fish and Boat commissions | C125: Environment: Major coordination with Game or Fish and Boat commissions
A126: Environment | B126: Endangered species | C126: Environment: Endangered species
A127: Stakeholders | B127: Involvement of public and public officials is moderate due to non- controversial project type | C127: Stakeholders: Involvement of public and public officials is moderate due to non- controversial project type
A128: Stakeholders | B128: General communication about project progress is required | C128: Stakeholders: General communication about project progress is required
A131: Most complex | B131: Characteristics | C131: Merge
A132: Roadway | B132: New highways; major relocations | C132: =CONCATENATE(A132,": ",B132) -> Roadway: New highways; major relocations
A133: Roadway | B133: New interchanges | C133: Roadway: New interchanges
A134: Roadway | B134: Capacity adding/major widening | C134: Roadway: Capacity adding/major widening
A135: Roadway | B135: Major reconstruction (4R; 3R with multi-phase traffic control) | C135: Roadway: Major reconstruction (4R; 3R with multi-phase traffic control)
A136: Roadway | B136: Congestion Management Studies are required | C136: Roadway: Congestion Management Studies are required
A137: Traffic Control | B137: Multi-phased traffic control for highway or bridge construction that would mandate CPM during construction | C137: Traffic Control: Multi-phased traffic control for highway or bridge construction that would mandate CPM during construction
A138: Traffic Control | B138: Major ITS (Electronic surveillance, linkages) corridor project | C138: Traffic Control: Major ITS (Electronic surveillance, linkages) corridor project
A139: Structures | B139: Unusual (non conventional like segmental, cable stayed, major arches or trusses, steel box girders, movable bridges, etc.) | C139: Structures: Unusual (non conventional like segmental, cable stayed, major arches or trusses, steel box girders, movable bridges, etc.)
A140: Structures | B140: Complex (sharp skewed (less than 70 degree) superstructure, non- conventional piers or abutments, horizontally curved girders, | C140: Structures: Complex (sharp skewed (less than 70 degree) superstructure, non- conventional piers or abutments, horizontally curved girders,
A141: Structures | B141: three dimensional structural analysis, non-conventional piles or caisson foundations, complex seismic analysis, etc.) | C141: Structures: three dimensional structural analysis, non-conventional piles or caisson foundations, complex seismic analysis, etc.)
A142: Structures | B142: Major (bridge cost of $5 Million or more-Federal definition) | C142: Structures: Major (bridge cost of $5 Million or more-Federal definition)
A143: Structures | B143: Unusual formations (caissons, uncommon piles, mines, Karst situation) | C143: Structures: Unusual formations (caissons, uncommon piles, mines, Karst situation)
A144: Right-of-Way | B144: Right-of-Way plans are needed and numerous relocations of residences or displacement of commercial and/or industrial properties are required. | C144: Right-of-Way: Right-of-Way plans are needed and numerous relocations of residences or displacement of commercial and/or industrial properties are required.
A145: Right-of-Way | B145: A few to over 20 property owners are involved. Major involvement of environmental clean-up. Before and after analysis | C145: Right-of-Way: A few to over 20 property owners are involved. Major involvement of environmental clean-up. Before and after analysis
A146: Utilities | B146: Major utility (transmission lines, substations) relocations or heavy multi- utility coordination is involved | C146: Utilities: Major utility (transmission lines, substations) relocations or heavy multi- utility coordination is involved
A147: Environment | B147: Environmental Impact Studies are required or complex Environmental Assessment without mitigated finding of no significant impact | C147: Environment: Environmental Impact Studies are required or complex Environmental Assessment without mitigated finding of no significant impact
A148: Environment | B148: Studies of multiple alternatives | C148: Environment: Studies of multiple alternatives
A149: Environment | B149: Continued public and elected officials involvement in analyzing and selecting alternates | C149: Environment: Continued public and elected officials involvement in analyzing and selecting alternates
A150: Environment | B150: Other agencies (such as FHWA, COE, PHMC, Game Commission, Fish & Boat Commission, DEP, DCNR, EPA, Agricultural Board, etc.) are heavily involved. | C150: Environment: Other agencies (such as FHWA, COE, PHMC, Game Commission, Fish & Boat Commission, DEP, DCNR, EPA, Agricultural Board, etc.) are heavily involved.
A151: Environment | B151: Other agency involvement to protect air; water; games; fish, threatened and endangered species; cultural resources (historical, archaeological, parks, wetlands, etc), etc. | C151: Environment: Other agency involvement to protect air; water; games; fish, threatened and endangered species; cultural resources (historical, archaeological, parks, wetlands, etc), etc.
A152: Stakeholders | B152: Controversial (lack of consensus) and high profile projects. (Fast track design/construction, high public impact, high interaction of elected officials, etc.) | C152: Stakeholders: Controversial (lack of consensus) and high profile projects. (Fast track design/construction, high public impact, high interaction of elected officials, etc.)
A153: Stakeholders | B153: Major coordination among numerous stakeholders is required. | C153: Stakeholders: Major coordination among numerous stakeholders is required.

Sheet About
A1: About the CSRA Template
A2: Primary / Secondary Indicators | B2: Description | C2: Column Type
A3: 1 / Yellow Shading | B3: Entry Cells - normally these cells require the user to manually enter a value. However some of these cells may be filled out automatically or have default values. Please inspect to verify. | C3: Data Entry Cells with Fixed Formatting
A4: 2 / Light Yellow Shading | B4: Entry Cells - initially set with default values or values entered via form. Yellow shading changes to light yellow when a value is selected from the list of available options. | C4: Data Entry Cells with Fixed Formatting
A5: 3 / Green Shading | B5: Crystal Ball Assumptions may be added by the user | C5: User-Controlled Cells containing Crystal Ball Functions
A6: 4 / Torquise Shading | B6: Crystal Ball Forecast cell | C6: User-Controlled Cells containing Crystal Ball Functions
A7: Orange Shading with White Dots | B7: Notice, usually denotes a changed value to draw attention to cell value and verify entry. | C7: Data Entry or Calculational Cells with Conditional Formatting
A8: Red Hatching | B8: Errors to denote something is wrong, or data is missing, and needs to be fixed. | C8: Data Entry or Calculational Cells with Conditional Formatting
A9: NA | B9: Placeholder - Not applicable | C9: Data Entry or Calculational Cells with Conditional Formatting
A11: Modeling Tips | B11: Additional Instructions
A12: Conduct initial review of the sponsor estimate | B12: Ensure that it is clear to the Estimator the differences between allowances and contingencies. Contingencies have been identified and removed from the estimate to establish the base.
A13: Conduct initial review of the sponsor estimate | B13: Verify all final adjustments have been made to the state estimate.
A14: Conduct initial review of the sponsor estimate | B14: Prior costs are up to date
A15: Conduct initial review of the sponsor estimate | B15: Fixed costs are accounted for in design build type contracts
A16: Conduct initial review of the sponsor estimate | B16: Unit prices and quantities have been reviewed and do not include any hidden contingencies.
A17: Conduct initial review of the sponsor estimate | B17: Allowances have been reviewed and do not include contingencies
A18: Conduct initial review of the sponsor estimate | B18: Inflation values used have been discussed. It is confirmed there is no overlap between inflation (or escalation), market conditions, and material supply demand issues.
A19: Conduct initial review of the sponsor estimate | B19: The inflation values are applied to the appropriate cost phases in the state estimate. The state should provide a basis for the values being used for all cost phases.
A20: Conduct initial review of the sponsor estimate | B20: The state has updated their estimate throughout the review. The state has made all estimate adjustments to items, quantities, and unit costs.
A21: Conduct initial review of the sponsor estimate | B21: Estimate adjustments are provided in a revised estimate summary that identifies the items that have been adjusted. This information is used to prepare the final report and highlight any changes since the last estimate review.
A22: Recognize that base estimate adjustments or changes to prior or fixed costs will change the Base Cost YOE value. | B22: Any change in the Base Cost YOE value requires CB charts that contain this value to be updated.
A23: To include correlations replace Crystal Ball functions in Risk Register with Assumption curves.
A24: Only set Correlations in the risk register on final simulation run as they are removed during synchronization
A25: If using CB Assumptions curves in Risk Register verify they are correctly set up prior to the final run.
A26: Verify Phases and Segments are set correctly.
A27: Review all sheets to identify any red (errors) or orange (note) shaded cells. Verify appropriate values.
A28: Verify simulation switches are set appropriately to determine contingency.
A29: Click the "Check Workbook for Errors" button next to the simulation switches on this sheet to scan the workbook for any errors.
A30: Run small sample size (i.e. around 1000-3000) on draft simulation runs
A31: Run at least 10000 sample size on final simulation
A33: Button Controls:
A34: Add Row: Cntl+Shift+A (context-sensitive)
A35: Add Risk (Cntl+Shift+A) (context-sensitive)
A36: Back: Cntl+Shift+B
A37: Syncronize Risk Register (Cntl+Shift+C)
A38: Delete Row: Cntl+Shift+D (context sensitive)
A39: Check Workbook for Errors (Cntl+Shift+E)
A40: Change Phase Name: Cntl+Shift+F
A41: Delete Phase: Cntl+Shift+H (context-sensitive)
A42: Del Risk (Cntl+Shift+I)
A43: Add Phase-Segment (Cntl+Shift+K) (context-sensitive)
A44: Del Phase-Segment (Cntl+Shift+L) (context-sensitive)
A45: Next: Cntl+Shift+N
A46: Protect Sheet (Cntl+Shift+P)
A47: Change Segment Name: Cntl+Shift+S
A48: Create Summary Percentile Tables (Cntl+Shift+T)
A49: Unprotect Sheet (Cntl+Shift+U)
A50: Copy Values to col (3) (Cntl+Shift+X)
A51: Copy Values to col (4) (Cntl+Shift+Y)
A52: Copy Values to col (5) (Cntl+Shift+Z)

Sheet HOME
A1: Home | C1: =VersionDateLastUpdated -> 45924 | D1: =Version -> 71.3.4
C2: Workbook formatting conventions.
A3: Cntl+Shift+B to Go Back | C3: Project Information Table | H3: Team Member Table
C4: Project Characteristic | D4: Project Information1 | H4: Team Member1 | I4: Role2 | J4: Responsibility2
A5: Cntl+Shift+N to Go Next | C5: Project Title: | I5: Facilitator | J5: Facilitate, Opening & Closing Presentations
C6: Project Sponsor | I6: Risk recorder / modeler | J6: Model
A7: Cntl+Shift+A to Add Row | C7: Review Date From: | I7: Report Writer | J7: Write report
C8: Review Date To: | I8: Division Support | J8: Division Support
A9: Cntl+Shift+D to Delete Row | C9: Last Review Date From:
C10: Last Review Date To:
C11: =IF(ISBLANK(EstLastUpdate)=TRUE,"Enter Date Estimate was Last Updated>>>","Estimate Last Updated:") -> Estimate Last Updated: | D11: 45292 | H11: Suggested Contingency Percentages by Project Complexity and Design Completion
A12: Place your curser within the Table PRIOR | C12: Project Complexity: | D12: Moderately complex | H12: Selected Project Complexity: | I12: =IFERROR(ProjectComplexity,"") -> Moderately complex | J12: =CONCATENATE(">>>Characteristics") -> >>>Characteristics
A13: to clicking the Add or Delete button | C13: =IF(InputSource!B48="", "SELECT % Design Completion >>>","Design Completion, (%)") -> Design Completion, (%) | D13: 25-35 | H13: Select % Design Completion | I13: Contingency Range, (%) | J13: =IFERROR(IF(INDEX(ProjectComplexityCharacteristics[],,ProjectComplexityCellReference)=0,"",INDEX(ProjectComplexityCharacteristics[],,ProjectComplexityCellReference)),"") -> Roadway: 3R and 4R projects which do not add capacity.
C14: Contract Type: | H14: =IFERROR(IF(INDEX(InputSource!A35:C39,,InputSource!A42)=0,"",INDEX(InputSource!A35:C39,,InputSource!A42)),"") -> 1-10 | I14: =IFERROR(IF(INDEX(InputSource!D35:F39,,InputSource!A42)=0,"",INDEX(InputSource!D35:F39,,InputSource!A42)),"") -> 30-75 | J14: Roadway: Minor roadway relocations.
C15: Project Web Site: | H15: 10-25 | I15: 25-60 | J15: Roadway: Certain complex (non-trail enhancements) projects.
H16: 25-35 | I16: 20-40 | J16: Roadway: Slides, subsidence.
H17: 35-70 | I17: 14-30 | J17: Traffic Control: Non-ITS but major safety improvements.
H18: 70-100 | I18: 7-20 | J18: Traffic Control: Interconnected traffic control/management projects.
J19: Structures: Non-complex (straight geometry with minimal skew; designs using AASHTO description factors
J20: Structures: minimal seismic analysis;
J21: Structures: footings on rock or conventional piles and abutments) bridge replacements with minor (<610m [2,000 ft]) roadway approach work.
J22: Structures: Bridge rehabilitation which requires re-analysis of bridge capacity.
J23: Structures: Bridge mounted signs.
J24: Structures: Tie back walls.
J25: Structures: Noise walls.
J26: Structures: Proprietary/non-proprietary walls.
J27: Right-of- Way: Right-of-Way plans needed with less than 20 moderate to significant claims and very few relocations or displacements.
J28: Utilities: Some utility relocations, most of it prior to construction, but no major utility relocations.
J29: Environment: Categorical Exclusion level 2 or mitigated Environmental Assessment projects.
J30: Environment: Cultural resources (historical, archeological, etc.). Coordination with Museum Commission, FHWA, and/or Advisory Council
J31: Environment: Wetland mitigation
J32: Environment: Parkland involvement
J33: Environment: Water and air pollution mitigation
J34: Environment: Major coordination with Game or Fish and Boat commissions
J35: Environment: Endangered species
J36: Stakeholders: Involvement of public and public officials is moderate due to non- controversial project type
J37: Stakeholders: General communication about project progress is required

Sheet StructuredEstimate
A1: StructuredEstimate | C1: Use the Estimate Summary sheet to simplify analysis by combining cost phases, where applicable, prior to establishing the Segment and Phases names
A2: Workbook formatting conventions. | C2: Tables should be revised as necessary to reflect the Estimator's summary estimate. Provide a Template in a separate file to the Estimator to track changes to the base estimate.
C3: Place cursor in table to add or delete row. Add rows as necessary to create the estimate summary.1
A5: Cntl+Shift+A to Add Row | C5: Estimate Summary Cost Phase and Schedule | K5: =EstLastUpdate -> 45292 | L5: <<< Estimate last updated
C6: Cost Phase1 | D6: Cost Estimate, CY1 | E6: Contingency Estimate, CY1 | F6: Base Estimate, CY1 | G6: Inflation, %1 | H6: Inflation Point1 | I6: Base Start Date1 | J6: Base End Date1 | K6: Total Cost, YOE
K7: =D7*(1+G7)^((I7-$K$5)/365+(StructuredEstimate!J7-StructuredEstimate!I7)*0.5/365) -> 0
A8: Cntl+Shift+D to Delete Row | K8: =D8*(1+G8)^((I8-$K$5)/365+(StructuredEstimate!J8-StructuredEstimate!I8)*0.5/365) -> 0
K9: =D9*(1+G9)^((I9-$K$5)/365+(StructuredEstimate!J9-StructuredEstimate!I9)*0.5/365) -> 0
A10: Place your curser within the Table PRIOR | K10: =D10*(1+G10)^((I10-$K$5)/365+(StructuredEstimate!J10-StructuredEstimate!I10)*0.5/365) -> 0
A11: to clicking the Add or Delete button | K11: =D11*(1+G11)^((I11-$K$5)/365+(StructuredEstimate!J11-StructuredEstimate!I11)*0.5/365) -> 0
C12: Prior Cost | K12: =D12 -> 0
C13: Fixed Cost | K13: =D13 -> 0
C15: Total | D15: =SUBTOTAL(109,EstimateSummary[Cost Estimate, CY1]) -> 0 | E15: =SUBTOTAL(109,EstimateSummary[Contingency Estimate, CY1]) -> 0 | F15: =SUBTOTAL(109,EstimateSummary[Base Estimate, CY1]) -> 0 | K15: =SUBTOTAL(109,EstimateSummary[Total Cost, YOE]) -> 0
C16: Instructions: Provide a template of the estimate summary above to the Estimator to complete and return when changes are made to the base estimate.
C17: If the base estimate changes during a risk workshop the estimator can provide the revised summary and the values can be pasted into the CSRA template.
C18: The above table values should be referenced to the Structured table below so that the Structured table is automatically updated and refreshed when the Base Estimate is revised.
C20: Add rows as necessary to structure the estimate for risk modeling. Be sure and established links connecting the combined phases1
C21: Structured Estimate Summary Cost Phase and Schedule (link to the BaseUncertainty sheet).
C22: Combined Cost Phase | D22: Cost Estimate, CY | E22: Contingency Estimate, CY | F22: Base Estimate, CY | G22: Inflation, % | H22: Inflation Point | I22: Base Start Date | J22: Base End Date | K22: Total Cost, YOE
C23: PE | D23: =D7 -> 0 | E23: =E7 -> 0 | F23: =F7 -> 0 | G23: 0.025 | H23: 0.5 | I23: 45901 | J23: 46265 | K23: =D23*(1+G23)^((I23-$K$5)/365+(StructuredEstimate!J23-StructuredEstimate!I23)*0.5/365) -> 0
C24: RW+EM+UT | D24: =SUM(D8:D10) -> 0 | E24: =SUM(E8:E10) -> 0 | F24: =SUM(F8:F10) -> 0 | G24: 0.04 | H24: 0.5 | I24: 45901 | J24: 46265 | K24: =D24*(1+G24)^((I24-$K$5)/365+(StructuredEstimate!J24-StructuredEstimate!I24)*0.5/365) -> 0
C25: CN+CEI | D25: =SUM(D11:D11) -> 0 | E25: =SUM(E11:E11) -> 0 | F25: =SUM(F11:F11) -> 0 | G25: 0.03 | H25: 0.5 | I25: 46265 | J25: 46996 | K25: =D25*(1+G25)^((I25-$K$5)/365+(StructuredEstimate!J25-StructuredEstimate!I25)*0.5/365) -> 0
K26: =D26 -> 0
C27: Prior Cost | D27: =D12 -> 0 | K27: 0
C28: Fixed Cost | K28: =D28 -> 0
C30: Total | D30: =SUBTOTAL(109,StructuredEstimate[Cost Estimate, CY]) -> 0 | E30: =SUBTOTAL(109,StructuredEstimate[Contingency Estimate, CY]) -> 0 | F30: =SUBTOTAL(109,StructuredEstimate[Base Estimate, CY]) -> 0 | K30: =SUBTOTAL(109,StructuredEstimate[Total Cost, YOE]) -> 0
C31: Note: the Structured table can be linked to BaseUncertainty Sheet to automatically provide updates when the estimate summary table is updated.

Sheet Names
A1: Names | B1: The project phase and project segment should be established only AFTER the estimate has been properly structured to minimize the number of segments and phases
A2: Workbook formatting conventions. | B2: Place your curser within the Table PRIOR to | F2: Place your curser within the Table PRIOR to | K2: Place your curser within the Table PRIOR to
B3: clicking the Add or Delete button1 | F3: clicking the Add or Delete button1 | K3: clicking the Add button1
B4: Project Segment Definition Table | F4: Project Phase Definition Table | K4: Risk Category Definition Table | N4: List of Inflation Table Names
A5: Place cursor in table | B5: Seg # | C5: ProjectSegment1 | D5: Segment Description1 | F5: ProjectPhase1 | G5: Phase Inflation Table1 | I5: CorrelationCostDuration | K5: Risk Category1 | L5: Description1 | N5: Inflation Table Names
A6: Cntl+Shift+A to Add Row | B6: 1 | C6: Segment 1 | F6: PE | G6: PEInflationTable | K6: ENV | L6: Environmental | N6: PEInflationTable
B7: 2 | C7: Segment 2 | F7: RW | G7: ROWInflationTable | K7: 3rdP | L7: Third-Party | N7: ROWInflationTable
A8: Place cursor in phase table | B8: 3 | C8: Segment 3 | F8: CN+CEI | G8: CNInflationTable | I8: High Positive | K8: RW | L8: Right of Way | N8: CNInflationTable
A9: Cntl+Shift+D to Delete Phase | F9: PE+EM | G9: PEInflationTable | I9: Moderate Positive | K9: ORG | L9: Organizational | N9: UTInflationTable
F10: UT | G10: CNInflationTable | I10: Low Positive | K10: EXT | L10: External
A11: Place cursor in segment table | F11: PGM | G11: PEInflationTable | I11: High Negative | K11: BRG | L11: Bridge
A12: Cntl+Shift+D to Delete Segment | I12: Moderate Negative | K12: RDWY | L12: Roadway
F13: PE | G13: Preliminary Engineering | I13: Low Negative | K13: CN | L13: Construction
F14: RW | G14: Right of Way | I14: Nil | K14: DES | L14: Design
A15: Phase cursor in phase table | F15: UT | G15: Utility | K15: LPA | L15: Local Public Agency
A16: Cntl+Shift+F to Change Phase Name | F16: CN | G16: Construction | K16: FUND | L16: Funding
F17: PM | G17: Program Management
F18: CEI | G18: Construction, Engineering, and Inspection
F19: AGN | G19: Agency
A20: Phase cursor in segment table | F20: Custom | G20: Describe Custom Phase
A21: Cntl+Shift+S to Change Segment Name | F21: Custom | G21: Describe Custom Phase
F22: Custom | G22: Describe Custom Phase
A23: Place your curser within the Table PRIOR | F23: Custom | G23: Describe Custom Phase
A24: to clicking the Add or Delete button | F24: Custom | G24: Describe Custom Phase
F25: Custom | G25: Describe Custom Phase

Sheet Inflation
A1: Inflation | B1: Note: Inflation tables use compound interest. | I1: Workbook formatting conventions.
B2: Note: This sheet is protected to prevent unintentional changes. Use the password "cadre" to unprotect.
B4: PEInflationTable Defaults | Q4: ROWInflationTable Defaults | AF4: CNInflationTable Defaults | AU4: UTInflationTable Defaults
B5: 0.03 | C5: Annual Inflation | Q5: 0.05 | R5: Annual Inflation | AF5: 0.03 | AG5: Annual Inflation | AU5: 0.05 | AV5: Annual Inflation
B8: PEInflationTable | E8: Cumulative Factor (by Month) | Q8: ROWInflationTable | T8: Cumulative Factor (by Month) | AF8: CNInflationTable | AI8: Cumulative Factor (by Month) | AU8: UTInflationTable | AX8: Cumulative Factor (by Month)
B9: Year | C9: Rate1 | D9: 1 | E9: 2 | F9: 3 | G9: 4 | H9: 5 | I9: 6 | J9: 7 | K9: 8 | L9: 9 | M9: 10 | N9: 11 | O9: 12 | Q9: Year | R9: Rate1 | S9: 1 | T9: 2 | U9: 3 | V9: 4 | W9: 5 | X9: 6 | Y9: 7 | Z9: 8 | AA9: 9 | AB9: 10 | AC9: 11 | AD9: 12 | AF9: Year | AG9: Rate1 | AH9: 1 | AI9: 2 | AJ9: 3 | AK9: 4 | AL9: 5 | AM9: 6 | AN9: 7 | AO9: 8 | AP9: 9 | AQ9: 10 | AR9: 11 | AS9: 12 | AU9: Year | AV9: Rate1 | AW9: 1 | AX9: 2 | AY9: 3 | AZ9: 4 | BA9: 5 | BB9: 6 | BC9: 7 | BD9: 8 | BE9: 9 | BF9: 10 | BG9: 11 | BH9: 12
B10: =YEAR(EstLastUpdate) -> 2024 | C10: 0.04 | D10: =IF(EstLastUpdate>DATE(PEInflationTable[[#This Row],[Year]],1,1),0,(1+PEInflationTable[[#This Row],[Rate1]])^(1/12)) -> 1.00327374 | E10: =IF(PEInflationTable[[#This Row],[1]]>0,(1+PEInflationTable[[#This Row],[Rate1]])^(1/12)*PEInflationTable[[#This Row],[1]],IF(EstLastUpdate>DATE(PEInflationTable[[#This Row],[Year]],2,1),0,(1+PEInflationTable[[#This Row],[Rate1]])^(1/12))) -> 1.006558197 | F10: =IF(PEInflationTable[[#This Row],[2]]>0,(1+PEInflationTable[[#This Row],[Rate1]])^(1/12)*PEInflationTable[[#This Row],[2]],IF(EstLastUpdate>DATE(PEInflationTable[[#This Row],[Year]],3,1),0,(1+PEInflationTable[[#This Row],[Rate1]])^(1/12))) -> 1.009853407 | G10: =IF(PEInflationTable[[#This Row],[3]]>0,(1+PEInflationTable[[#This Row],[Rate1]])^(1/12)*PEInflationTable[[#This Row],[3]],IF(EstLastUpdate>DATE(PEInflationTable[[#This Row],[Year]],4,1),0,(1+PEInflationTable[[#This Row],[Rate1]])^(1/12))) -> 1.013159404 | H10: =IF(PEInflationTable[[#This Row],[4]]>0,(1+PEInflationTable[[#This Row],[Rate1]])^(1/12)*PEInflationTable[[#This Row],[4]],IF(EstLastUpdate>DATE(PEInflationTable[[#This Row],[Year]],5,1),0,(1+PEInflationTable[[#This Row],[Rate1]])^(1/12))) -> 1.016476224 | I10: =IF(PEInflationTable[[#This Row],[5]]>0,(1+PEInflationTable[[#This Row],[Rate1]])^(1/12)*PEInflationTable[[#This Row],[5]],IF(EstLastUpdate>DATE(PEInflationTable[[#This Row],[Year]],6,1),0,(1+PEInflationTable[[#This Row],[Rate1]])^(1/12))) -> 1.019803903 | J10: =IF(PEInflationTable[[#This Row],[6]]>0,(1+PEInflationTable[[#This Row],[Rate1]])^(1/12)*PEInflationTable[[#This Row],[6]],IF(EstLastUpdate>DATE(PEInflationTable[[#This Row],[Year]],7,1),0,(1+PEInflationTable[[#This Row],[Rate1]])^(1/12))) -> 1.023142475 | K10: =IF(PEInflationTable[[#This Row],[7]]>0,(1+PEInflationTable[[#This Row],[Rate1]])^(1/12)*PEInflationTable[[#This Row],[7]],IF(EstLastUpdate>DATE(PEInflationTable[[#This Row],[Year]],8,1),0,(1+PEInflationTable[[#This Row],[Rate1]])^(1/12))) -> 1.026491978 | L10: =IF(PEInflationTable[[#This Row],[8]]>0,(1+PEInflationTable[[#This Row],[Rate1]])^(1/12)*PEInflationTable[[#This Row],[8]],IF(EstLastUpdate>DATE(PEInflationTable[[#This Row],[Year]],9,1),0,(1+PEInflationTable[[#This Row],[Rate1]])^(1/12))) -> 1.029852445 | M10: =IF(PEInflationTable[[#This Row],[9]]>0,(1+PEInflationTable[[#This Row],[Rate1]])^(1/12)*PEInflationTable[[#This Row],[9]],IF(EstLastUpdate>DATE(PEInflationTable[[#This Row],[Year]],10,1),0,(1+PEInflationTable[[#This Row],[Rate1]])^(1/12))) -> 1.033223914 | N10: =IF(PEInflationTable[[#This Row],[10]]>0,(1+PEInflationTable[[#This Row],[Rate1]])^(1/12)*PEInflationTable[[#This Row],[10]],IF(EstLastUpdate>DATE(PEInflationTable[[#This Row],[Year]],11,1),0,(1+PEInflationTable[[#This Row],[Rate1]])^(1/12))) -> 1.03660642 | O10: =IF(PEInflationTable[[#This Row],[11]]>0,(1+PEInflationTable[[#This Row],[Rate1]])^(1/12)*PEInflationTable[[#This Row],[11]],IF(EstLastUpdate>DATE(PEInflationTable[[#This Row],[Year]],12,1),0,(1+PEInflationTable[[#This Row],[Rate1]])^(1/12))) -> 1.04 | Q10: =YEAR(EstLastUpdate) -> 2024 | R10: 0.04 | S10: =IF(EstLastUpdate>DATE(ROWInflationTable[[#This Row],[Year]],1,1),0,(1+ROWInflationTable[[#This Row],[Rate1]])^(1/12)) -> 1.00327374 | T10: =IF(ROWInflationTable[[#This Row],[1]]>0,(1+ROWInflationTable[[#This Row],[Rate1]])^(1/12)*ROWInflationTable[[#This Row],[1]],IF(EstLastUpdate>DATE(ROWInflationTable[[#This Row],[Year]],2,1),0,(1+ROWInflationTable[[#This Row],[Rate1]])^(1/12))) -> 1.006558197 | U10: =IF(ROWInflationTable[[#This Row],[2]]>0,(1+ROWInflationTable[[#This Row],[Rate1]])^(1/12)*ROWInflationTable[[#This Row],[2]],IF(EstLastUpdate>DATE(ROWInflationTable[[#This Row],[Year]],3,1),0,(1+ROWInflationTable[[#This Row],[Rate1]])^(1/12))) -> 1.009853407 | V10: =IF(ROWInflationTable[[#This Row],[3]]>0,(1+ROWInflationTable[[#This Row],[Rate1]])^(1/12)*ROWInflationTable[[#This Row],[3]],IF(EstLastUpdate>DATE(ROWInflationTable[[#This Row],[Year]],4,1),0,(1+ROWInflationTable[[#This Row],[Rate1]])^(1/12))) -> 1.013159404 | W10: =IF(ROWInflationTable[[#This Row],[4]]>0,(1+ROWInflationTable[[#This Row],[Rate1]])^(1/12)*ROWInflationTable[[#This Row],[4]],IF(EstLastUpdate>DATE(ROWInflationTable[[#This Row],[Year]],5,1),0,(1+ROWInflationTable[[#This Row],[Rate1]])^(1/12))) -> 1.016476224 | X10: =IF(ROWInflationTable[[#This Row],[5]]>0,(1+ROWInflationTable[[#This Row],[Rate1]])^(1/12)*ROWInflationTable[[#This Row],[5]],IF(EstLastUpdate>DATE(ROWInflationTable[[#This Row],[Year]],6,1),0,(1+ROWInflationTable[[#This Row],[Rate1]])^(1/12))) -> 1.019803903 | Y10: =IF(ROWInflationTable[[#This Row],[6]]>0,(1+ROWInflationTable[[#This Row],[Rate1]])^(1/12)*ROWInflationTable[[#This Row],[6]],IF(EstLastUpdate>DATE(ROWInflationTable[[#This Row],[Year]],7,1),0,(1+ROWInflationTable[[#This Row],[Rate1]])^(1/12))) -> 1.023142475 | Z10: =IF(ROWInflationTable[[#This Row],[7]]>0,(1+ROWInflationTable[[#This Row],[Rate1]])^(1/12)*ROWInflationTable[[#This Row],[7]],IF(EstLastUpdate>DATE(ROWInflationTable[[#This Row],[Year]],8,1),0,(1+ROWInflationTable[[#This Row],[Rate1]])^(1/12))) -> 1.026491978 | AA10: =IF(ROWInflationTable[[#This Row],[8]]>0,(1+ROWInflationTable[[#This Row],[Rate1]])^(1/12)*ROWInflationTable[[#This Row],[8]],IF(EstLastUpdate>DATE(ROWInflationTable[[#This Row],[Year]],9,1),0,(1+ROWInflationTable[[#This Row],[Rate1]])^(1/12))) -> 1.029852445 | AB10: =IF(ROWInflationTable[[#This Row],[9]]>0,(1+ROWInflationTable[[#This Row],[Rate1]])^(1/12)*ROWInflationTable[[#This Row],[9]],IF(EstLastUpdate>DATE(ROWInflationTable[[#This Row],[Year]],10,1),0,(1+ROWInflationTable[[#This Row],[Rate1]])^(1/12))) -> 1.033223914 | AC10: =IF(ROWInflationTable[[#This Row],[10]]>0,(1+ROWInflationTable[[#This Row],[Rate1]])^(1/12)*ROWInflationTable[[#This Row],[10]],IF(EstLastUpdate>DATE(ROWInflationTable[[#This Row],[Year]],11,1),0,(1+ROWInflationTable[[#This Row],[Rate1]])^(1/12))) -> 1.03660642 | AD10: =IF(ROWInflationTable[[#This Row],[11]]>0,(1+ROWInflationTable[[#This Row],[Rate1]])^(1/12)*ROWInflationTable[[#This Row],[11]],IF(EstLastUpdate>DATE(ROWInflationTable[[#This Row],[Year]],12,1),0,(1+ROWInflationTable[[#This Row],[Rate1]])^(1/12))) -> 1.04 | AF10: =YEAR(EstLastUpdate) -> 2024 | AG10: 0.05 | AH10: =IF(EstLastUpdate>DATE(CNInflationTable[[#This Row],[Year]],1,1),0,(1+CNInflationTable[[#This Row],[Rate1]])^(1/12)) -> 1.004074124 | AI10: =IF(CNInflationTable[[#This Row],[1]]>0,(1+CNInflationTable[[#This Row],[Rate1]])^(1/12)*CNInflationTable[[#This Row],[1]],IF(EstLastUpdate>DATE(CNInflationTable[[#This Row],[Year]],2,1),0,(1+CNInflationTable[[#This Row],[Rate1]])^(1/12))) -> 1.008164846 | AJ10: =IF(CNInflationTable[[#This Row],[2]]>0,(1+CNInflationTable[[#This Row],[Rate1]])^(1/12)*CNInflationTable[[#This Row],[2]],IF(EstLastUpdate>DATE(CNInflationTable[[#This Row],[Year]],3,1),0,(1+CNInflationTable[[#This Row],[Rate1]])^(1/12))) -> 1.012272234 | AK10: =IF(CNInflationTable[[#This Row],[3]]>0,(1+CNInflationTable[[#This Row],[Rate1]])^(1/12)*CNInflationTable[[#This Row],[3]],IF(EstLastUpdate>DATE(CNInflationTable[[#This Row],[Year]],4,1),0,(1+CNInflationTable[[#This Row],[Rate1]])^(1/12))) -> 1.016396357 | AL10: =IF(CNInflationTable[[#This Row],[4]]>0,(1+CNInflationTable[[#This Row],[Rate1]])^(1/12)*CNInflationTable[[#This Row],[4]],IF(EstLastUpdate>DATE(CNInflationTable[[#This Row],[Year]],5,1),0,(1+CNInflationTable[[#This Row],[Rate1]])^(1/12))) -> 1.020537281 | AM10: =IF(CNInflationTable[[#This Row],[5]]>0,(1+CNInflationTable[[#This Row],[Rate1]])^(1/12)*CNInflationTable[[#This Row],[5]],IF(EstLastUpdate>DATE(CNInflationTable[[#This Row],[Year]],6,1),0,(1+CNInflationTable[[#This Row],[Rate1]])^(1/12))) -> 1.024695077 | AN10: =IF(CNInflationTable[[#This Row],[6]]>0,(1+CNInflationTable[[#This Row],[Rate1]])^(1/12)*CNInflationTable[[#This Row],[6]],IF(EstLastUpdate>DATE(CNInflationTable[[#This Row],[Year]],7,1),0,(1+CNInflationTable[[#This Row],[Rate1]])^(1/12))) -> 1.028869811 | AO10: =IF(CNInflationTable[[#This Row],[7]]>0,(1+CNInflationTable[[#This Row],[Rate1]])^(1/12)*CNInflationTable[[#This Row],[7]],IF(EstLastUpdate>DATE(CNInflationTable[[#This Row],[Year]],8,1),0,(1+CNInflationTable[[#This Row],[Rate1]])^(1/12))) -> 1.033061554 | AP10: =IF(CNInflationTable[[#This Row],[8]]>0,(1+CNInflationTable[[#This Row],[Rate1]])^(1/12)*CNInflationTable[[#This Row],[8]],IF(EstLastUpdate>DATE(CNInflationTable[[#This Row],[Year]],9,1),0,(1+CNInflationTable[[#This Row],[Rate1]])^(1/12))) -> 1.037270375 | AQ10: =IF(CNInflationTable[[#This Row],[9]]>0,(1+CNInflationTable[[#This Row],[Rate1]])^(1/12)*CNInflationTable[[#This Row],[9]],IF(EstLastUpdate>DATE(CNInflationTable[[#This Row],[Year]],10,1),0,(1+CNInflationTable[[#This Row],[Rate1]])^(1/12))) -> 1.041496343 | AR10: =IF(CNInflationTable[[#This Row],[10]]>0,(1+CNInflationTable[[#This Row],[Rate1]])^(1/12)*CNInflationTable[[#This Row],[10]],IF(EstLastUpdate>DATE(CNInflationTable[[#This Row],[Year]],11,1),0,(1+CNInflationTable[[#This Row],[Rate1]])^(1/12))) -> 1.045739528 | AS10: =IF(CNInflationTable[[#This Row],[11]]>0,(1+CNInflationTable[[#This Row],[Rate1]])^(1/12)*CNInflationTable[[#This Row],[11]],IF(EstLastUpdate>DATE(CNInflationTable[[#This Row],[Year]],12,1),0,(1+CNInflationTable[[#This Row],[Rate1]])^(1/12))) -> 1.05 | AU10: =YEAR(EstLastUpdate) -> 2024 | AV10: 0.06 | AW10: =IF(EstLastUpdate>DATE(UTInflationTable[[#This Row],[Year]],1,1),0,(1+UTInflationTable[[#This Row],[Rate1]])^(1/12)) -> 1.004867551 | AX10: =IF(UTInflationTable[[#This Row],[1]]>0,(1+UTInflationTable[[#This Row],[Rate1]])^(1/12)*UTInflationTable[[#This Row],[1]],IF(EstLastUpdate>DATE(UTInflationTable[[#This Row],[Year]],2,1),0,(1+UTInflationTable[[#This Row],[Rate1]])^(1/12))) -> 1.009758794 | AY10: =IF(UTInflationTable[[#This Row],[2]]>0,(1+UTInflationTable[[#This Row],[Rate1]])^(1/12)*UTInflationTable[[#This Row],[2]],IF(EstLastUpdate>DATE(UTInflationTable[[#This Row],[Year]],3,1),0,(1+UTInflationTable[[#This Row],[Rate1]])^(1/12))) -> 1.014673846 | AZ10: =IF(UTInflationTable[[#This Row],[3]]>0,(1+UTInflationTable[[#This Row],[Rate1]])^(1/12)*UTInflationTable[[#This Row],[3]],IF(EstLastUpdate>DATE(UTInflationTable[[#This Row],[Year]],4,1),0,(1+UTInflationTable[[#This Row],[Rate1]])^(1/12))) -> 1.019612822 | BA10: =IF(UTInflationTable[[#This Row],[4]]>0,(1+UTInflationTable[[#This Row],[Rate1]])^(1/12)*UTInflationTable[[#This Row],[4]],IF(EstLastUpdate>DATE(UTInflationTable[[#This Row],[Year]],5,1),0,(1+UTInflationTable[[#This Row],[Rate1]])^(1/12))) -> 1.024575839 | BB10: =IF(UTInflationTable[[#This Row],[5]]>0,(1+UTInflationTable[[#This Row],[Rate1]])^(1/12)*UTInflationTable[[#This Row],[5]],IF(EstLastUpdate>DATE(UTInflationTable[[#This Row],[Year]],6,1),0,(1+UTInflationTable[[#This Row],[Rate1]])^(1/12))) -> 1.029563014 | BC10: =IF(UTInflationTable[[#This Row],[6]]>0,(1+UTInflationTable[[#This Row],[Rate1]])^(1/12)*UTInflationTable[[#This Row],[6]],IF(EstLastUpdate>DATE(UTInflationTable[[#This Row],[Year]],7,1),0,(1+UTInflationTable[[#This Row],[Rate1]])^(1/12))) -> 1.034574464 | BD10: =IF(UTInflationTable[[#This Row],[7]]>0,(1+UTInflationTable[[#This Row],[Rate1]])^(1/12)*UTInflationTable[[#This Row],[7]],IF(EstLastUpdate>DATE(UTInflationTable[[#This Row],[Year]],8,1),0,(1+UTInflationTable[[#This Row],[Rate1]])^(1/12))) -> 1.039610308 | BE10: =IF(UTInflationTable[[#This Row],[8]]>0,(1+UTInflationTable[[#This Row],[Rate1]])^(1/12)*UTInflationTable[[#This Row],[8]],IF(EstLastUpdate>DATE(UTInflationTable[[#This Row],[Year]],9,1),0,(1+UTInflationTable[[#This Row],[Rate1]])^(1/12))) -> 1.044670663 | BF10: =IF(UTInflationTable[[#This Row],[9]]>0,(1+UTInflationTable[[#This Row],[Rate1]])^(1/12)*UTInflationTable[[#This Row],[9]],IF(EstLastUpdate>DATE(UTInflationTable[[#This Row],[Year]],10,1),0,(1+UTInflationTable[[#This Row],[Rate1]])^(1/12))) -> 1.049755651 | BG10: =IF(UTInflationTable[[#This Row],[10]]>0,(1+UTInflationTable[[#This Row],[Rate1]])^(1/12)*UTInflationTable[[#This Row],[10]],IF(EstLastUpdate>DATE(UTInflationTable[[#This Row],[Year]],11,1),0,(1+UTInflationTable[[#This Row],[Rate1]])^(1/12))) -> 1.054865389 | BH10: =IF(UTInflationTable[[#This Row],[11]]>0,(1+UTInflationTable[[#This Row],[Rate1]])^(1/12)*UTInflationTable[[#This Row],[11]],IF(EstLastUpdate>DATE(UTInflationTable[[#This Row],[Year]],12,1),0,(1+UTInflationTable[[#This Row],[Rate1]])^(1/12))) -> 1.06
B11: =OFFSET(PEInflationTable[[#This Row],[Year]],-1,0)+1 -> 2025 | C11: =Inf_PERate -> 0.03 | D11: =IF(OFFSET(PEInflationTable[[#This Row],[12]],-1,0)>0,(1+PEInflationTable[[#This Row],[Rate1]])^(1/12)*OFFSET(PEInflationTable[[#This Row],[12]],-1,0),IF(EstLastUpdate>DATE(PEInflationTable[[#This Row],[Year]],1,1),0,(1+PEInflationTable[[#This Row],[Rate1]])^(1/12))) -> 1.042564921 | E11: =IF(PEInflationTable[[#This Row],[1]]>0,(1+PEInflationTable[[#This Row],[Rate1]])^(1/12)*PEInflationTable[[#This Row],[1]],IF(EstLastUpdate>DATE(PEInflationTable[[#This Row],[Year]],2,1),0,(1+PEInflationTable[[#This Row],[Rate1]])^(1/12))) -> 1.045136167 | F11: =IF(PEInflationTable[[#This Row],[2]]>0,(1+PEInflationTable[[#This Row],[Rate1]])^(1/12)*PEInflationTable[[#This Row],[2]],IF(EstLastUpdate>DATE(PEInflationTable[[#This Row],[Year]],3,1),0,(1+PEInflationTable[[#This Row],[Rate1]])^(1/12))) -> 1.047713755 | G11: =IF(PEInflationTable[[#This Row],[3]]>0,(1+PEInflationTable[[#This Row],[Rate1]])^(1/12)*PEInflationTable[[#This Row],[3]],IF(EstLastUpdate>DATE(PEInflationTable[[#This Row],[Year]],4,1),0,(1+PEInflationTable[[#This Row],[Rate1]])^(1/12))) -> 1.050297699 | H11: =IF(PEInflationTable[[#This Row],[4]]>0,(1+PEInflationTable[[#This Row],[Rate1]])^(1/12)*PEInflationTable[[#This Row],[4]],IF(EstLastUpdate>DATE(PEInflationTable[[#This Row],[Year]],5,1),0,(1+PEInflationTable[[#This Row],[Rate1]])^(1/12))) -> 1.052888017 | I11: =IF(PEInflationTable[[#This Row],[5]]>0,(1+PEInflationTable[[#This Row],[Rate1]])^(1/12)*PEInflationTable[[#This Row],[5]],IF(EstLastUpdate>DATE(PEInflationTable[[#This Row],[Year]],6,1),0,(1+PEInflationTable[[#This Row],[Rate1]])^(1/12))) -> 1.055484723 | J11: =IF(PEInflationTable[[#This Row],[6]]>0,(1+PEInflationTable[[#This Row],[Rate1]])^(1/12)*PEInflationTable[[#This Row],[6]],IF(EstLastUpdate>DATE(PEInflationTable[[#This Row],[Year]],7,1),0,(1+PEInflationTable[[#This Row],[Rate1]])^(1/12))) -> 1.058087833 | K11: =IF(PEInflationTable[[#This Row],[7]]>0,(1+PEInflationTable[[#This Row],[Rate1]])^(1/12)*PEInflationTable[[#This Row],[7]],IF(EstLastUpdate>DATE(PEInflationTable[[#This Row],[Year]],8,1),0,(1+PEInflationTable[[#This Row],[Rate1]])^(1/12))) -> 1.060697363 | L11: =IF(PEInflationTable[[#This Row],[8]]>0,(1+PEInflationTable[[#This Row],[Rate1]])^(1/12)*PEInflationTable[[#This Row],[8]],IF(EstLastUpdate>DATE(PEInflationTable[[#This Row],[Year]],9,1),0,(1+PEInflationTable[[#This Row],[Rate1]])^(1/12))) -> 1.063313329 | M11: =IF(PEInflationTable[[#This Row],[9]]>0,(1+PEInflationTable[[#This Row],[Rate1]])^(1/12)*PEInflationTable[[#This Row],[9]],IF(EstLastUpdate>DATE(PEInflationTable[[#This Row],[Year]],10,1),0,(1+PEInflationTable[[#This Row],[Rate1]])^(1/12))) -> 1.065935746 | N11: =IF(PEInflationTable[[#This Row],[10]]>0,(1+PEInflationTable[[#This Row],[Rate1]])^(1/12)*PEInflationTable[[#This Row],[10]],IF(EstLastUpdate>DATE(PEInflationTable[[#This Row],[Year]],11,1),0,(1+PEInflationTable[[#This Row],[Rate1]])^(1/12))) -> 1.068564631 | O11: =IF(PEInflationTable[[#This Row],[11]]>0,(1+PEInflationTable[[#This Row],[Rate1]])^(1/12)*PEInflationTable[[#This Row],[11]],IF(EstLastUpdate>DATE(PEInflationTable[[#This Row],[Year]],12,1),0,(1+PEInflationTable[[#This Row],[Rate1]])^(1/12))) -> 1.0712 | Q11: =OFFSET(ROWInflationTable[[#This Row],[Year]],-1,0)+1 -> 2025 | R11: =Inf_ROWRate -> 0.05 | S11: =IF(OFFSET(ROWInflationTable[[#This Row],[12]],-1,0)>0,(1+ROWInflationTable[[#This Row],[Rate1]])^(1/12)*OFFSET(ROWInflationTable[[#This Row],[12]],-1,0),IF(EstLastUpdate>DATE(ROWInflationTable[[#This Row],[Year]],1,1),0,(1+ROWInflationTable[[#This Row],[Rate1]])^(1/12))) -> 1.044237089 | T11: =IF(ROWInflationTable[[#This Row],[1]]>0,(1+ROWInflationTable[[#This Row],[Rate1]])^(1/12)*ROWInflationTable[[#This Row],[1]],IF(EstLastUpdate>DATE(ROWInflationTable[[#This Row],[Year]],2,1),0,(1+ROWInflationTable[[#This Row],[Rate1]])^(1/12))) -> 1.04849144 | U11: =IF(ROWInflationTable[[#This Row],[2]]>0,(1+ROWInflationTable[[#This Row],[Rate1]])^(1/12)*ROWInflationTable[[#This Row],[2]],IF(EstLastUpdate>DATE(ROWInflationTable[[#This Row],[Year]],3,1),0,(1+ROWInflationTable[[#This Row],[Rate1]])^(1/12))) -> 1.052763124 | V11: =IF(ROWInflationTable[[#This Row],[3]]>0,(1+ROWInflationTable[[#This Row],[Rate1]])^(1/12)*ROWInflationTable[[#This Row],[3]],IF(EstLastUpdate>DATE(ROWInflationTable[[#This Row],[Year]],4,1),0,(1+ROWInflationTable[[#This Row],[Rate1]])^(1/12))) -> 1.057052211 | W11: =IF(ROWInflationTable[[#This Row],[4]]>0,(1+ROWInflationTable[[#This Row],[Rate1]])^(1/12)*ROWInflationTable[[#This Row],[4]],IF(EstLastUpdate>DATE(ROWInflationTable[[#This Row],[Year]],5,1),0,(1+ROWInflationTable[[#This Row],[Rate1]])^(1/12))) -> 1.061358773 | X11: =IF(ROWInflationTable[[#This Row],[5]]>0,(1+ROWInflationTable[[#This Row],[Rate1]])^(1/12)*ROWInflationTable[[#This Row],[5]],IF(EstLastUpdate>DATE(ROWInflationTable[[#This Row],[Year]],6,1),0,(1+ROWInflationTable[[#This Row],[Rate1]])^(1/12))) -> 1.06568288 | Y11: =IF(ROWInflationTable[[#This Row],[6]]>0,(1+ROWInflationTable[[#This Row],[Rate1]])^(1/12)*ROWInflationTable[[#This Row],[6]],IF(EstLastUpdate>DATE(ROWInflationTable[[#This Row],[Year]],7,1),0,(1+ROWInflationTable[[#This Row],[Rate1]])^(1/12))) -> 1.070024604 | Z11: =IF(ROWInflationTable[[#This Row],[7]]>0,(1+ROWInflationTable[[#This Row],[Rate1]])^(1/12)*ROWInflationTable[[#This Row],[7]],IF(EstLastUpdate>DATE(ROWInflationTable[[#This Row],[Year]],8,1),0,(1+ROWInflationTable[[#This Row],[Rate1]])^(1/12))) -> 1.074384016 | AA11: =IF(ROWInflationTable[[#This Row],[8]]>0,(1+ROWInflationTable[[#This Row],[Rate1]])^(1/12)*ROWInflationTable[[#This Row],[8]],IF(EstLastUpdate>DATE(ROWInflationTable[[#This Row],[Year]],9,1),0,(1+ROWInflationTable[[#This Row],[Rate1]])^(1/12))) -> 1.07876119 | AB11: =IF(ROWInflationTable[[#This Row],[9]]>0,(1+ROWInflationTable[[#This Row],[Rate1]])^(1/12)*ROWInflationTable[[#This Row],[9]],IF(EstLastUpdate>DATE(ROWInflationTable[[#This Row],[Year]],10,1),0,(1+ROWInflationTable[[#This Row],[Rate1]])^(1/12))) -> 1.083156196 | AC11: =IF(ROWInflationTable[[#This Row],[10]]>0,(1+ROWInflationTable[[#This Row],[Rate1]])^(1/12)*ROWInflationTable[[#This Row],[10]],IF(EstLastUpdate>DATE(ROWInflationTable[[#This Row],[Year]],11,1),0,(1+ROWInflationTable[[#This Row],[Rate1]])^(1/12))) -> 1.087569109 | AD11: =IF(ROWInflationTable[[#This Row],[11]]>0,(1+ROWInflationTable[[#This Row],[Rate1]])^(1/12)*ROWInflationTable[[#This Row],[11]],IF(EstLastUpdate>DATE(ROWInflationTable[[#This Row],[Year]],12,1),0,(1+ROWInflationTable[[#This Row],[Rate1]])^(1/12))) -> 1.092 | AF11: =OFFSET(CNInflationTable[[#This Row],[Year]],-1,0)+1 -> 2025 | AG11: =Inf_CNRate -> 0.03 | AH11: =IF(OFFSET(CNInflationTable[[#This Row],[12]],-1,0)>0,(1+CNInflationTable[[#This Row],[Rate1]])^(1/12)*OFFSET(CNInflationTable[[#This Row],[12]],-1,0),IF(EstLastUpdate>DATE(CNInflationTable[[#This Row],[Year]],1,1),0,(1+CNInflationTable[[#This Row],[Rate1]])^(1/12))) -> 1.052589583 | AI11: =IF(CNInflationTable[[#This Row],[1]]>0,(1+CNInflationTable[[#This Row],[Rate1]])^(1/12)*CNInflationTable[[#This Row],[1]],IF(EstLastUpdate>DATE(CNInflationTable[[#This Row],[Year]],2,1),0,(1+CNInflationTable[[#This Row],[Rate1]])^(1/12))) -> 1.055185553 | AJ11: =IF(CNInflationTable[[#This Row],[2]]>0,(1+CNInflationTable[[#This Row],[Rate1]])^(1/12)*CNInflationTable[[#This Row],[2]],IF(EstLastUpdate>DATE(CNInflationTable[[#This Row],[Year]],3,1),0,(1+CNInflationTable[[#This Row],[Rate1]])^(1/12))) -> 1.057787925 | AK11: =IF(CNInflationTable[[#This Row],[3]]>0,(1+CNInflationTable[[#This Row],[Rate1]])^(1/12)*CNInflationTable[[#This Row],[3]],IF(EstLastUpdate>DATE(CNInflationTable[[#This Row],[Year]],4,1),0,(1+CNInflationTable[[#This Row],[Rate1]])^(1/12))) -> 1.060396716 | AL11: =IF(CNInflationTable[[#This Row],[4]]>0,(1+CNInflationTable[[#This Row],[Rate1]])^(1/12)*CNInflationTable[[#This Row],[4]],IF(EstLastUpdate>DATE(CNInflationTable[[#This Row],[Year]],5,1),0,(1+CNInflationTable[[#This Row],[Rate1]])^(1/12))) -> 1.06301194 | AM11: =IF(CNInflationTable[[#This Row],[5]]>0,(1+CNInflationTable[[#This Row],[Rate1]])^(1/12)*CNInflationTable[[#This Row],[5]],IF(EstLastUpdate>DATE(CNInflationTable[[#This Row],[Year]],6,1),0,(1+CNInflationTable[[#This Row],[Rate1]])^(1/12))) -> 1.065633614 | AN11: =IF(CNInflationTable[[#This Row],[6]]>0,(1+CNInflationTable[[#This Row],[Rate1]])^(1/12)*CNInflationTable[[#This Row],[6]],IF(EstLastUpdate>DATE(CNInflationTable[[#This Row],[Year]],7,1),0,(1+CNInflationTable[[#This Row],[Rate1]])^(1/12))) -> 1.068261754 | AO11: =IF(CNInflationTable[[#This Row],[7]]>0,(1+CNInflationTable[[#This Row],[Rate1]])^(1/12)*CNInflationTable[[#This Row],[7]],IF(EstLastUpdate>DATE(CNInflationTable[[#This Row],[Year]],8,1),0,(1+CNInflationTable[[#This Row],[Rate1]])^(1/12))) -> 1.070896376 | AP11: =IF(CNInflationTable[[#This Row],[8]]>0,(1+CNInflationTable[[#This Row],[Rate1]])^(1/12)*CNInflationTable[[#This Row],[8]],IF(EstLastUpdate>DATE(CNInflationTable[[#This Row],[Year]],9,1),0,(1+CNInflationTable[[#This Row],[Rate1]])^(1/12))) -> 1.073537495 | AQ11: =IF(CNInflationTable[[#This Row],[9]]>0,(1+CNInflationTable[[#This Row],[Rate1]])^(1/12)*CNInflationTable[[#This Row],[9]],IF(EstLastUpdate>DATE(CNInflationTable[[#This Row],[Year]],10,1),0,(1+CNInflationTable[[#This Row],[Rate1]])^(1/12))) -> 1.076185128 | AR11: =IF(CNInflationTable[[#This Row],[10]]>0,(1+CNInflationTable[[#This Row],[Rate1]])^(1/12)*CNInflationTable[[#This Row],[10]],IF(EstLastUpdate>DATE(CNInflationTable[[#This Row],[Year]],11,1),0,(1+CNInflationTable[[#This Row],[Rate1]])^(1/12))) -> 1.078839291 | AS11: =IF(CNInflationTable[[#This Row],[11]]>0,(1+CNInflationTable[[#This Row],[Rate1]])^(1/12)*CNInflationTable[[#This Row],[11]],IF(EstLastUpdate>DATE(CNInflationTable[[#This Row],[Year]],12,1),0,(1+CNInflationTable[[#This Row],[Rate1]])^(1/12))) -> 1.0815 | AU11: =OFFSET(UTInflationTable[[#This Row],[Year]],-1,0)+1 -> 2025 | AV11: =Inf_UTRate -> 0.05 | AW11: =IF(OFFSET(UTInflationTable[[#This Row],[12]],-1,0)>0,(1+UTInflationTable[[#This Row],[Rate1]])^(1/12)*OFFSET(UTInflationTable[[#This Row],[12]],-1,0),IF(EstLastUpdate>DATE(UTInflationTable[[#This Row],[Year]],1,1),0,(1+UTInflationTable[[#This Row],[Rate1]])^(1/12))) -> 1.064318571 | AX11: =IF(UTInflationTable[[#This Row],[1]]>0,(1+UTInflationTable[[#This Row],[Rate1]])^(1/12)*UTInflationTable[[#This Row],[1]],IF(EstLastUpdate>DATE(UTInflationTable[[#This Row],[Year]],2,1),0,(1+UTInflationTable[[#This Row],[Rate1]])^(1/12))) -> 1.068654737 | AY11: =IF(UTInflationTable[[#This Row],[2]]>0,(1+UTInflationTable[[#This Row],[Rate1]])^(1/12)*UTInflationTable[[#This Row],[2]],IF(EstLastUpdate>DATE(UTInflationTable[[#This Row],[Year]],3,1),0,(1+UTInflationTable[[#This Row],[Rate1]])^(1/12))) -> 1.073008568 | AZ11: =IF(UTInflationTable[[#This Row],[3]]>0,(1+UTInflationTable[[#This Row],[Rate1]])^(1/12)*UTInflationTable[[#This Row],[3]],IF(EstLastUpdate>DATE(UTInflationTable[[#This Row],[Year]],4,1),0,(1+UTInflationTable[[#This Row],[Rate1]])^(1/12))) -> 1.077380138 | BA11: =IF(UTInflationTable[[#This Row],[4]]>0,(1+UTInflationTable[[#This Row],[Rate1]])^(1/12)*UTInflationTable[[#This Row],[4]],IF(EstLastUpdate>DATE(UTInflationTable[[#This Row],[Year]],5,1),0,(1+UTInflationTable[[#This Row],[Rate1]])^(1/12))) -> 1.081769518 | BB11: =IF(UTInflationTable[[#This Row],[5]]>0,(1+UTInflationTable[[#This Row],[Rate1]])^(1/12)*UTInflationTable[[#This Row],[5]],IF(EstLastUpdate>DATE(UTInflationTable[[#This Row],[Year]],6,1),0,(1+UTInflationTable[[#This Row],[Rate1]])^(1/12))) -> 1.086176781 | BC11: =IF(UTInflationTable[[#This Row],[6]]>0,(1+UTInflationTable[[#This Row],[Rate1]])^(1/12)*UTInflationTable[[#This Row],[6]],IF(EstLastUpdate>DATE(UTInflationTable[[#This Row],[Year]],7,1),0,(1+UTInflationTable[[#This Row],[Rate1]])^(1/12))) -> 1.090602 | BD11: =IF(UTInflationTable[[#This Row],[7]]>0,(1+UTInflationTable[[#This Row],[Rate1]])^(1/12)*UTInflationTable[[#This Row],[7]],IF(EstLastUpdate>DATE(UTInflationTable[[#This Row],[Year]],8,1),0,(1+UTInflationTable[[#This Row],[Rate1]])^(1/12))) -> 1.095045247 | BE11: =IF(UTInflationTable[[#This Row],[8]]>0,(1+UTInflationTable[[#This Row],[Rate1]])^(1/12)*UTInflationTable[[#This Row],[8]],IF(EstLastUpdate>DATE(UTInflationTable[[#This Row],[Year]],9,1),0,(1+UTInflationTable[[#This Row],[Rate1]])^(1/12))) -> 1.099506597 | BF11: =IF(UTInflationTable[[#This Row],[9]]>0,(1+UTInflationTable[[#This Row],[Rate1]])^(1/12)*UTInflationTable[[#This Row],[9]],IF(EstLastUpdate>DATE(UTInflationTable[[#This Row],[Year]],10,1),0,(1+UTInflationTable[[#This Row],[Rate1]])^(1/12))) -> 1.103986123 | BG11: =IF(UTInflationTable[[#This Row],[10]]>0,(1+UTInflationTable[[#This Row],[Rate1]])^(1/12)*UTInflationTable[[#This Row],[10]],IF(EstLastUpdate>DATE(UTInflationTable[[#This Row],[Year]],11,1),0,(1+UTInflationTable[[#This Row],[Rate1]])^(1/12))) -> 1.108483899 | BH11: =IF(UTInflationTable[[#This Row],[11]]>0,(1+UTInflationTable[[#This Row],[Rate1]])^(1/12)*UTInflationTable[[#This Row],[11]],IF(EstLastUpdate>DATE(UTInflationTable[[#This Row],[Year]],12,1),0,(1+UTInflationTable[[#This Row],[Rate1]])^(1/12))) -> 1.113
B12: =OFFSET(PEInflationTable[[#This Row],[Year]],-1,0)+1 -> 2026 | C12: 0.03 | D12: =IF(OFFSET(PEInflationTable[[#This Row],[12]],-1,0)>0,(1+PEInflationTable[[#This Row],[Rate1]])^(1/12)*OFFSET(PEInflationTable[[#This Row],[12]],-1,0),IF(EstLastUpdate>DATE(PEInflationTable[[#This Row],[Year]],1,1),0,(1+PEInflationTable[[#This Row],[Rate1]])^(1/12))) -> 1.073841868 | E12: =IF(PEInflationTable[[#This Row],[1]]>0,(1+PEInflationTable[[#This Row],[Rate1]])^(1/12)*PEInflationTable[[#This Row],[1]],IF(EstLastUpdate>DATE(PEInflationTable[[#This Row],[Year]],2,1),0,(1+PEInflationTable[[#This Row],[Rate1]])^(1/12))) -> 1.076490252 | F12: =IF(PEInflationTable[[#This Row],[2]]>0,(1+PEInflationTable[[#This Row],[Rate1]])^(1/12)*PEInflationTable[[#This Row],[2]],IF(EstLastUpdate>DATE(PEInflationTable[[#This Row],[Year]],3,1),0,(1+PEInflationTable[[#This Row],[Rate1]])^(1/12))) -> 1.079145167 | G12: =IF(PEInflationTable[[#This Row],[3]]>0,(1+PEInflationTable[[#This Row],[Rate1]])^(1/12)*PEInflationTable[[#This Row],[3]],IF(EstLastUpdate>DATE(PEInflationTable[[#This Row],[Year]],4,1),0,(1+PEInflationTable[[#This Row],[Rate1]])^(1/12))) -> 1.08180663 | H12: =IF(PEInflationTable[[#This Row],[4]]>0,(1+PEInflationTable[[#This Row],[Rate1]])^(1/12)*PEInflationTable[[#This Row],[4]],IF(EstLastUpdate>DATE(PEInflationTable[[#This Row],[Year]],5,1),0,(1+PEInflationTable[[#This Row],[Rate1]])^(1/12))) -> 1.084474657 | I12: =IF(PEInflationTable[[#This Row],[5]]>0,(1+PEInflationTable[[#This Row],[Rate1]])^(1/12)*PEInflationTable[[#This Row],[5]],IF(EstLastUpdate>DATE(PEInflationTable[[#This Row],[Year]],6,1),0,(1+PEInflationTable[[#This Row],[Rate1]])^(1/12))) -> 1.087149264 | J12: =IF(PEInflationTable[[#This Row],[6]]>0,(1+PEInflationTable[[#This Row],[Rate1]])^(1/12)*PEInflationTable[[#This Row],[6]],IF(EstLastUpdate>DATE(PEInflationTable[[#This Row],[Year]],7,1),0,(1+PEInflationTable[[#This Row],[Rate1]])^(1/12))) -> 1.089830468 | K12: =IF(PEInflationTable[[#This Row],[7]]>0,(1+PEInflationTable[[#This Row],[Rate1]])^(1/12)*PEInflationTable[[#This Row],[7]],IF(EstLastUpdate>DATE(PEInflationTable[[#This Row],[Year]],8,1),0,(1+PEInflationTable[[#This Row],[Rate1]])^(1/12))) -> 1.092518284 | L12: =IF(PEInflationTable[[#This Row],[8]]>0,(1+PEInflationTable[[#This Row],[Rate1]])^(1/12)*PEInflationTable[[#This Row],[8]],IF(EstLastUpdate>DATE(PEInflationTable[[#This Row],[Year]],9,1),0,(1+PEInflationTable[[#This Row],[Rate1]])^(1/12))) -> 1.095212729 | M12: =IF(PEInflationTable[[#This Row],[9]]>0,(1+PEInflationTable[[#This Row],[Rate1]])^(1/12)*PEInflationTable[[#This Row],[9]],IF(EstLastUpdate>DATE(PEInflationTable[[#This Row],[Year]],10,1),0,(1+PEInflationTable[[#This Row],[Rate1]])^(1/12))) -> 1.097913819 | N12: =IF(PEInflationTable[[#This Row],[10]]>0,(1+PEInflationTable[[#This Row],[Rate1]])^(1/12)*PEInflationTable[[#This Row],[10]],IF(EstLastUpdate>DATE(PEInflationTable[[#This Row],[Year]],11,1),0,(1+PEInflationTable[[#This Row],[Rate1]])^(1/12))) -> 1.10062157 | O12: =IF(PEInflationTable[[#This Row],[11]]>0,(1+PEInflationTable[[#This Row],[Rate1]])^(1/12)*PEInflationTable[[#This Row],[11]],IF(EstLastUpdate>DATE(PEInflationTable[[#This Row],[Year]],12,1),0,(1+PEInflationTable[[#This Row],[Rate1]])^(1/12))) -> 1.103336 | Q12: =Q11+1 -> 2026 | R12: 0.05 | S12: =IF(OFFSET(ROWInflationTable[[#This Row],[12]],-1,0)>0,(1+ROWInflationTable[[#This Row],[Rate1]])^(1/12)*OFFSET(ROWInflationTable[[#This Row],[12]],-1,0),IF(EstLastUpdate>DATE(ROWInflationTable[[#This Row],[Year]],1,1),0,(1+ROWInflationTable[[#This Row],[Rate1]])^(1/12))) -> 1.096448943 | T12: =IF(ROWInflationTable[[#This Row],[1]]>0,(1+ROWInflationTable[[#This Row],[Rate1]])^(1/12)*ROWInflationTable[[#This Row],[1]],IF(EstLastUpdate>DATE(ROWInflationTable[[#This Row],[Year]],2,1),0,(1+ROWInflationTable[[#This Row],[Rate1]])^(1/12))) -> 1.100916012 | U12: =IF(ROWInflationTable[[#This Row],[2]]>0,(1+ROWInflationTable[[#This Row],[Rate1]])^(1/12)*ROWInflationTable[[#This Row],[2]],IF(EstLastUpdate>DATE(ROWInflationTable[[#This Row],[Year]],3,1),0,(1+ROWInflationTable[[#This Row],[Rate1]])^(1/12))) -> 1.10540128 | V12: =IF(ROWInflationTable[[#This Row],[3]]>0,(1+ROWInflationTable[[#This Row],[Rate1]])^(1/12)*ROWInflationTable[[#This Row],[3]],IF(EstLastUpdate>DATE(ROWInflationTable[[#This Row],[Year]],4,1),0,(1+ROWInflationTable[[#This Row],[Rate1]])^(1/12))) -> 1.109904822 | W12: =IF(ROWInflationTable[[#This Row],[4]]>0,(1+ROWInflationTable[[#This Row],[Rate1]])^(1/12)*ROWInflationTable[[#This Row],[4]],IF(EstLastUpdate>DATE(ROWInflationTable[[#This Row],[Year]],5,1),0,(1+ROWInflationTable[[#This Row],[Rate1]])^(1/12))) -> 1.114426711 | X12: =IF(ROWInflationTable[[#This Row],[5]]>0,(1+ROWInflationTable[[#This Row],[Rate1]])^(1/12)*ROWInflationTable[[#This Row],[5]],IF(EstLastUpdate>DATE(ROWInflationTable[[#This Row],[Year]],6,1),0,(1+ROWInflationTable[[#This Row],[Rate1]])^(1/12))) -> 1.118967024 | Y12: =IF(ROWInflationTable[[#This Row],[6]]>0,(1+ROWInflationTable[[#This Row],[Rate1]])^(1/12)*ROWInflationTable[[#This Row],[6]],IF(EstLastUpdate>DATE(ROWInflationTable[[#This Row],[Year]],7,1),0,(1+ROWInflationTable[[#This Row],[Rate1]])^(1/12))) -> 1.123525834 | Z12: =IF(ROWInflationTable[[#This Row],[7]]>0,(1+ROWInflationTable[[#This Row],[Rate1]])^(1/12)*ROWInflationTable[[#This Row],[7]],IF(EstLastUpdate>DATE(ROWInflationTable[[#This Row],[Year]],8,1),0,(1+ROWInflationTable[[#This Row],[Rate1]])^(1/12))) -> 1.128103217 | AA12: =IF(ROWInflationTable[[#This Row],[8]]>0,(1+ROWInflationTable[[#This Row],[Rate1]])^(1/12)*ROWInflationTable[[#This Row],[8]],IF(EstLastUpdate>DATE(ROWInflationTable[[#This Row],[Year]],9,1),0,(1+ROWInflationTable[[#This Row],[Rate1]])^(1/12))) -> 1.132699249 | AB12: =IF(ROWInflationTable[[#This Row],[9]]>0,(1+ROWInflationTable[[#This Row],[Rate1]])^(1/12)*ROWInflationTable[[#This Row],[9]],IF(EstLastUpdate>DATE(ROWInflationTable[[#This Row],[Year]],10,1),0,(1+ROWInflationTable[[#This Row],[Rate1]])^(1/12))) -> 1.137314006 | AC12: =IF(ROWInflationTable[[#This Row],[10]]>0,(1+ROWInflationTable[[#This Row],[Rate1]])^(1/12)*ROWInflationTable[[#This Row],[10]],IF(EstLastUpdate>DATE(ROWInflationTable[[#This Row],[Year]],11,1),0,(1+ROWInflationTable[[#This Row],[Rate1]])^(1/12))) -> 1.141947564 | AD12: =IF(ROWInflationTable[[#This Row],[11]]>0,(1+ROWInflationTable[[#This Row],[Rate1]])^(1/12)*ROWInflationTable[[#This Row],[11]],IF(EstLastUpdate>DATE(ROWInflationTable[[#This Row],[Year]],12,1),0,(1+ROWInflationTable[[#This Row],[Rate1]])^(1/12))) -> 1.1466 | AF12: =AF11+1 -> 2026 | AG12: 0.03 | AH12: =IF(OFFSET(CNInflationTable[[#This Row],[12]],-1,0)>0,(1+CNInflationTable[[#This Row],[Rate1]])^(1/12)*OFFSET(CNInflationTable[[#This Row],[12]],-1,0),IF(EstLastUpdate>DATE(CNInflationTable[[#This Row],[Year]],1,1),0,(1+CNInflationTable[[#This Row],[Rate1]])^(1/12))) -> 1.084167271 | AI12: =IF(CNInflationTable[[#This Row],[1]]>0,(1+CNInflationTable[[#This Row],[Rate1]])^(1/12)*CNInflationTable[[#This Row],[1]],IF(EstLastUpdate>DATE(CNInflationTable[[#This Row],[Year]],2,1),0,(1+CNInflationTable[[#This Row],[Rate1]])^(1/12))) -> 1.08684112 | AJ12: =IF(CNInflationTable[[#This Row],[2]]>0,(1+CNInflationTable[[#This Row],[Rate1]])^(1/12)*CNInflationTable[[#This Row],[2]],IF(EstLastUpdate>DATE(CNInflationTable[[#This Row],[Year]],3,1),0,(1+CNInflationTable[[#This Row],[Rate1]])^(1/12))) -> 1.089521563 | AK12: =IF(CNInflationTable[[#This Row],[3]]>0,(1+CNInflationTable[[#This Row],[Rate1]])^(1/12)*CNInflationTable[[#This Row],[3]],IF(EstLastUpdate>DATE(CNInflationTable[[#This Row],[Year]],4,1),0,(1+CNInflationTable[[#This Row],[Rate1]])^(1/12))) -> 1.092208617 | AL12: =IF(CNInflationTable[[#This Row],[4]]>0,(1+CNInflationTable[[#This Row],[Rate1]])^(1/12)*CNInflationTable[[#This Row],[4]],IF(EstLastUpdate>DATE(CNInflationTable[[#This Row],[Year]],5,1),0,(1+CNInflationTable[[#This Row],[Rate1]])^(1/12))) -> 1.094902298 | AM12: =IF(CNInflationTable[[#This Row],[5]]>0,(1+CNInflationTable[[#This Row],[Rate1]])^(1/12)*CNInflationTable[[#This Row],[5]],IF(EstLastUpdate>DATE(CNInflationTable[[#This Row],[Year]],6,1),0,(1+CNInflationTable[[#This Row],[Rate1]])^(1/12))) -> 1.097602623 | AN12: =IF(CNInflationTable[[#This Row],[6]]>0,(1+CNInflationTable[[#This Row],[Rate1]])^(1/12)*CNInflationTable[[#This Row],[6]],IF(EstLastUpdate>DATE(CNInflationTable[[#This Row],[Year]],7,1),0,(1+CNInflationTable[[#This Row],[Rate1]])^(1/12))) -> 1.100309607 | AO12: =IF(CNInflationTable[[#This Row],[7]]>0,(1+CNInflationTable[[#This Row],[Rate1]])^(1/12)*CNInflationTable[[#This Row],[7]],IF(EstLastUpdate>DATE(CNInflationTable[[#This Row],[Year]],8,1),0,(1+CNInflationTable[[#This Row],[Rate1]])^(1/12))) -> 1.103023267 | AP12: =IF(CNInflationTable[[#This Row],[8]]>0,(1+CNInflationTable[[#This Row],[Rate1]])^(1/12)*CNInflationTable[[#This Row],[8]],IF(EstLastUpdate>DATE(CNInflationTable[[#This Row],[Year]],9,1),0,(1+CNInflationTable[[#This Row],[Rate1]])^(1/12))) -> 1.10574362 | AQ12: =IF(CNInflationTable[[#This Row],[9]]>0,(1+CNInflationTable[[#This Row],[Rate1]])^(1/12)*CNInflationTable[[#This Row],[9]],IF(EstLastUpdate>DATE(CNInflationTable[[#This Row],[Year]],10,1),0,(1+CNInflationTable[[#This Row],[Rate1]])^(1/12))) -> 1.108470682 | AR12: =IF(CNInflationTable[[#This Row],[10]]>0,(1+CNInflationTable[[#This Row],[Rate1]])^(1/12)*CNInflationTable[[#This Row],[10]],IF(EstLastUpdate>DATE(CNInflationTable[[#This Row],[Year]],11,1),0,(1+CNInflationTable[[#This Row],[Rate1]])^(1/12))) -> 1.11120447 | AS12: =IF(CNInflationTable[[#This Row],[11]]>0,(1+CNInflationTable[[#This Row],[Rate1]])^(1/12)*CNInflationTable[[#This Row],[11]],IF(EstLastUpdate>DATE(CNInflationTable[[#This Row],[Year]],12,1),0,(1+CNInflationTable[[#This Row],[Rate1]])^(1/12))) -> 1.113945 | AU12: =AU11+1 -> 2026 | AV12: 0.05 | AW12: =IF(OFFSET(UTInflationTable[[#This Row],[12]],-1,0)>0,(1+UTInflationTable[[#This Row],[Rate1]])^(1/12)*OFFSET(UTInflationTable[[#This Row],[12]],-1,0),IF(EstLastUpdate>DATE(UTInflationTable[[#This Row],[Year]],1,1),0,(1+UTInflationTable[[#This Row],[Rate1]])^(1/12))) -> 1.1175345 | AX12: =IF(UTInflationTable[[#This Row],[1]]>0,(1+UTInflationTable[[#This Row],[Rate1]])^(1/12)*UTInflationTable[[#This Row],[1]],IF(EstLastUpdate>DATE(UTInflationTable[[#This Row],[Year]],2,1),0,(1+UTInflationTable[[#This Row],[Rate1]])^(1/12))) -> 1.122087474 | AY12: =IF(UTInflationTable[[#This Row],[2]]>0,(1+UTInflationTable[[#This Row],[Rate1]])^(1/12)*UTInflationTable[[#This Row],[2]],IF(EstLastUpdate>DATE(UTInflationTable[[#This Row],[Year]],3,1),0,(1+UTInflationTable[[#This Row],[Rate1]])^(1/12))) -> 1.126658997 | AZ12: =IF(UTInflationTable[[#This Row],[3]]>0,(1+UTInflationTable[[#This Row],[Rate1]])^(1/12)*UTInflationTable[[#This Row],[3]],IF(EstLastUpdate>DATE(UTInflationTable[[#This Row],[Year]],4,1),0,(1+UTInflationTable[[#This Row],[Rate1]])^(1/12))) -> 1.131249145 | BA12: =IF(UTInflationTable[[#This Row],[4]]>0,(1+UTInflationTable[[#This Row],[Rate1]])^(1/12)*UTInflationTable[[#This Row],[4]],IF(EstLastUpdate>DATE(UTInflationTable[[#This Row],[Year]],5,1),0,(1+UTInflationTable[[#This Row],[Rate1]])^(1/12))) -> 1.135857994 | BB12: =IF(UTInflationTable[[#This Row],[5]]>0,(1+UTInflationTable[[#This Row],[Rate1]])^(1/12)*UTInflationTable[[#This Row],[5]],IF(EstLastUpdate>DATE(UTInflationTable[[#This Row],[Year]],6,1),0,(1+UTInflationTable[[#This Row],[Rate1]])^(1/12))) -> 1.14048562 | BC12: =IF(UTInflationTable[[#This Row],[6]]>0,(1+UTInflationTable[[#This Row],[Rate1]])^(1/12)*UTInflationTable[[#This Row],[6]],IF(EstLastUpdate>DATE(UTInflationTable[[#This Row],[Year]],7,1),0,(1+UTInflationTable[[#This Row],[Rate1]])^(1/12))) -> 1.1451321 | BD12: =IF(UTInflationTable[[#This Row],[7]]>0,(1+UTInflationTable[[#This Row],[Rate1]])^(1/12)*UTInflationTable[[#This Row],[7]],IF(EstLastUpdate>DATE(UTInflationTable[[#This Row],[Year]],8,1),0,(1+UTInflationTable[[#This Row],[Rate1]])^(1/12))) -> 1.14979751 | BE12: =IF(UTInflationTable[[#This Row],[8]]>0,(1+UTInflationTable[[#This Row],[Rate1]])^(1/12)*UTInflationTable[[#This Row],[8]],IF(EstLastUpdate>DATE(UTInflationTable[[#This Row],[Year]],9,1),0,(1+UTInflationTable[[#This Row],[Rate1]])^(1/12))) -> 1.154481927 | BF12: =IF(UTInflationTable[[#This Row],[9]]>0,(1+UTInflationTable[[#This Row],[Rate1]])^(1/12)*UTInflationTable[[#This Row],[9]],IF(EstLastUpdate>DATE(UTInflationTable[[#This Row],[Year]],10,1),0,(1+UTInflationTable[[#This Row],[Rate1]])^(1/12))) -> 1.159185429 | BG12: =IF(UTInflationTable[[#This Row],[10]]>0,(1+UTInflationTable[[#This Row],[Rate1]])^(1/12)*UTInflationTable[[#This Row],[10]],IF(EstLastUpdate>DATE(UTInflationTable[[#This Row],[Year]],11,1),0,(1+UTInflationTable[[#This Row],[Rate1]])^(1/12))) -> 1.163908094 | BH12: =IF(UTInflationTable[[#This Row],[11]]>0,(1+UTInflationTable[[#This Row],[Rate1]])^(1/12)*UTInflationTable[[#This Row],[11]],IF(EstLastUpdate>DATE(UTInflationTable[[#This Row],[Year]],12,1),0,(1+UTInflationTable[[#This Row],[Rate1]])^(1/12))) -> 1.16865
B13: =OFFSET(PEInflationTable[[#This Row],[Year]],-1,0)+1 -> 2027 | C13: 0.03 | D13: =IF(OFFSET(PEInflationTable[[#This Row],[12]],-1,0)>0,(1+PEInflationTable[[#This Row],[Rate1]])^(1/12)*OFFSET(PEInflationTable[[#This Row],[12]],-1,0),IF(EstLastUpdate>DATE(PEInflationTable[[#This Row],[Year]],1,1),0,(1+PEInflationTable[[#This Row],[Rate1]])^(1/12))) -> 1.106057124 | E13: =IF(PEInflationTable[[#This Row],[1]]>0,(1+PEInflationTable[[#This Row],[Rate1]])^(1/12)*PEInflationTable[[#This Row],[1]],IF(EstLastUpdate>DATE(PEInflationTable[[#This Row],[Year]],2,1),0,(1+PEInflationTable[[#This Row],[Rate1]])^(1/12))) -> 1.108784959 | F13: =IF(PEInflationTable[[#This Row],[2]]>0,(1+PEInflationTable[[#This Row],[Rate1]])^(1/12)*PEInflationTable[[#This Row],[2]],IF(EstLastUpdate>DATE(PEInflationTable[[#This Row],[Year]],3,1),0,(1+PEInflationTable[[#This Row],[Rate1]])^(1/12))) -> 1.111519522 | G13: =IF(PEInflationTable[[#This Row],[3]]>0,(1+PEInflationTable[[#This Row],[Rate1]])^(1/12)*PEInflationTable[[#This Row],[3]],IF(EstLastUpdate>DATE(PEInflationTable[[#This Row],[Year]],4,1),0,(1+PEInflationTable[[#This Row],[Rate1]])^(1/12))) -> 1.114260829 | H13: =IF(PEInflationTable[[#This Row],[4]]>0,(1+PEInflationTable[[#This Row],[Rate1]])^(1/12)*PEInflationTable[[#This Row],[4]],IF(EstLastUpdate>DATE(PEInflationTable[[#This Row],[Year]],5,1),0,(1+PEInflationTable[[#This Row],[Rate1]])^(1/12))) -> 1.117008897 | I13: =IF(PEInflationTable[[#This Row],[5]]>0,(1+PEInflationTable[[#This Row],[Rate1]])^(1/12)*PEInflationTable[[#This Row],[5]],IF(EstLastUpdate>DATE(PEInflationTable[[#This Row],[Year]],6,1),0,(1+PEInflationTable[[#This Row],[Rate1]])^(1/12))) -> 1.119763742 | J13: =IF(PEInflationTable[[#This Row],[6]]>0,(1+PEInflationTable[[#This Row],[Rate1]])^(1/12)*PEInflationTable[[#This Row],[6]],IF(EstLastUpdate>DATE(PEInflationTable[[#This Row],[Year]],7,1),0,(1+PEInflationTable[[#This Row],[Rate1]])^(1/12))) -> 1.122525382 | K13: =IF(PEInflationTable[[#This Row],[7]]>0,(1+PEInflationTable[[#This Row],[Rate1]])^(1/12)*PEInflationTable[[#This Row],[7]],IF(EstLastUpdate>DATE(PEInflationTable[[#This Row],[Year]],8,1),0,(1+PEInflationTable[[#This Row],[Rate1]])^(1/12))) -> 1.125293832 | L13: =IF(PEInflationTable[[#This Row],[8]]>0,(1+PEInflationTable[[#This Row],[Rate1]])^(1/12)*PEInflationTable[[#This Row],[8]],IF(EstLastUpdate>DATE(PEInflationTable[[#This Row],[Year]],9,1),0,(1+PEInflationTable[[#This Row],[Rate1]])^(1/12))) -> 1.12806911 | M13: =IF(PEInflationTable[[#This Row],[9]]>0,(1+PEInflationTable[[#This Row],[Rate1]])^(1/12)*PEInflationTable[[#This Row],[9]],IF(EstLastUpdate>DATE(PEInflationTable[[#This Row],[Year]],10,1),0,(1+PEInflationTable[[#This Row],[Rate1]])^(1/12))) -> 1.130851233 | N13: =IF(PEInflationTable[[#This Row],[10]]>0,(1+PEInflationTable[[#This Row],[Rate1]])^(1/12)*PEInflationTable[[#This Row],[10]],IF(EstLastUpdate>DATE(PEInflationTable[[#This Row],[Year]],11,1),0,(1+PEInflationTable[[#This Row],[Rate1]])^(1/12))) -> 1.133640217 | O13: =IF(PEInflationTable[[#This Row],[11]]>0,(1+PEInflationTable[[#This Row],[Rate1]])^(1/12)*PEInflationTable[[#This Row],[11]],IF(EstLastUpdate>DATE(PEInflationTable[[#This Row],[Year]],12,1),0,(1+PEInflationTable[[#This Row],[Rate1]])^(1/12))) -> 1.13643608 | Q13: 2027 | R13: 0.05 | S13: =IF(OFFSET(ROWInflationTable[[#This Row],[12]],-1,0)>0,(1+ROWInflationTable[[#This Row],[Rate1]])^(1/12)*OFFSET(ROWInflationTable[[#This Row],[12]],-1,0),IF(EstLastUpdate>DATE(ROWInflationTable[[#This Row],[Year]],1,1),0,(1+ROWInflationTable[[#This Row],[Rate1]])^(1/12))) -> 1.15127139 | T13: =IF(ROWInflationTable[[#This Row],[1]]>0,(1+ROWInflationTable[[#This Row],[Rate1]])^(1/12)*ROWInflationTable[[#This Row],[1]],IF(EstLastUpdate>DATE(ROWInflationTable[[#This Row],[Year]],2,1),0,(1+ROWInflationTable[[#This Row],[Rate1]])^(1/12))) -> 1.155961812 | U13: =IF(ROWInflationTable[[#This Row],[2]]>0,(1+ROWInflationTable[[#This Row],[Rate1]])^(1/12)*ROWInflationTable[[#This Row],[2]],IF(EstLastUpdate>DATE(ROWInflationTable[[#This Row],[Year]],3,1),0,(1+ROWInflationTable[[#This Row],[Rate1]])^(1/12))) -> 1.160671344 | V13: =IF(ROWInflationTable[[#This Row],[3]]>0,(1+ROWInflationTable[[#This Row],[Rate1]])^(1/12)*ROWInflationTable[[#This Row],[3]],IF(EstLastUpdate>DATE(ROWInflationTable[[#This Row],[Year]],4,1),0,(1+ROWInflationTable[[#This Row],[Rate1]])^(1/12))) -> 1.165400063 | W13: =IF(ROWInflationTable[[#This Row],[4]]>0,(1+ROWInflationTable[[#This Row],[Rate1]])^(1/12)*ROWInflationTable[[#This Row],[4]],IF(EstLastUpdate>DATE(ROWInflationTable[[#This Row],[Year]],5,1),0,(1+ROWInflationTable[[#This Row],[Rate1]])^(1/12))) -> 1.170148047 | X13: =IF(ROWInflationTable[[#This Row],[5]]>0,(1+ROWInflationTable[[#This Row],[Rate1]])^(1/12)*ROWInflationTable[[#This Row],[5]],IF(EstLastUpdate>DATE(ROWInflationTable[[#This Row],[Year]],6,1),0,(1+ROWInflationTable[[#This Row],[Rate1]])^(1/12))) -> 1.174915375 | Y13: =IF(ROWInflationTable[[#This Row],[6]]>0,(1+ROWInflationTable[[#This Row],[Rate1]])^(1/12)*ROWInflationTable[[#This Row],[6]],IF(EstLastUpdate>DATE(ROWInflationTable[[#This Row],[Year]],7,1),0,(1+ROWInflationTable[[#This Row],[Rate1]])^(1/12))) -> 1.179702125 | Z13: =IF(ROWInflationTable[[#This Row],[7]]>0,(1+ROWInflationTable[[#This Row],[Rate1]])^(1/12)*ROWInflationTable[[#This Row],[7]],IF(EstLastUpdate>DATE(ROWInflationTable[[#This Row],[Year]],8,1),0,(1+ROWInflationTable[[#This Row],[Rate1]])^(1/12))) -> 1.184508378 | AA13: =IF(ROWInflationTable[[#This Row],[8]]>0,(1+ROWInflationTable[[#This Row],[Rate1]])^(1/12)*ROWInflationTable[[#This Row],[8]],IF(EstLastUpdate>DATE(ROWInflationTable[[#This Row],[Year]],9,1),0,(1+ROWInflationTable[[#This Row],[Rate1]])^(1/12))) -> 1.189334212 | AB13: =IF(ROWInflationTable[[#This Row],[9]]>0,(1+ROWInflationTable[[#This Row],[Rate1]])^(1/12)*ROWInflationTable[[#This Row],[9]],IF(EstLastUpdate>DATE(ROWInflationTable[[#This Row],[Year]],10,1),0,(1+ROWInflationTable[[#This Row],[Rate1]])^(1/12))) -> 1.194179707 | AC13: =IF(ROWInflationTable[[#This Row],[10]]>0,(1+ROWInflationTable[[#This Row],[Rate1]])^(1/12)*ROWInflationTable[[#This Row],[10]],IF(EstLastUpdate>DATE(ROWInflationTable[[#This Row],[Year]],11,1),0,(1+ROWInflationTable[[#This Row],[Rate1]])^(1/12))) -> 1.199044942 | AD13: =IF(ROWInflationTable[[#This Row],[11]]>0,(1+ROWInflationTable[[#This Row],[Rate1]])^(1/12)*ROWInflationTable[[#This Row],[11]],IF(EstLastUpdate>DATE(ROWInflationTable[[#This Row],[Year]],12,1),0,(1+ROWInflationTable[[#This Row],[Rate1]])^(1/12))) -> 1.20393 | AF13: 2027 | AG13: 0.03 | AH13: =IF(OFFSET(CNInflationTable[[#This Row],[12]],-1,0)>0,(1+CNInflationTable[[#This Row],[Rate1]])^(1/12)*OFFSET(CNInflationTable[[#This Row],[12]],-1,0),IF(EstLastUpdate>DATE(CNInflationTable[[#This Row],[Year]],1,1),0,(1+CNInflationTable[[#This Row],[Rate1]])^(1/12))) -> 1.116692289 | AI13: =IF(CNInflationTable[[#This Row],[1]]>0,(1+CNInflationTable[[#This Row],[Rate1]])^(1/12)*CNInflationTable[[#This Row],[1]],IF(EstLastUpdate>DATE(CNInflationTable[[#This Row],[Year]],2,1),0,(1+CNInflationTable[[#This Row],[Rate1]])^(1/12))) -> 1.119446353 | AJ13: =IF(CNInflationTable[[#This Row],[2]]>0,(1+CNInflationTable[[#This Row],[Rate1]])^(1/12)*CNInflationTable[[#This Row],[2]],IF(EstLastUpdate>DATE(CNInflationTable[[#This Row],[Year]],3,1),0,(1+CNInflationTable[[#This Row],[Rate1]])^(1/12))) -> 1.12220721 | AK13: =IF(CNInflationTable[[#This Row],[3]]>0,(1+CNInflationTable[[#This Row],[Rate1]])^(1/12)*CNInflationTable[[#This Row],[3]],IF(EstLastUpdate>DATE(CNInflationTable[[#This Row],[Year]],4,1),0,(1+CNInflationTable[[#This Row],[Rate1]])^(1/12))) -> 1.124974876 | AL13: =IF(CNInflationTable[[#This Row],[4]]>0,(1+CNInflationTable[[#This Row],[Rate1]])^(1/12)*CNInflationTable[[#This Row],[4]],IF(EstLastUpdate>DATE(CNInflationTable[[#This Row],[Year]],5,1),0,(1+CNInflationTable[[#This Row],[Rate1]])^(1/12))) -> 1.127749367 | AM13: =IF(CNInflationTable[[#This Row],[5]]>0,(1+CNInflationTable[[#This Row],[Rate1]])^(1/12)*CNInflationTable[[#This Row],[5]],IF(EstLastUpdate>DATE(CNInflationTable[[#This Row],[Year]],6,1),0,(1+CNInflationTable[[#This Row],[Rate1]])^(1/12))) -> 1.130530701 | AN13: =IF(CNInflationTable[[#This Row],[6]]>0,(1+CNInflationTable[[#This Row],[Rate1]])^(1/12)*CNInflationTable[[#This Row],[6]],IF(EstLastUpdate>DATE(CNInflationTable[[#This Row],[Year]],7,1),0,(1+CNInflationTable[[#This Row],[Rate1]])^(1/12))) -> 1.133318895 | AO13: =IF(CNInflationTable[[#This Row],[7]]>0,(1+CNInflationTable[[#This Row],[Rate1]])^(1/12)*CNInflationTable[[#This Row],[7]],IF(EstLastUpdate>DATE(CNInflationTable[[#This Row],[Year]],8,1),0,(1+CNInflationTable[[#This Row],[Rate1]])^(1/12))) -> 1.136113965 | AP13: =IF(CNInflationTable[[#This Row],[8]]>0,(1+CNInflationTable[[#This Row],[Rate1]])^(1/12)*CNInflationTable[[#This Row],[8]],IF(EstLastUpdate>DATE(CNInflationTable[[#This Row],[Year]],9,1),0,(1+CNInflationTable[[#This Row],[Rate1]])^(1/12))) -> 1.138915929 | AQ13: =IF(CNInflationTable[[#This Row],[9]]>0,(1+CNInflationTable[[#This Row],[Rate1]])^(1/12)*CNInflationTable[[#This Row],[9]],IF(EstLastUpdate>DATE(CNInflationTable[[#This Row],[Year]],10,1),0,(1+CNInflationTable[[#This Row],[Rate1]])^(1/12))) -> 1.141724803 | AR13: =IF(CNInflationTable[[#This Row],[10]]>0,(1+CNInflationTable[[#This Row],[Rate1]])^(1/12)*CNInflationTable[[#This Row],[10]],IF(EstLastUpdate>DATE(CNInflationTable[[#This Row],[Year]],11,1),0,(1+CNInflationTable[[#This Row],[Rate1]])^(1/12))) -> 1.144540604 | AS13: =IF(CNInflationTable[[#This Row],[11]]>0,(1+CNInflationTable[[#This Row],[Rate1]])^(1/12)*CNInflationTable[[#This Row],[11]],IF(EstLastUpdate>DATE(CNInflationTable[[#This Row],[Year]],12,1),0,(1+CNInflationTable[[#This Row],[Rate1]])^(1/12))) -> 1.14736335 | AU13: 2027 | AV13: 0.05 | AW13: =IF(OFFSET(UTInflationTable[[#This Row],[12]],-1,0)>0,(1+UTInflationTable[[#This Row],[Rate1]])^(1/12)*OFFSET(UTInflationTable[[#This Row],[12]],-1,0),IF(EstLastUpdate>DATE(UTInflationTable[[#This Row],[Year]],1,1),0,(1+UTInflationTable[[#This Row],[Rate1]])^(1/12))) -> 1.173411225 | AX13: =IF(UTInflationTable[[#This Row],[1]]>0,(1+UTInflationTable[[#This Row],[Rate1]])^(1/12)*UTInflationTable[[#This Row],[1]],IF(EstLastUpdate>DATE(UTInflationTable[[#This Row],[Year]],2,1),0,(1+UTInflationTable[[#This Row],[Rate1]])^(1/12))) -> 1.178191847 | AY13: =IF(UTInflationTable[[#This Row],[2]]>0,(1+UTInflationTable[[#This Row],[Rate1]])^(1/12)*UTInflationTable[[#This Row],[2]],IF(EstLastUpdate>DATE(UTInflationTable[[#This Row],[Year]],3,1),0,(1+UTInflationTable[[#This Row],[Rate1]])^(1/12))) -> 1.182991947 | AZ13: =IF(UTInflationTable[[#This Row],[3]]>0,(1+UTInflationTable[[#This Row],[Rate1]])^(1/12)*UTInflationTable[[#This Row],[3]],IF(EstLastUpdate>DATE(UTInflationTable[[#This Row],[Year]],4,1),0,(1+UTInflationTable[[#This Row],[Rate1]])^(1/12))) -> 1.187811602 | BA13: =IF(UTInflationTable[[#This Row],[4]]>0,(1+UTInflationTable[[#This Row],[Rate1]])^(1/12)*UTInflationTable[[#This Row],[4]],IF(EstLastUpdate>DATE(UTInflationTable[[#This Row],[Year]],5,1),0,(1+UTInflationTable[[#This Row],[Rate1]])^(1/12))) -> 1.192650894 | BB13: =IF(UTInflationTable[[#This Row],[5]]>0,(1+UTInflationTable[[#This Row],[Rate1]])^(1/12)*UTInflationTable[[#This Row],[5]],IF(EstLastUpdate>DATE(UTInflationTable[[#This Row],[Year]],6,1),0,(1+UTInflationTable[[#This Row],[Rate1]])^(1/12))) -> 1.197509901 | BC13: =IF(UTInflationTable[[#This Row],[6]]>0,(1+UTInflationTable[[#This Row],[Rate1]])^(1/12)*UTInflationTable[[#This Row],[6]],IF(EstLastUpdate>DATE(UTInflationTable[[#This Row],[Year]],7,1),0,(1+UTInflationTable[[#This Row],[Rate1]])^(1/12))) -> 1.202388705 | BD13: =IF(UTInflationTable[[#This Row],[7]]>0,(1+UTInflationTable[[#This Row],[Rate1]])^(1/12)*UTInflationTable[[#This Row],[7]],IF(EstLastUpdate>DATE(UTInflationTable[[#This Row],[Year]],8,1),0,(1+UTInflationTable[[#This Row],[Rate1]])^(1/12))) -> 1.207287385 | BE13: =IF(UTInflationTable[[#This Row],[8]]>0,(1+UTInflationTable[[#This Row],[Rate1]])^(1/12)*UTInflationTable[[#This Row],[8]],IF(EstLastUpdate>DATE(UTInflationTable[[#This Row],[Year]],9,1),0,(1+UTInflationTable[[#This Row],[Rate1]])^(1/12))) -> 1.212206024 | BF13: =IF(UTInflationTable[[#This Row],[9]]>0,(1+UTInflationTable[[#This Row],[Rate1]])^(1/12)*UTInflationTable[[#This Row],[9]],IF(EstLastUpdate>DATE(UTInflationTable[[#This Row],[Year]],10,1),0,(1+UTInflationTable[[#This Row],[Rate1]])^(1/12))) -> 1.217144701 | BG13: =IF(UTInflationTable[[#This Row],[10]]>0,(1+UTInflationTable[[#This Row],[Rate1]])^(1/12)*UTInflationTable[[#This Row],[10]],IF(EstLastUpdate>DATE(UTInflationTable[[#This Row],[Year]],11,1),0,(1+UTInflationTable[[#This Row],[Rate1]])^(1/12))) -> 1.222103499 | BH13: =IF(UTInflationTable[[#This Row],[11]]>0,(1+UTInflationTable[[#This Row],[Rate1]])^(1/12)*UTInflationTable[[#This Row],[11]],IF(EstLastUpdate>DATE(UTInflationTable[[#This Row],[Year]],12,1),0,(1+UTInflationTable[[#This Row],[Rate1]])^(1/12))) -> 1.2270825
B14: =OFFSET(PEInflationTable[[#This Row],[Year]],-1,0)+1 -> 2028 | C14: 0.03 | D14: =IF(OFFSET(PEInflationTable[[#This Row],[12]],-1,0)>0,(1+PEInflationTable[[#This Row],[Rate1]])^(1/12)*OFFSET(PEInflationTable[[#This Row],[12]],-1,0),IF(EstLastUpdate>DATE(PEInflationTable[[#This Row],[Year]],1,1),0,(1+PEInflationTable[[#This Row],[Rate1]])^(1/12))) -> 1.139238838 | E14: =IF(PEInflationTable[[#This Row],[1]]>0,(1+PEInflationTable[[#This Row],[Rate1]])^(1/12)*PEInflationTable[[#This Row],[1]],IF(EstLastUpdate>DATE(PEInflationTable[[#This Row],[Year]],2,1),0,(1+PEInflationTable[[#This Row],[Rate1]])^(1/12))) -> 1.142048508 | F14: =IF(PEInflationTable[[#This Row],[2]]>0,(1+PEInflationTable[[#This Row],[Rate1]])^(1/12)*PEInflationTable[[#This Row],[2]],IF(EstLastUpdate>DATE(PEInflationTable[[#This Row],[Year]],3,1),0,(1+PEInflationTable[[#This Row],[Rate1]])^(1/12))) -> 1.144865108 | G14: =IF(PEInflationTable[[#This Row],[3]]>0,(1+PEInflationTable[[#This Row],[Rate1]])^(1/12)*PEInflationTable[[#This Row],[3]],IF(EstLastUpdate>DATE(PEInflationTable[[#This Row],[Year]],4,1),0,(1+PEInflationTable[[#This Row],[Rate1]])^(1/12))) -> 1.147688654 | H14: =IF(PEInflationTable[[#This Row],[4]]>0,(1+PEInflationTable[[#This Row],[Rate1]])^(1/12)*PEInflationTable[[#This Row],[4]],IF(EstLastUpdate>DATE(PEInflationTable[[#This Row],[Year]],5,1),0,(1+PEInflationTable[[#This Row],[Rate1]])^(1/12))) -> 1.150519164 | I14: =IF(PEInflationTable[[#This Row],[5]]>0,(1+PEInflationTable[[#This Row],[Rate1]])^(1/12)*PEInflationTable[[#This Row],[5]],IF(EstLastUpdate>DATE(PEInflationTable[[#This Row],[Year]],6,1),0,(1+PEInflationTable[[#This Row],[Rate1]])^(1/12))) -> 1.153356655 | J14: =IF(PEInflationTable[[#This Row],[6]]>0,(1+PEInflationTable[[#This Row],[Rate1]])^(1/12)*PEInflationTable[[#This Row],[6]],IF(EstLastUpdate>DATE(PEInflationTable[[#This Row],[Year]],7,1),0,(1+PEInflationTable[[#This Row],[Rate1]])^(1/12))) -> 1.156201143 | K14: =IF(PEInflationTable[[#This Row],[7]]>0,(1+PEInflationTable[[#This Row],[Rate1]])^(1/12)*PEInflationTable[[#This Row],[7]],IF(EstLastUpdate>DATE(PEInflationTable[[#This Row],[Year]],8,1),0,(1+PEInflationTable[[#This Row],[Rate1]])^(1/12))) -> 1.159052647 | L14: =IF(PEInflationTable[[#This Row],[8]]>0,(1+PEInflationTable[[#This Row],[Rate1]])^(1/12)*PEInflationTable[[#This Row],[8]],IF(EstLastUpdate>DATE(PEInflationTable[[#This Row],[Year]],9,1),0,(1+PEInflationTable[[#This Row],[Rate1]])^(1/12))) -> 1.161911184 | M14: =IF(PEInflationTable[[#This Row],[9]]>0,(1+PEInflationTable[[#This Row],[Rate1]])^(1/12)*PEInflationTable[[#This Row],[9]],IF(EstLastUpdate>DATE(PEInflationTable[[#This Row],[Year]],10,1),0,(1+PEInflationTable[[#This Row],[Rate1]])^(1/12))) -> 1.16477677 | N14: =IF(PEInflationTable[[#This Row],[10]]>0,(1+PEInflationTable[[#This Row],[Rate1]])^(1/12)*PEInflationTable[[#This Row],[10]],IF(EstLastUpdate>DATE(PEInflationTable[[#This Row],[Year]],11,1),0,(1+PEInflationTable[[#This Row],[Rate1]])^(1/12))) -> 1.167649424 | O14: =IF(PEInflationTable[[#This Row],[11]]>0,(1+PEInflationTable[[#This Row],[Rate1]])^(1/12)*PEInflationTable[[#This Row],[11]],IF(EstLastUpdate>DATE(PEInflationTable[[#This Row],[Year]],12,1),0,(1+PEInflationTable[[#This Row],[Rate1]])^(1/12))) -> 1.170529162 | Q14: 2028 | R14: 0.05 | S14: =IF(OFFSET(ROWInflationTable[[#This Row],[12]],-1,0)>0,(1+ROWInflationTable[[#This Row],[Rate1]])^(1/12)*OFFSET(ROWInflationTable[[#This Row],[12]],-1,0),IF(EstLastUpdate>DATE(ROWInflationTable[[#This Row],[Year]],1,1),0,(1+ROWInflationTable[[#This Row],[Rate1]])^(1/12))) -> 1.20883496 | T14: =IF(ROWInflationTable[[#This Row],[1]]>0,(1+ROWInflationTable[[#This Row],[Rate1]])^(1/12)*ROWInflationTable[[#This Row],[1]],IF(EstLastUpdate>DATE(ROWInflationTable[[#This Row],[Year]],2,1),0,(1+ROWInflationTable[[#This Row],[Rate1]])^(1/12))) -> 1.213759903 | U14: =IF(ROWInflationTable[[#This Row],[2]]>0,(1+ROWInflationTable[[#This Row],[Rate1]])^(1/12)*ROWInflationTable[[#This Row],[2]],IF(EstLastUpdate>DATE(ROWInflationTable[[#This Row],[Year]],3,1),0,(1+ROWInflationTable[[#This Row],[Rate1]])^(1/12))) -> 1.218704911 | V14: =IF(ROWInflationTable[[#This Row],[3]]>0,(1+ROWInflationTable[[#This Row],[Rate1]])^(1/12)*ROWInflationTable[[#This Row],[3]],IF(EstLastUpdate>DATE(ROWInflationTable[[#This Row],[Year]],4,1),0,(1+ROWInflationTable[[#This Row],[Rate1]])^(1/12))) -> 1.223670066 | W14: =IF(ROWInflationTable[[#This Row],[4]]>0,(1+ROWInflationTable[[#This Row],[Rate1]])^(1/12)*ROWInflationTable[[#This Row],[4]],IF(EstLastUpdate>DATE(ROWInflationTable[[#This Row],[Year]],5,1),0,(1+ROWInflationTable[[#This Row],[Rate1]])^(1/12))) -> 1.228655449 | X14: =IF(ROWInflationTable[[#This Row],[5]]>0,(1+ROWInflationTable[[#This Row],[Rate1]])^(1/12)*ROWInflationTable[[#This Row],[5]],IF(EstLastUpdate>DATE(ROWInflationTable[[#This Row],[Year]],6,1),0,(1+ROWInflationTable[[#This Row],[Rate1]])^(1/12))) -> 1.233661144 | Y14: =IF(ROWInflationTable[[#This Row],[6]]>0,(1+ROWInflationTable[[#This Row],[Rate1]])^(1/12)*ROWInflationTable[[#This Row],[6]],IF(EstLastUpdate>DATE(ROWInflationTable[[#This Row],[Year]],7,1),0,(1+ROWInflationTable[[#This Row],[Rate1]])^(1/12))) -> 1.238687232 | Z14: =IF(ROWInflationTable[[#This Row],[7]]>0,(1+ROWInflationTable[[#This Row],[Rate1]])^(1/12)*ROWInflationTable[[#This Row],[7]],IF(EstLastUpdate>DATE(ROWInflationTable[[#This Row],[Year]],8,1),0,(1+ROWInflationTable[[#This Row],[Rate1]])^(1/12))) -> 1.243733797 | AA14: =IF(ROWInflationTable[[#This Row],[8]]>0,(1+ROWInflationTable[[#This Row],[Rate1]])^(1/12)*ROWInflationTable[[#This Row],[8]],IF(EstLastUpdate>DATE(ROWInflationTable[[#This Row],[Year]],9,1),0,(1+ROWInflationTable[[#This Row],[Rate1]])^(1/12))) -> 1.248800922 | AB14: =IF(ROWInflationTable[[#This Row],[9]]>0,(1+ROWInflationTable[[#This Row],[Rate1]])^(1/12)*ROWInflationTable[[#This Row],[9]],IF(EstLastUpdate>DATE(ROWInflationTable[[#This Row],[Year]],10,1),0,(1+ROWInflationTable[[#This Row],[Rate1]])^(1/12))) -> 1.253888692 | AC14: =IF(ROWInflationTable[[#This Row],[10]]>0,(1+ROWInflationTable[[#This Row],[Rate1]])^(1/12)*ROWInflationTable[[#This Row],[10]],IF(EstLastUpdate>DATE(ROWInflationTable[[#This Row],[Year]],11,1),0,(1+ROWInflationTable[[#This Row],[Rate1]])^(1/12))) -> 1.25899719 | AD14: =IF(ROWInflationTable[[#This Row],[11]]>0,(1+ROWInflationTable[[#This Row],[Rate1]])^(1/12)*ROWInflationTable[[#This Row],[11]],IF(EstLastUpdate>DATE(ROWInflationTable[[#This Row],[Year]],12,1),0,(1+ROWInflationTable[[#This Row],[Rate1]])^(1/12))) -> 1.2641265 | AF14: 2028 | AG14: 0.03 | AH14: =IF(OFFSET(CNInflationTable[[#This Row],[12]],-1,0)>0,(1+CNInflationTable[[#This Row],[Rate1]])^(1/12)*OFFSET(CNInflationTable[[#This Row],[12]],-1,0),IF(EstLastUpdate>DATE(CNInflationTable[[#This Row],[Year]],1,1),0,(1+CNInflationTable[[#This Row],[Rate1]])^(1/12))) -> 1.150193058 | AI14: =IF(CNInflationTable[[#This Row],[1]]>0,(1+CNInflationTable[[#This Row],[Rate1]])^(1/12)*CNInflationTable[[#This Row],[1]],IF(EstLastUpdate>DATE(CNInflationTable[[#This Row],[Year]],2,1),0,(1+CNInflationTable[[#This Row],[Rate1]])^(1/12))) -> 1.153029744 | AJ14: =IF(CNInflationTable[[#This Row],[2]]>0,(1+CNInflationTable[[#This Row],[Rate1]])^(1/12)*CNInflationTable[[#This Row],[2]],IF(EstLastUpdate>DATE(CNInflationTable[[#This Row],[Year]],3,1),0,(1+CNInflationTable[[#This Row],[Rate1]])^(1/12))) -> 1.155873426 | AK14: =IF(CNInflationTable[[#This Row],[3]]>0,(1+CNInflationTable[[#This Row],[Rate1]])^(1/12)*CNInflationTable[[#This Row],[3]],IF(EstLastUpdate>DATE(CNInflationTable[[#This Row],[Year]],4,1),0,(1+CNInflationTable[[#This Row],[Rate1]])^(1/12))) -> 1.158724122 | AL14: =IF(CNInflationTable[[#This Row],[4]]>0,(1+CNInflationTable[[#This Row],[Rate1]])^(1/12)*CNInflationTable[[#This Row],[4]],IF(EstLastUpdate>DATE(CNInflationTable[[#This Row],[Year]],5,1),0,(1+CNInflationTable[[#This Row],[Rate1]])^(1/12))) -> 1.161581848 | AM14: =IF(CNInflationTable[[#This Row],[5]]>0,(1+CNInflationTable[[#This Row],[Rate1]])^(1/12)*CNInflationTable[[#This Row],[5]],IF(EstLastUpdate>DATE(CNInflationTable[[#This Row],[Year]],6,1),0,(1+CNInflationTable[[#This Row],[Rate1]])^(1/12))) -> 1.164446622 | AN14: =IF(CNInflationTable[[#This Row],[6]]>0,(1+CNInflationTable[[#This Row],[Rate1]])^(1/12)*CNInflationTable[[#This Row],[6]],IF(EstLastUpdate>DATE(CNInflationTable[[#This Row],[Year]],7,1),0,(1+CNInflationTable[[#This Row],[Rate1]])^(1/12))) -> 1.167318462 | AO14: =IF(CNInflationTable[[#This Row],[7]]>0,(1+CNInflationTable[[#This Row],[Rate1]])^(1/12)*CNInflationTable[[#This Row],[7]],IF(EstLastUpdate>DATE(CNInflationTable[[#This Row],[Year]],8,1),0,(1+CNInflationTable[[#This Row],[Rate1]])^(1/12))) -> 1.170197384 | AP14: =IF(CNInflationTable[[#This Row],[8]]>0,(1+CNInflationTable[[#This Row],[Rate1]])^(1/12)*CNInflationTable[[#This Row],[8]],IF(EstLastUpdate>DATE(CNInflationTable[[#This Row],[Year]],9,1),0,(1+CNInflationTable[[#This Row],[Rate1]])^(1/12))) -> 1.173083407 | AQ14: =IF(CNInflationTable[[#This Row],[9]]>0,(1+CNInflationTable[[#This Row],[Rate1]])^(1/12)*CNInflationTable[[#This Row],[9]],IF(EstLastUpdate>DATE(CNInflationTable[[#This Row],[Year]],10,1),0,(1+CNInflationTable[[#This Row],[Rate1]])^(1/12))) -> 1.175976547 | AR14: =IF(CNInflationTable[[#This Row],[10]]>0,(1+CNInflationTable[[#This Row],[Rate1]])^(1/12)*CNInflationTable[[#This Row],[10]],IF(EstLastUpdate>DATE(CNInflationTable[[#This Row],[Year]],11,1),0,(1+CNInflationTable[[#This Row],[Rate1]])^(1/12))) -> 1.178876822 | AS14: =IF(CNInflationTable[[#This Row],[11]]>0,(1+CNInflationTable[[#This Row],[Rate1]])^(1/12)*CNInflationTable[[#This Row],[11]],IF(EstLastUpdate>DATE(CNInflationTable[[#This Row],[Year]],12,1),0,(1+CNInflationTable[[#This Row],[Rate1]])^(1/12))) -> 1.181784251 | AU14: 2028 | AV14: 0.05 | AW14: =IF(OFFSET(UTInflationTable[[#This Row],[12]],-1,0)>0,(1+UTInflationTable[[#This Row],[Rate1]])^(1/12)*OFFSET(UTInflationTable[[#This Row],[12]],-1,0),IF(EstLastUpdate>DATE(UTInflationTable[[#This Row],[Year]],1,1),0,(1+UTInflationTable[[#This Row],[Rate1]])^(1/12))) -> 1.232081786 | AX14: =IF(UTInflationTable[[#This Row],[1]]>0,(1+UTInflationTable[[#This Row],[Rate1]])^(1/12)*UTInflationTable[[#This Row],[1]],IF(EstLastUpdate>DATE(UTInflationTable[[#This Row],[Year]],2,1),0,(1+UTInflationTable[[#This Row],[Rate1]])^(1/12))) -> 1.23710144 | AY14: =IF(UTInflationTable[[#This Row],[2]]>0,(1+UTInflationTable[[#This Row],[Rate1]])^(1/12)*UTInflationTable[[#This Row],[2]],IF(EstLastUpdate>DATE(UTInflationTable[[#This Row],[Year]],3,1),0,(1+UTInflationTable[[#This Row],[Rate1]])^(1/12))) -> 1.242141544 | AZ14: =IF(UTInflationTable[[#This Row],[3]]>0,(1+UTInflationTable[[#This Row],[Rate1]])^(1/12)*UTInflationTable[[#This Row],[3]],IF(EstLastUpdate>DATE(UTInflationTable[[#This Row],[Year]],4,1),0,(1+UTInflationTable[[#This Row],[Rate1]])^(1/12))) -> 1.247202183 | BA14: =IF(UTInflationTable[[#This Row],[4]]>0,(1+UTInflationTable[[#This Row],[Rate1]])^(1/12)*UTInflationTable[[#This Row],[4]],IF(EstLastUpdate>DATE(UTInflationTable[[#This Row],[Year]],5,1),0,(1+UTInflationTable[[#This Row],[Rate1]])^(1/12))) -> 1.252283439 | BB14: =IF(UTInflationTable[[#This Row],[5]]>0,(1+UTInflationTable[[#This Row],[Rate1]])^(1/12)*UTInflationTable[[#This Row],[5]],IF(EstLastUpdate>DATE(UTInflationTable[[#This Row],[Year]],6,1),0,(1+UTInflationTable[[#This Row],[Rate1]])^(1/12))) -> 1.257385396 | BC14: =IF(UTInflationTable[[#This Row],[6]]>0,(1+UTInflationTable[[#This Row],[Rate1]])^(1/12)*UTInflationTable[[#This Row],[6]],IF(EstLastUpdate>DATE(UTInflationTable[[#This Row],[Year]],7,1),0,(1+UTInflationTable[[#This Row],[Rate1]])^(1/12))) -> 1.26250814 | BD14: =IF(UTInflationTable[[#This Row],[7]]>0,(1+UTInflationTable[[#This Row],[Rate1]])^(1/12)*UTInflationTable[[#This Row],[7]],IF(EstLastUpdate>DATE(UTInflationTable[[#This Row],[Year]],8,1),0,(1+UTInflationTable[[#This Row],[Rate1]])^(1/12))) -> 1.267651755 | BE14: =IF(UTInflationTable[[#This Row],[8]]>0,(1+UTInflationTable[[#This Row],[Rate1]])^(1/12)*UTInflationTable[[#This Row],[8]],IF(EstLastUpdate>DATE(UTInflationTable[[#This Row],[Year]],9,1),0,(1+UTInflationTable[[#This Row],[Rate1]])^(1/12))) -> 1.272816325 | BF14: =IF(UTInflationTable[[#This Row],[9]]>0,(1+UTInflationTable[[#This Row],[Rate1]])^(1/12)*UTInflationTable[[#This Row],[9]],IF(EstLastUpdate>DATE(UTInflationTable[[#This Row],[Year]],10,1),0,(1+UTInflationTable[[#This Row],[Rate1]])^(1/12))) -> 1.278001936 | BG14: =IF(UTInflationTable[[#This Row],[10]]>0,(1+UTInflationTable[[#This Row],[Rate1]])^(1/12)*UTInflationTable[[#This Row],[10]],IF(EstLastUpdate>DATE(UTInflationTable[[#This Row],[Year]],11,1),0,(1+UTInflationTable[[#This Row],[Rate1]])^(1/12))) -> 1.283208674 | BH14: =IF(UTInflationTable[[#This Row],[11]]>0,(1+UTInflationTable[[#This Row],[Rate1]])^(1/12)*UTInflationTable[[#This Row],[11]],IF(EstLastUpdate>DATE(UTInflationTable[[#This Row],[Year]],12,1),0,(1+UTInflationTable[[#This Row],[Rate1]])^(1/12))) -> 1.288436625
B15: =OFFSET(PEInflationTable[[#This Row],[Year]],-1,0)+1 -> 2029 | C15: 0.03 | D15: =IF(OFFSET(PEInflationTable[[#This Row],[12]],-1,0)>0,(1+PEInflationTable[[#This Row],[Rate1]])^(1/12)*OFFSET(PEInflationTable[[#This Row],[12]],-1,0),IF(EstLastUpdate>DATE(PEInflationTable[[#This Row],[Year]],1,1),0,(1+PEInflationTable[[#This Row],[Rate1]])^(1/12))) -> 1.173416003 | E15: =IF(PEInflationTable[[#This Row],[1]]>0,(1+PEInflationTable[[#This Row],[Rate1]])^(1/12)*PEInflationTable[[#This Row],[1]],IF(EstLastUpdate>DATE(PEInflationTable[[#This Row],[Year]],2,1),0,(1+PEInflationTable[[#This Row],[Rate1]])^(1/12))) -> 1.176309964 | F15: =IF(PEInflationTable[[#This Row],[2]]>0,(1+PEInflationTable[[#This Row],[Rate1]])^(1/12)*PEInflationTable[[#This Row],[2]],IF(EstLastUpdate>DATE(PEInflationTable[[#This Row],[Year]],3,1),0,(1+PEInflationTable[[#This Row],[Rate1]])^(1/12))) -> 1.179211061 | G15: =IF(PEInflationTable[[#This Row],[3]]>0,(1+PEInflationTable[[#This Row],[Rate1]])^(1/12)*PEInflationTable[[#This Row],[3]],IF(EstLastUpdate>DATE(PEInflationTable[[#This Row],[Year]],4,1),0,(1+PEInflationTable[[#This Row],[Rate1]])^(1/12))) -> 1.182119314 | H15: =IF(PEInflationTable[[#This Row],[4]]>0,(1+PEInflationTable[[#This Row],[Rate1]])^(1/12)*PEInflationTable[[#This Row],[4]],IF(EstLastUpdate>DATE(PEInflationTable[[#This Row],[Year]],5,1),0,(1+PEInflationTable[[#This Row],[Rate1]])^(1/12))) -> 1.185034739 | I15: =IF(PEInflationTable[[#This Row],[5]]>0,(1+PEInflationTable[[#This Row],[Rate1]])^(1/12)*PEInflationTable[[#This Row],[5]],IF(EstLastUpdate>DATE(PEInflationTable[[#This Row],[Year]],6,1),0,(1+PEInflationTable[[#This Row],[Rate1]])^(1/12))) -> 1.187957354 | J15: =IF(PEInflationTable[[#This Row],[6]]>0,(1+PEInflationTable[[#This Row],[Rate1]])^(1/12)*PEInflationTable[[#This Row],[6]],IF(EstLastUpdate>DATE(PEInflationTable[[#This Row],[Year]],7,1),0,(1+PEInflationTable[[#This Row],[Rate1]])^(1/12))) -> 1.190887178 | K15: =IF(PEInflationTable[[#This Row],[7]]>0,(1+PEInflationTable[[#This Row],[Rate1]])^(1/12)*PEInflationTable[[#This Row],[7]],IF(EstLastUpdate>DATE(PEInflationTable[[#This Row],[Year]],8,1),0,(1+PEInflationTable[[#This Row],[Rate1]])^(1/12))) -> 1.193824227 | L15: =IF(PEInflationTable[[#This Row],[8]]>0,(1+PEInflationTable[[#This Row],[Rate1]])^(1/12)*PEInflationTable[[#This Row],[8]],IF(EstLastUpdate>DATE(PEInflationTable[[#This Row],[Year]],9,1),0,(1+PEInflationTable[[#This Row],[Rate1]])^(1/12))) -> 1.196768519 | M15: =IF(PEInflationTable[[#This Row],[9]]>0,(1+PEInflationTable[[#This Row],[Rate1]])^(1/12)*PEInflationTable[[#This Row],[9]],IF(EstLastUpdate>DATE(PEInflationTable[[#This Row],[Year]],10,1),0,(1+PEInflationTable[[#This Row],[Rate1]])^(1/12))) -> 1.199720073 | N15: =IF(PEInflationTable[[#This Row],[10]]>0,(1+PEInflationTable[[#This Row],[Rate1]])^(1/12)*PEInflationTable[[#This Row],[10]],IF(EstLastUpdate>DATE(PEInflationTable[[#This Row],[Year]],11,1),0,(1+PEInflationTable[[#This Row],[Rate1]])^(1/12))) -> 1.202678907 | O15: =IF(PEInflationTable[[#This Row],[11]]>0,(1+PEInflationTable[[#This Row],[Rate1]])^(1/12)*PEInflationTable[[#This Row],[11]],IF(EstLastUpdate>DATE(PEInflationTable[[#This Row],[Year]],12,1),0,(1+PEInflationTable[[#This Row],[Rate1]])^(1/12))) -> 1.205645037 | Q15: 2029 | R15: 0.05 | S15: =IF(OFFSET(ROWInflationTable[[#This Row],[12]],-1,0)>0,(1+ROWInflationTable[[#This Row],[Rate1]])^(1/12)*OFFSET(ROWInflationTable[[#This Row],[12]],-1,0),IF(EstLastUpdate>DATE(ROWInflationTable[[#This Row],[Year]],1,1),0,(1+ROWInflationTable[[#This Row],[Rate1]])^(1/12))) -> 1.269276708 | T15: =IF(ROWInflationTable[[#This Row],[1]]>0,(1+ROWInflationTable[[#This Row],[Rate1]])^(1/12)*ROWInflationTable[[#This Row],[1]],IF(EstLastUpdate>DATE(ROWInflationTable[[#This Row],[Year]],2,1),0,(1+ROWInflationTable[[#This Row],[Rate1]])^(1/12))) -> 1.274447898 | U15: =IF(ROWInflationTable[[#This Row],[2]]>0,(1+ROWInflationTable[[#This Row],[Rate1]])^(1/12)*ROWInflationTable[[#This Row],[2]],IF(EstLastUpdate>DATE(ROWInflationTable[[#This Row],[Year]],3,1),0,(1+ROWInflationTable[[#This Row],[Rate1]])^(1/12))) -> 1.279640157 | V15: =IF(ROWInflationTable[[#This Row],[3]]>0,(1+ROWInflationTable[[#This Row],[Rate1]])^(1/12)*ROWInflationTable[[#This Row],[3]],IF(EstLastUpdate>DATE(ROWInflationTable[[#This Row],[Year]],4,1),0,(1+ROWInflationTable[[#This Row],[Rate1]])^(1/12))) -> 1.284853569 | W15: =IF(ROWInflationTable[[#This Row],[4]]>0,(1+ROWInflationTable[[#This Row],[Rate1]])^(1/12)*ROWInflationTable[[#This Row],[4]],IF(EstLastUpdate>DATE(ROWInflationTable[[#This Row],[Year]],5,1),0,(1+ROWInflationTable[[#This Row],[Rate1]])^(1/12))) -> 1.290088222 | X15: =IF(ROWInflationTable[[#This Row],[5]]>0,(1+ROWInflationTable[[#This Row],[Rate1]])^(1/12)*ROWInflationTable[[#This Row],[5]],IF(EstLastUpdate>DATE(ROWInflationTable[[#This Row],[Year]],6,1),0,(1+ROWInflationTable[[#This Row],[Rate1]])^(1/12))) -> 1.295344201 | Y15: =IF(ROWInflationTable[[#This Row],[6]]>0,(1+ROWInflationTable[[#This Row],[Rate1]])^(1/12)*ROWInflationTable[[#This Row],[6]],IF(EstLastUpdate>DATE(ROWInflationTable[[#This Row],[Year]],7,1),0,(1+ROWInflationTable[[#This Row],[Rate1]])^(1/12))) -> 1.300621593 | Z15: =IF(ROWInflationTable[[#This Row],[7]]>0,(1+ROWInflationTable[[#This Row],[Rate1]])^(1/12)*ROWInflationTable[[#This Row],[7]],IF(EstLastUpdate>DATE(ROWInflationTable[[#This Row],[Year]],8,1),0,(1+ROWInflationTable[[#This Row],[Rate1]])^(1/12))) -> 1.305920487 | AA15: =IF(ROWInflationTable[[#This Row],[8]]>0,(1+ROWInflationTable[[#This Row],[Rate1]])^(1/12)*ROWInflationTable[[#This Row],[8]],IF(EstLastUpdate>DATE(ROWInflationTable[[#This Row],[Year]],9,1),0,(1+ROWInflationTable[[#This Row],[Rate1]])^(1/12))) -> 1.311240968 | AB15: =IF(ROWInflationTable[[#This Row],[9]]>0,(1+ROWInflationTable[[#This Row],[Rate1]])^(1/12)*ROWInflationTable[[#This Row],[9]],IF(EstLastUpdate>DATE(ROWInflationTable[[#This Row],[Year]],10,1),0,(1+ROWInflationTable[[#This Row],[Rate1]])^(1/12))) -> 1.316583126 | AC15: =IF(ROWInflationTable[[#This Row],[10]]>0,(1+ROWInflationTable[[#This Row],[Rate1]])^(1/12)*ROWInflationTable[[#This Row],[10]],IF(EstLastUpdate>DATE(ROWInflationTable[[#This Row],[Year]],11,1),0,(1+ROWInflationTable[[#This Row],[Rate1]])^(1/12))) -> 1.321947049 | AD15: =IF(ROWInflationTable[[#This Row],[11]]>0,(1+ROWInflationTable[[#This Row],[Rate1]])^(1/12)*ROWInflationTable[[#This Row],[11]],IF(EstLastUpdate>DATE(ROWInflationTable[[#This Row],[Year]],12,1),0,(1+ROWInflationTable[[#This Row],[Rate1]])^(1/12))) -> 1.327332825 | AF15: 2029 | AG15: 0.03 | AH15: =IF(OFFSET(CNInflationTable[[#This Row],[12]],-1,0)>0,(1+CNInflationTable[[#This Row],[Rate1]])^(1/12)*OFFSET(CNInflationTable[[#This Row],[12]],-1,0),IF(EstLastUpdate>DATE(CNInflationTable[[#This Row],[Year]],1,1),0,(1+CNInflationTable[[#This Row],[Rate1]])^(1/12))) -> 1.184698849 | AI15: =IF(CNInflationTable[[#This Row],[1]]>0,(1+CNInflationTable[[#This Row],[Rate1]])^(1/12)*CNInflationTable[[#This Row],[1]],IF(EstLastUpdate>DATE(CNInflationTable[[#This Row],[Year]],2,1),0,(1+CNInflationTable[[#This Row],[Rate1]])^(1/12))) -> 1.187620636 | AJ15: =IF(CNInflationTable[[#This Row],[2]]>0,(1+CNInflationTable[[#This Row],[Rate1]])^(1/12)*CNInflationTable[[#This Row],[2]],IF(EstLastUpdate>DATE(CNInflationTable[[#This Row],[Year]],3,1),0,(1+CNInflationTable[[#This Row],[Rate1]])^(1/12))) -> 1.190549629 | AK15: =IF(CNInflationTable[[#This Row],[3]]>0,(1+CNInflationTable[[#This Row],[Rate1]])^(1/12)*CNInflationTable[[#This Row],[3]],IF(EstLastUpdate>DATE(CNInflationTable[[#This Row],[Year]],4,1),0,(1+CNInflationTable[[#This Row],[Rate1]])^(1/12))) -> 1.193485846 | AL15: =IF(CNInflationTable[[#This Row],[4]]>0,(1+CNInflationTable[[#This Row],[Rate1]])^(1/12)*CNInflationTable[[#This Row],[4]],IF(EstLastUpdate>DATE(CNInflationTable[[#This Row],[Year]],5,1),0,(1+CNInflationTable[[#This Row],[Rate1]])^(1/12))) -> 1.196429304 | AM15: =IF(CNInflationTable[[#This Row],[5]]>0,(1+CNInflationTable[[#This Row],[Rate1]])^(1/12)*CNInflationTable[[#This Row],[5]],IF(EstLastUpdate>DATE(CNInflationTable[[#This Row],[Year]],6,1),0,(1+CNInflationTable[[#This Row],[Rate1]])^(1/12))) -> 1.199380021 | AN15: =IF(CNInflationTable[[#This Row],[6]]>0,(1+CNInflationTable[[#This Row],[Rate1]])^(1/12)*CNInflationTable[[#This Row],[6]],IF(EstLastUpdate>DATE(CNInflationTable[[#This Row],[Year]],7,1),0,(1+CNInflationTable[[#This Row],[Rate1]])^(1/12))) -> 1.202338016 | AO15: =IF(CNInflationTable[[#This Row],[7]]>0,(1+CNInflationTable[[#This Row],[Rate1]])^(1/12)*CNInflationTable[[#This Row],[7]],IF(EstLastUpdate>DATE(CNInflationTable[[#This Row],[Year]],8,1),0,(1+CNInflationTable[[#This Row],[Rate1]])^(1/12))) -> 1.205303306 | AP15: =IF(CNInflationTable[[#This Row],[8]]>0,(1+CNInflationTable[[#This Row],[Rate1]])^(1/12)*CNInflationTable[[#This Row],[8]],IF(EstLastUpdate>DATE(CNInflationTable[[#This Row],[Year]],9,1),0,(1+CNInflationTable[[#This Row],[Rate1]])^(1/12))) -> 1.208275909 | AQ15: =IF(CNInflationTable[[#This Row],[9]]>0,(1+CNInflationTable[[#This Row],[Rate1]])^(1/12)*CNInflationTable[[#This Row],[9]],IF(EstLastUpdate>DATE(CNInflationTable[[#This Row],[Year]],10,1),0,(1+CNInflationTable[[#This Row],[Rate1]])^(1/12))) -> 1.211255843 | AR15: =IF(CNInflationTable[[#This Row],[10]]>0,(1+CNInflationTable[[#This Row],[Rate1]])^(1/12)*CNInflationTable[[#This Row],[10]],IF(EstLastUpdate>DATE(CNInflationTable[[#This Row],[Year]],11,1),0,(1+CNInflationTable[[#This Row],[Rate1]])^(1/12))) -> 1.214243127 | AS15: =IF(CNInflationTable[[#This Row],[11]]>0,(1+CNInflationTable[[#This Row],[Rate1]])^(1/12)*CNInflationTable[[#This Row],[11]],IF(EstLastUpdate>DATE(CNInflationTable[[#This Row],[Year]],12,1),0,(1+CNInflationTable[[#This Row],[Rate1]])^(1/12))) -> 1.217237778 | AU15: 2029 | AV15: 0.05 | AW15: =IF(OFFSET(UTInflationTable[[#This Row],[12]],-1,0)>0,(1+UTInflationTable[[#This Row],[Rate1]])^(1/12)*OFFSET(UTInflationTable[[#This Row],[12]],-1,0),IF(EstLastUpdate>DATE(UTInflationTable[[#This Row],[Year]],1,1),0,(1+UTInflationTable[[#This Row],[Rate1]])^(1/12))) -> 1.293685875 | AX15: =IF(UTInflationTable[[#This Row],[1]]>0,(1+UTInflationTable[[#This Row],[Rate1]])^(1/12)*UTInflationTable[[#This Row],[1]],IF(EstLastUpdate>DATE(UTInflationTable[[#This Row],[Year]],2,1),0,(1+UTInflationTable[[#This Row],[Rate1]])^(1/12))) -> 1.298956512 | AY15: =IF(UTInflationTable[[#This Row],[2]]>0,(1+UTInflationTable[[#This Row],[Rate1]])^(1/12)*UTInflationTable[[#This Row],[2]],IF(EstLastUpdate>DATE(UTInflationTable[[#This Row],[Year]],3,1),0,(1+UTInflationTable[[#This Row],[Rate1]])^(1/12))) -> 1.304248621 | AZ15: =IF(UTInflationTable[[#This Row],[3]]>0,(1+UTInflationTable[[#This Row],[Rate1]])^(1/12)*UTInflationTable[[#This Row],[3]],IF(EstLastUpdate>DATE(UTInflationTable[[#This Row],[Year]],4,1),0,(1+UTInflationTable[[#This Row],[Rate1]])^(1/12))) -> 1.309562292 | BA15: =IF(UTInflationTable[[#This Row],[4]]>0,(1+UTInflationTable[[#This Row],[Rate1]])^(1/12)*UTInflationTable[[#This Row],[4]],IF(EstLastUpdate>DATE(UTInflationTable[[#This Row],[Year]],5,1),0,(1+UTInflationTable[[#This Row],[Rate1]])^(1/12))) -> 1.314897611 | BB15: =IF(UTInflationTable[[#This Row],[5]]>0,(1+UTInflationTable[[#This Row],[Rate1]])^(1/12)*UTInflationTable[[#This Row],[5]],IF(EstLastUpdate>DATE(UTInflationTable[[#This Row],[Year]],6,1),0,(1+UTInflationTable[[#This Row],[Rate1]])^(1/12))) -> 1.320254666 | BC15: =IF(UTInflationTable[[#This Row],[6]]>0,(1+UTInflationTable[[#This Row],[Rate1]])^(1/12)*UTInflationTable[[#This Row],[6]],IF(EstLastUpdate>DATE(UTInflationTable[[#This Row],[Year]],7,1),0,(1+UTInflationTable[[#This Row],[Rate1]])^(1/12))) -> 1.325633547 | BD15: =IF(UTInflationTable[[#This Row],[7]]>0,(1+UTInflationTable[[#This Row],[Rate1]])^(1/12)*UTInflationTable[[#This Row],[7]],IF(EstLastUpdate>DATE(UTInflationTable[[#This Row],[Year]],8,1),0,(1+UTInflationTable[[#This Row],[Rate1]])^(1/12))) -> 1.331034342 | BE15: =IF(UTInflationTable[[#This Row],[8]]>0,(1+UTInflationTable[[#This Row],[Rate1]])^(1/12)*UTInflationTable[[#This Row],[8]],IF(EstLastUpdate>DATE(UTInflationTable[[#This Row],[Year]],9,1),0,(1+UTInflationTable[[#This Row],[Rate1]])^(1/12))) -> 1.336457141 | BF15: =IF(UTInflationTable[[#This Row],[9]]>0,(1+UTInflationTable[[#This Row],[Rate1]])^(1/12)*UTInflationTable[[#This Row],[9]],IF(EstLastUpdate>DATE(UTInflationTable[[#This Row],[Year]],10,1),0,(1+UTInflationTable[[#This Row],[Rate1]])^(1/12))) -> 1.341902033 | BG15: =IF(UTInflationTable[[#This Row],[10]]>0,(1+UTInflationTable[[#This Row],[Rate1]])^(1/12)*UTInflationTable[[#This Row],[10]],IF(EstLastUpdate>DATE(UTInflationTable[[#This Row],[Year]],11,1),0,(1+UTInflationTable[[#This Row],[Rate1]])^(1/12))) -> 1.347369108 | BH15: =IF(UTInflationTable[[#This Row],[11]]>0,(1+UTInflationTable[[#This Row],[Rate1]])^(1/12)*UTInflationTable[[#This Row],[11]],IF(EstLastUpdate>DATE(UTInflationTable[[#This Row],[Year]],12,1),0,(1+UTInflationTable[[#This Row],[Rate1]])^(1/12))) -> 1.352858456
B16: =OFFSET(PEInflationTable[[#This Row],[Year]],-1,0)+1 -> 2030 | C16: 0.03 | D16: =IF(OFFSET(PEInflationTable[[#This Row],[12]],-1,0)>0,(1+PEInflationTable[[#This Row],[Rate1]])^(1/12)*OFFSET(PEInflationTable[[#This Row],[12]],-1,0),IF(EstLastUpdate>DATE(PEInflationTable[[#This Row],[Year]],1,1),0,(1+PEInflationTable[[#This Row],[Rate1]])^(1/12))) -> 1.208618483 | E16: =IF(PEInflationTable[[#This Row],[1]]>0,(1+PEInflationTable[[#This Row],[Rate1]])^(1/12)*PEInflationTable[[#This Row],[1]],IF(EstLastUpdate>DATE(PEInflationTable[[#This Row],[Year]],2,1),0,(1+PEInflationTable[[#This Row],[Rate1]])^(1/12))) -> 1.211599262 | F16: =IF(PEInflationTable[[#This Row],[2]]>0,(1+PEInflationTable[[#This Row],[Rate1]])^(1/12)*PEInflationTable[[#This Row],[2]],IF(EstLastUpdate>DATE(PEInflationTable[[#This Row],[Year]],3,1),0,(1+PEInflationTable[[#This Row],[Rate1]])^(1/12))) -> 1.214587393 | G16: =IF(PEInflationTable[[#This Row],[3]]>0,(1+PEInflationTable[[#This Row],[Rate1]])^(1/12)*PEInflationTable[[#This Row],[3]],IF(EstLastUpdate>DATE(PEInflationTable[[#This Row],[Year]],4,1),0,(1+PEInflationTable[[#This Row],[Rate1]])^(1/12))) -> 1.217582893 | H16: =IF(PEInflationTable[[#This Row],[4]]>0,(1+PEInflationTable[[#This Row],[Rate1]])^(1/12)*PEInflationTable[[#This Row],[4]],IF(EstLastUpdate>DATE(PEInflationTable[[#This Row],[Year]],5,1),0,(1+PEInflationTable[[#This Row],[Rate1]])^(1/12))) -> 1.220585781 | I16: =IF(PEInflationTable[[#This Row],[5]]>0,(1+PEInflationTable[[#This Row],[Rate1]])^(1/12)*PEInflationTable[[#This Row],[5]],IF(EstLastUpdate>DATE(PEInflationTable[[#This Row],[Year]],6,1),0,(1+PEInflationTable[[#This Row],[Rate1]])^(1/12))) -> 1.223596075 | J16: =IF(PEInflationTable[[#This Row],[6]]>0,(1+PEInflationTable[[#This Row],[Rate1]])^(1/12)*PEInflationTable[[#This Row],[6]],IF(EstLastUpdate>DATE(PEInflationTable[[#This Row],[Year]],7,1),0,(1+PEInflationTable[[#This Row],[Rate1]])^(1/12))) -> 1.226613793 | K16: =IF(PEInflationTable[[#This Row],[7]]>0,(1+PEInflationTable[[#This Row],[Rate1]])^(1/12)*PEInflationTable[[#This Row],[7]],IF(EstLastUpdate>DATE(PEInflationTable[[#This Row],[Year]],8,1),0,(1+PEInflationTable[[#This Row],[Rate1]])^(1/12))) -> 1.229638953 | L16: =IF(PEInflationTable[[#This Row],[8]]>0,(1+PEInflationTable[[#This Row],[Rate1]])^(1/12)*PEInflationTable[[#This Row],[8]],IF(EstLastUpdate>DATE(PEInflationTable[[#This Row],[Year]],9,1),0,(1+PEInflationTable[[#This Row],[Rate1]])^(1/12))) -> 1.232671575 | M16: =IF(PEInflationTable[[#This Row],[9]]>0,(1+PEInflationTable[[#This Row],[Rate1]])^(1/12)*PEInflationTable[[#This Row],[9]],IF(EstLastUpdate>DATE(PEInflationTable[[#This Row],[Year]],10,1),0,(1+PEInflationTable[[#This Row],[Rate1]])^(1/12))) -> 1.235711675 | N16: =IF(PEInflationTable[[#This Row],[10]]>0,(1+PEInflationTable[[#This Row],[Rate1]])^(1/12)*PEInflationTable[[#This Row],[10]],IF(EstLastUpdate>DATE(PEInflationTable[[#This Row],[Year]],11,1),0,(1+PEInflationTable[[#This Row],[Rate1]])^(1/12))) -> 1.238759274 | O16: =IF(PEInflationTable[[#This Row],[11]]>0,(1+PEInflationTable[[#This Row],[Rate1]])^(1/12)*PEInflationTable[[#This Row],[11]],IF(EstLastUpdate>DATE(PEInflationTable[[#This Row],[Year]],12,1),0,(1+PEInflationTable[[#This Row],[Rate1]])^(1/12))) -> 1.241814388 | Q16: 2030 | R16: 0.05 | S16: =IF(OFFSET(ROWInflationTable[[#This Row],[12]],-1,0)>0,(1+ROWInflationTable[[#This Row],[Rate1]])^(1/12)*OFFSET(ROWInflationTable[[#This Row],[12]],-1,0),IF(EstLastUpdate>DATE(ROWInflationTable[[#This Row],[Year]],1,1),0,(1+ROWInflationTable[[#This Row],[Rate1]])^(1/12))) -> 1.332740543 | T16: =IF(ROWInflationTable[[#This Row],[1]]>0,(1+ROWInflationTable[[#This Row],[Rate1]])^(1/12)*ROWInflationTable[[#This Row],[1]],IF(EstLastUpdate>DATE(ROWInflationTable[[#This Row],[Year]],2,1),0,(1+ROWInflationTable[[#This Row],[Rate1]])^(1/12))) -> 1.338170293 | U16: =IF(ROWInflationTable[[#This Row],[2]]>0,(1+ROWInflationTable[[#This Row],[Rate1]])^(1/12)*ROWInflationTable[[#This Row],[2]],IF(EstLastUpdate>DATE(ROWInflationTable[[#This Row],[Year]],3,1),0,(1+ROWInflationTable[[#This Row],[Rate1]])^(1/12))) -> 1.343622165 | V16: =IF(ROWInflationTable[[#This Row],[3]]>0,(1+ROWInflationTable[[#This Row],[Rate1]])^(1/12)*ROWInflationTable[[#This Row],[3]],IF(EstLastUpdate>DATE(ROWInflationTable[[#This Row],[Year]],4,1),0,(1+ROWInflationTable[[#This Row],[Rate1]])^(1/12))) -> 1.349096248 | W16: =IF(ROWInflationTable[[#This Row],[4]]>0,(1+ROWInflationTable[[#This Row],[Rate1]])^(1/12)*ROWInflationTable[[#This Row],[4]],IF(EstLastUpdate>DATE(ROWInflationTable[[#This Row],[Year]],5,1),0,(1+ROWInflationTable[[#This Row],[Rate1]])^(1/12))) -> 1.354592633 | X16: =IF(ROWInflationTable[[#This Row],[5]]>0,(1+ROWInflationTable[[#This Row],[Rate1]])^(1/12)*ROWInflationTable[[#This Row],[5]],IF(EstLastUpdate>DATE(ROWInflationTable[[#This Row],[Year]],6,1),0,(1+ROWInflationTable[[#This Row],[Rate1]])^(1/12))) -> 1.360111411 | Y16: =IF(ROWInflationTable[[#This Row],[6]]>0,(1+ROWInflationTable[[#This Row],[Rate1]])^(1/12)*ROWInflationTable[[#This Row],[6]],IF(EstLastUpdate>DATE(ROWInflationTable[[#This Row],[Year]],7,1),0,(1+ROWInflationTable[[#This Row],[Rate1]])^(1/12))) -> 1.365652673 | Z16: =IF(ROWInflationTable[[#This Row],[7]]>0,(1+ROWInflationTable[[#This Row],[Rate1]])^(1/12)*ROWInflationTable[[#This Row],[7]],IF(EstLastUpdate>DATE(ROWInflationTable[[#This Row],[Year]],8,1),0,(1+ROWInflationTable[[#This Row],[Rate1]])^(1/12))) -> 1.371216511 | AA16: =IF(ROWInflationTable[[#This Row],[8]]>0,(1+ROWInflationTable[[#This Row],[Rate1]])^(1/12)*ROWInflationTable[[#This Row],[8]],IF(EstLastUpdate>DATE(ROWInflationTable[[#This Row],[Year]],9,1),0,(1+ROWInflationTable[[#This Row],[Rate1]])^(1/12))) -> 1.376803017 | AB16: =IF(ROWInflationTable[[#This Row],[9]]>0,(1+ROWInflationTable[[#This Row],[Rate1]])^(1/12)*ROWInflationTable[[#This Row],[9]],IF(EstLastUpdate>DATE(ROWInflationTable[[#This Row],[Year]],10,1),0,(1+ROWInflationTable[[#This Row],[Rate1]])^(1/12))) -> 1.382412283 | AC16: =IF(ROWInflationTable[[#This Row],[10]]>0,(1+ROWInflationTable[[#This Row],[Rate1]])^(1/12)*ROWInflationTable[[#This Row],[10]],IF(EstLastUpdate>DATE(ROWInflationTable[[#This Row],[Year]],11,1),0,(1+ROWInflationTable[[#This Row],[Rate1]])^(1/12))) -> 1.388044402 | AD16: =IF(ROWInflationTable[[#This Row],[11]]>0,(1+ROWInflationTable[[#This Row],[Rate1]])^(1/12)*ROWInflationTable[[#This Row],[11]],IF(EstLastUpdate>DATE(ROWInflationTable[[#This Row],[Year]],12,1),0,(1+ROWInflationTable[[#This Row],[Rate1]])^(1/12))) -> 1.393699466 | AF16: 2030 | AG16: 0.03 | AH16: =IF(OFFSET(CNInflationTable[[#This Row],[12]],-1,0)>0,(1+CNInflationTable[[#This Row],[Rate1]])^(1/12)*OFFSET(CNInflationTable[[#This Row],[12]],-1,0),IF(EstLastUpdate>DATE(CNInflationTable[[#This Row],[Year]],1,1),0,(1+CNInflationTable[[#This Row],[Rate1]])^(1/12))) -> 1.220239815 | AI16: =IF(CNInflationTable[[#This Row],[1]]>0,(1+CNInflationTable[[#This Row],[Rate1]])^(1/12)*CNInflationTable[[#This Row],[1]],IF(EstLastUpdate>DATE(CNInflationTable[[#This Row],[Year]],2,1),0,(1+CNInflationTable[[#This Row],[Rate1]])^(1/12))) -> 1.223249255 | AJ16: =IF(CNInflationTable[[#This Row],[2]]>0,(1+CNInflationTable[[#This Row],[Rate1]])^(1/12)*CNInflationTable[[#This Row],[2]],IF(EstLastUpdate>DATE(CNInflationTable[[#This Row],[Year]],3,1),0,(1+CNInflationTable[[#This Row],[Rate1]])^(1/12))) -> 1.226266118 | AK16: =IF(CNInflationTable[[#This Row],[3]]>0,(1+CNInflationTable[[#This Row],[Rate1]])^(1/12)*CNInflationTable[[#This Row],[3]],IF(EstLastUpdate>DATE(CNInflationTable[[#This Row],[Year]],4,1),0,(1+CNInflationTable[[#This Row],[Rate1]])^(1/12))) -> 1.229290421 | AL16: =IF(CNInflationTable[[#This Row],[4]]>0,(1+CNInflationTable[[#This Row],[Rate1]])^(1/12)*CNInflationTable[[#This Row],[4]],IF(EstLastUpdate>DATE(CNInflationTable[[#This Row],[Year]],5,1),0,(1+CNInflationTable[[#This Row],[Rate1]])^(1/12))) -> 1.232322183 | AM16: =IF(CNInflationTable[[#This Row],[5]]>0,(1+CNInflationTable[[#This Row],[Rate1]])^(1/12)*CNInflationTable[[#This Row],[5]],IF(EstLastUpdate>DATE(CNInflationTable[[#This Row],[Year]],6,1),0,(1+CNInflationTable[[#This Row],[Rate1]])^(1/12))) -> 1.235361422 | AN16: =IF(CNInflationTable[[#This Row],[6]]>0,(1+CNInflationTable[[#This Row],[Rate1]])^(1/12)*CNInflationTable[[#This Row],[6]],IF(EstLastUpdate>DATE(CNInflationTable[[#This Row],[Year]],7,1),0,(1+CNInflationTable[[#This Row],[Rate1]])^(1/12))) -> 1.238408156 | AO16: =IF(CNInflationTable[[#This Row],[7]]>0,(1+CNInflationTable[[#This Row],[Rate1]])^(1/12)*CNInflationTable[[#This Row],[7]],IF(EstLastUpdate>DATE(CNInflationTable[[#This Row],[Year]],8,1),0,(1+CNInflationTable[[#This Row],[Rate1]])^(1/12))) -> 1.241462405 | AP16: =IF(CNInflationTable[[#This Row],[8]]>0,(1+CNInflationTable[[#This Row],[Rate1]])^(1/12)*CNInflationTable[[#This Row],[8]],IF(EstLastUpdate>DATE(CNInflationTable[[#This Row],[Year]],9,1),0,(1+CNInflationTable[[#This Row],[Rate1]])^(1/12))) -> 1.244524186 | AQ16: =IF(CNInflationTable[[#This Row],[9]]>0,(1+CNInflationTable[[#This Row],[Rate1]])^(1/12)*CNInflationTable[[#This Row],[9]],IF(EstLastUpdate>DATE(CNInflationTable[[#This Row],[Year]],10,1),0,(1+CNInflationTable[[#This Row],[Rate1]])^(1/12))) -> 1.247593519 | AR16: =IF(CNInflationTable[[#This Row],[10]]>0,(1+CNInflationTable[[#This Row],[Rate1]])^(1/12)*CNInflationTable[[#This Row],[10]],IF(EstLastUpdate>DATE(CNInflationTable[[#This Row],[Year]],11,1),0,(1+CNInflationTable[[#This Row],[Rate1]])^(1/12))) -> 1.250670421 | AS16: =IF(CNInflationTable[[#This Row],[11]]>0,(1+CNInflationTable[[#This Row],[Rate1]])^(1/12)*CNInflationTable[[#This Row],[11]],IF(EstLastUpdate>DATE(CNInflationTable[[#This Row],[Year]],12,1),0,(1+CNInflationTable[[#This Row],[Rate1]])^(1/12))) -> 1.253754911 | AU16: 2030 | AV16: 0.05 | AW16: =IF(OFFSET(UTInflationTable[[#This Row],[12]],-1,0)>0,(1+UTInflationTable[[#This Row],[Rate1]])^(1/12)*OFFSET(UTInflationTable[[#This Row],[12]],-1,0),IF(EstLastUpdate>DATE(UTInflationTable[[#This Row],[Year]],1,1),0,(1+UTInflationTable[[#This Row],[Rate1]])^(1/12))) -> 1.358370169 | AX16: =IF(UTInflationTable[[#This Row],[1]]>0,(1+UTInflationTable[[#This Row],[Rate1]])^(1/12)*UTInflationTable[[#This Row],[1]],IF(EstLastUpdate>DATE(UTInflationTable[[#This Row],[Year]],2,1),0,(1+UTInflationTable[[#This Row],[Rate1]])^(1/12))) -> 1.363904337 | AY16: =IF(UTInflationTable[[#This Row],[2]]>0,(1+UTInflationTable[[#This Row],[Rate1]])^(1/12)*UTInflationTable[[#This Row],[2]],IF(EstLastUpdate>DATE(UTInflationTable[[#This Row],[Year]],3,1),0,(1+UTInflationTable[[#This Row],[Rate1]])^(1/12))) -> 1.369461052 | AZ16: =IF(UTInflationTable[[#This Row],[3]]>0,(1+UTInflationTable[[#This Row],[Rate1]])^(1/12)*UTInflationTable[[#This Row],[3]],IF(EstLastUpdate>DATE(UTInflationTable[[#This Row],[Year]],4,1),0,(1+UTInflationTable[[#This Row],[Rate1]])^(1/12))) -> 1.375040406 | BA16: =IF(UTInflationTable[[#This Row],[4]]>0,(1+UTInflationTable[[#This Row],[Rate1]])^(1/12)*UTInflationTable[[#This Row],[4]],IF(EstLastUpdate>DATE(UTInflationTable[[#This Row],[Year]],5,1),0,(1+UTInflationTable[[#This Row],[Rate1]])^(1/12))) -> 1.380642491 | BB16: =IF(UTInflationTable[[#This Row],[5]]>0,(1+UTInflationTable[[#This Row],[Rate1]])^(1/12)*UTInflationTable[[#This Row],[5]],IF(EstLastUpdate>DATE(UTInflationTable[[#This Row],[Year]],6,1),0,(1+UTInflationTable[[#This Row],[Rate1]])^(1/12))) -> 1.386267399 | BC16: =IF(UTInflationTable[[#This Row],[6]]>0,(1+UTInflationTable[[#This Row],[Rate1]])^(1/12)*UTInflationTable[[#This Row],[6]],IF(EstLastUpdate>DATE(UTInflationTable[[#This Row],[Year]],7,1),0,(1+UTInflationTable[[#This Row],[Rate1]])^(1/12))) -> 1.391915224 | BD16: =IF(UTInflationTable[[#This Row],[7]]>0,(1+UTInflationTable[[#This Row],[Rate1]])^(1/12)*UTInflationTable[[#This Row],[7]],IF(EstLastUpdate>DATE(UTInflationTable[[#This Row],[Year]],8,1),0,(1+UTInflationTable[[#This Row],[Rate1]])^(1/12))) -> 1.397586059 | BE16: =IF(UTInflationTable[[#This Row],[8]]>0,(1+UTInflationTable[[#This Row],[Rate1]])^(1/12)*UTInflationTable[[#This Row],[8]],IF(EstLastUpdate>DATE(UTInflationTable[[#This Row],[Year]],9,1),0,(1+UTInflationTable[[#This Row],[Rate1]])^(1/12))) -> 1.403279998 | BF16: =IF(UTInflationTable[[#This Row],[9]]>0,(1+UTInflationTable[[#This Row],[Rate1]])^(1/12)*UTInflationTable[[#This Row],[9]],IF(EstLastUpdate>DATE(UTInflationTable[[#This Row],[Year]],10,1),0,(1+UTInflationTable[[#This Row],[Rate1]])^(1/12))) -> 1.408997134 | BG16: =IF(UTInflationTable[[#This Row],[10]]>0,(1+UTInflationTable[[#This Row],[Rate1]])^(1/12)*UTInflationTable[[#This Row],[10]],IF(EstLastUpdate>DATE(UTInflationTable[[#This Row],[Year]],11,1),0,(1+UTInflationTable[[#This Row],[Rate1]])^(1/12))) -> 1.414737563 | BH16: =IF(UTInflationTable[[#This Row],[11]]>0,(1+UTInflationTable[[#This Row],[Rate1]])^(1/12)*UTInflationTable[[#This Row],[11]],IF(EstLastUpdate>DATE(UTInflationTable[[#This Row],[Year]],12,1),0,(1+UTInflationTable[[#This Row],[Rate1]])^(1/12))) -> 1.420501379
B17: =OFFSET(PEInflationTable[[#This Row],[Year]],-1,0)+1 -> 2031 | C17: 0.03 | D17: =IF(OFFSET(PEInflationTable[[#This Row],[12]],-1,0)>0,(1+PEInflationTable[[#This Row],[Rate1]])^(1/12)*OFFSET(PEInflationTable[[#This Row],[12]],-1,0),IF(EstLastUpdate>DATE(PEInflationTable[[#This Row],[Year]],1,1),0,(1+PEInflationTable[[#This Row],[Rate1]])^(1/12))) -> 1.244877038 | E17: =IF(PEInflationTable[[#This Row],[1]]>0,(1+PEInflationTable[[#This Row],[Rate1]])^(1/12)*PEInflationTable[[#This Row],[1]],IF(EstLastUpdate>DATE(PEInflationTable[[#This Row],[Year]],2,1),0,(1+PEInflationTable[[#This Row],[Rate1]])^(1/12))) -> 1.24794724 | F17: =IF(PEInflationTable[[#This Row],[2]]>0,(1+PEInflationTable[[#This Row],[Rate1]])^(1/12)*PEInflationTable[[#This Row],[2]],IF(EstLastUpdate>DATE(PEInflationTable[[#This Row],[Year]],3,1),0,(1+PEInflationTable[[#This Row],[Rate1]])^(1/12))) -> 1.251025015 | G17: =IF(PEInflationTable[[#This Row],[3]]>0,(1+PEInflationTable[[#This Row],[Rate1]])^(1/12)*PEInflationTable[[#This Row],[3]],IF(EstLastUpdate>DATE(PEInflationTable[[#This Row],[Year]],4,1),0,(1+PEInflationTable[[#This Row],[Rate1]])^(1/12))) -> 1.25411038 | H17: =IF(PEInflationTable[[#This Row],[4]]>0,(1+PEInflationTable[[#This Row],[Rate1]])^(1/12)*PEInflationTable[[#This Row],[4]],IF(EstLastUpdate>DATE(PEInflationTable[[#This Row],[Year]],5,1),0,(1+PEInflationTable[[#This Row],[Rate1]])^(1/12))) -> 1.257203355 | I17: =IF(PEInflationTable[[#This Row],[5]]>0,(1+PEInflationTable[[#This Row],[Rate1]])^(1/12)*PEInflationTable[[#This Row],[5]],IF(EstLastUpdate>DATE(PEInflationTable[[#This Row],[Year]],6,1),0,(1+PEInflationTable[[#This Row],[Rate1]])^(1/12))) -> 1.260303957 | J17: =IF(PEInflationTable[[#This Row],[6]]>0,(1+PEInflationTable[[#This Row],[Rate1]])^(1/12)*PEInflationTable[[#This Row],[6]],IF(EstLastUpdate>DATE(PEInflationTable[[#This Row],[Year]],7,1),0,(1+PEInflationTable[[#This Row],[Rate1]])^(1/12))) -> 1.263412207 | K17: =IF(PEInflationTable[[#This Row],[7]]>0,(1+PEInflationTable[[#This Row],[Rate1]])^(1/12)*PEInflationTable[[#This Row],[7]],IF(EstLastUpdate>DATE(PEInflationTable[[#This Row],[Year]],8,1),0,(1+PEInflationTable[[#This Row],[Rate1]])^(1/12))) -> 1.266528122 | L17: =IF(PEInflationTable[[#This Row],[8]]>0,(1+PEInflationTable[[#This Row],[Rate1]])^(1/12)*PEInflationTable[[#This Row],[8]],IF(EstLastUpdate>DATE(PEInflationTable[[#This Row],[Year]],9,1),0,(1+PEInflationTable[[#This Row],[Rate1]])^(1/12))) -> 1.269651722 | M17: =IF(PEInflationTable[[#This Row],[9]]>0,(1+PEInflationTable[[#This Row],[Rate1]])^(1/12)*PEInflationTable[[#This Row],[9]],IF(EstLastUpdate>DATE(PEInflationTable[[#This Row],[Year]],10,1),0,(1+PEInflationTable[[#This Row],[Rate1]])^(1/12))) -> 1.272783026 | N17: =IF(PEInflationTable[[#This Row],[10]]>0,(1+PEInflationTable[[#This Row],[Rate1]])^(1/12)*PEInflationTable[[#This Row],[10]],IF(EstLastUpdate>DATE(PEInflationTable[[#This Row],[Year]],11,1),0,(1+PEInflationTable[[#This Row],[Rate1]])^(1/12))) -> 1.275922052 | O17: =IF(PEInflationTable[[#This Row],[11]]>0,(1+PEInflationTable[[#This Row],[Rate1]])^(1/12)*PEInflationTable[[#This Row],[11]],IF(EstLastUpdate>DATE(PEInflationTable[[#This Row],[Year]],12,1),0,(1+PEInflationTable[[#This Row],[Rate1]])^(1/12))) -> 1.27906882 | Q17: 2031 | R17: 0.05 | S17: =IF(OFFSET(ROWInflationTable[[#This Row],[12]],-1,0)>0,(1+ROWInflationTable[[#This Row],[Rate1]])^(1/12)*OFFSET(ROWInflationTable[[#This Row],[12]],-1,0),IF(EstLastUpdate>DATE(ROWInflationTable[[#This Row],[Year]],1,1),0,(1+ROWInflationTable[[#This Row],[Rate1]])^(1/12))) -> 1.39937757 | T17: =IF(ROWInflationTable[[#This Row],[1]]>0,(1+ROWInflationTable[[#This Row],[Rate1]])^(1/12)*ROWInflationTable[[#This Row],[1]],IF(EstLastUpdate>DATE(ROWInflationTable[[#This Row],[Year]],2,1),0,(1+ROWInflationTable[[#This Row],[Rate1]])^(1/12))) -> 1.405078808 | U17: =IF(ROWInflationTable[[#This Row],[2]]>0,(1+ROWInflationTable[[#This Row],[Rate1]])^(1/12)*ROWInflationTable[[#This Row],[2]],IF(EstLastUpdate>DATE(ROWInflationTable[[#This Row],[Year]],3,1),0,(1+ROWInflationTable[[#This Row],[Rate1]])^(1/12))) -> 1.410803273 | V17: =IF(ROWInflationTable[[#This Row],[3]]>0,(1+ROWInflationTable[[#This Row],[Rate1]])^(1/12)*ROWInflationTable[[#This Row],[3]],IF(EstLastUpdate>DATE(ROWInflationTable[[#This Row],[Year]],4,1),0,(1+ROWInflationTable[[#This Row],[Rate1]])^(1/12))) -> 1.41655106 | W17: =IF(ROWInflationTable[[#This Row],[4]]>0,(1+ROWInflationTable[[#This Row],[Rate1]])^(1/12)*ROWInflationTable[[#This Row],[4]],IF(EstLastUpdate>DATE(ROWInflationTable[[#This Row],[Year]],5,1),0,(1+ROWInflationTable[[#This Row],[Rate1]])^(1/12))) -> 1.422322264 | X17: =IF(ROWInflationTable[[#This Row],[5]]>0,(1+ROWInflationTable[[#This Row],[Rate1]])^(1/12)*ROWInflationTable[[#This Row],[5]],IF(EstLastUpdate>DATE(ROWInflationTable[[#This Row],[Year]],6,1),0,(1+ROWInflationTable[[#This Row],[Rate1]])^(1/12))) -> 1.428116981 | Y17: =IF(ROWInflationTable[[#This Row],[6]]>0,(1+ROWInflationTable[[#This Row],[Rate1]])^(1/12)*ROWInflationTable[[#This Row],[6]],IF(EstLastUpdate>DATE(ROWInflationTable[[#This Row],[Year]],7,1),0,(1+ROWInflationTable[[#This Row],[Rate1]])^(1/12))) -> 1.433935307 | Z17: =IF(ROWInflationTable[[#This Row],[7]]>0,(1+ROWInflationTable[[#This Row],[Rate1]])^(1/12)*ROWInflationTable[[#This Row],[7]],IF(EstLastUpdate>DATE(ROWInflationTable[[#This Row],[Year]],8,1),0,(1+ROWInflationTable[[#This Row],[Rate1]])^(1/12))) -> 1.439777337 | AA17: =IF(ROWInflationTable[[#This Row],[8]]>0,(1+ROWInflationTable[[#This Row],[Rate1]])^(1/12)*ROWInflationTable[[#This Row],[8]],IF(EstLastUpdate>DATE(ROWInflationTable[[#This Row],[Year]],9,1),0,(1+ROWInflationTable[[#This Row],[Rate1]])^(1/12))) -> 1.445643168 | AB17: =IF(ROWInflationTable[[#This Row],[9]]>0,(1+ROWInflationTable[[#This Row],[Rate1]])^(1/12)*ROWInflationTable[[#This Row],[9]],IF(EstLastUpdate>DATE(ROWInflationTable[[#This Row],[Year]],10,1),0,(1+ROWInflationTable[[#This Row],[Rate1]])^(1/12))) -> 1.451532897 | AC17: =IF(ROWInflationTable[[#This Row],[10]]>0,(1+ROWInflationTable[[#This Row],[Rate1]])^(1/12)*ROWInflationTable[[#This Row],[10]],IF(EstLastUpdate>DATE(ROWInflationTable[[#This Row],[Year]],11,1),0,(1+ROWInflationTable[[#This Row],[Rate1]])^(1/12))) -> 1.457446622 | AD17: =IF(ROWInflationTable[[#This Row],[11]]>0,(1+ROWInflationTable[[#This Row],[Rate1]])^(1/12)*ROWInflationTable[[#This Row],[11]],IF(EstLastUpdate>DATE(ROWInflationTable[[#This Row],[Year]],12,1),0,(1+ROWInflationTable[[#This Row],[Rate1]])^(1/12))) -> 1.46338444 | AF17: 2031 | AG17: 0.03 | AH17: =IF(OFFSET(CNInflationTable[[#This Row],[12]],-1,0)>0,(1+CNInflationTable[[#This Row],[Rate1]])^(1/12)*OFFSET(CNInflationTable[[#This Row],[12]],-1,0),IF(EstLastUpdate>DATE(CNInflationTable[[#This Row],[Year]],1,1),0,(1+CNInflationTable[[#This Row],[Rate1]])^(1/12))) -> 1.256847009 | AI17: =IF(CNInflationTable[[#This Row],[1]]>0,(1+CNInflationTable[[#This Row],[Rate1]])^(1/12)*CNInflationTable[[#This Row],[1]],IF(EstLastUpdate>DATE(CNInflationTable[[#This Row],[Year]],2,1),0,(1+CNInflationTable[[#This Row],[Rate1]])^(1/12))) -> 1.259946733 | AJ17: =IF(CNInflationTable[[#This Row],[2]]>0,(1+CNInflationTable[[#This Row],[Rate1]])^(1/12)*CNInflationTable[[#This Row],[2]],IF(EstLastUpdate>DATE(CNInflationTable[[#This Row],[Year]],3,1),0,(1+CNInflationTable[[#This Row],[Rate1]])^(1/12))) -> 1.263054102 | AK17: =IF(CNInflationTable[[#This Row],[3]]>0,(1+CNInflationTable[[#This Row],[Rate1]])^(1/12)*CNInflationTable[[#This Row],[3]],IF(EstLastUpdate>DATE(CNInflationTable[[#This Row],[Year]],4,1),0,(1+CNInflationTable[[#This Row],[Rate1]])^(1/12))) -> 1.266169134 | AL17: =IF(CNInflationTable[[#This Row],[4]]>0,(1+CNInflationTable[[#This Row],[Rate1]])^(1/12)*CNInflationTable[[#This Row],[4]],IF(EstLastUpdate>DATE(CNInflationTable[[#This Row],[Year]],5,1),0,(1+CNInflationTable[[#This Row],[Rate1]])^(1/12))) -> 1.269291848 | AM17: =IF(CNInflationTable[[#This Row],[5]]>0,(1+CNInflationTable[[#This Row],[Rate1]])^(1/12)*CNInflationTable[[#This Row],[5]],IF(EstLastUpdate>DATE(CNInflationTable[[#This Row],[Year]],6,1),0,(1+CNInflationTable[[#This Row],[Rate1]])^(1/12))) -> 1.272422264 | AN17: =IF(CNInflationTable[[#This Row],[6]]>0,(1+CNInflationTable[[#This Row],[Rate1]])^(1/12)*CNInflationTable[[#This Row],[6]],IF(EstLastUpdate>DATE(CNInflationTable[[#This Row],[Year]],7,1),0,(1+CNInflationTable[[#This Row],[Rate1]])^(1/12))) -> 1.275560401 | AO17: =IF(CNInflationTable[[#This Row],[7]]>0,(1+CNInflationTable[[#This Row],[Rate1]])^(1/12)*CNInflationTable[[#This Row],[7]],IF(EstLastUpdate>DATE(CNInflationTable[[#This Row],[Year]],8,1),0,(1+CNInflationTable[[#This Row],[Rate1]])^(1/12))) -> 1.278706277 | AP17: =IF(CNInflationTable[[#This Row],[8]]>0,(1+CNInflationTable[[#This Row],[Rate1]])^(1/12)*CNInflationTable[[#This Row],[8]],IF(EstLastUpdate>DATE(CNInflationTable[[#This Row],[Year]],9,1),0,(1+CNInflationTable[[#This Row],[Rate1]])^(1/12))) -> 1.281859912 | AQ17: =IF(CNInflationTable[[#This Row],[9]]>0,(1+CNInflationTable[[#This Row],[Rate1]])^(1/12)*CNInflationTable[[#This Row],[9]],IF(EstLastUpdate>DATE(CNInflationTable[[#This Row],[Year]],10,1),0,(1+CNInflationTable[[#This Row],[Rate1]])^(1/12))) -> 1.285021324 | AR17: =IF(CNInflationTable[[#This Row],[10]]>0,(1+CNInflationTable[[#This Row],[Rate1]])^(1/12)*CNInflationTable[[#This Row],[10]],IF(EstLastUpdate>DATE(CNInflationTable[[#This Row],[Year]],11,1),0,(1+CNInflationTable[[#This Row],[Rate1]])^(1/12))) -> 1.288190533 | AS17: =IF(CNInflationTable[[#This Row],[11]]>0,(1+CNInflationTable[[#This Row],[Rate1]])^(1/12)*CNInflationTable[[#This Row],[11]],IF(EstLastUpdate>DATE(CNInflationTable[[#This Row],[Year]],12,1),0,(1+CNInflationTable[[#This Row],[Rate1]])^(1/12))) -> 1.291367559 | AU17: 2031 | AV17: 0.05 | AW17: =IF(OFFSET(UTInflationTable[[#This Row],[12]],-1,0)>0,(1+UTInflationTable[[#This Row],[Rate1]])^(1/12)*OFFSET(UTInflationTable[[#This Row],[12]],-1,0),IF(EstLastUpdate>DATE(UTInflationTable[[#This Row],[Year]],1,1),0,(1+UTInflationTable[[#This Row],[Rate1]])^(1/12))) -> 1.426288678 | AX17: =IF(UTInflationTable[[#This Row],[1]]>0,(1+UTInflationTable[[#This Row],[Rate1]])^(1/12)*UTInflationTable[[#This Row],[1]],IF(EstLastUpdate>DATE(UTInflationTable[[#This Row],[Year]],2,1),0,(1+UTInflationTable[[#This Row],[Rate1]])^(1/12))) -> 1.432099554 | AY17: =IF(UTInflationTable[[#This Row],[2]]>0,(1+UTInflationTable[[#This Row],[Rate1]])^(1/12)*UTInflationTable[[#This Row],[2]],IF(EstLastUpdate>DATE(UTInflationTable[[#This Row],[Year]],3,1),0,(1+UTInflationTable[[#This Row],[Rate1]])^(1/12))) -> 1.437934105 | AZ17: =IF(UTInflationTable[[#This Row],[3]]>0,(1+UTInflationTable[[#This Row],[Rate1]])^(1/12)*UTInflationTable[[#This Row],[3]],IF(EstLastUpdate>DATE(UTInflationTable[[#This Row],[Year]],4,1),0,(1+UTInflationTable[[#This Row],[Rate1]])^(1/12))) -> 1.443792427 | BA17: =IF(UTInflationTable[[#This Row],[4]]>0,(1+UTInflationTable[[#This Row],[Rate1]])^(1/12)*UTInflationTable[[#This Row],[4]],IF(EstLastUpdate>DATE(UTInflationTable[[#This Row],[Year]],5,1),0,(1+UTInflationTable[[#This Row],[Rate1]])^(1/12))) -> 1.449674616 | BB17: =IF(UTInflationTable[[#This Row],[5]]>0,(1+UTInflationTable[[#This Row],[Rate1]])^(1/12)*UTInflationTable[[#This Row],[5]],IF(EstLastUpdate>DATE(UTInflationTable[[#This Row],[Year]],6,1),0,(1+UTInflationTable[[#This Row],[Rate1]])^(1/12))) -> 1.455580769 | BC17: =IF(UTInflationTable[[#This Row],[6]]>0,(1+UTInflationTable[[#This Row],[Rate1]])^(1/12)*UTInflationTable[[#This Row],[6]],IF(EstLastUpdate>DATE(UTInflationTable[[#This Row],[Year]],7,1),0,(1+UTInflationTable[[#This Row],[Rate1]])^(1/12))) -> 1.461510986 | BD17: =IF(UTInflationTable[[#This Row],[7]]>0,(1+UTInflationTable[[#This Row],[Rate1]])^(1/12)*UTInflationTable[[#This Row],[7]],IF(EstLastUpdate>DATE(UTInflationTable[[#This Row],[Year]],8,1),0,(1+UTInflationTable[[#This Row],[Rate1]])^(1/12))) -> 1.467465362 | BE17: =IF(UTInflationTable[[#This Row],[8]]>0,(1+UTInflationTable[[#This Row],[Rate1]])^(1/12)*UTInflationTable[[#This Row],[8]],IF(EstLastUpdate>DATE(UTInflationTable[[#This Row],[Year]],9,1),0,(1+UTInflationTable[[#This Row],[Rate1]])^(1/12))) -> 1.473443998 | BF17: =IF(UTInflationTable[[#This Row],[9]]>0,(1+UTInflationTable[[#This Row],[Rate1]])^(1/12)*UTInflationTable[[#This Row],[9]],IF(EstLastUpdate>DATE(UTInflationTable[[#This Row],[Year]],10,1),0,(1+UTInflationTable[[#This Row],[Rate1]])^(1/12))) -> 1.479446991 | BG17: =IF(UTInflationTable[[#This Row],[10]]>0,(1+UTInflationTable[[#This Row],[Rate1]])^(1/12)*UTInflationTable[[#This Row],[10]],IF(EstLastUpdate>DATE(UTInflationTable[[#This Row],[Year]],11,1),0,(1+UTInflationTable[[#This Row],[Rate1]])^(1/12))) -> 1.485474441 | BH17: =IF(UTInflationTable[[#This Row],[11]]>0,(1+UTInflationTable[[#This Row],[Rate1]])^(1/12)*UTInflationTable[[#This Row],[11]],IF(EstLastUpdate>DATE(UTInflationTable[[#This Row],[Year]],12,1),0,(1+UTInflationTable[[#This Row],[Rate1]])^(1/12))) -> 1.491526448
B18: =OFFSET(PEInflationTable[[#This Row],[Year]],-1,0)+1 -> 2032 | C18: 0.03 | D18: =IF(OFFSET(PEInflationTable[[#This Row],[12]],-1,0)>0,(1+PEInflationTable[[#This Row],[Rate1]])^(1/12)*OFFSET(PEInflationTable[[#This Row],[12]],-1,0),IF(EstLastUpdate>DATE(PEInflationTable[[#This Row],[Year]],1,1),0,(1+PEInflationTable[[#This Row],[Rate1]])^(1/12))) -> 1.282223349 | E18: =IF(PEInflationTable[[#This Row],[1]]>0,(1+PEInflationTable[[#This Row],[Rate1]])^(1/12)*PEInflationTable[[#This Row],[1]],IF(EstLastUpdate>DATE(PEInflationTable[[#This Row],[Year]],2,1),0,(1+PEInflationTable[[#This Row],[Rate1]])^(1/12))) -> 1.285385657 | F18: =IF(PEInflationTable[[#This Row],[2]]>0,(1+PEInflationTable[[#This Row],[Rate1]])^(1/12)*PEInflationTable[[#This Row],[2]],IF(EstLastUpdate>DATE(PEInflationTable[[#This Row],[Year]],3,1),0,(1+PEInflationTable[[#This Row],[Rate1]])^(1/12))) -> 1.288555765 | G18: =IF(PEInflationTable[[#This Row],[3]]>0,(1+PEInflationTable[[#This Row],[Rate1]])^(1/12)*PEInflationTable[[#This Row],[3]],IF(EstLastUpdate>DATE(PEInflationTable[[#This Row],[Year]],4,1),0,(1+PEInflationTable[[#This Row],[Rate1]])^(1/12))) -> 1.291733691 | H18: =IF(PEInflationTable[[#This Row],[4]]>0,(1+PEInflationTable[[#This Row],[Rate1]])^(1/12)*PEInflationTable[[#This Row],[4]],IF(EstLastUpdate>DATE(PEInflationTable[[#This Row],[Year]],5,1),0,(1+PEInflationTable[[#This Row],[Rate1]])^(1/12))) -> 1.294919455 | I18: =IF(PEInflationTable[[#This Row],[5]]>0,(1+PEInflationTable[[#This Row],[Rate1]])^(1/12)*PEInflationTable[[#This Row],[5]],IF(EstLastUpdate>DATE(PEInflationTable[[#This Row],[Year]],6,1),0,(1+PEInflationTable[[#This Row],[Rate1]])^(1/12))) -> 1.298113076 | J18: =IF(PEInflationTable[[#This Row],[6]]>0,(1+PEInflationTable[[#This Row],[Rate1]])^(1/12)*PEInflationTable[[#This Row],[6]],IF(EstLastUpdate>DATE(PEInflationTable[[#This Row],[Year]],7,1),0,(1+PEInflationTable[[#This Row],[Rate1]])^(1/12))) -> 1.301314573 | K18: =IF(PEInflationTable[[#This Row],[7]]>0,(1+PEInflationTable[[#This Row],[Rate1]])^(1/12)*PEInflationTable[[#This Row],[7]],IF(EstLastUpdate>DATE(PEInflationTable[[#This Row],[Year]],8,1),0,(1+PEInflationTable[[#This Row],[Rate1]])^(1/12))) -> 1.304523966 | L18: =IF(PEInflationTable[[#This Row],[8]]>0,(1+PEInflationTable[[#This Row],[Rate1]])^(1/12)*PEInflationTable[[#This Row],[8]],IF(EstLastUpdate>DATE(PEInflationTable[[#This Row],[Year]],9,1),0,(1+PEInflationTable[[#This Row],[Rate1]])^(1/12))) -> 1.307741274 | M18: =IF(PEInflationTable[[#This Row],[9]]>0,(1+PEInflationTable[[#This Row],[Rate1]])^(1/12)*PEInflationTable[[#This Row],[9]],IF(EstLastUpdate>DATE(PEInflationTable[[#This Row],[Year]],10,1),0,(1+PEInflationTable[[#This Row],[Rate1]])^(1/12))) -> 1.310966517 | N18: =IF(PEInflationTable[[#This Row],[10]]>0,(1+PEInflationTable[[#This Row],[Rate1]])^(1/12)*PEInflationTable[[#This Row],[10]],IF(EstLastUpdate>DATE(PEInflationTable[[#This Row],[Year]],11,1),0,(1+PEInflationTable[[#This Row],[Rate1]])^(1/12))) -> 1.314199714 | O18: =IF(PEInflationTable[[#This Row],[11]]>0,(1+PEInflationTable[[#This Row],[Rate1]])^(1/12)*PEInflationTable[[#This Row],[11]],IF(EstLastUpdate>DATE(PEInflationTable[[#This Row],[Year]],12,1),0,(1+PEInflationTable[[#This Row],[Rate1]])^(1/12))) -> 1.317440885 | Q18: 2032 | R18: 0.05 | S18: =IF(OFFSET(ROWInflationTable[[#This Row],[12]],-1,0)>0,(1+ROWInflationTable[[#This Row],[Rate1]])^(1/12)*OFFSET(ROWInflationTable[[#This Row],[12]],-1,0),IF(EstLastUpdate>DATE(ROWInflationTable[[#This Row],[Year]],1,1),0,(1+ROWInflationTable[[#This Row],[Rate1]])^(1/12))) -> 1.469346449 | T18: =IF(ROWInflationTable[[#This Row],[1]]>0,(1+ROWInflationTable[[#This Row],[Rate1]])^(1/12)*ROWInflationTable[[#This Row],[1]],IF(EstLastUpdate>DATE(ROWInflationTable[[#This Row],[Year]],2,1),0,(1+ROWInflationTable[[#This Row],[Rate1]])^(1/12))) -> 1.475332748 | U18: =IF(ROWInflationTable[[#This Row],[2]]>0,(1+ROWInflationTable[[#This Row],[Rate1]])^(1/12)*ROWInflationTable[[#This Row],[2]],IF(EstLastUpdate>DATE(ROWInflationTable[[#This Row],[Year]],3,1),0,(1+ROWInflationTable[[#This Row],[Rate1]])^(1/12))) -> 1.481343436 | V18: =IF(ROWInflationTable[[#This Row],[3]]>0,(1+ROWInflationTable[[#This Row],[Rate1]])^(1/12)*ROWInflationTable[[#This Row],[3]],IF(EstLastUpdate>DATE(ROWInflationTable[[#This Row],[Year]],4,1),0,(1+ROWInflationTable[[#This Row],[Rate1]])^(1/12))) -> 1.487378613 | W18: =IF(ROWInflationTable[[#This Row],[4]]>0,(1+ROWInflationTable[[#This Row],[Rate1]])^(1/12)*ROWInflationTable[[#This Row],[4]],IF(EstLastUpdate>DATE(ROWInflationTable[[#This Row],[Year]],5,1),0,(1+ROWInflationTable[[#This Row],[Rate1]])^(1/12))) -> 1.493438378 | X18: =IF(ROWInflationTable[[#This Row],[5]]>0,(1+ROWInflationTable[[#This Row],[Rate1]])^(1/12)*ROWInflationTable[[#This Row],[5]],IF(EstLastUpdate>DATE(ROWInflationTable[[#This Row],[Year]],6,1),0,(1+ROWInflationTable[[#This Row],[Rate1]])^(1/12))) -> 1.49952283 | Y18: =IF(ROWInflationTable[[#This Row],[6]]>0,(1+ROWInflationTable[[#This Row],[Rate1]])^(1/12)*ROWInflationTable[[#This Row],[6]],IF(EstLastUpdate>DATE(ROWInflationTable[[#This Row],[Year]],7,1),0,(1+ROWInflationTable[[#This Row],[Rate1]])^(1/12))) -> 1.505632072 | Z18: =IF(ROWInflationTable[[#This Row],[7]]>0,(1+ROWInflationTable[[#This Row],[Rate1]])^(1/12)*ROWInflationTable[[#This Row],[7]],IF(EstLastUpdate>DATE(ROWInflationTable[[#This Row],[Year]],8,1),0,(1+ROWInflationTable[[#This Row],[Rate1]])^(1/12))) -> 1.511766203 | AA18: =IF(ROWInflationTable[[#This Row],[8]]>0,(1+ROWInflationTable[[#This Row],[Rate1]])^(1/12)*ROWInflationTable[[#This Row],[8]],IF(EstLastUpdate>DATE(ROWInflationTable[[#This Row],[Year]],9,1),0,(1+ROWInflationTable[[#This Row],[Rate1]])^(1/12))) -> 1.517925326 | AB18: =IF(ROWInflationTable[[#This Row],[9]]>0,(1+ROWInflationTable[[#This Row],[Rate1]])^(1/12)*ROWInflationTable[[#This Row],[9]],IF(EstLastUpdate>DATE(ROWInflationTable[[#This Row],[Year]],10,1),0,(1+ROWInflationTable[[#This Row],[Rate1]])^(1/12))) -> 1.524109542 | AC18: =IF(ROWInflationTable[[#This Row],[10]]>0,(1+ROWInflationTable[[#This Row],[Rate1]])^(1/12)*ROWInflationTable[[#This Row],[10]],IF(EstLastUpdate>DATE(ROWInflationTable[[#This Row],[Year]],11,1),0,(1+ROWInflationTable[[#This Row],[Rate1]])^(1/12))) -> 1.530318953 | AD18: =IF(ROWInflationTable[[#This Row],[11]]>0,(1+ROWInflationTable[[#This Row],[Rate1]])^(1/12)*ROWInflationTable[[#This Row],[11]],IF(EstLastUpdate>DATE(ROWInflationTable[[#This Row],[Year]],12,1),0,(1+ROWInflationTable[[#This Row],[Rate1]])^(1/12))) -> 1.536553662 | AF18: 2032 | AG18: 0.03 | AH18: =IF(OFFSET(CNInflationTable[[#This Row],[12]],-1,0)>0,(1+CNInflationTable[[#This Row],[Rate1]])^(1/12)*OFFSET(CNInflationTable[[#This Row],[12]],-1,0),IF(EstLastUpdate>DATE(CNInflationTable[[#This Row],[Year]],1,1),0,(1+CNInflationTable[[#This Row],[Rate1]])^(1/12))) -> 1.294552419 | AI18: =IF(CNInflationTable[[#This Row],[1]]>0,(1+CNInflationTable[[#This Row],[Rate1]])^(1/12)*CNInflationTable[[#This Row],[1]],IF(EstLastUpdate>DATE(CNInflationTable[[#This Row],[Year]],2,1),0,(1+CNInflationTable[[#This Row],[Rate1]])^(1/12))) -> 1.297745135 | AJ18: =IF(CNInflationTable[[#This Row],[2]]>0,(1+CNInflationTable[[#This Row],[Rate1]])^(1/12)*CNInflationTable[[#This Row],[2]],IF(EstLastUpdate>DATE(CNInflationTable[[#This Row],[Year]],3,1),0,(1+CNInflationTable[[#This Row],[Rate1]])^(1/12))) -> 1.300945725 | AK18: =IF(CNInflationTable[[#This Row],[3]]>0,(1+CNInflationTable[[#This Row],[Rate1]])^(1/12)*CNInflationTable[[#This Row],[3]],IF(EstLastUpdate>DATE(CNInflationTable[[#This Row],[Year]],4,1),0,(1+CNInflationTable[[#This Row],[Rate1]])^(1/12))) -> 1.304154208 | AL18: =IF(CNInflationTable[[#This Row],[4]]>0,(1+CNInflationTable[[#This Row],[Rate1]])^(1/12)*CNInflationTable[[#This Row],[4]],IF(EstLastUpdate>DATE(CNInflationTable[[#This Row],[Year]],5,1),0,(1+CNInflationTable[[#This Row],[Rate1]])^(1/12))) -> 1.307370604 | AM18: =IF(CNInflationTable[[#This Row],[5]]>0,(1+CNInflationTable[[#This Row],[Rate1]])^(1/12)*CNInflationTable[[#This Row],[5]],IF(EstLastUpdate>DATE(CNInflationTable[[#This Row],[Year]],6,1),0,(1+CNInflationTable[[#This Row],[Rate1]])^(1/12))) -> 1.310594932 | AN18: =IF(CNInflationTable[[#This Row],[6]]>0,(1+CNInflationTable[[#This Row],[Rate1]])^(1/12)*CNInflationTable[[#This Row],[6]],IF(EstLastUpdate>DATE(CNInflationTable[[#This Row],[Year]],7,1),0,(1+CNInflationTable[[#This Row],[Rate1]])^(1/12))) -> 1.313827213 | AO18: =IF(CNInflationTable[[#This Row],[7]]>0,(1+CNInflationTable[[#This Row],[Rate1]])^(1/12)*CNInflationTable[[#This Row],[7]],IF(EstLastUpdate>DATE(CNInflationTable[[#This Row],[Year]],8,1),0,(1+CNInflationTable[[#This Row],[Rate1]])^(1/12))) -> 1.317067465 | AP18: =IF(CNInflationTable[[#This Row],[8]]>0,(1+CNInflationTable[[#This Row],[Rate1]])^(1/12)*CNInflationTable[[#This Row],[8]],IF(EstLastUpdate>DATE(CNInflationTable[[#This Row],[Year]],9,1),0,(1+CNInflationTable[[#This Row],[Rate1]])^(1/12))) -> 1.320315709 | AQ18: =IF(CNInflationTable[[#This Row],[9]]>0,(1+CNInflationTable[[#This Row],[Rate1]])^(1/12)*CNInflationTable[[#This Row],[9]],IF(EstLastUpdate>DATE(CNInflationTable[[#This Row],[Year]],10,1),0,(1+CNInflationTable[[#This Row],[Rate1]])^(1/12))) -> 1.323571964 | AR18: =IF(CNInflationTable[[#This Row],[10]]>0,(1+CNInflationTable[[#This Row],[Rate1]])^(1/12)*CNInflationTable[[#This Row],[10]],IF(EstLastUpdate>DATE(CNInflationTable[[#This Row],[Year]],11,1),0,(1+CNInflationTable[[#This Row],[Rate1]])^(1/12))) -> 1.326836249 | AS18: =IF(CNInflationTable[[#This Row],[11]]>0,(1+CNInflationTable[[#This Row],[Rate1]])^(1/12)*CNInflationTable[[#This Row],[11]],IF(EstLastUpdate>DATE(CNInflationTable[[#This Row],[Year]],12,1),0,(1+CNInflationTable[[#This Row],[Rate1]])^(1/12))) -> 1.330108585 | AU18: 2032 | AV18: 0.05 | AW18: =IF(OFFSET(UTInflationTable[[#This Row],[12]],-1,0)>0,(1+UTInflationTable[[#This Row],[Rate1]])^(1/12)*OFFSET(UTInflationTable[[#This Row],[12]],-1,0),IF(EstLastUpdate>DATE(UTInflationTable[[#This Row],[Year]],1,1),0,(1+UTInflationTable[[#This Row],[Rate1]])^(1/12))) -> 1.497603111 | AX18: =IF(UTInflationTable[[#This Row],[1]]>0,(1+UTInflationTable[[#This Row],[Rate1]])^(1/12)*UTInflationTable[[#This Row],[1]],IF(EstLastUpdate>DATE(UTInflationTable[[#This Row],[Year]],2,1),0,(1+UTInflationTable[[#This Row],[Rate1]])^(1/12))) -> 1.503704532 | AY18: =IF(UTInflationTable[[#This Row],[2]]>0,(1+UTInflationTable[[#This Row],[Rate1]])^(1/12)*UTInflationTable[[#This Row],[2]],IF(EstLastUpdate>DATE(UTInflationTable[[#This Row],[Year]],3,1),0,(1+UTInflationTable[[#This Row],[Rate1]])^(1/12))) -> 1.50983081 | AZ18: =IF(UTInflationTable[[#This Row],[3]]>0,(1+UTInflationTable[[#This Row],[Rate1]])^(1/12)*UTInflationTable[[#This Row],[3]],IF(EstLastUpdate>DATE(UTInflationTable[[#This Row],[Year]],4,1),0,(1+UTInflationTable[[#This Row],[Rate1]])^(1/12))) -> 1.515982048 | BA18: =IF(UTInflationTable[[#This Row],[4]]>0,(1+UTInflationTable[[#This Row],[Rate1]])^(1/12)*UTInflationTable[[#This Row],[4]],IF(EstLastUpdate>DATE(UTInflationTable[[#This Row],[Year]],5,1),0,(1+UTInflationTable[[#This Row],[Rate1]])^(1/12))) -> 1.522158346 | BB18: =IF(UTInflationTable[[#This Row],[5]]>0,(1+UTInflationTable[[#This Row],[Rate1]])^(1/12)*UTInflationTable[[#This Row],[5]],IF(EstLastUpdate>DATE(UTInflationTable[[#This Row],[Year]],6,1),0,(1+UTInflationTable[[#This Row],[Rate1]])^(1/12))) -> 1.528359808 | BC18: =IF(UTInflationTable[[#This Row],[6]]>0,(1+UTInflationTable[[#This Row],[Rate1]])^(1/12)*UTInflationTable[[#This Row],[6]],IF(EstLastUpdate>DATE(UTInflationTable[[#This Row],[Year]],7,1),0,(1+UTInflationTable[[#This Row],[Rate1]])^(1/12))) -> 1.534586535 | BD18: =IF(UTInflationTable[[#This Row],[7]]>0,(1+UTInflationTable[[#This Row],[Rate1]])^(1/12)*UTInflationTable[[#This Row],[7]],IF(EstLastUpdate>DATE(UTInflationTable[[#This Row],[Year]],8,1),0,(1+UTInflationTable[[#This Row],[Rate1]])^(1/12))) -> 1.54083863 | BE18: =IF(UTInflationTable[[#This Row],[8]]>0,(1+UTInflationTable[[#This Row],[Rate1]])^(1/12)*UTInflationTable[[#This Row],[8]],IF(EstLastUpdate>DATE(UTInflationTable[[#This Row],[Year]],9,1),0,(1+UTInflationTable[[#This Row],[Rate1]])^(1/12))) -> 1.547116198 | BF18: =IF(UTInflationTable[[#This Row],[9]]>0,(1+UTInflationTable[[#This Row],[Rate1]])^(1/12)*UTInflationTable[[#This Row],[9]],IF(EstLastUpdate>DATE(UTInflationTable[[#This Row],[Year]],10,1),0,(1+UTInflationTable[[#This Row],[Rate1]])^(1/12))) -> 1.553419341 | BG18: =IF(UTInflationTable[[#This Row],[10]]>0,(1+UTInflationTable[[#This Row],[Rate1]])^(1/12)*UTInflationTable[[#This Row],[10]],IF(EstLastUpdate>DATE(UTInflationTable[[#This Row],[Year]],11,1),0,(1+UTInflationTable[[#This Row],[Rate1]])^(1/12))) -> 1.559748163 | BH18: =IF(UTInflationTable[[#This Row],[11]]>0,(1+UTInflationTable[[#This Row],[Rate1]])^(1/12)*UTInflationTable[[#This Row],[11]],IF(EstLastUpdate>DATE(UTInflationTable[[#This Row],[Year]],12,1),0,(1+UTInflationTable[[#This Row],[Rate1]])^(1/12))) -> 1.56610277
B19: =OFFSET(PEInflationTable[[#This Row],[Year]],-1,0)+1 -> 2033 | C19: 0.03 | D19: =IF(OFFSET(PEInflationTable[[#This Row],[12]],-1,0)>0,(1+PEInflationTable[[#This Row],[Rate1]])^(1/12)*OFFSET(PEInflationTable[[#This Row],[12]],-1,0),IF(EstLastUpdate>DATE(PEInflationTable[[#This Row],[Year]],1,1),0,(1+PEInflationTable[[#This Row],[Rate1]])^(1/12))) -> 1.320690049 | E19: =IF(PEInflationTable[[#This Row],[1]]>0,(1+PEInflationTable[[#This Row],[Rate1]])^(1/12)*PEInflationTable[[#This Row],[1]],IF(EstLastUpdate>DATE(PEInflationTable[[#This Row],[Year]],2,1),0,(1+PEInflationTable[[#This Row],[Rate1]])^(1/12))) -> 1.323947227 | F19: =IF(PEInflationTable[[#This Row],[2]]>0,(1+PEInflationTable[[#This Row],[Rate1]])^(1/12)*PEInflationTable[[#This Row],[2]],IF(EstLastUpdate>DATE(PEInflationTable[[#This Row],[Year]],3,1),0,(1+PEInflationTable[[#This Row],[Rate1]])^(1/12))) -> 1.327212438 | G19: =IF(PEInflationTable[[#This Row],[3]]>0,(1+PEInflationTable[[#This Row],[Rate1]])^(1/12)*PEInflationTable[[#This Row],[3]],IF(EstLastUpdate>DATE(PEInflationTable[[#This Row],[Year]],4,1),0,(1+PEInflationTable[[#This Row],[Rate1]])^(1/12))) -> 1.330485702 | H19: =IF(PEInflationTable[[#This Row],[4]]>0,(1+PEInflationTable[[#This Row],[Rate1]])^(1/12)*PEInflationTable[[#This Row],[4]],IF(EstLastUpdate>DATE(PEInflationTable[[#This Row],[Year]],5,1),0,(1+PEInflationTable[[#This Row],[Rate1]])^(1/12))) -> 1.333767039 | I19: =IF(PEInflationTable[[#This Row],[5]]>0,(1+PEInflationTable[[#This Row],[Rate1]])^(1/12)*PEInflationTable[[#This Row],[5]],IF(EstLastUpdate>DATE(PEInflationTable[[#This Row],[Year]],6,1),0,(1+PEInflationTable[[#This Row],[Rate1]])^(1/12))) -> 1.337056468 | J19: =IF(PEInflationTable[[#This Row],[6]]>0,(1+PEInflationTable[[#This Row],[Rate1]])^(1/12)*PEInflationTable[[#This Row],[6]],IF(EstLastUpdate>DATE(PEInflationTable[[#This Row],[Year]],7,1),0,(1+PEInflationTable[[#This Row],[Rate1]])^(1/12))) -> 1.34035401 | K19: =IF(PEInflationTable[[#This Row],[7]]>0,(1+PEInflationTable[[#This Row],[Rate1]])^(1/12)*PEInflationTable[[#This Row],[7]],IF(EstLastUpdate>DATE(PEInflationTable[[#This Row],[Year]],8,1),0,(1+PEInflationTable[[#This Row],[Rate1]])^(1/12))) -> 1.343659685 | L19: =IF(PEInflationTable[[#This Row],[8]]>0,(1+PEInflationTable[[#This Row],[Rate1]])^(1/12)*PEInflationTable[[#This Row],[8]],IF(EstLastUpdate>DATE(PEInflationTable[[#This Row],[Year]],9,1),0,(1+PEInflationTable[[#This Row],[Rate1]])^(1/12))) -> 1.346973512 | M19: =IF(PEInflationTable[[#This Row],[9]]>0,(1+PEInflationTable[[#This Row],[Rate1]])^(1/12)*PEInflationTable[[#This Row],[9]],IF(EstLastUpdate>DATE(PEInflationTable[[#This Row],[Year]],10,1),0,(1+PEInflationTable[[#This Row],[Rate1]])^(1/12))) -> 1.350295512 | N19: =IF(PEInflationTable[[#This Row],[10]]>0,(1+PEInflationTable[[#This Row],[Rate1]])^(1/12)*PEInflationTable[[#This Row],[10]],IF(EstLastUpdate>DATE(PEInflationTable[[#This Row],[Year]],11,1),0,(1+PEInflationTable[[#This Row],[Rate1]])^(1/12))) -> 1.353625705 | O19: =IF(PEInflationTable[[#This Row],[11]]>0,(1+PEInflationTable[[#This Row],[Rate1]])^(1/12)*PEInflationTable[[#This Row],[11]],IF(EstLastUpdate>DATE(PEInflationTable[[#This Row],[Year]],12,1),0,(1+PEInflationTable[[#This Row],[Rate1]])^(1/12))) -> 1.356964111 | Q19: 2033 | R19: 0.05 | S19: =IF(OFFSET(ROWInflationTable[[#This Row],[12]],-1,0)>0,(1+ROWInflationTable[[#This Row],[Rate1]])^(1/12)*OFFSET(ROWInflationTable[[#This Row],[12]],-1,0),IF(EstLastUpdate>DATE(ROWInflationTable[[#This Row],[Year]],1,1),0,(1+ROWInflationTable[[#This Row],[Rate1]])^(1/12))) -> 1.542813771 | T19: =IF(ROWInflationTable[[#This Row],[1]]>0,(1+ROWInflationTable[[#This Row],[Rate1]])^(1/12)*ROWInflationTable[[#This Row],[1]],IF(EstLastUpdate>DATE(ROWInflationTable[[#This Row],[Year]],2,1),0,(1+ROWInflationTable[[#This Row],[Rate1]])^(1/12))) -> 1.549099386 | U19: =IF(ROWInflationTable[[#This Row],[2]]>0,(1+ROWInflationTable[[#This Row],[Rate1]])^(1/12)*ROWInflationTable[[#This Row],[2]],IF(EstLastUpdate>DATE(ROWInflationTable[[#This Row],[Year]],3,1),0,(1+ROWInflationTable[[#This Row],[Rate1]])^(1/12))) -> 1.555410608 | V19: =IF(ROWInflationTable[[#This Row],[3]]>0,(1+ROWInflationTable[[#This Row],[Rate1]])^(1/12)*ROWInflationTable[[#This Row],[3]],IF(EstLastUpdate>DATE(ROWInflationTable[[#This Row],[Year]],4,1),0,(1+ROWInflationTable[[#This Row],[Rate1]])^(1/12))) -> 1.561747544 | W19: =IF(ROWInflationTable[[#This Row],[4]]>0,(1+ROWInflationTable[[#This Row],[Rate1]])^(1/12)*ROWInflationTable[[#This Row],[4]],IF(EstLastUpdate>DATE(ROWInflationTable[[#This Row],[Year]],5,1),0,(1+ROWInflationTable[[#This Row],[Rate1]])^(1/12))) -> 1.568110296 | X19: =IF(ROWInflationTable[[#This Row],[5]]>0,(1+ROWInflationTable[[#This Row],[Rate1]])^(1/12)*ROWInflationTable[[#This Row],[5]],IF(EstLastUpdate>DATE(ROWInflationTable[[#This Row],[Year]],6,1),0,(1+ROWInflationTable[[#This Row],[Rate1]])^(1/12))) -> 1.574498972 | Y19: =IF(ROWInflationTable[[#This Row],[6]]>0,(1+ROWInflationTable[[#This Row],[Rate1]])^(1/12)*ROWInflationTable[[#This Row],[6]],IF(EstLastUpdate>DATE(ROWInflationTable[[#This Row],[Year]],7,1),0,(1+ROWInflationTable[[#This Row],[Rate1]])^(1/12))) -> 1.580913676 | Z19: =IF(ROWInflationTable[[#This Row],[7]]>0,(1+ROWInflationTable[[#This Row],[Rate1]])^(1/12)*ROWInflationTable[[#This Row],[7]],IF(EstLastUpdate>DATE(ROWInflationTable[[#This Row],[Year]],8,1),0,(1+ROWInflationTable[[#This Row],[Rate1]])^(1/12))) -> 1.587354514 | AA19: =IF(ROWInflationTable[[#This Row],[8]]>0,(1+ROWInflationTable[[#This Row],[Rate1]])^(1/12)*ROWInflationTable[[#This Row],[8]],IF(EstLastUpdate>DATE(ROWInflationTable[[#This Row],[Year]],9,1),0,(1+ROWInflationTable[[#This Row],[Rate1]])^(1/12))) -> 1.593821592 | AB19: =IF(ROWInflationTable[[#This Row],[9]]>0,(1+ROWInflationTable[[#This Row],[Rate1]])^(1/12)*ROWInflationTable[[#This Row],[9]],IF(EstLastUpdate>DATE(ROWInflationTable[[#This Row],[Year]],10,1),0,(1+ROWInflationTable[[#This Row],[Rate1]])^(1/12))) -> 1.600315019 | AC19: =IF(ROWInflationTable[[#This Row],[10]]>0,(1+ROWInflationTable[[#This Row],[Rate1]])^(1/12)*ROWInflationTable[[#This Row],[10]],IF(EstLastUpdate>DATE(ROWInflationTable[[#This Row],[Year]],11,1),0,(1+ROWInflationTable[[#This Row],[Rate1]])^(1/12))) -> 1.6068349 | AD19: =IF(ROWInflationTable[[#This Row],[11]]>0,(1+ROWInflationTable[[#This Row],[Rate1]])^(1/12)*ROWInflationTable[[#This Row],[11]],IF(EstLastUpdate>DATE(ROWInflationTable[[#This Row],[Year]],12,1),0,(1+ROWInflationTable[[#This Row],[Rate1]])^(1/12))) -> 1.613381345 | AF19: 2033 | AG19: 0.03 | AH19: =IF(OFFSET(CNInflationTable[[#This Row],[12]],-1,0)>0,(1+CNInflationTable[[#This Row],[Rate1]])^(1/12)*OFFSET(CNInflationTable[[#This Row],[12]],-1,0),IF(EstLastUpdate>DATE(CNInflationTable[[#This Row],[Year]],1,1),0,(1+CNInflationTable[[#This Row],[Rate1]])^(1/12))) -> 1.333388992 | AI19: =IF(CNInflationTable[[#This Row],[1]]>0,(1+CNInflationTable[[#This Row],[Rate1]])^(1/12)*CNInflationTable[[#This Row],[1]],IF(EstLastUpdate>DATE(CNInflationTable[[#This Row],[Year]],2,1),0,(1+CNInflationTable[[#This Row],[Rate1]])^(1/12))) -> 1.336677489 | AJ19: =IF(CNInflationTable[[#This Row],[2]]>0,(1+CNInflationTable[[#This Row],[Rate1]])^(1/12)*CNInflationTable[[#This Row],[2]],IF(EstLastUpdate>DATE(CNInflationTable[[#This Row],[Year]],3,1),0,(1+CNInflationTable[[#This Row],[Rate1]])^(1/12))) -> 1.339974096 | AK19: =IF(CNInflationTable[[#This Row],[3]]>0,(1+CNInflationTable[[#This Row],[Rate1]])^(1/12)*CNInflationTable[[#This Row],[3]],IF(EstLastUpdate>DATE(CNInflationTable[[#This Row],[Year]],4,1),0,(1+CNInflationTable[[#This Row],[Rate1]])^(1/12))) -> 1.343278834 | AL19: =IF(CNInflationTable[[#This Row],[4]]>0,(1+CNInflationTable[[#This Row],[Rate1]])^(1/12)*CNInflationTable[[#This Row],[4]],IF(EstLastUpdate>DATE(CNInflationTable[[#This Row],[Year]],5,1),0,(1+CNInflationTable[[#This Row],[Rate1]])^(1/12))) -> 1.346591722 | AM19: =IF(CNInflationTable[[#This Row],[5]]>0,(1+CNInflationTable[[#This Row],[Rate1]])^(1/12)*CNInflationTable[[#This Row],[5]],IF(EstLastUpdate>DATE(CNInflationTable[[#This Row],[Year]],6,1),0,(1+CNInflationTable[[#This Row],[Rate1]])^(1/12))) -> 1.34991278 | AN19: =IF(CNInflationTable[[#This Row],[6]]>0,(1+CNInflationTable[[#This Row],[Rate1]])^(1/12)*CNInflationTable[[#This Row],[6]],IF(EstLastUpdate>DATE(CNInflationTable[[#This Row],[Year]],7,1),0,(1+CNInflationTable[[#This Row],[Rate1]])^(1/12))) -> 1.353242029 | AO19: =IF(CNInflationTable[[#This Row],[7]]>0,(1+CNInflationTable[[#This Row],[Rate1]])^(1/12)*CNInflationTable[[#This Row],[7]],IF(EstLastUpdate>DATE(CNInflationTable[[#This Row],[Year]],8,1),0,(1+CNInflationTable[[#This Row],[Rate1]])^(1/12))) -> 1.356579489 | AP19: =IF(CNInflationTable[[#This Row],[8]]>0,(1+CNInflationTable[[#This Row],[Rate1]])^(1/12)*CNInflationTable[[#This Row],[8]],IF(EstLastUpdate>DATE(CNInflationTable[[#This Row],[Year]],9,1),0,(1+CNInflationTable[[#This Row],[Rate1]])^(1/12))) -> 1.35992518 | AQ19: =IF(CNInflationTable[[#This Row],[9]]>0,(1+CNInflationTable[[#This Row],[Rate1]])^(1/12)*CNInflationTable[[#This Row],[9]],IF(EstLastUpdate>DATE(CNInflationTable[[#This Row],[Year]],10,1),0,(1+CNInflationTable[[#This Row],[Rate1]])^(1/12))) -> 1.363279123 | AR19: =IF(CNInflationTable[[#This Row],[10]]>0,(1+CNInflationTable[[#This Row],[Rate1]])^(1/12)*CNInflationTable[[#This Row],[10]],IF(EstLastUpdate>DATE(CNInflationTable[[#This Row],[Year]],11,1),0,(1+CNInflationTable[[#This Row],[Rate1]])^(1/12))) -> 1.366641337 | AS19: =IF(CNInflationTable[[#This Row],[11]]>0,(1+CNInflationTable[[#This Row],[Rate1]])^(1/12)*CNInflationTable[[#This Row],[11]],IF(EstLastUpdate>DATE(CNInflationTable[[#This Row],[Year]],12,1),0,(1+CNInflationTable[[#This Row],[Rate1]])^(1/12))) -> 1.370011843 | AU19: 2033 | AV19: 0.05 | AW19: =IF(OFFSET(UTInflationTable[[#This Row],[12]],-1,0)>0,(1+UTInflationTable[[#This Row],[Rate1]])^(1/12)*OFFSET(UTInflationTable[[#This Row],[12]],-1,0),IF(EstLastUpdate>DATE(UTInflationTable[[#This Row],[Year]],1,1),0,(1+UTInflationTable[[#This Row],[Rate1]])^(1/12))) -> 1.572483267 | AX19: =IF(UTInflationTable[[#This Row],[1]]>0,(1+UTInflationTable[[#This Row],[Rate1]])^(1/12)*UTInflationTable[[#This Row],[1]],IF(EstLastUpdate>DATE(UTInflationTable[[#This Row],[Year]],2,1),0,(1+UTInflationTable[[#This Row],[Rate1]])^(1/12))) -> 1.578889758 | AY19: =IF(UTInflationTable[[#This Row],[2]]>0,(1+UTInflationTable[[#This Row],[Rate1]])^(1/12)*UTInflationTable[[#This Row],[2]],IF(EstLastUpdate>DATE(UTInflationTable[[#This Row],[Year]],3,1),0,(1+UTInflationTable[[#This Row],[Rate1]])^(1/12))) -> 1.585322351 | AZ19: =IF(UTInflationTable[[#This Row],[3]]>0,(1+UTInflationTable[[#This Row],[Rate1]])^(1/12)*UTInflationTable[[#This Row],[3]],IF(EstLastUpdate>DATE(UTInflationTable[[#This Row],[Year]],4,1),0,(1+UTInflationTable[[#This Row],[Rate1]])^(1/12))) -> 1.59178115 | BA19: =IF(UTInflationTable[[#This Row],[4]]>0,(1+UTInflationTable[[#This Row],[Rate1]])^(1/12)*UTInflationTable[[#This Row],[4]],IF(EstLastUpdate>DATE(UTInflationTable[[#This Row],[Year]],5,1),0,(1+UTInflationTable[[#This Row],[Rate1]])^(1/12))) -> 1.598266264 | BB19: =IF(UTInflationTable[[#This Row],[5]]>0,(1+UTInflationTable[[#This Row],[Rate1]])^(1/12)*UTInflationTable[[#This Row],[5]],IF(EstLastUpdate>DATE(UTInflationTable[[#This Row],[Year]],6,1),0,(1+UTInflationTable[[#This Row],[Rate1]])^(1/12))) -> 1.604777798 | BC19: =IF(UTInflationTable[[#This Row],[6]]>0,(1+UTInflationTable[[#This Row],[Rate1]])^(1/12)*UTInflationTable[[#This Row],[6]],IF(EstLastUpdate>DATE(UTInflationTable[[#This Row],[Year]],7,1),0,(1+UTInflationTable[[#This Row],[Rate1]])^(1/12))) -> 1.611315862 | BD19: =IF(UTInflationTable[[#This Row],[7]]>0,(1+UTInflationTable[[#This Row],[Rate1]])^(1/12)*UTInflationTable[[#This Row],[7]],IF(EstLastUpdate>DATE(UTInflationTable[[#This Row],[Year]],8,1),0,(1+UTInflationTable[[#This Row],[Rate1]])^(1/12))) -> 1.617880562 | BE19: =IF(UTInflationTable[[#This Row],[8]]>0,(1+UTInflationTable[[#This Row],[Rate1]])^(1/12)*UTInflationTable[[#This Row],[8]],IF(EstLastUpdate>DATE(UTInflationTable[[#This Row],[Year]],9,1),0,(1+UTInflationTable[[#This Row],[Rate1]])^(1/12))) -> 1.624472008 | BF19: =IF(UTInflationTable[[#This Row],[9]]>0,(1+UTInflationTable[[#This Row],[Rate1]])^(1/12)*UTInflationTable[[#This Row],[9]],IF(EstLastUpdate>DATE(UTInflationTable[[#This Row],[Year]],10,1),0,(1+UTInflationTable[[#This Row],[Rate1]])^(1/12))) -> 1.631090308 | BG19: =IF(UTInflationTable[[#This Row],[10]]>0,(1+UTInflationTable[[#This Row],[Rate1]])^(1/12)*UTInflationTable[[#This Row],[10]],IF(EstLastUpdate>DATE(UTInflationTable[[#This Row],[Year]],11,1),0,(1+UTInflationTable[[#This Row],[Rate1]])^(1/12))) -> 1.637735571 | BH19: =IF(UTInflationTable[[#This Row],[11]]>0,(1+UTInflationTable[[#This Row],[Rate1]])^(1/12)*UTInflationTable[[#This Row],[11]],IF(EstLastUpdate>DATE(UTInflationTable[[#This Row],[Year]],12,1),0,(1+UTInflationTable[[#This Row],[Rate1]])^(1/12))) -> 1.644407909
B20: =OFFSET(PEInflationTable[[#This Row],[Year]],-1,0)+1 -> 2034 | C20: 0.03 | D20: =IF(OFFSET(PEInflationTable[[#This Row],[12]],-1,0)>0,(1+PEInflationTable[[#This Row],[Rate1]])^(1/12)*OFFSET(PEInflationTable[[#This Row],[12]],-1,0),IF(EstLastUpdate>DATE(PEInflationTable[[#This Row],[Year]],1,1),0,(1+PEInflationTable[[#This Row],[Rate1]])^(1/12))) -> 1.360310751 | E20: =IF(PEInflationTable[[#This Row],[1]]>0,(1+PEInflationTable[[#This Row],[Rate1]])^(1/12)*PEInflationTable[[#This Row],[1]],IF(EstLastUpdate>DATE(PEInflationTable[[#This Row],[Year]],2,1),0,(1+PEInflationTable[[#This Row],[Rate1]])^(1/12))) -> 1.363665644 | F20: =IF(PEInflationTable[[#This Row],[2]]>0,(1+PEInflationTable[[#This Row],[Rate1]])^(1/12)*PEInflationTable[[#This Row],[2]],IF(EstLastUpdate>DATE(PEInflationTable[[#This Row],[Year]],3,1),0,(1+PEInflationTable[[#This Row],[Rate1]])^(1/12))) -> 1.367028811 | G20: =IF(PEInflationTable[[#This Row],[3]]>0,(1+PEInflationTable[[#This Row],[Rate1]])^(1/12)*PEInflationTable[[#This Row],[3]],IF(EstLastUpdate>DATE(PEInflationTable[[#This Row],[Year]],4,1),0,(1+PEInflationTable[[#This Row],[Rate1]])^(1/12))) -> 1.370400273 | H20: =IF(PEInflationTable[[#This Row],[4]]>0,(1+PEInflationTable[[#This Row],[Rate1]])^(1/12)*PEInflationTable[[#This Row],[4]],IF(EstLastUpdate>DATE(PEInflationTable[[#This Row],[Year]],5,1),0,(1+PEInflationTable[[#This Row],[Rate1]])^(1/12))) -> 1.37378005 | I20: =IF(PEInflationTable[[#This Row],[5]]>0,(1+PEInflationTable[[#This Row],[Rate1]])^(1/12)*PEInflationTable[[#This Row],[5]],IF(EstLastUpdate>DATE(PEInflationTable[[#This Row],[Year]],6,1),0,(1+PEInflationTable[[#This Row],[Rate1]])^(1/12))) -> 1.377168162 | J20: =IF(PEInflationTable[[#This Row],[6]]>0,(1+PEInflationTable[[#This Row],[Rate1]])^(1/12)*PEInflationTable[[#This Row],[6]],IF(EstLastUpdate>DATE(PEInflationTable[[#This Row],[Year]],7,1),0,(1+PEInflationTable[[#This Row],[Rate1]])^(1/12))) -> 1.38056463 | K20: =IF(PEInflationTable[[#This Row],[7]]>0,(1+PEInflationTable[[#This Row],[Rate1]])^(1/12)*PEInflationTable[[#This Row],[7]],IF(EstLastUpdate>DATE(PEInflationTable[[#This Row],[Year]],8,1),0,(1+PEInflationTable[[#This Row],[Rate1]])^(1/12))) -> 1.383969475 | L20: =IF(PEInflationTable[[#This Row],[8]]>0,(1+PEInflationTable[[#This Row],[Rate1]])^(1/12)*PEInflationTable[[#This Row],[8]],IF(EstLastUpdate>DATE(PEInflationTable[[#This Row],[Year]],9,1),0,(1+PEInflationTable[[#This Row],[Rate1]])^(1/12))) -> 1.387382717 | M20: =IF(PEInflationTable[[#This Row],[9]]>0,(1+PEInflationTable[[#This Row],[Rate1]])^(1/12)*PEInflationTable[[#This Row],[9]],IF(EstLastUpdate>DATE(PEInflationTable[[#This Row],[Year]],10,1),0,(1+PEInflationTable[[#This Row],[Rate1]])^(1/12))) -> 1.390804377 | N20: =IF(PEInflationTable[[#This Row],[10]]>0,(1+PEInflationTable[[#This Row],[Rate1]])^(1/12)*PEInflationTable[[#This Row],[10]],IF(EstLastUpdate>DATE(PEInflationTable[[#This Row],[Year]],11,1),0,(1+PEInflationTable[[#This Row],[Rate1]])^(1/12))) -> 1.394234476 | O20: =IF(PEInflationTable[[#This Row],[11]]>0,(1+PEInflationTable[[#This Row],[Rate1]])^(1/12)*PEInflationTable[[#This Row],[11]],IF(EstLastUpdate>DATE(PEInflationTable[[#This Row],[Year]],12,1),0,(1+PEInflationTable[[#This Row],[Rate1]])^(1/12))) -> 1.397673035 | Q20: 2034 | R20: 0.05 | S20: =IF(OFFSET(ROWInflationTable[[#This Row],[12]],-1,0)>0,(1+ROWInflationTable[[#This Row],[Rate1]])^(1/12)*OFFSET(ROWInflationTable[[#This Row],[12]],-1,0),IF(EstLastUpdate>DATE(ROWInflationTable[[#This Row],[Year]],1,1),0,(1+ROWInflationTable[[#This Row],[Rate1]])^(1/12))) -> 1.61995446 | T20: =IF(ROWInflationTable[[#This Row],[1]]>0,(1+ROWInflationTable[[#This Row],[Rate1]])^(1/12)*ROWInflationTable[[#This Row],[1]],IF(EstLastUpdate>DATE(ROWInflationTable[[#This Row],[Year]],2,1),0,(1+ROWInflationTable[[#This Row],[Rate1]])^(1/12))) -> 1.626554355 | U20: =IF(ROWInflationTable[[#This Row],[2]]>0,(1+ROWInflationTable[[#This Row],[Rate1]])^(1/12)*ROWInflationTable[[#This Row],[2]],IF(EstLastUpdate>DATE(ROWInflationTable[[#This Row],[Year]],3,1),0,(1+ROWInflationTable[[#This Row],[Rate1]])^(1/12))) -> 1.633181139 | V20: =IF(ROWInflationTable[[#This Row],[3]]>0,(1+ROWInflationTable[[#This Row],[Rate1]])^(1/12)*ROWInflationTable[[#This Row],[3]],IF(EstLastUpdate>DATE(ROWInflationTable[[#This Row],[Year]],4,1),0,(1+ROWInflationTable[[#This Row],[Rate1]])^(1/12))) -> 1.639834921 | W20: =IF(ROWInflationTable[[#This Row],[4]]>0,(1+ROWInflationTable[[#This Row],[Rate1]])^(1/12)*ROWInflationTable[[#This Row],[4]],IF(EstLastUpdate>DATE(ROWInflationTable[[#This Row],[Year]],5,1),0,(1+ROWInflationTable[[#This Row],[Rate1]])^(1/12))) -> 1.646515811 | X20: =IF(ROWInflationTable[[#This Row],[5]]>0,(1+ROWInflationTable[[#This Row],[Rate1]])^(1/12)*ROWInflationTable[[#This Row],[5]],IF(EstLastUpdate>DATE(ROWInflationTable[[#This Row],[Year]],6,1),0,(1+ROWInflationTable[[#This Row],[Rate1]])^(1/12))) -> 1.653223921 | Y20: =IF(ROWInflationTable[[#This Row],[6]]>0,(1+ROWInflationTable[[#This Row],[Rate1]])^(1/12)*ROWInflationTable[[#This Row],[6]],IF(EstLastUpdate>DATE(ROWInflationTable[[#This Row],[Year]],7,1),0,(1+ROWInflationTable[[#This Row],[Rate1]])^(1/12))) -> 1.659959359 | Z20: =IF(ROWInflationTable[[#This Row],[7]]>0,(1+ROWInflationTable[[#This Row],[Rate1]])^(1/12)*ROWInflationTable[[#This Row],[7]],IF(EstLastUpdate>DATE(ROWInflationTable[[#This Row],[Year]],8,1),0,(1+ROWInflationTable[[#This Row],[Rate1]])^(1/12))) -> 1.666722239 | AA20: =IF(ROWInflationTable[[#This Row],[8]]>0,(1+ROWInflationTable[[#This Row],[Rate1]])^(1/12)*ROWInflationTable[[#This Row],[8]],IF(EstLastUpdate>DATE(ROWInflationTable[[#This Row],[Year]],9,1),0,(1+ROWInflationTable[[#This Row],[Rate1]])^(1/12))) -> 1.673512672 | AB20: =IF(ROWInflationTable[[#This Row],[9]]>0,(1+ROWInflationTable[[#This Row],[Rate1]])^(1/12)*ROWInflationTable[[#This Row],[9]],IF(EstLastUpdate>DATE(ROWInflationTable[[#This Row],[Year]],10,1),0,(1+ROWInflationTable[[#This Row],[Rate1]])^(1/12))) -> 1.68033077 | AC20: =IF(ROWInflationTable[[#This Row],[10]]>0,(1+ROWInflationTable[[#This Row],[Rate1]])^(1/12)*ROWInflationTable[[#This Row],[10]],IF(EstLastUpdate>DATE(ROWInflationTable[[#This Row],[Year]],11,1),0,(1+ROWInflationTable[[#This Row],[Rate1]])^(1/12))) -> 1.687176645 | AD20: =IF(ROWInflationTable[[#This Row],[11]]>0,(1+ROWInflationTable[[#This Row],[Rate1]])^(1/12)*ROWInflationTable[[#This Row],[11]],IF(EstLastUpdate>DATE(ROWInflationTable[[#This Row],[Year]],12,1),0,(1+ROWInflationTable[[#This Row],[Rate1]])^(1/12))) -> 1.694050412 | AF20: 2034 | AG20: 0.03 | AH20: =IF(OFFSET(CNInflationTable[[#This Row],[12]],-1,0)>0,(1+CNInflationTable[[#This Row],[Rate1]])^(1/12)*OFFSET(CNInflationTable[[#This Row],[12]],-1,0),IF(EstLastUpdate>DATE(CNInflationTable[[#This Row],[Year]],1,1),0,(1+CNInflationTable[[#This Row],[Rate1]])^(1/12))) -> 1.373390662 | AI20: =IF(CNInflationTable[[#This Row],[1]]>0,(1+CNInflationTable[[#This Row],[Rate1]])^(1/12)*CNInflationTable[[#This Row],[1]],IF(EstLastUpdate>DATE(CNInflationTable[[#This Row],[Year]],2,1),0,(1+CNInflationTable[[#This Row],[Rate1]])^(1/12))) -> 1.376777814 | AJ20: =IF(CNInflationTable[[#This Row],[2]]>0,(1+CNInflationTable[[#This Row],[Rate1]])^(1/12)*CNInflationTable[[#This Row],[2]],IF(EstLastUpdate>DATE(CNInflationTable[[#This Row],[Year]],3,1),0,(1+CNInflationTable[[#This Row],[Rate1]])^(1/12))) -> 1.380173319 | AK20: =IF(CNInflationTable[[#This Row],[3]]>0,(1+CNInflationTable[[#This Row],[Rate1]])^(1/12)*CNInflationTable[[#This Row],[3]],IF(EstLastUpdate>DATE(CNInflationTable[[#This Row],[Year]],4,1),0,(1+CNInflationTable[[#This Row],[Rate1]])^(1/12))) -> 1.383577199 | AL20: =IF(CNInflationTable[[#This Row],[4]]>0,(1+CNInflationTable[[#This Row],[Rate1]])^(1/12)*CNInflationTable[[#This Row],[4]],IF(EstLastUpdate>DATE(CNInflationTable[[#This Row],[Year]],5,1),0,(1+CNInflationTable[[#This Row],[Rate1]])^(1/12))) -> 1.386989474 | AM20: =IF(CNInflationTable[[#This Row],[5]]>0,(1+CNInflationTable[[#This Row],[Rate1]])^(1/12)*CNInflationTable[[#This Row],[5]],IF(EstLastUpdate>DATE(CNInflationTable[[#This Row],[Year]],6,1),0,(1+CNInflationTable[[#This Row],[Rate1]])^(1/12))) -> 1.390410164 | AN20: =IF(CNInflationTable[[#This Row],[6]]>0,(1+CNInflationTable[[#This Row],[Rate1]])^(1/12)*CNInflationTable[[#This Row],[6]],IF(EstLastUpdate>DATE(CNInflationTable[[#This Row],[Year]],7,1),0,(1+CNInflationTable[[#This Row],[Rate1]])^(1/12))) -> 1.39383929 | AO20: =IF(CNInflationTable[[#This Row],[7]]>0,(1+CNInflationTable[[#This Row],[Rate1]])^(1/12)*CNInflationTable[[#This Row],[7]],IF(EstLastUpdate>DATE(CNInflationTable[[#This Row],[Year]],8,1),0,(1+CNInflationTable[[#This Row],[Rate1]])^(1/12))) -> 1.397276874 | AP20: =IF(CNInflationTable[[#This Row],[8]]>0,(1+CNInflationTable[[#This Row],[Rate1]])^(1/12)*CNInflationTable[[#This Row],[8]],IF(EstLastUpdate>DATE(CNInflationTable[[#This Row],[Year]],9,1),0,(1+CNInflationTable[[#This Row],[Rate1]])^(1/12))) -> 1.400722936 | AQ20: =IF(CNInflationTable[[#This Row],[9]]>0,(1+CNInflationTable[[#This Row],[Rate1]])^(1/12)*CNInflationTable[[#This Row],[9]],IF(EstLastUpdate>DATE(CNInflationTable[[#This Row],[Year]],10,1),0,(1+CNInflationTable[[#This Row],[Rate1]])^(1/12))) -> 1.404177496 | AR20: =IF(CNInflationTable[[#This Row],[10]]>0,(1+CNInflationTable[[#This Row],[Rate1]])^(1/12)*CNInflationTable[[#This Row],[10]],IF(EstLastUpdate>DATE(CNInflationTable[[#This Row],[Year]],11,1),0,(1+CNInflationTable[[#This Row],[Rate1]])^(1/12))) -> 1.407640577 | AS20: =IF(CNInflationTable[[#This Row],[11]]>0,(1+CNInflationTable[[#This Row],[Rate1]])^(1/12)*CNInflationTable[[#This Row],[11]],IF(EstLastUpdate>DATE(CNInflationTable[[#This Row],[Year]],12,1),0,(1+CNInflationTable[[#This Row],[Rate1]])^(1/12))) -> 1.411112198 | AU20: 2034 | AV20: 0.05 | AW20: =IF(OFFSET(UTInflationTable[[#This Row],[12]],-1,0)>0,(1+UTInflationTable[[#This Row],[Rate1]])^(1/12)*OFFSET(UTInflationTable[[#This Row],[12]],-1,0),IF(EstLastUpdate>DATE(UTInflationTable[[#This Row],[Year]],1,1),0,(1+UTInflationTable[[#This Row],[Rate1]])^(1/12))) -> 1.65110743 | AX20: =IF(UTInflationTable[[#This Row],[1]]>0,(1+UTInflationTable[[#This Row],[Rate1]])^(1/12)*UTInflationTable[[#This Row],[1]],IF(EstLastUpdate>DATE(UTInflationTable[[#This Row],[Year]],2,1),0,(1+UTInflationTable[[#This Row],[Rate1]])^(1/12))) -> 1.657834246 | AY20: =IF(UTInflationTable[[#This Row],[2]]>0,(1+UTInflationTable[[#This Row],[Rate1]])^(1/12)*UTInflationTable[[#This Row],[2]],IF(EstLastUpdate>DATE(UTInflationTable[[#This Row],[Year]],3,1),0,(1+UTInflationTable[[#This Row],[Rate1]])^(1/12))) -> 1.664588468 | AZ20: =IF(UTInflationTable[[#This Row],[3]]>0,(1+UTInflationTable[[#This Row],[Rate1]])^(1/12)*UTInflationTable[[#This Row],[3]],IF(EstLastUpdate>DATE(UTInflationTable[[#This Row],[Year]],4,1),0,(1+UTInflationTable[[#This Row],[Rate1]])^(1/12))) -> 1.671370208 | BA20: =IF(UTInflationTable[[#This Row],[4]]>0,(1+UTInflationTable[[#This Row],[Rate1]])^(1/12)*UTInflationTable[[#This Row],[4]],IF(EstLastUpdate>DATE(UTInflationTable[[#This Row],[Year]],5,1),0,(1+UTInflationTable[[#This Row],[Rate1]])^(1/12))) -> 1.678179577 | BB20: =IF(UTInflationTable[[#This Row],[5]]>0,(1+UTInflationTable[[#This Row],[Rate1]])^(1/12)*UTInflationTable[[#This Row],[5]],IF(EstLastUpdate>DATE(UTInflationTable[[#This Row],[Year]],6,1),0,(1+UTInflationTable[[#This Row],[Rate1]])^(1/12))) -> 1.685016688 | BC20: =IF(UTInflationTable[[#This Row],[6]]>0,(1+UTInflationTable[[#This Row],[Rate1]])^(1/12)*UTInflationTable[[#This Row],[6]],IF(EstLastUpdate>DATE(UTInflationTable[[#This Row],[Year]],7,1),0,(1+UTInflationTable[[#This Row],[Rate1]])^(1/12))) -> 1.691881655 | BD20: =IF(UTInflationTable[[#This Row],[7]]>0,(1+UTInflationTable[[#This Row],[Rate1]])^(1/12)*UTInflationTable[[#This Row],[7]],IF(EstLastUpdate>DATE(UTInflationTable[[#This Row],[Year]],8,1),0,(1+UTInflationTable[[#This Row],[Rate1]])^(1/12))) -> 1.69877459 | BE20: =IF(UTInflationTable[[#This Row],[8]]>0,(1+UTInflationTable[[#This Row],[Rate1]])^(1/12)*UTInflationTable[[#This Row],[8]],IF(EstLastUpdate>DATE(UTInflationTable[[#This Row],[Year]],9,1),0,(1+UTInflationTable[[#This Row],[Rate1]])^(1/12))) -> 1.705695608 | BF20: =IF(UTInflationTable[[#This Row],[9]]>0,(1+UTInflationTable[[#This Row],[Rate1]])^(1/12)*UTInflationTable[[#This Row],[9]],IF(EstLastUpdate>DATE(UTInflationTable[[#This Row],[Year]],10,1),0,(1+UTInflationTable[[#This Row],[Rate1]])^(1/12))) -> 1.712644823 | BG20: =IF(UTInflationTable[[#This Row],[10]]>0,(1+UTInflationTable[[#This Row],[Rate1]])^(1/12)*UTInflationTable[[#This Row],[10]],IF(EstLastUpdate>DATE(UTInflationTable[[#This Row],[Year]],11,1),0,(1+UTInflationTable[[#This Row],[Rate1]])^(1/12))) -> 1.71962235 | BH20: =IF(UTInflationTable[[#This Row],[11]]>0,(1+UTInflationTable[[#This Row],[Rate1]])^(1/12)*UTInflationTable[[#This Row],[11]],IF(EstLastUpdate>DATE(UTInflationTable[[#This Row],[Year]],12,1),0,(1+UTInflationTable[[#This Row],[Rate1]])^(1/12))) -> 1.726628304
B21: =OFFSET(PEInflationTable[[#This Row],[Year]],-1,0)+1 -> 2035 | C21: 0.03 | D21: =IF(OFFSET(PEInflationTable[[#This Row],[12]],-1,0)>0,(1+PEInflationTable[[#This Row],[Rate1]])^(1/12)*OFFSET(PEInflationTable[[#This Row],[12]],-1,0),IF(EstLastUpdate>DATE(PEInflationTable[[#This Row],[Year]],1,1),0,(1+PEInflationTable[[#This Row],[Rate1]])^(1/12))) -> 1.401120073 | E21: =IF(PEInflationTable[[#This Row],[1]]>0,(1+PEInflationTable[[#This Row],[Rate1]])^(1/12)*PEInflationTable[[#This Row],[1]],IF(EstLastUpdate>DATE(PEInflationTable[[#This Row],[Year]],2,1),0,(1+PEInflationTable[[#This Row],[Rate1]])^(1/12))) -> 1.404575613 | F21: =IF(PEInflationTable[[#This Row],[2]]>0,(1+PEInflationTable[[#This Row],[Rate1]])^(1/12)*PEInflationTable[[#This Row],[2]],IF(EstLastUpdate>DATE(PEInflationTable[[#This Row],[Year]],3,1),0,(1+PEInflationTable[[#This Row],[Rate1]])^(1/12))) -> 1.408039676 | G21: =IF(PEInflationTable[[#This Row],[3]]>0,(1+PEInflationTable[[#This Row],[Rate1]])^(1/12)*PEInflationTable[[#This Row],[3]],IF(EstLastUpdate>DATE(PEInflationTable[[#This Row],[Year]],4,1),0,(1+PEInflationTable[[#This Row],[Rate1]])^(1/12))) -> 1.411512281 | H21: =IF(PEInflationTable[[#This Row],[4]]>0,(1+PEInflationTable[[#This Row],[Rate1]])^(1/12)*PEInflationTable[[#This Row],[4]],IF(EstLastUpdate>DATE(PEInflationTable[[#This Row],[Year]],5,1),0,(1+PEInflationTable[[#This Row],[Rate1]])^(1/12))) -> 1.414993452 | I21: =IF(PEInflationTable[[#This Row],[5]]>0,(1+PEInflationTable[[#This Row],[Rate1]])^(1/12)*PEInflationTable[[#This Row],[5]],IF(EstLastUpdate>DATE(PEInflationTable[[#This Row],[Year]],6,1),0,(1+PEInflationTable[[#This Row],[Rate1]])^(1/12))) -> 1.418483207 | J21: =IF(PEInflationTable[[#This Row],[6]]>0,(1+PEInflationTable[[#This Row],[Rate1]])^(1/12)*PEInflationTable[[#This Row],[6]],IF(EstLastUpdate>DATE(PEInflationTable[[#This Row],[Year]],7,1),0,(1+PEInflationTable[[#This Row],[Rate1]])^(1/12))) -> 1.421981569 | K21: =IF(PEInflationTable[[#This Row],[7]]>0,(1+PEInflationTable[[#This Row],[Rate1]])^(1/12)*PEInflationTable[[#This Row],[7]],IF(EstLastUpdate>DATE(PEInflationTable[[#This Row],[Year]],8,1),0,(1+PEInflationTable[[#This Row],[Rate1]])^(1/12))) -> 1.425488559 | L21: =IF(PEInflationTable[[#This Row],[8]]>0,(1+PEInflationTable[[#This Row],[Rate1]])^(1/12)*PEInflationTable[[#This Row],[8]],IF(EstLastUpdate>DATE(PEInflationTable[[#This Row],[Year]],9,1),0,(1+PEInflationTable[[#This Row],[Rate1]])^(1/12))) -> 1.429004199 | M21: =IF(PEInflationTable[[#This Row],[9]]>0,(1+PEInflationTable[[#This Row],[Rate1]])^(1/12)*PEInflationTable[[#This Row],[9]],IF(EstLastUpdate>DATE(PEInflationTable[[#This Row],[Year]],10,1),0,(1+PEInflationTable[[#This Row],[Rate1]])^(1/12))) -> 1.432528509 | N21: =IF(PEInflationTable[[#This Row],[10]]>0,(1+PEInflationTable[[#This Row],[Rate1]])^(1/12)*PEInflationTable[[#This Row],[10]],IF(EstLastUpdate>DATE(PEInflationTable[[#This Row],[Year]],11,1),0,(1+PEInflationTable[[#This Row],[Rate1]])^(1/12))) -> 1.43606151 | O21: =IF(PEInflationTable[[#This Row],[11]]>0,(1+PEInflationTable[[#This Row],[Rate1]])^(1/12)*PEInflationTable[[#This Row],[11]],IF(EstLastUpdate>DATE(PEInflationTable[[#This Row],[Year]],12,1),0,(1+PEInflationTable[[#This Row],[Rate1]])^(1/12))) -> 1.439603226 | Q21: 2035 | R21: 0.05 | S21: =IF(OFFSET(ROWInflationTable[[#This Row],[12]],-1,0)>0,(1+ROWInflationTable[[#This Row],[Rate1]])^(1/12)*OFFSET(ROWInflationTable[[#This Row],[12]],-1,0),IF(EstLastUpdate>DATE(ROWInflationTable[[#This Row],[Year]],1,1),0,(1+ROWInflationTable[[#This Row],[Rate1]])^(1/12))) -> 1.700952183 | T21: =IF(ROWInflationTable[[#This Row],[1]]>0,(1+ROWInflationTable[[#This Row],[Rate1]])^(1/12)*ROWInflationTable[[#This Row],[1]],IF(EstLastUpdate>DATE(ROWInflationTable[[#This Row],[Year]],2,1),0,(1+ROWInflationTable[[#This Row],[Rate1]])^(1/12))) -> 1.707882073 | U21: =IF(ROWInflationTable[[#This Row],[2]]>0,(1+ROWInflationTable[[#This Row],[Rate1]])^(1/12)*ROWInflationTable[[#This Row],[2]],IF(EstLastUpdate>DATE(ROWInflationTable[[#This Row],[Year]],3,1),0,(1+ROWInflationTable[[#This Row],[Rate1]])^(1/12))) -> 1.714840196 | V21: =IF(ROWInflationTable[[#This Row],[3]]>0,(1+ROWInflationTable[[#This Row],[Rate1]])^(1/12)*ROWInflationTable[[#This Row],[3]],IF(EstLastUpdate>DATE(ROWInflationTable[[#This Row],[Year]],4,1),0,(1+ROWInflationTable[[#This Row],[Rate1]])^(1/12))) -> 1.721826667 | W21: =IF(ROWInflationTable[[#This Row],[4]]>0,(1+ROWInflationTable[[#This Row],[Rate1]])^(1/12)*ROWInflationTable[[#This Row],[4]],IF(EstLastUpdate>DATE(ROWInflationTable[[#This Row],[Year]],5,1),0,(1+ROWInflationTable[[#This Row],[Rate1]])^(1/12))) -> 1.728841602 | X21: =IF(ROWInflationTable[[#This Row],[5]]>0,(1+ROWInflationTable[[#This Row],[Rate1]])^(1/12)*ROWInflationTable[[#This Row],[5]],IF(EstLastUpdate>DATE(ROWInflationTable[[#This Row],[Year]],6,1),0,(1+ROWInflationTable[[#This Row],[Rate1]])^(1/12))) -> 1.735885117 | Y21: =IF(ROWInflationTable[[#This Row],[6]]>0,(1+ROWInflationTable[[#This Row],[Rate1]])^(1/12)*ROWInflationTable[[#This Row],[6]],IF(EstLastUpdate>DATE(ROWInflationTable[[#This Row],[Year]],7,1),0,(1+ROWInflationTable[[#This Row],[Rate1]])^(1/12))) -> 1.742957327 | Z21: =IF(ROWInflationTable[[#This Row],[7]]>0,(1+ROWInflationTable[[#This Row],[Rate1]])^(1/12)*ROWInflationTable[[#This Row],[7]],IF(EstLastUpdate>DATE(ROWInflationTable[[#This Row],[Year]],8,1),0,(1+ROWInflationTable[[#This Row],[Rate1]])^(1/12))) -> 1.750058351 | AA21: =IF(ROWInflationTable[[#This Row],[8]]>0,(1+ROWInflationTable[[#This Row],[Rate1]])^(1/12)*ROWInflationTable[[#This Row],[8]],IF(EstLastUpdate>DATE(ROWInflationTable[[#This Row],[Year]],9,1),0,(1+ROWInflationTable[[#This Row],[Rate1]])^(1/12))) -> 1.757188306 | AB21: =IF(ROWInflationTable[[#This Row],[9]]>0,(1+ROWInflationTable[[#This Row],[Rate1]])^(1/12)*ROWInflationTable[[#This Row],[9]],IF(EstLastUpdate>DATE(ROWInflationTable[[#This Row],[Year]],10,1),0,(1+ROWInflationTable[[#This Row],[Rate1]])^(1/12))) -> 1.764347308 | AC21: =IF(ROWInflationTable[[#This Row],[10]]>0,(1+ROWInflationTable[[#This Row],[Rate1]])^(1/12)*ROWInflationTable[[#This Row],[10]],IF(EstLastUpdate>DATE(ROWInflationTable[[#This Row],[Year]],11,1),0,(1+ROWInflationTable[[#This Row],[Rate1]])^(1/12))) -> 1.771535478 | AD21: =IF(ROWInflationTable[[#This Row],[11]]>0,(1+ROWInflationTable[[#This Row],[Rate1]])^(1/12)*ROWInflationTable[[#This Row],[11]],IF(EstLastUpdate>DATE(ROWInflationTable[[#This Row],[Year]],12,1),0,(1+ROWInflationTable[[#This Row],[Rate1]])^(1/12))) -> 1.778752932 | AF21: 2035 | AG21: 0.03 | AH21: =IF(OFFSET(CNInflationTable[[#This Row],[12]],-1,0)>0,(1+CNInflationTable[[#This Row],[Rate1]])^(1/12)*OFFSET(CNInflationTable[[#This Row],[12]],-1,0),IF(EstLastUpdate>DATE(CNInflationTable[[#This Row],[Year]],1,1),0,(1+CNInflationTable[[#This Row],[Rate1]])^(1/12))) -> 1.414592382 | AI21: =IF(CNInflationTable[[#This Row],[1]]>0,(1+CNInflationTable[[#This Row],[Rate1]])^(1/12)*CNInflationTable[[#This Row],[1]],IF(EstLastUpdate>DATE(CNInflationTable[[#This Row],[Year]],2,1),0,(1+CNInflationTable[[#This Row],[Rate1]])^(1/12))) -> 1.418081148 | AJ21: =IF(CNInflationTable[[#This Row],[2]]>0,(1+CNInflationTable[[#This Row],[Rate1]])^(1/12)*CNInflationTable[[#This Row],[2]],IF(EstLastUpdate>DATE(CNInflationTable[[#This Row],[Year]],3,1),0,(1+CNInflationTable[[#This Row],[Rate1]])^(1/12))) -> 1.421578519 | AK21: =IF(CNInflationTable[[#This Row],[3]]>0,(1+CNInflationTable[[#This Row],[Rate1]])^(1/12)*CNInflationTable[[#This Row],[3]],IF(EstLastUpdate>DATE(CNInflationTable[[#This Row],[Year]],4,1),0,(1+CNInflationTable[[#This Row],[Rate1]])^(1/12))) -> 1.425084515 | AL21: =IF(CNInflationTable[[#This Row],[4]]>0,(1+CNInflationTable[[#This Row],[Rate1]])^(1/12)*CNInflationTable[[#This Row],[4]],IF(EstLastUpdate>DATE(CNInflationTable[[#This Row],[Year]],5,1),0,(1+CNInflationTable[[#This Row],[Rate1]])^(1/12))) -> 1.428599158 | AM21: =IF(CNInflationTable[[#This Row],[5]]>0,(1+CNInflationTable[[#This Row],[Rate1]])^(1/12)*CNInflationTable[[#This Row],[5]],IF(EstLastUpdate>DATE(CNInflationTable[[#This Row],[Year]],6,1),0,(1+CNInflationTable[[#This Row],[Rate1]])^(1/12))) -> 1.432122469 | AN21: =IF(CNInflationTable[[#This Row],[6]]>0,(1+CNInflationTable[[#This Row],[Rate1]])^(1/12)*CNInflationTable[[#This Row],[6]],IF(EstLastUpdate>DATE(CNInflationTable[[#This Row],[Year]],7,1),0,(1+CNInflationTable[[#This Row],[Rate1]])^(1/12))) -> 1.435654469 | AO21: =IF(CNInflationTable[[#This Row],[7]]>0,(1+CNInflationTable[[#This Row],[Rate1]])^(1/12)*CNInflationTable[[#This Row],[7]],IF(EstLastUpdate>DATE(CNInflationTable[[#This Row],[Year]],8,1),0,(1+CNInflationTable[[#This Row],[Rate1]])^(1/12))) -> 1.43919518 | AP21: =IF(CNInflationTable[[#This Row],[8]]>0,(1+CNInflationTable[[#This Row],[Rate1]])^(1/12)*CNInflationTable[[#This Row],[8]],IF(EstLastUpdate>DATE(CNInflationTable[[#This Row],[Year]],9,1),0,(1+CNInflationTable[[#This Row],[Rate1]])^(1/12))) -> 1.442744624 | AQ21: =IF(CNInflationTable[[#This Row],[9]]>0,(1+CNInflationTable[[#This Row],[Rate1]])^(1/12)*CNInflationTable[[#This Row],[9]],IF(EstLastUpdate>DATE(CNInflationTable[[#This Row],[Year]],10,1),0,(1+CNInflationTable[[#This Row],[Rate1]])^(1/12))) -> 1.446302821 | AR21: =IF(CNInflationTable[[#This Row],[10]]>0,(1+CNInflationTable[[#This Row],[Rate1]])^(1/12)*CNInflationTable[[#This Row],[10]],IF(EstLastUpdate>DATE(CNInflationTable[[#This Row],[Year]],11,1),0,(1+CNInflationTable[[#This Row],[Rate1]])^(1/12))) -> 1.449869794 | AS21: =IF(CNInflationTable[[#This Row],[11]]>0,(1+CNInflationTable[[#This Row],[Rate1]])^(1/12)*CNInflationTable[[#This Row],[11]],IF(EstLastUpdate>DATE(CNInflationTable[[#This Row],[Year]],12,1),0,(1+CNInflationTable[[#This Row],[Rate1]])^(1/12))) -> 1.453445564 | AU21: 2035 | AV21: 0.05 | AW21: =IF(OFFSET(UTInflationTable[[#This Row],[12]],-1,0)>0,(1+UTInflationTable[[#This Row],[Rate1]])^(1/12)*OFFSET(UTInflationTable[[#This Row],[12]],-1,0),IF(EstLastUpdate>DATE(UTInflationTable[[#This Row],[Year]],1,1),0,(1+UTInflationTable[[#This Row],[Rate1]])^(1/12))) -> 1.733662802 | AX21: =IF(UTInflationTable[[#This Row],[1]]>0,(1+UTInflationTable[[#This Row],[Rate1]])^(1/12)*UTInflationTable[[#This Row],[1]],IF(EstLastUpdate>DATE(UTInflationTable[[#This Row],[Year]],2,1),0,(1+UTInflationTable[[#This Row],[Rate1]])^(1/12))) -> 1.740725959 | AY21: =IF(UTInflationTable[[#This Row],[2]]>0,(1+UTInflationTable[[#This Row],[Rate1]])^(1/12)*UTInflationTable[[#This Row],[2]],IF(EstLastUpdate>DATE(UTInflationTable[[#This Row],[Year]],3,1),0,(1+UTInflationTable[[#This Row],[Rate1]])^(1/12))) -> 1.747817892 | AZ21: =IF(UTInflationTable[[#This Row],[3]]>0,(1+UTInflationTable[[#This Row],[Rate1]])^(1/12)*UTInflationTable[[#This Row],[3]],IF(EstLastUpdate>DATE(UTInflationTable[[#This Row],[Year]],4,1),0,(1+UTInflationTable[[#This Row],[Rate1]])^(1/12))) -> 1.754938718 | BA21: =IF(UTInflationTable[[#This Row],[4]]>0,(1+UTInflationTable[[#This Row],[Rate1]])^(1/12)*UTInflationTable[[#This Row],[4]],IF(EstLastUpdate>DATE(UTInflationTable[[#This Row],[Year]],5,1),0,(1+UTInflationTable[[#This Row],[Rate1]])^(1/12))) -> 1.762088556 | BB21: =IF(UTInflationTable[[#This Row],[5]]>0,(1+UTInflationTable[[#This Row],[Rate1]])^(1/12)*UTInflationTable[[#This Row],[5]],IF(EstLastUpdate>DATE(UTInflationTable[[#This Row],[Year]],6,1),0,(1+UTInflationTable[[#This Row],[Rate1]])^(1/12))) -> 1.769267523 | BC21: =IF(UTInflationTable[[#This Row],[6]]>0,(1+UTInflationTable[[#This Row],[Rate1]])^(1/12)*UTInflationTable[[#This Row],[6]],IF(EstLastUpdate>DATE(UTInflationTable[[#This Row],[Year]],7,1),0,(1+UTInflationTable[[#This Row],[Rate1]])^(1/12))) -> 1.776475738 | BD21: =IF(UTInflationTable[[#This Row],[7]]>0,(1+UTInflationTable[[#This Row],[Rate1]])^(1/12)*UTInflationTable[[#This Row],[7]],IF(EstLastUpdate>DATE(UTInflationTable[[#This Row],[Year]],8,1),0,(1+UTInflationTable[[#This Row],[Rate1]])^(1/12))) -> 1.78371332 | BE21: =IF(UTInflationTable[[#This Row],[8]]>0,(1+UTInflationTable[[#This Row],[Rate1]])^(1/12)*UTInflationTable[[#This Row],[8]],IF(EstLastUpdate>DATE(UTInflationTable[[#This Row],[Year]],9,1),0,(1+UTInflationTable[[#This Row],[Rate1]])^(1/12))) -> 1.790980388 | BF21: =IF(UTInflationTable[[#This Row],[9]]>0,(1+UTInflationTable[[#This Row],[Rate1]])^(1/12)*UTInflationTable[[#This Row],[9]],IF(EstLastUpdate>DATE(UTInflationTable[[#This Row],[Year]],10,1),0,(1+UTInflationTable[[#This Row],[Rate1]])^(1/12))) -> 1.798277064 | BG21: =IF(UTInflationTable[[#This Row],[10]]>0,(1+UTInflationTable[[#This Row],[Rate1]])^(1/12)*UTInflationTable[[#This Row],[10]],IF(EstLastUpdate>DATE(UTInflationTable[[#This Row],[Year]],11,1),0,(1+UTInflationTable[[#This Row],[Rate1]])^(1/12))) -> 1.805603468 | BH21: =IF(UTInflationTable[[#This Row],[11]]>0,(1+UTInflationTable[[#This Row],[Rate1]])^(1/12)*UTInflationTable[[#This Row],[11]],IF(EstLastUpdate>DATE(UTInflationTable[[#This Row],[Year]],12,1),0,(1+UTInflationTable[[#This Row],[Rate1]])^(1/12))) -> 1.81295972
B22: =OFFSET(PEInflationTable[[#This Row],[Year]],-1,0)+1 -> 2036 | C22: 0.03 | D22: =IF(OFFSET(PEInflationTable[[#This Row],[12]],-1,0)>0,(1+PEInflationTable[[#This Row],[Rate1]])^(1/12)*OFFSET(PEInflationTable[[#This Row],[12]],-1,0),IF(EstLastUpdate>DATE(PEInflationTable[[#This Row],[Year]],1,1),0,(1+PEInflationTable[[#This Row],[Rate1]])^(1/12))) -> 1.443153675 | E22: =IF(PEInflationTable[[#This Row],[1]]>0,(1+PEInflationTable[[#This Row],[Rate1]])^(1/12)*PEInflationTable[[#This Row],[1]],IF(EstLastUpdate>DATE(PEInflationTable[[#This Row],[Year]],2,1),0,(1+PEInflationTable[[#This Row],[Rate1]])^(1/12))) -> 1.446712882 | F22: =IF(PEInflationTable[[#This Row],[2]]>0,(1+PEInflationTable[[#This Row],[Rate1]])^(1/12)*PEInflationTable[[#This Row],[2]],IF(EstLastUpdate>DATE(PEInflationTable[[#This Row],[Year]],3,1),0,(1+PEInflationTable[[#This Row],[Rate1]])^(1/12))) -> 1.450280866 | G22: =IF(PEInflationTable[[#This Row],[3]]>0,(1+PEInflationTable[[#This Row],[Rate1]])^(1/12)*PEInflationTable[[#This Row],[3]],IF(EstLastUpdate>DATE(PEInflationTable[[#This Row],[Year]],4,1),0,(1+PEInflationTable[[#This Row],[Rate1]])^(1/12))) -> 1.45385765 | H22: =IF(PEInflationTable[[#This Row],[4]]>0,(1+PEInflationTable[[#This Row],[Rate1]])^(1/12)*PEInflationTable[[#This Row],[4]],IF(EstLastUpdate>DATE(PEInflationTable[[#This Row],[Year]],5,1),0,(1+PEInflationTable[[#This Row],[Rate1]])^(1/12))) -> 1.457443255 | I22: =IF(PEInflationTable[[#This Row],[5]]>0,(1+PEInflationTable[[#This Row],[Rate1]])^(1/12)*PEInflationTable[[#This Row],[5]],IF(EstLastUpdate>DATE(PEInflationTable[[#This Row],[Year]],6,1),0,(1+PEInflationTable[[#This Row],[Rate1]])^(1/12))) -> 1.461037703 | J22: =IF(PEInflationTable[[#This Row],[6]]>0,(1+PEInflationTable[[#This Row],[Rate1]])^(1/12)*PEInflationTable[[#This Row],[6]],IF(EstLastUpdate>DATE(PEInflationTable[[#This Row],[Year]],7,1),0,(1+PEInflationTable[[#This Row],[Rate1]])^(1/12))) -> 1.464641016 | K22: =IF(PEInflationTable[[#This Row],[7]]>0,(1+PEInflationTable[[#This Row],[Rate1]])^(1/12)*PEInflationTable[[#This Row],[7]],IF(EstLastUpdate>DATE(PEInflationTable[[#This Row],[Year]],8,1),0,(1+PEInflationTable[[#This Row],[Rate1]])^(1/12))) -> 1.468253216 | L22: =IF(PEInflationTable[[#This Row],[8]]>0,(1+PEInflationTable[[#This Row],[Rate1]])^(1/12)*PEInflationTable[[#This Row],[8]],IF(EstLastUpdate>DATE(PEInflationTable[[#This Row],[Year]],9,1),0,(1+PEInflationTable[[#This Row],[Rate1]])^(1/12))) -> 1.471874325 | M22: =IF(PEInflationTable[[#This Row],[9]]>0,(1+PEInflationTable[[#This Row],[Rate1]])^(1/12)*PEInflationTable[[#This Row],[9]],IF(EstLastUpdate>DATE(PEInflationTable[[#This Row],[Year]],10,1),0,(1+PEInflationTable[[#This Row],[Rate1]])^(1/12))) -> 1.475504364 | N22: =IF(PEInflationTable[[#This Row],[10]]>0,(1+PEInflationTable[[#This Row],[Rate1]])^(1/12)*PEInflationTable[[#This Row],[10]],IF(EstLastUpdate>DATE(PEInflationTable[[#This Row],[Year]],11,1),0,(1+PEInflationTable[[#This Row],[Rate1]])^(1/12))) -> 1.479143356 | O22: =IF(PEInflationTable[[#This Row],[11]]>0,(1+PEInflationTable[[#This Row],[Rate1]])^(1/12)*PEInflationTable[[#This Row],[11]],IF(EstLastUpdate>DATE(PEInflationTable[[#This Row],[Year]],12,1),0,(1+PEInflationTable[[#This Row],[Rate1]])^(1/12))) -> 1.482791322 | Q22: 2036 | R22: 0.05 | S22: =IF(OFFSET(ROWInflationTable[[#This Row],[12]],-1,0)>0,(1+ROWInflationTable[[#This Row],[Rate1]])^(1/12)*OFFSET(ROWInflationTable[[#This Row],[12]],-1,0),IF(EstLastUpdate>DATE(ROWInflationTable[[#This Row],[Year]],1,1),0,(1+ROWInflationTable[[#This Row],[Rate1]])^(1/12))) -> 1.785999792 | T22: =IF(ROWInflationTable[[#This Row],[1]]>0,(1+ROWInflationTable[[#This Row],[Rate1]])^(1/12)*ROWInflationTable[[#This Row],[1]],IF(EstLastUpdate>DATE(ROWInflationTable[[#This Row],[Year]],2,1),0,(1+ROWInflationTable[[#This Row],[Rate1]])^(1/12))) -> 1.793276176 | U22: =IF(ROWInflationTable[[#This Row],[2]]>0,(1+ROWInflationTable[[#This Row],[Rate1]])^(1/12)*ROWInflationTable[[#This Row],[2]],IF(EstLastUpdate>DATE(ROWInflationTable[[#This Row],[Year]],3,1),0,(1+ROWInflationTable[[#This Row],[Rate1]])^(1/12))) -> 1.800582205 | V22: =IF(ROWInflationTable[[#This Row],[3]]>0,(1+ROWInflationTable[[#This Row],[Rate1]])^(1/12)*ROWInflationTable[[#This Row],[3]],IF(EstLastUpdate>DATE(ROWInflationTable[[#This Row],[Year]],4,1),0,(1+ROWInflationTable[[#This Row],[Rate1]])^(1/12))) -> 1.807918 | W22: =IF(ROWInflationTable[[#This Row],[4]]>0,(1+ROWInflationTable[[#This Row],[Rate1]])^(1/12)*ROWInflationTable[[#This Row],[4]],IF(EstLastUpdate>DATE(ROWInflationTable[[#This Row],[Year]],5,1),0,(1+ROWInflationTable[[#This Row],[Rate1]])^(1/12))) -> 1.815283682 | X22: =IF(ROWInflationTable[[#This Row],[5]]>0,(1+ROWInflationTable[[#This Row],[Rate1]])^(1/12)*ROWInflationTable[[#This Row],[5]],IF(EstLastUpdate>DATE(ROWInflationTable[[#This Row],[Year]],6,1),0,(1+ROWInflationTable[[#This Row],[Rate1]])^(1/12))) -> 1.822679372 | Y22: =IF(ROWInflationTable[[#This Row],[6]]>0,(1+ROWInflationTable[[#This Row],[Rate1]])^(1/12)*ROWInflationTable[[#This Row],[6]],IF(EstLastUpdate>DATE(ROWInflationTable[[#This Row],[Year]],7,1),0,(1+ROWInflationTable[[#This Row],[Rate1]])^(1/12))) -> 1.830105194 | Z22: =IF(ROWInflationTable[[#This Row],[7]]>0,(1+ROWInflationTable[[#This Row],[Rate1]])^(1/12)*ROWInflationTable[[#This Row],[7]],IF(EstLastUpdate>DATE(ROWInflationTable[[#This Row],[Year]],8,1),0,(1+ROWInflationTable[[#This Row],[Rate1]])^(1/12))) -> 1.837561269 | AA22: =IF(ROWInflationTable[[#This Row],[8]]>0,(1+ROWInflationTable[[#This Row],[Rate1]])^(1/12)*ROWInflationTable[[#This Row],[8]],IF(EstLastUpdate>DATE(ROWInflationTable[[#This Row],[Year]],9,1),0,(1+ROWInflationTable[[#This Row],[Rate1]])^(1/12))) -> 1.845047721 | AB22: =IF(ROWInflationTable[[#This Row],[9]]>0,(1+ROWInflationTable[[#This Row],[Rate1]])^(1/12)*ROWInflationTable[[#This Row],[9]],IF(EstLastUpdate>DATE(ROWInflationTable[[#This Row],[Year]],10,1),0,(1+ROWInflationTable[[#This Row],[Rate1]])^(1/12))) -> 1.852564674 | AC22: =IF(ROWInflationTable[[#This Row],[10]]>0,(1+ROWInflationTable[[#This Row],[Rate1]])^(1/12)*ROWInflationTable[[#This Row],[10]],IF(EstLastUpdate>DATE(ROWInflationTable[[#This Row],[Year]],11,1),0,(1+ROWInflationTable[[#This Row],[Rate1]])^(1/12))) -> 1.860112251 | AD22: =IF(ROWInflationTable[[#This Row],[11]]>0,(1+ROWInflationTable[[#This Row],[Rate1]])^(1/12)*ROWInflationTable[[#This Row],[11]],IF(EstLastUpdate>DATE(ROWInflationTable[[#This Row],[Year]],12,1),0,(1+ROWInflationTable[[#This Row],[Rate1]])^(1/12))) -> 1.867690579 | AF22: 2036 | AG22: 0.03 | AH22: =IF(OFFSET(CNInflationTable[[#This Row],[12]],-1,0)>0,(1+CNInflationTable[[#This Row],[Rate1]])^(1/12)*OFFSET(CNInflationTable[[#This Row],[12]],-1,0),IF(EstLastUpdate>DATE(CNInflationTable[[#This Row],[Year]],1,1),0,(1+CNInflationTable[[#This Row],[Rate1]])^(1/12))) -> 1.457030153 | AI22: =IF(CNInflationTable[[#This Row],[1]]>0,(1+CNInflationTable[[#This Row],[Rate1]])^(1/12)*CNInflationTable[[#This Row],[1]],IF(EstLastUpdate>DATE(CNInflationTable[[#This Row],[Year]],2,1),0,(1+CNInflationTable[[#This Row],[Rate1]])^(1/12))) -> 1.460623583 | AJ22: =IF(CNInflationTable[[#This Row],[2]]>0,(1+CNInflationTable[[#This Row],[Rate1]])^(1/12)*CNInflationTable[[#This Row],[2]],IF(EstLastUpdate>DATE(CNInflationTable[[#This Row],[Year]],3,1),0,(1+CNInflationTable[[#This Row],[Rate1]])^(1/12))) -> 1.464225874 | AK22: =IF(CNInflationTable[[#This Row],[3]]>0,(1+CNInflationTable[[#This Row],[Rate1]])^(1/12)*CNInflationTable[[#This Row],[3]],IF(EstLastUpdate>DATE(CNInflationTable[[#This Row],[Year]],4,1),0,(1+CNInflationTable[[#This Row],[Rate1]])^(1/12))) -> 1.46783705 | AL22: =IF(CNInflationTable[[#This Row],[4]]>0,(1+CNInflationTable[[#This Row],[Rate1]])^(1/12)*CNInflationTable[[#This Row],[4]],IF(EstLastUpdate>DATE(CNInflationTable[[#This Row],[Year]],5,1),0,(1+CNInflationTable[[#This Row],[Rate1]])^(1/12))) -> 1.471457132 | AM22: =IF(CNInflationTable[[#This Row],[5]]>0,(1+CNInflationTable[[#This Row],[Rate1]])^(1/12)*CNInflationTable[[#This Row],[5]],IF(EstLastUpdate>DATE(CNInflationTable[[#This Row],[Year]],6,1),0,(1+CNInflationTable[[#This Row],[Rate1]])^(1/12))) -> 1.475086143 | AN22: =IF(CNInflationTable[[#This Row],[6]]>0,(1+CNInflationTable[[#This Row],[Rate1]])^(1/12)*CNInflationTable[[#This Row],[6]],IF(EstLastUpdate>DATE(CNInflationTable[[#This Row],[Year]],7,1),0,(1+CNInflationTable[[#This Row],[Rate1]])^(1/12))) -> 1.478724103 | AO22: =IF(CNInflationTable[[#This Row],[7]]>0,(1+CNInflationTable[[#This Row],[Rate1]])^(1/12)*CNInflationTable[[#This Row],[7]],IF(EstLastUpdate>DATE(CNInflationTable[[#This Row],[Year]],8,1),0,(1+CNInflationTable[[#This Row],[Rate1]])^(1/12))) -> 1.482371036 | AP22: =IF(CNInflationTable[[#This Row],[8]]>0,(1+CNInflationTable[[#This Row],[Rate1]])^(1/12)*CNInflationTable[[#This Row],[8]],IF(EstLastUpdate>DATE(CNInflationTable[[#This Row],[Year]],9,1),0,(1+CNInflationTable[[#This Row],[Rate1]])^(1/12))) -> 1.486026963 | AQ22: =IF(CNInflationTable[[#This Row],[9]]>0,(1+CNInflationTable[[#This Row],[Rate1]])^(1/12)*CNInflationTable[[#This Row],[9]],IF(EstLastUpdate>DATE(CNInflationTable[[#This Row],[Year]],10,1),0,(1+CNInflationTable[[#This Row],[Rate1]])^(1/12))) -> 1.489691906 | AR22: =IF(CNInflationTable[[#This Row],[10]]>0,(1+CNInflationTable[[#This Row],[Rate1]])^(1/12)*CNInflationTable[[#This Row],[10]],IF(EstLastUpdate>DATE(CNInflationTable[[#This Row],[Year]],11,1),0,(1+CNInflationTable[[#This Row],[Rate1]])^(1/12))) -> 1.493365888 | AS22: =IF(CNInflationTable[[#This Row],[11]]>0,(1+CNInflationTable[[#This Row],[Rate1]])^(1/12)*CNInflationTable[[#This Row],[11]],IF(EstLastUpdate>DATE(CNInflationTable[[#This Row],[Year]],12,1),0,(1+CNInflationTable[[#This Row],[Rate1]])^(1/12))) -> 1.497048931 | AU22: 2036 | AV22: 0.05 | AW22: =IF(OFFSET(UTInflationTable[[#This Row],[12]],-1,0)>0,(1+UTInflationTable[[#This Row],[Rate1]])^(1/12)*OFFSET(UTInflationTable[[#This Row],[12]],-1,0),IF(EstLastUpdate>DATE(UTInflationTable[[#This Row],[Year]],1,1),0,(1+UTInflationTable[[#This Row],[Rate1]])^(1/12))) -> 1.820345942 | AX22: =IF(UTInflationTable[[#This Row],[1]]>0,(1+UTInflationTable[[#This Row],[Rate1]])^(1/12)*UTInflationTable[[#This Row],[1]],IF(EstLastUpdate>DATE(UTInflationTable[[#This Row],[Year]],2,1),0,(1+UTInflationTable[[#This Row],[Rate1]])^(1/12))) -> 1.827762257 | AY22: =IF(UTInflationTable[[#This Row],[2]]>0,(1+UTInflationTable[[#This Row],[Rate1]])^(1/12)*UTInflationTable[[#This Row],[2]],IF(EstLastUpdate>DATE(UTInflationTable[[#This Row],[Year]],3,1),0,(1+UTInflationTable[[#This Row],[Rate1]])^(1/12))) -> 1.835208786 | AZ22: =IF(UTInflationTable[[#This Row],[3]]>0,(1+UTInflationTable[[#This Row],[Rate1]])^(1/12)*UTInflationTable[[#This Row],[3]],IF(EstLastUpdate>DATE(UTInflationTable[[#This Row],[Year]],4,1),0,(1+UTInflationTable[[#This Row],[Rate1]])^(1/12))) -> 1.842685654 | BA22: =IF(UTInflationTable[[#This Row],[4]]>0,(1+UTInflationTable[[#This Row],[Rate1]])^(1/12)*UTInflationTable[[#This Row],[4]],IF(EstLastUpdate>DATE(UTInflationTable[[#This Row],[Year]],5,1),0,(1+UTInflationTable[[#This Row],[Rate1]])^(1/12))) -> 1.850192984 | BB22: =IF(UTInflationTable[[#This Row],[5]]>0,(1+UTInflationTable[[#This Row],[Rate1]])^(1/12)*UTInflationTable[[#This Row],[5]],IF(EstLastUpdate>DATE(UTInflationTable[[#This Row],[Year]],6,1),0,(1+UTInflationTable[[#This Row],[Rate1]])^(1/12))) -> 1.857730899 | BC22: =IF(UTInflationTable[[#This Row],[6]]>0,(1+UTInflationTable[[#This Row],[Rate1]])^(1/12)*UTInflationTable[[#This Row],[6]],IF(EstLastUpdate>DATE(UTInflationTable[[#This Row],[Year]],7,1),0,(1+UTInflationTable[[#This Row],[Rate1]])^(1/12))) -> 1.865299524 | BD22: =IF(UTInflationTable[[#This Row],[7]]>0,(1+UTInflationTable[[#This Row],[Rate1]])^(1/12)*UTInflationTable[[#This Row],[7]],IF(EstLastUpdate>DATE(UTInflationTable[[#This Row],[Year]],8,1),0,(1+UTInflationTable[[#This Row],[Rate1]])^(1/12))) -> 1.872898986 | BE22: =IF(UTInflationTable[[#This Row],[8]]>0,(1+UTInflationTable[[#This Row],[Rate1]])^(1/12)*UTInflationTable[[#This Row],[8]],IF(EstLastUpdate>DATE(UTInflationTable[[#This Row],[Year]],9,1),0,(1+UTInflationTable[[#This Row],[Rate1]])^(1/12))) -> 1.880529408 | BF22: =IF(UTInflationTable[[#This Row],[9]]>0,(1+UTInflationTable[[#This Row],[Rate1]])^(1/12)*UTInflationTable[[#This Row],[9]],IF(EstLastUpdate>DATE(UTInflationTable[[#This Row],[Year]],10,1),0,(1+UTInflationTable[[#This Row],[Rate1]])^(1/12))) -> 1.888190917 | BG22: =IF(UTInflationTable[[#This Row],[10]]>0,(1+UTInflationTable[[#This Row],[Rate1]])^(1/12)*UTInflationTable[[#This Row],[10]],IF(EstLastUpdate>DATE(UTInflationTable[[#This Row],[Year]],11,1),0,(1+UTInflationTable[[#This Row],[Rate1]])^(1/12))) -> 1.895883641 | BH22: =IF(UTInflationTable[[#This Row],[11]]>0,(1+UTInflationTable[[#This Row],[Rate1]])^(1/12)*UTInflationTable[[#This Row],[11]],IF(EstLastUpdate>DATE(UTInflationTable[[#This Row],[Year]],12,1),0,(1+UTInflationTable[[#This Row],[Rate1]])^(1/12))) -> 1.903607706
B23: =OFFSET(PEInflationTable[[#This Row],[Year]],-1,0)+1 -> 2037 | C23: 0.03 | D23: =IF(OFFSET(PEInflationTable[[#This Row],[12]],-1,0)>0,(1+PEInflationTable[[#This Row],[Rate1]])^(1/12)*OFFSET(PEInflationTable[[#This Row],[12]],-1,0),IF(EstLastUpdate>DATE(PEInflationTable[[#This Row],[Year]],1,1),0,(1+PEInflationTable[[#This Row],[Rate1]])^(1/12))) -> 1.486448286 | E23: =IF(PEInflationTable[[#This Row],[1]]>0,(1+PEInflationTable[[#This Row],[Rate1]])^(1/12)*PEInflationTable[[#This Row],[1]],IF(EstLastUpdate>DATE(PEInflationTable[[#This Row],[Year]],2,1),0,(1+PEInflationTable[[#This Row],[Rate1]])^(1/12))) -> 1.490114268 | F23: =IF(PEInflationTable[[#This Row],[2]]>0,(1+PEInflationTable[[#This Row],[Rate1]])^(1/12)*PEInflationTable[[#This Row],[2]],IF(EstLastUpdate>DATE(PEInflationTable[[#This Row],[Year]],3,1),0,(1+PEInflationTable[[#This Row],[Rate1]])^(1/12))) -> 1.493789292 | G23: =IF(PEInflationTable[[#This Row],[3]]>0,(1+PEInflationTable[[#This Row],[Rate1]])^(1/12)*PEInflationTable[[#This Row],[3]],IF(EstLastUpdate>DATE(PEInflationTable[[#This Row],[Year]],4,1),0,(1+PEInflationTable[[#This Row],[Rate1]])^(1/12))) -> 1.497473379 | H23: =IF(PEInflationTable[[#This Row],[4]]>0,(1+PEInflationTable[[#This Row],[Rate1]])^(1/12)*PEInflationTable[[#This Row],[4]],IF(EstLastUpdate>DATE(PEInflationTable[[#This Row],[Year]],5,1),0,(1+PEInflationTable[[#This Row],[Rate1]])^(1/12))) -> 1.501166553 | I23: =IF(PEInflationTable[[#This Row],[5]]>0,(1+PEInflationTable[[#This Row],[Rate1]])^(1/12)*PEInflationTable[[#This Row],[5]],IF(EstLastUpdate>DATE(PEInflationTable[[#This Row],[Year]],6,1),0,(1+PEInflationTable[[#This Row],[Rate1]])^(1/12))) -> 1.504868834 | J23: =IF(PEInflationTable[[#This Row],[6]]>0,(1+PEInflationTable[[#This Row],[Rate1]])^(1/12)*PEInflationTable[[#This Row],[6]],IF(EstLastUpdate>DATE(PEInflationTable[[#This Row],[Year]],7,1),0,(1+PEInflationTable[[#This Row],[Rate1]])^(1/12))) -> 1.508580247 | K23: =IF(PEInflationTable[[#This Row],[7]]>0,(1+PEInflationTable[[#This Row],[Rate1]])^(1/12)*PEInflationTable[[#This Row],[7]],IF(EstLastUpdate>DATE(PEInflationTable[[#This Row],[Year]],8,1),0,(1+PEInflationTable[[#This Row],[Rate1]])^(1/12))) -> 1.512300813 | L23: =IF(PEInflationTable[[#This Row],[8]]>0,(1+PEInflationTable[[#This Row],[Rate1]])^(1/12)*PEInflationTable[[#This Row],[8]],IF(EstLastUpdate>DATE(PEInflationTable[[#This Row],[Year]],9,1),0,(1+PEInflationTable[[#This Row],[Rate1]])^(1/12))) -> 1.516030555 | M23: =IF(PEInflationTable[[#This Row],[9]]>0,(1+PEInflationTable[[#This Row],[Rate1]])^(1/12)*PEInflationTable[[#This Row],[9]],IF(EstLastUpdate>DATE(PEInflationTable[[#This Row],[Year]],10,1),0,(1+PEInflationTable[[#This Row],[Rate1]])^(1/12))) -> 1.519769495 | N23: =IF(PEInflationTable[[#This Row],[10]]>0,(1+PEInflationTable[[#This Row],[Rate1]])^(1/12)*PEInflationTable[[#This Row],[10]],IF(EstLastUpdate>DATE(PEInflationTable[[#This Row],[Year]],11,1),0,(1+PEInflationTable[[#This Row],[Rate1]])^(1/12))) -> 1.523517656 | O23: =IF(PEInflationTable[[#This Row],[11]]>0,(1+PEInflationTable[[#This Row],[Rate1]])^(1/12)*PEInflationTable[[#This Row],[11]],IF(EstLastUpdate>DATE(PEInflationTable[[#This Row],[Year]],12,1),0,(1+PEInflationTable[[#This Row],[Rate1]])^(1/12))) -> 1.527275062 | Q23: 2037 | R23: 0.05 | S23: =IF(OFFSET(ROWInflationTable[[#This Row],[12]],-1,0)>0,(1+ROWInflationTable[[#This Row],[Rate1]])^(1/12)*OFFSET(ROWInflationTable[[#This Row],[12]],-1,0),IF(EstLastUpdate>DATE(ROWInflationTable[[#This Row],[Year]],1,1),0,(1+ROWInflationTable[[#This Row],[Rate1]])^(1/12))) -> 1.875299782 | T23: =IF(ROWInflationTable[[#This Row],[1]]>0,(1+ROWInflationTable[[#This Row],[Rate1]])^(1/12)*ROWInflationTable[[#This Row],[1]],IF(EstLastUpdate>DATE(ROWInflationTable[[#This Row],[Year]],2,1),0,(1+ROWInflationTable[[#This Row],[Rate1]])^(1/12))) -> 1.882939985 | U23: =IF(ROWInflationTable[[#This Row],[2]]>0,(1+ROWInflationTable[[#This Row],[Rate1]])^(1/12)*ROWInflationTable[[#This Row],[2]],IF(EstLastUpdate>DATE(ROWInflationTable[[#This Row],[Year]],3,1),0,(1+ROWInflationTable[[#This Row],[Rate1]])^(1/12))) -> 1.890611316 | V23: =IF(ROWInflationTable[[#This Row],[3]]>0,(1+ROWInflationTable[[#This Row],[Rate1]])^(1/12)*ROWInflationTable[[#This Row],[3]],IF(EstLastUpdate>DATE(ROWInflationTable[[#This Row],[Year]],4,1),0,(1+ROWInflationTable[[#This Row],[Rate1]])^(1/12))) -> 1.8983139 | W23: =IF(ROWInflationTable[[#This Row],[4]]>0,(1+ROWInflationTable[[#This Row],[Rate1]])^(1/12)*ROWInflationTable[[#This Row],[4]],IF(EstLastUpdate>DATE(ROWInflationTable[[#This Row],[Year]],5,1),0,(1+ROWInflationTable[[#This Row],[Rate1]])^(1/12))) -> 1.906047866 | X23: =IF(ROWInflationTable[[#This Row],[5]]>0,(1+ROWInflationTable[[#This Row],[Rate1]])^(1/12)*ROWInflationTable[[#This Row],[5]],IF(EstLastUpdate>DATE(ROWInflationTable[[#This Row],[Year]],6,1),0,(1+ROWInflationTable[[#This Row],[Rate1]])^(1/12))) -> 1.913813341 | Y23: =IF(ROWInflationTable[[#This Row],[6]]>0,(1+ROWInflationTable[[#This Row],[Rate1]])^(1/12)*ROWInflationTable[[#This Row],[6]],IF(EstLastUpdate>DATE(ROWInflationTable[[#This Row],[Year]],7,1),0,(1+ROWInflationTable[[#This Row],[Rate1]])^(1/12))) -> 1.921610453 | Z23: =IF(ROWInflationTable[[#This Row],[7]]>0,(1+ROWInflationTable[[#This Row],[Rate1]])^(1/12)*ROWInflationTable[[#This Row],[7]],IF(EstLastUpdate>DATE(ROWInflationTable[[#This Row],[Year]],8,1),0,(1+ROWInflationTable[[#This Row],[Rate1]])^(1/12))) -> 1.929439332 | AA23: =IF(ROWInflationTable[[#This Row],[8]]>0,(1+ROWInflationTable[[#This Row],[Rate1]])^(1/12)*ROWInflationTable[[#This Row],[8]],IF(EstLastUpdate>DATE(ROWInflationTable[[#This Row],[Year]],9,1),0,(1+ROWInflationTable[[#This Row],[Rate1]])^(1/12))) -> 1.937300107 | AB23: =IF(ROWInflationTable[[#This Row],[9]]>0,(1+ROWInflationTable[[#This Row],[Rate1]])^(1/12)*ROWInflationTable[[#This Row],[9]],IF(EstLastUpdate>DATE(ROWInflationTable[[#This Row],[Year]],10,1),0,(1+ROWInflationTable[[#This Row],[Rate1]])^(1/12))) -> 1.945192907 | AC23: =IF(ROWInflationTable[[#This Row],[10]]>0,(1+ROWInflationTable[[#This Row],[Rate1]])^(1/12)*ROWInflationTable[[#This Row],[10]],IF(EstLastUpdate>DATE(ROWInflationTable[[#This Row],[Year]],11,1),0,(1+ROWInflationTable[[#This Row],[Rate1]])^(1/12))) -> 1.953117864 | AD23: =IF(ROWInflationTable[[#This Row],[11]]>0,(1+ROWInflationTable[[#This Row],[Rate1]])^(1/12)*ROWInflationTable[[#This Row],[11]],IF(EstLastUpdate>DATE(ROWInflationTable[[#This Row],[Year]],12,1),0,(1+ROWInflationTable[[#This Row],[Rate1]])^(1/12))) -> 1.961075108 | AF23: 2037 | AG23: 0.03 | AH23: =IF(OFFSET(CNInflationTable[[#This Row],[12]],-1,0)>0,(1+CNInflationTable[[#This Row],[Rate1]])^(1/12)*OFFSET(CNInflationTable[[#This Row],[12]],-1,0),IF(EstLastUpdate>DATE(CNInflationTable[[#This Row],[Year]],1,1),0,(1+CNInflationTable[[#This Row],[Rate1]])^(1/12))) -> 1.500741058 | AI23: =IF(CNInflationTable[[#This Row],[1]]>0,(1+CNInflationTable[[#This Row],[Rate1]])^(1/12)*CNInflationTable[[#This Row],[1]],IF(EstLastUpdate>DATE(CNInflationTable[[#This Row],[Year]],2,1),0,(1+CNInflationTable[[#This Row],[Rate1]])^(1/12))) -> 1.50444229 | AJ23: =IF(CNInflationTable[[#This Row],[2]]>0,(1+CNInflationTable[[#This Row],[Rate1]])^(1/12)*CNInflationTable[[#This Row],[2]],IF(EstLastUpdate>DATE(CNInflationTable[[#This Row],[Year]],3,1),0,(1+CNInflationTable[[#This Row],[Rate1]])^(1/12))) -> 1.508152651 | AK23: =IF(CNInflationTable[[#This Row],[3]]>0,(1+CNInflationTable[[#This Row],[Rate1]])^(1/12)*CNInflationTable[[#This Row],[3]],IF(EstLastUpdate>DATE(CNInflationTable[[#This Row],[Year]],4,1),0,(1+CNInflationTable[[#This Row],[Rate1]])^(1/12))) -> 1.511872162 | AL23: =IF(CNInflationTable[[#This Row],[4]]>0,(1+CNInflationTable[[#This Row],[Rate1]])^(1/12)*CNInflationTable[[#This Row],[4]],IF(EstLastUpdate>DATE(CNInflationTable[[#This Row],[Year]],5,1),0,(1+CNInflationTable[[#This Row],[Rate1]])^(1/12))) -> 1.515600846 | AM23: =IF(CNInflationTable[[#This Row],[5]]>0,(1+CNInflationTable[[#This Row],[Rate1]])^(1/12)*CNInflationTable[[#This Row],[5]],IF(EstLastUpdate>DATE(CNInflationTable[[#This Row],[Year]],6,1),0,(1+CNInflationTable[[#This Row],[Rate1]])^(1/12))) -> 1.519338727 | AN23: =IF(CNInflationTable[[#This Row],[6]]>0,(1+CNInflationTable[[#This Row],[Rate1]])^(1/12)*CNInflationTable[[#This Row],[6]],IF(EstLastUpdate>DATE(CNInflationTable[[#This Row],[Year]],7,1),0,(1+CNInflationTable[[#This Row],[Rate1]])^(1/12))) -> 1.523085826 | AO23: =IF(CNInflationTable[[#This Row],[7]]>0,(1+CNInflationTable[[#This Row],[Rate1]])^(1/12)*CNInflationTable[[#This Row],[7]],IF(EstLastUpdate>DATE(CNInflationTable[[#This Row],[Year]],8,1),0,(1+CNInflationTable[[#This Row],[Rate1]])^(1/12))) -> 1.526842167 | AP23: =IF(CNInflationTable[[#This Row],[8]]>0,(1+CNInflationTable[[#This Row],[Rate1]])^(1/12)*CNInflationTable[[#This Row],[8]],IF(EstLastUpdate>DATE(CNInflationTable[[#This Row],[Year]],9,1),0,(1+CNInflationTable[[#This Row],[Rate1]])^(1/12))) -> 1.530607771 | AQ23: =IF(CNInflationTable[[#This Row],[9]]>0,(1+CNInflationTable[[#This Row],[Rate1]])^(1/12)*CNInflationTable[[#This Row],[9]],IF(EstLastUpdate>DATE(CNInflationTable[[#This Row],[Year]],10,1),0,(1+CNInflationTable[[#This Row],[Rate1]])^(1/12))) -> 1.534382663 | AR23: =IF(CNInflationTable[[#This Row],[10]]>0,(1+CNInflationTable[[#This Row],[Rate1]])^(1/12)*CNInflationTable[[#This Row],[10]],IF(EstLastUpdate>DATE(CNInflationTable[[#This Row],[Year]],11,1),0,(1+CNInflationTable[[#This Row],[Rate1]])^(1/12))) -> 1.538166865 | AS23: =IF(CNInflationTable[[#This Row],[11]]>0,(1+CNInflationTable[[#This Row],[Rate1]])^(1/12)*CNInflationTable[[#This Row],[11]],IF(EstLastUpdate>DATE(CNInflationTable[[#This Row],[Year]],12,1),0,(1+CNInflationTable[[#This Row],[Rate1]])^(1/12))) -> 1.541960399 | AU23: 2037 | AV23: 0.05 | AW23: =IF(OFFSET(UTInflationTable[[#This Row],[12]],-1,0)>0,(1+UTInflationTable[[#This Row],[Rate1]])^(1/12)*OFFSET(UTInflationTable[[#This Row],[12]],-1,0),IF(EstLastUpdate>DATE(UTInflationTable[[#This Row],[Year]],1,1),0,(1+UTInflationTable[[#This Row],[Rate1]])^(1/12))) -> 1.911363239 | AX23: =IF(UTInflationTable[[#This Row],[1]]>0,(1+UTInflationTable[[#This Row],[Rate1]])^(1/12)*UTInflationTable[[#This Row],[1]],IF(EstLastUpdate>DATE(UTInflationTable[[#This Row],[Year]],2,1),0,(1+UTInflationTable[[#This Row],[Rate1]])^(1/12))) -> 1.919150369 | AY23: =IF(UTInflationTable[[#This Row],[2]]>0,(1+UTInflationTable[[#This Row],[Rate1]])^(1/12)*UTInflationTable[[#This Row],[2]],IF(EstLastUpdate>DATE(UTInflationTable[[#This Row],[Year]],3,1),0,(1+UTInflationTable[[#This Row],[Rate1]])^(1/12))) -> 1.926969226 | AZ23: =IF(UTInflationTable[[#This Row],[3]]>0,(1+UTInflationTable[[#This Row],[Rate1]])^(1/12)*UTInflationTable[[#This Row],[3]],IF(EstLastUpdate>DATE(UTInflationTable[[#This Row],[Year]],4,1),0,(1+UTInflationTable[[#This Row],[Rate1]])^(1/12))) -> 1.934819937 | BA23: =IF(UTInflationTable[[#This Row],[4]]>0,(1+UTInflationTable[[#This Row],[Rate1]])^(1/12)*UTInflationTable[[#This Row],[4]],IF(EstLastUpdate>DATE(UTInflationTable[[#This Row],[Year]],5,1),0,(1+UTInflationTable[[#This Row],[Rate1]])^(1/12))) -> 1.942702633 | BB23: =IF(UTInflationTable[[#This Row],[5]]>0,(1+UTInflationTable[[#This Row],[Rate1]])^(1/12)*UTInflationTable[[#This Row],[5]],IF(EstLastUpdate>DATE(UTInflationTable[[#This Row],[Year]],6,1),0,(1+UTInflationTable[[#This Row],[Rate1]])^(1/12))) -> 1.950617444 | BC23: =IF(UTInflationTable[[#This Row],[6]]>0,(1+UTInflationTable[[#This Row],[Rate1]])^(1/12)*UTInflationTable[[#This Row],[6]],IF(EstLastUpdate>DATE(UTInflationTable[[#This Row],[Year]],7,1),0,(1+UTInflationTable[[#This Row],[Rate1]])^(1/12))) -> 1.958564501 | BD23: =IF(UTInflationTable[[#This Row],[7]]>0,(1+UTInflationTable[[#This Row],[Rate1]])^(1/12)*UTInflationTable[[#This Row],[7]],IF(EstLastUpdate>DATE(UTInflationTable[[#This Row],[Year]],8,1),0,(1+UTInflationTable[[#This Row],[Rate1]])^(1/12))) -> 1.966543935 | BE23: =IF(UTInflationTable[[#This Row],[8]]>0,(1+UTInflationTable[[#This Row],[Rate1]])^(1/12)*UTInflationTable[[#This Row],[8]],IF(EstLastUpdate>DATE(UTInflationTable[[#This Row],[Year]],9,1),0,(1+UTInflationTable[[#This Row],[Rate1]])^(1/12))) -> 1.974555878 | BF23: =IF(UTInflationTable[[#This Row],[9]]>0,(1+UTInflationTable[[#This Row],[Rate1]])^(1/12)*UTInflationTable[[#This Row],[9]],IF(EstLastUpdate>DATE(UTInflationTable[[#This Row],[Year]],10,1),0,(1+UTInflationTable[[#This Row],[Rate1]])^(1/12))) -> 1.982600463 | BG23: =IF(UTInflationTable[[#This Row],[10]]>0,(1+UTInflationTable[[#This Row],[Rate1]])^(1/12)*UTInflationTable[[#This Row],[10]],IF(EstLastUpdate>DATE(UTInflationTable[[#This Row],[Year]],11,1),0,(1+UTInflationTable[[#This Row],[Rate1]])^(1/12))) -> 1.990677823 | BH23: =IF(UTInflationTable[[#This Row],[11]]>0,(1+UTInflationTable[[#This Row],[Rate1]])^(1/12)*UTInflationTable[[#This Row],[11]],IF(EstLastUpdate>DATE(UTInflationTable[[#This Row],[Year]],12,1),0,(1+UTInflationTable[[#This Row],[Rate1]])^(1/12))) -> 1.998788091
B24: =OFFSET(PEInflationTable[[#This Row],[Year]],-1,0)+1 -> 2038 | C24: 0.03 | D24: =IF(OFFSET(PEInflationTable[[#This Row],[12]],-1,0)>0,(1+PEInflationTable[[#This Row],[Rate1]])^(1/12)*OFFSET(PEInflationTable[[#This Row],[12]],-1,0),IF(EstLastUpdate>DATE(PEInflationTable[[#This Row],[Year]],1,1),0,(1+PEInflationTable[[#This Row],[Rate1]])^(1/12))) -> 1.531041734 | E24: =IF(PEInflationTable[[#This Row],[1]]>0,(1+PEInflationTable[[#This Row],[Rate1]])^(1/12)*PEInflationTable[[#This Row],[1]],IF(EstLastUpdate>DATE(PEInflationTable[[#This Row],[Year]],2,1),0,(1+PEInflationTable[[#This Row],[Rate1]])^(1/12))) -> 1.534817696 | F24: =IF(PEInflationTable[[#This Row],[2]]>0,(1+PEInflationTable[[#This Row],[Rate1]])^(1/12)*PEInflationTable[[#This Row],[2]],IF(EstLastUpdate>DATE(PEInflationTable[[#This Row],[Year]],3,1),0,(1+PEInflationTable[[#This Row],[Rate1]])^(1/12))) -> 1.538602971 | G24: =IF(PEInflationTable[[#This Row],[3]]>0,(1+PEInflationTable[[#This Row],[Rate1]])^(1/12)*PEInflationTable[[#This Row],[3]],IF(EstLastUpdate>DATE(PEInflationTable[[#This Row],[Year]],4,1),0,(1+PEInflationTable[[#This Row],[Rate1]])^(1/12))) -> 1.542397581 | H24: =IF(PEInflationTable[[#This Row],[4]]>0,(1+PEInflationTable[[#This Row],[Rate1]])^(1/12)*PEInflationTable[[#This Row],[4]],IF(EstLastUpdate>DATE(PEInflationTable[[#This Row],[Year]],5,1),0,(1+PEInflationTable[[#This Row],[Rate1]])^(1/12))) -> 1.546201549 | I24: =IF(PEInflationTable[[#This Row],[5]]>0,(1+PEInflationTable[[#This Row],[Rate1]])^(1/12)*PEInflationTable[[#This Row],[5]],IF(EstLastUpdate>DATE(PEInflationTable[[#This Row],[Year]],6,1),0,(1+PEInflationTable[[#This Row],[Rate1]])^(1/12))) -> 1.550014899 | J24: =IF(PEInflationTable[[#This Row],[6]]>0,(1+PEInflationTable[[#This Row],[Rate1]])^(1/12)*PEInflationTable[[#This Row],[6]],IF(EstLastUpdate>DATE(PEInflationTable[[#This Row],[Year]],7,1),0,(1+PEInflationTable[[#This Row],[Rate1]])^(1/12))) -> 1.553837654 | K24: =IF(PEInflationTable[[#This Row],[7]]>0,(1+PEInflationTable[[#This Row],[Rate1]])^(1/12)*PEInflationTable[[#This Row],[7]],IF(EstLastUpdate>DATE(PEInflationTable[[#This Row],[Year]],8,1),0,(1+PEInflationTable[[#This Row],[Rate1]])^(1/12))) -> 1.557669837 | L24: =IF(PEInflationTable[[#This Row],[8]]>0,(1+PEInflationTable[[#This Row],[Rate1]])^(1/12)*PEInflationTable[[#This Row],[8]],IF(EstLastUpdate>DATE(PEInflationTable[[#This Row],[Year]],9,1),0,(1+PEInflationTable[[#This Row],[Rate1]])^(1/12))) -> 1.561511471 | M24: =IF(PEInflationTable[[#This Row],[9]]>0,(1+PEInflationTable[[#This Row],[Rate1]])^(1/12)*PEInflationTable[[#This Row],[9]],IF(EstLastUpdate>DATE(PEInflationTable[[#This Row],[Year]],10,1),0,(1+PEInflationTable[[#This Row],[Rate1]])^(1/12))) -> 1.56536258 | N24: =IF(PEInflationTable[[#This Row],[10]]>0,(1+PEInflationTable[[#This Row],[Rate1]])^(1/12)*PEInflationTable[[#This Row],[10]],IF(EstLastUpdate>DATE(PEInflationTable[[#This Row],[Year]],11,1),0,(1+PEInflationTable[[#This Row],[Rate1]])^(1/12))) -> 1.569223186 | O24: =IF(PEInflationTable[[#This Row],[11]]>0,(1+PEInflationTable[[#This Row],[Rate1]])^(1/12)*PEInflationTable[[#This Row],[11]],IF(EstLastUpdate>DATE(PEInflationTable[[#This Row],[Year]],12,1),0,(1+PEInflationTable[[#This Row],[Rate1]])^(1/12))) -> 1.573093314 | Q24: 2038 | R24: 0.05 | S24: =IF(OFFSET(ROWInflationTable[[#This Row],[12]],-1,0)>0,(1+ROWInflationTable[[#This Row],[Rate1]])^(1/12)*OFFSET(ROWInflationTable[[#This Row],[12]],-1,0),IF(EstLastUpdate>DATE(ROWInflationTable[[#This Row],[Year]],1,1),0,(1+ROWInflationTable[[#This Row],[Rate1]])^(1/12))) -> 1.969064771 | T24: =IF(ROWInflationTable[[#This Row],[1]]>0,(1+ROWInflationTable[[#This Row],[Rate1]])^(1/12)*ROWInflationTable[[#This Row],[1]],IF(EstLastUpdate>DATE(ROWInflationTable[[#This Row],[Year]],2,1),0,(1+ROWInflationTable[[#This Row],[Rate1]])^(1/12))) -> 1.977086984 | U24: =IF(ROWInflationTable[[#This Row],[2]]>0,(1+ROWInflationTable[[#This Row],[Rate1]])^(1/12)*ROWInflationTable[[#This Row],[2]],IF(EstLastUpdate>DATE(ROWInflationTable[[#This Row],[Year]],3,1),0,(1+ROWInflationTable[[#This Row],[Rate1]])^(1/12))) -> 1.985141881 | V24: =IF(ROWInflationTable[[#This Row],[3]]>0,(1+ROWInflationTable[[#This Row],[Rate1]])^(1/12)*ROWInflationTable[[#This Row],[3]],IF(EstLastUpdate>DATE(ROWInflationTable[[#This Row],[Year]],4,1),0,(1+ROWInflationTable[[#This Row],[Rate1]])^(1/12))) -> 1.993229595 | W24: =IF(ROWInflationTable[[#This Row],[4]]>0,(1+ROWInflationTable[[#This Row],[Rate1]])^(1/12)*ROWInflationTable[[#This Row],[4]],IF(EstLastUpdate>DATE(ROWInflationTable[[#This Row],[Year]],5,1),0,(1+ROWInflationTable[[#This Row],[Rate1]])^(1/12))) -> 2.001350259 | X24: =IF(ROWInflationTable[[#This Row],[5]]>0,(1+ROWInflationTable[[#This Row],[Rate1]])^(1/12)*ROWInflationTable[[#This Row],[5]],IF(EstLastUpdate>DATE(ROWInflationTable[[#This Row],[Year]],6,1),0,(1+ROWInflationTable[[#This Row],[Rate1]])^(1/12))) -> 2.009504008 | Y24: =IF(ROWInflationTable[[#This Row],[6]]>0,(1+ROWInflationTable[[#This Row],[Rate1]])^(1/12)*ROWInflationTable[[#This Row],[6]],IF(EstLastUpdate>DATE(ROWInflationTable[[#This Row],[Year]],7,1),0,(1+ROWInflationTable[[#This Row],[Rate1]])^(1/12))) -> 2.017690976 | Z24: =IF(ROWInflationTable[[#This Row],[7]]>0,(1+ROWInflationTable[[#This Row],[Rate1]])^(1/12)*ROWInflationTable[[#This Row],[7]],IF(EstLastUpdate>DATE(ROWInflationTable[[#This Row],[Year]],8,1),0,(1+ROWInflationTable[[#This Row],[Rate1]])^(1/12))) -> 2.025911299 | AA24: =IF(ROWInflationTable[[#This Row],[8]]>0,(1+ROWInflationTable[[#This Row],[Rate1]])^(1/12)*ROWInflationTable[[#This Row],[8]],IF(EstLastUpdate>DATE(ROWInflationTable[[#This Row],[Year]],9,1),0,(1+ROWInflationTable[[#This Row],[Rate1]])^(1/12))) -> 2.034165112 | AB24: =IF(ROWInflationTable[[#This Row],[9]]>0,(1+ROWInflationTable[[#This Row],[Rate1]])^(1/12)*ROWInflationTable[[#This Row],[9]],IF(EstLastUpdate>DATE(ROWInflationTable[[#This Row],[Year]],10,1),0,(1+ROWInflationTable[[#This Row],[Rate1]])^(1/12))) -> 2.042452553 | AC24: =IF(ROWInflationTable[[#This Row],[10]]>0,(1+ROWInflationTable[[#This Row],[Rate1]])^(1/12)*ROWInflationTable[[#This Row],[10]],IF(EstLastUpdate>DATE(ROWInflationTable[[#This Row],[Year]],11,1),0,(1+ROWInflationTable[[#This Row],[Rate1]])^(1/12))) -> 2.050773757 | AD24: =IF(ROWInflationTable[[#This Row],[11]]>0,(1+ROWInflationTable[[#This Row],[Rate1]])^(1/12)*ROWInflationTable[[#This Row],[11]],IF(EstLastUpdate>DATE(ROWInflationTable[[#This Row],[Year]],12,1),0,(1+ROWInflationTable[[#This Row],[Rate1]])^(1/12))) -> 2.059128863 | AF24: 2038 | AG24: 0.03 | AH24: =IF(OFFSET(CNInflationTable[[#This Row],[12]],-1,0)>0,(1+CNInflationTable[[#This Row],[Rate1]])^(1/12)*OFFSET(CNInflationTable[[#This Row],[12]],-1,0),IF(EstLastUpdate>DATE(CNInflationTable[[#This Row],[Year]],1,1),0,(1+CNInflationTable[[#This Row],[Rate1]])^(1/12))) -> 1.545763289 | AI24: =IF(CNInflationTable[[#This Row],[1]]>0,(1+CNInflationTable[[#This Row],[Rate1]])^(1/12)*CNInflationTable[[#This Row],[1]],IF(EstLastUpdate>DATE(CNInflationTable[[#This Row],[Year]],2,1),0,(1+CNInflationTable[[#This Row],[Rate1]])^(1/12))) -> 1.549575559 | AJ24: =IF(CNInflationTable[[#This Row],[2]]>0,(1+CNInflationTable[[#This Row],[Rate1]])^(1/12)*CNInflationTable[[#This Row],[2]],IF(EstLastUpdate>DATE(CNInflationTable[[#This Row],[Year]],3,1),0,(1+CNInflationTable[[#This Row],[Rate1]])^(1/12))) -> 1.55339723 | AK24: =IF(CNInflationTable[[#This Row],[3]]>0,(1+CNInflationTable[[#This Row],[Rate1]])^(1/12)*CNInflationTable[[#This Row],[3]],IF(EstLastUpdate>DATE(CNInflationTable[[#This Row],[Year]],4,1),0,(1+CNInflationTable[[#This Row],[Rate1]])^(1/12))) -> 1.557228327 | AL24: =IF(CNInflationTable[[#This Row],[4]]>0,(1+CNInflationTable[[#This Row],[Rate1]])^(1/12)*CNInflationTable[[#This Row],[4]],IF(EstLastUpdate>DATE(CNInflationTable[[#This Row],[Year]],5,1),0,(1+CNInflationTable[[#This Row],[Rate1]])^(1/12))) -> 1.561068872 | AM24: =IF(CNInflationTable[[#This Row],[5]]>0,(1+CNInflationTable[[#This Row],[Rate1]])^(1/12)*CNInflationTable[[#This Row],[5]],IF(EstLastUpdate>DATE(CNInflationTable[[#This Row],[Year]],6,1),0,(1+CNInflationTable[[#This Row],[Rate1]])^(1/12))) -> 1.564918889 | AN24: =IF(CNInflationTable[[#This Row],[6]]>0,(1+CNInflationTable[[#This Row],[Rate1]])^(1/12)*CNInflationTable[[#This Row],[6]],IF(EstLastUpdate>DATE(CNInflationTable[[#This Row],[Year]],7,1),0,(1+CNInflationTable[[#This Row],[Rate1]])^(1/12))) -> 1.568778401 | AO24: =IF(CNInflationTable[[#This Row],[7]]>0,(1+CNInflationTable[[#This Row],[Rate1]])^(1/12)*CNInflationTable[[#This Row],[7]],IF(EstLastUpdate>DATE(CNInflationTable[[#This Row],[Year]],8,1),0,(1+CNInflationTable[[#This Row],[Rate1]])^(1/12))) -> 1.572647432 | AP24: =IF(CNInflationTable[[#This Row],[8]]>0,(1+CNInflationTable[[#This Row],[Rate1]])^(1/12)*CNInflationTable[[#This Row],[8]],IF(EstLastUpdate>DATE(CNInflationTable[[#This Row],[Year]],9,1),0,(1+CNInflationTable[[#This Row],[Rate1]])^(1/12))) -> 1.576526005 | AQ24: =IF(CNInflationTable[[#This Row],[9]]>0,(1+CNInflationTable[[#This Row],[Rate1]])^(1/12)*CNInflationTable[[#This Row],[9]],IF(EstLastUpdate>DATE(CNInflationTable[[#This Row],[Year]],10,1),0,(1+CNInflationTable[[#This Row],[Rate1]])^(1/12))) -> 1.580414143 | AR24: =IF(CNInflationTable[[#This Row],[10]]>0,(1+CNInflationTable[[#This Row],[Rate1]])^(1/12)*CNInflationTable[[#This Row],[10]],IF(EstLastUpdate>DATE(CNInflationTable[[#This Row],[Year]],11,1),0,(1+CNInflationTable[[#This Row],[Rate1]])^(1/12))) -> 1.584311871 | AS24: =IF(CNInflationTable[[#This Row],[11]]>0,(1+CNInflationTable[[#This Row],[Rate1]])^(1/12)*CNInflationTable[[#This Row],[11]],IF(EstLastUpdate>DATE(CNInflationTable[[#This Row],[Year]],12,1),0,(1+CNInflationTable[[#This Row],[Rate1]])^(1/12))) -> 1.588219211 | AU24: 2038 | AV24: 0.05 | AW24: =IF(OFFSET(UTInflationTable[[#This Row],[12]],-1,0)>0,(1+UTInflationTable[[#This Row],[Rate1]])^(1/12)*OFFSET(UTInflationTable[[#This Row],[12]],-1,0),IF(EstLastUpdate>DATE(UTInflationTable[[#This Row],[Year]],1,1),0,(1+UTInflationTable[[#This Row],[Rate1]])^(1/12))) -> 2.006931401 | AX24: =IF(UTInflationTable[[#This Row],[1]]>0,(1+UTInflationTable[[#This Row],[Rate1]])^(1/12)*UTInflationTable[[#This Row],[1]],IF(EstLastUpdate>DATE(UTInflationTable[[#This Row],[Year]],2,1),0,(1+UTInflationTable[[#This Row],[Rate1]])^(1/12))) -> 2.015107888 | AY24: =IF(UTInflationTable[[#This Row],[2]]>0,(1+UTInflationTable[[#This Row],[Rate1]])^(1/12)*UTInflationTable[[#This Row],[2]],IF(EstLastUpdate>DATE(UTInflationTable[[#This Row],[Year]],3,1),0,(1+UTInflationTable[[#This Row],[Rate1]])^(1/12))) -> 2.023317687 | AZ24: =IF(UTInflationTable[[#This Row],[3]]>0,(1+UTInflationTable[[#This Row],[Rate1]])^(1/12)*UTInflationTable[[#This Row],[3]],IF(EstLastUpdate>DATE(UTInflationTable[[#This Row],[Year]],4,1),0,(1+UTInflationTable[[#This Row],[Rate1]])^(1/12))) -> 2.031560934 | BA24: =IF(UTInflationTable[[#This Row],[4]]>0,(1+UTInflationTable[[#This Row],[Rate1]])^(1/12)*UTInflationTable[[#This Row],[4]],IF(EstLastUpdate>DATE(UTInflationTable[[#This Row],[Year]],5,1),0,(1+UTInflationTable[[#This Row],[Rate1]])^(1/12))) -> 2.039837764 | BB24: =IF(UTInflationTable[[#This Row],[5]]>0,(1+UTInflationTable[[#This Row],[Rate1]])^(1/12)*UTInflationTable[[#This Row],[5]],IF(EstLastUpdate>DATE(UTInflationTable[[#This Row],[Year]],6,1),0,(1+UTInflationTable[[#This Row],[Rate1]])^(1/12))) -> 2.048148316 | BC24: =IF(UTInflationTable[[#This Row],[6]]>0,(1+UTInflationTable[[#This Row],[Rate1]])^(1/12)*UTInflationTable[[#This Row],[6]],IF(EstLastUpdate>DATE(UTInflationTable[[#This Row],[Year]],7,1),0,(1+UTInflationTable[[#This Row],[Rate1]])^(1/12))) -> 2.056492726 | BD24: =IF(UTInflationTable[[#This Row],[7]]>0,(1+UTInflationTable[[#This Row],[Rate1]])^(1/12)*UTInflationTable[[#This Row],[7]],IF(EstLastUpdate>DATE(UTInflationTable[[#This Row],[Year]],8,1),0,(1+UTInflationTable[[#This Row],[Rate1]])^(1/12))) -> 2.064871132 | BE24: =IF(UTInflationTable[[#This Row],[8]]>0,(1+UTInflationTable[[#This Row],[Rate1]])^(1/12)*UTInflationTable[[#This Row],[8]],IF(EstLastUpdate>DATE(UTInflationTable[[#This Row],[Year]],9,1),0,(1+UTInflationTable[[#This Row],[Rate1]])^(1/12))) -> 2.073283672 | BF24: =IF(UTInflationTable[[#This Row],[9]]>0,(1+UTInflationTable[[#This Row],[Rate1]])^(1/12)*UTInflationTable[[#This Row],[9]],IF(EstLastUpdate>DATE(UTInflationTable[[#This Row],[Year]],10,1),0,(1+UTInflationTable[[#This Row],[Rate1]])^(1/12))) -> 2.081730486 | BG24: =IF(UTInflationTable[[#This Row],[10]]>0,(1+UTInflationTable[[#This Row],[Rate1]])^(1/12)*UTInflationTable[[#This Row],[10]],IF(EstLastUpdate>DATE(UTInflationTable[[#This Row],[Year]],11,1),0,(1+UTInflationTable[[#This Row],[Rate1]])^(1/12))) -> 2.090211714 | BH24: =IF(UTInflationTable[[#This Row],[11]]>0,(1+UTInflationTable[[#This Row],[Rate1]])^(1/12)*UTInflationTable[[#This Row],[11]],IF(EstLastUpdate>DATE(UTInflationTable[[#This Row],[Year]],12,1),0,(1+UTInflationTable[[#This Row],[Rate1]])^(1/12))) -> 2.098727495
